Workbook

Sheet Introduction
B1: FSR and FEH method for estimating the PMF
B3: Version: | C3: Version 2.3
B4: version date: | C4: 2024-12-06

Sheet Inputs
A1: Data input tab (catchment descriptors and PMP/PMF model parameters) | P1: Legend
S2: Default value from catchment descriptors
A3: Most recently loaded catchment descriptors read from: | C3: Imported on: | D3: 2022-03-02T10:55:20 | S3: User over-ride (leave blank if the value in the green cell is acceptable)
A4: C:\Users\jamesmolloy\Desktop\2020s1391 - PMF calculator tool development\Example catchment descriptors\Calder @ Burnley.csv | Q4: or | R4: (number) | S4: Not required / internal calculation
S5: Drop-down selection
P6: Rows requiring manual entry to yellow cells, if for example copying from a report, are given in blue text
A7: User check? | B7: FEH Catchment Descriptors (User supplied) | D7: Catchment Descriptor | E7: User over-ride (if required) | F7: Final value | H7: Error Checks | L7: Notes
B8: Great Britain or Northern Ireland grid | C8: Grid | D8: GB
B9: Easting of catchment centroid | C9: CENTE | D9: 387854 | F9: =IF(E9="",D9,E9) -> 387854 | H9: =IF(AND(D9="",E9=""),"Missing data - Required for snowmelt calculations","OK") -> OK
B10: Northing of catchment centroid | C10: CENTN | D10: 436690 | F10: =IF(E10="",D10,E10) -> 436690 | H10: =IF(AND(D10="",E10=""),"Missing data - Required for snowmelt calculations","OK") -> OK
B11: Catchment area (km2) | C11: AREA | D11: 178.6825 | F11: =IF(E11="",D11,E11) -> 178.6825 | H11: =IF(AND(D11="",E11=""),"Missing data","OK") -> OK
B12: Mean altitude (m) | C12: ALTBAR | D12: 251 | F12: =IF(E12="",D12,E12) -> 251 | H12: =IF(AND(D12="",E12=""),"Missing data","OK") -> OK
B13: Mean Drainage Path Length (km) | C13: DPLBAR | D13: 13.39 | F13: 13.39 | H13: =IF(AND(D13="",E13=""),"Missing data","OK") -> OK
B14: Mean Drainage Path Slope (m/km) | C14: DPSBAR | D14: 101.9 | F14: 101.9 | H14: =IF(AND(D14="",E14=""),"Missing data","OK") -> OK
B15: Proportion of time that soil moisture deficit is low | C15: PROPWET | D15: 0.5799999833 | F15: 0.5799999833 | H15: =IF(AND(D15="",E15=""),"Missing data","OK") -> OK
B16: Annual average rainfall (mm) for the 1961-1990 reference period | C16: SAAR (6190) | D16: 1248 | F16: =IF(E16="",D16,E16) -> 1248 | H16: =IF(AND(F16>500,F16<4000),"OK","Out of range of PMP methods/missing data") -> OK
B17: Standard percentage runoff (%) | C17: SPRHOST | D17: 39.75 | F17: =IF(E17="",D17,E17) -> 39.75 | H17: =IF(AND(D17="",E17=""),"Missing data","OK") -> OK
B18: Urban extent | C18: URBEXT1990 | D18: 0.0638 | F18: =IF(E18="",D18*F19,E18) -> 0.06959090077 | H18: =IF(AND(D18="",E18=""),"Missing data","OK") -> OK
B19: Urban expansion factor (UEF) relative to 1990 | C19: UEF (1990) | D19: =0.8165+0.2254*ATAN((F20-1967.5)/21.25) -> 1.09076647 | F19: =IF(E19="",D19,E19) -> 1.09076647 | H19: =IF(OR(AND(D19="",E19=""),F19<1),"Missing data / UEF<1.0","OK") -> OK | L19: Factor allowing for urban expansion from 1990 to present (FEH Volume 5). Can be overwritten if required.
B20: Current year for UEF calculations | C20: YEAR | D20: =YEAR(NOW()) -> 2025 | F20: =IF(E20="",D20,E20) -> 2025 | H20: =IF(F20>1990,"OK","Year < 1990 !") -> OK | L20: Can be overwritten from the current year if required, for example to help check older calculations.
B21: Final URBEXT1990 value used in calculations | E21: =F18 -> 0.06959090077 | L21: The UEF is applied here if no manual changes are specified. The UEF is ignored if a manual URBEXT1990 value is entered.
A25: User check? | B25: PMP Model Inputs (user supplied) | D25: Catchment Descriptor | E25: User over-ride (if required) | F25: Final value | H25: Error Checks | L25: Notes
B26: Storm duration (hr) | C26: D | D26: =IF(ISERR(D57*(1+F16/1000)),"",D57*(1+F16/1000)) -> 5.708139939 | E26: 5.75 | F26: =IF(E26="",D26,E26) -> 5.75 | H26: =IF(AND(ISODD(F26/F27),INT(F26/F27)-ROUND((F26/F27),5)=0,NOT(ISBLANK(F26))),"OK","Error/Requires odd timestep multiple") -> OK | L26: Initial value from catchment descriptors. Will usually require user input to a rounded figure / critical storm info, giving an odd number of timesteps.
B27: Time step (hr) | C27: ΔT | D27: =IF(ISERR(D56/11),"",D56/11) -> 0.3275723417 | E27: 0.25 | F27: =IF(E27="",D27,E27) -> 0.25 | H27: =IF(OR(F26/F27>98,F27<0.1),"Error - Time step too short","OK") -> OK | L27: Initial estimate of TP/5. Will usually require user input to a more sensible rounded figure (typically 0.25 - 1.0hrs).
B28: Estimated maximum 2-hour rain (mm) | C28: EM-2hour | E28: 180 | H28: =IF(ISBLANK(E28),"Error/Missing data","OK") -> OK | L28: User to look up from FSR maps
B29: Estimated maximum 24-hour rain (mm) | C29: EM-24hour | E29: 290 | H29: =IF(OR(E29<E28,ISBLANK(E29)),"Error/Missing data","OK") -> OK | L29: User to look up from FSR maps
B30: Estimated maximum 25-day rain (mm) | C30: EM-25day | E30: 400 | H30: =IF(OR(E30<E29,ISBLANK(E30)),"Error","OK") -> OK | L30: User to look up from FSR maps
B31: 100-year return period snow depth, as water equivalent (mm) | C31: S100 | E31: 50 | H31: =IF(ISBLANK(E31),"Error/Missing data","OK") -> OK | L31: User to look up from FSR/FEH maps (Fig 4.7, FEH Vol. 4)
B32: Design storm area for ARF adjustment, if different to catchment area (km2) | C32: AREA (ARF) | F32: =IF(E32="",F11,E32) -> 178.6825 | L32: This alters the storm area for the ARF, sometimes required for spatially-distributed flows. Leave this cell blank if no changes are required.
B33: Final Areal Reduction Factor (ARF) used | C33: ARF | E33: =IF(ISERR('Calcs - PMP'!G20),"",'Calcs - PMP'!G20) -> 0.8834735748 | H33: =IF(E32="","ARF calculated from AREA","Storm area over-written for ARF") -> ARF calculated from AREA | L33: The ARF is calculated from the catchment area if an adjustment is omitted on the row above.
D37: Winter event | H37: Summer event
B39: Loss Model (calculated, but some parameters can be adjusted) | D39: Catchment Descriptor | E39: User over-ride (if required) | F39: Final value | H39: Catchment Descriptor | I39: User over-ride (if required) | J39: Final value | L39: Notes
B40: Apply frozen ground adjustment for winter floods (Yes/No)? | D40: Yes | L40: Only applicable to Winter events
B41: Probable Maximum Precipitation, including snowmelt (mm) | C41: PMP | D41: =Results!D3 ->  | H41: =Results!B3 -> 
B42: Catchment Wetness Index (mm) | C42: CWI | D42: =125+Results!C4*0.5^($F$26/24) ->  | F42: =IF(E42="",D42,E42) ->  | H42: =125+Results!B4*0.5^($F$26/24) ->  | J42: =IF(I42="",H42,I42) -> 
B43: Winter snowmelt addition for CWI calculation | C43: CWISM | D43: ='Calcs - Snow'!B21*0.5^('Calcs - Snow'!B22/48) -> 
B44: Catchment Wetness Index with snowmelt added | C44: CWI' | D44: =F42+D43 -> 
B45: Antecedent Dynamic Percentage Runoff (%) | C45: DPRCWI | D45: =0.25*(D44-125) ->  | H45: =0.25*(J42-125) -> 
B46: Event Dynamic Percentage Runoff (%) | C46: DPRRAIN | D46: =0.45*(D41-40)^0.7 ->  | H46: =0.45*(H41-40)^0.7 -> 
B47: Standard Percentage Runoff (%) | C47: SPR | D47: =IF(D40="Yes",MAX(F17,53),F17) -> 53 | F47: =IF(E47="",D47,IF(D40="Yes",MAX(E47,53),E47)) -> 53 | H47: =F17 -> 39.75 | J47: =IF(I47="",H47,I47) -> 39.75 | L47: Ideally this should be estimated from local data where possible.
B48: Final SPR values used | E48: =F47 -> 53 | I48: =J47 -> 39.75 | L48: The winter value will always default to a minimum of 53% if the Frozen Ground Adjustment is activated
B49: Percentage runoff - rural (%) | C49: PRRural | D49: =MIN(F47+D45+D46,100) ->  | H49: =MIN(J47+H45+H46,100) -> 
B50: Percentage runoff - including urbanisation (%) | C50: PRUrban | D50: =IF(D49>70,D49,D49*(1-0.615*F18)+70*0.615*F18) ->  | H50: =IF(H49>70,H49,H49*(1-0.615*F18)+70*0.615*F18) -> 
B51: Baseflow (m3/s) | C51: BF | D51: =(33*(D44-125)+3*$F$16+5.5)*$F$11/100000 ->  | F51: =IF(E51="",D51,E51) ->  | H51: =(33*(J42-125)+3*$F$16+5.5)*$F$11/100000 ->  | J51: =IF(I51="",H51,I51) -> 
B55: Unit Hydrograph parameters | D55: Catchment Descriptor | E55: User over-ride (if required) | F55: Final value | L55: Notes
B56: Time to peak of instantaneous Unit Hydrograph (hours) | C56: TP(0) | D56: =4.27*(F14^-0.35)*(F15^-0.8)*(F13^0.54)*((1+F18)^-5.77) -> 3.603295758 | F56: =IF(E56="",D56,E56) -> 3.603295758 | L56: TP(0) from the FEH Volume 4 Rainfall-Runoff model. Ideally this should be estimated from local data where possible.
B57: Adjusted Time to Peak for PMF (hours) | C57: TP(dt) | D57: =(0.67*F56)+(0.5*F27) -> 2.539208158 | L57: Multiplies the TP(0) value by 0.67 and also adjusted for the selected timestep
B58: Peak flow of the Unit Hydrograph (m3/s/mm) | C58: UP | D58: =0.1*2.2*F11/D57 -> 15.48126327
B59: Duration of the total Unit Hydrograph (hours) | C59: TB | D59: =2.52*D57 -> 6.398804558

Sheet Results
J1: Scenario(s) to plot: (select from drop-down options)
A2: PMP outputs (all in mm) | B2: Summer | C2: Winter - rain | D2: Winter - rain + snowmelt | F2: PMF outputs | G2: Summer | H2: Winter | J2: Summer and Winter
A3: Catchment PMP | B3: ='Calcs - PMP'!H20 ->  | C3: ='Calcs - PMP'!I20 ->  | D3: =C3+'Calcs - Snow'!B18 ->  | F3: Peak flow | G3: =MAX(G8:G208) ->  | H3: =MAX(H8:H208) ->  | I3: m3/s
A4: Catchment antecedent rain | B4: ='Calcs - PMP'!H22 ->  | C4: ='Calcs - PMP'!I22 ->  | D4: =C4+'Calcs - Snow'!B21 ->  | F4: Quick runoff volume | G4: =SUM('Calcs - Summer PMF'!I10:I210)*3600*Inputs!F27/1000000 ->  | H4: =SUM('Calcs - Winter PMF'!I10:I210)*3600*Inputs!F27/1000000 ->  | I4: million m3
A6: Hyetographs (mm per timestep) | F6: Hydrographs (all in m3/s)
A7: Time (hr) | B7: Summer | C7: Winter - rain | D7: Winter - rain + snowmelt | F7: Time (hr) | G7: Summer PMF | H7: Winter PMF
A8: 0 | B8: =IF(ISNUMBER(VLOOKUP($A9,'Calcs - PMP'!$C$80:$F$178,2,FALSE)),VLOOKUP($A9,'Calcs - PMP'!$C$80:$F$178,2,FALSE),0) -> 0 | C8: =IF(ISNUMBER(VLOOKUP($A9,'Calcs - PMP'!$C$80:$F$178,3,FALSE)),VLOOKUP($A9,'Calcs - PMP'!$C$80:$F$178,3,FALSE),0) -> 0 | D8: =IF(ISNUMBER(VLOOKUP($A9,'Calcs - PMP'!$C$80:$F$178,4,FALSE)),VLOOKUP($A9,'Calcs - PMP'!$C$80:$F$178,4,FALSE),0) -> 0 | F8: =A8 -> 0 | G8: =IF(ISNA(VLOOKUP(F9,'Calcs - Summer PMF'!$A$10:$J$210,10,FALSE)),0,VLOOKUP(F9,'Calcs - Summer PMF'!$A$10:$J$210,10,FALSE)) ->  | H8: =IF(ISNA(VLOOKUP(F9,'Calcs - Winter PMF'!$A$10:$J$210,10,FALSE)),0,VLOOKUP(F9,'Calcs - Winter PMF'!$A$10:$J$210,10,FALSE)) -> 
A9: =ROUND(A8+Inputs!$F$27,5) -> 0.25 | B9: =IF(ISNUMBER(VLOOKUP($A10,'Calcs - PMP'!$C$80:$F$178,2,FALSE)),VLOOKUP($A10,'Calcs - PMP'!$C$80:$F$178,2,FALSE),0) -> 0 | C9: =IF(ISNUMBER(VLOOKUP($A10,'Calcs - PMP'!$C$80:$F$178,3,FALSE)),VLOOKUP($A10,'Calcs - PMP'!$C$80:$F$178,3,FALSE),0) -> 0 | D9: =IF(ISNUMBER(VLOOKUP($A10,'Calcs - PMP'!$C$80:$F$178,4,FALSE)),VLOOKUP($A10,'Calcs - PMP'!$C$80:$F$178,4,FALSE),0) -> 0 | F9: =A9 -> 0.25 | G9: =IF(ISNA(VLOOKUP(F10,'Calcs - Summer PMF'!$A$10:$J$210,10,FALSE)),0,VLOOKUP(F10,'Calcs - Summer PMF'!$A$10:$J$210,10,FALSE)) ->  | H9: =IF(ISNA(VLOOKUP(F10,'Calcs - Winter PMF'!$A$10:$J$210,10,FALSE)),0,VLOOKUP(F10,'Calcs - Winter PMF'!$A$10:$J$210,10,FALSE)) -> 
A10: =ROUND(A9+Inputs!$F$27,5) -> 0.5 | B10: =IF(ISNUMBER(VLOOKUP($A11,'Calcs - PMP'!$C$80:$F$178,2,FALSE)),VLOOKUP($A11,'Calcs - PMP'!$C$80:$F$178,2,FALSE),0) -> 0 | C10: =IF(ISNUMBER(VLOOKUP($A11,'Calcs - PMP'!$C$80:$F$178,3,FALSE)),VLOOKUP($A11,'Calcs - PMP'!$C$80:$F$178,3,FALSE),0) -> 0 | D10: =IF(ISNUMBER(VLOOKUP($A11,'Calcs - PMP'!$C$80:$F$178,4,FALSE)),VLOOKUP($A11,'Calcs - PMP'!$C$80:$F$178,4,FALSE),0) -> 0 | F10: 0.5 | G10: =IF(ISNA(VLOOKUP(F11,'Calcs - Summer PMF'!$A$10:$J$210,10,FALSE)),0,VLOOKUP(F11,'Calcs - Summer PMF'!$A$10:$J$210,10,FALSE)) ->  | H10: =IF(ISNA(VLOOKUP(F11,'Calcs - Winter PMF'!$A$10:$J$210,10,FALSE)),0,VLOOKUP(F11,'Calcs - Winter PMF'!$A$10:$J$210,10,FALSE)) -> 
A11: =ROUND(A10+Inputs!$F$27,5) -> 0.75 | B11: =IF(ISNUMBER(VLOOKUP($A12,'Calcs - PMP'!$C$80:$F$178,2,FALSE)),VLOOKUP($A12,'Calcs - PMP'!$C$80:$F$178,2,FALSE),0) -> 0 | C11: =IF(ISNUMBER(VLOOKUP($A12,'Calcs - PMP'!$C$80:$F$178,3,FALSE)),VLOOKUP($A12,'Calcs - PMP'!$C$80:$F$178,3,FALSE),0) -> 0 | D11: =IF(ISNUMBER(VLOOKUP($A12,'Calcs - PMP'!$C$80:$F$178,4,FALSE)),VLOOKUP($A12,'Calcs - PMP'!$C$80:$F$178,4,FALSE),0) -> 0 | F11: 0.75 | G11: =IF(ISNA(VLOOKUP(F12,'Calcs - Summer PMF'!$A$10:$J$210,10,FALSE)),0,VLOOKUP(F12,'Calcs - Summer PMF'!$A$10:$J$210,10,FALSE)) ->  | H11: =IF(ISNA(VLOOKUP(F12,'Calcs - Winter PMF'!$A$10:$J$210,10,FALSE)),0,VLOOKUP(F12,'Calcs - Winter PMF'!$A$10:$J$210,10,FALSE)) -> 
A12: =ROUND(A11+Inputs!$F$27,5) -> 1 | B12: =IF(ISNUMBER(VLOOKUP($A13,'Calcs - PMP'!$C$80:$F$178,2,FALSE)),VLOOKUP($A13,'Calcs - PMP'!$C$80:$F$178,2,FALSE),0) -> 0 | C12: =IF(ISNUMBER(VLOOKUP($A13,'Calcs - PMP'!$C$80:$F$178,3,FALSE)),VLOOKUP($A13,'Calcs - PMP'!$C$80:$F$178,3,FALSE),0) -> 0 | D12: =IF(ISNUMBER(VLOOKUP($A13,'Calcs - PMP'!$C$80:$F$178,4,FALSE)),VLOOKUP($A13,'Calcs - PMP'!$C$80:$F$178,4,FALSE),0) -> 0 | F12: 1 | G12: =IF(ISNA(VLOOKUP(F13,'Calcs - Summer PMF'!$A$10:$J$210,10,FALSE)),0,VLOOKUP(F13,'Calcs - Summer PMF'!$A$10:$J$210,10,FALSE)) ->  | H12: =IF(ISNA(VLOOKUP(F13,'Calcs - Winter PMF'!$A$10:$J$210,10,FALSE)),0,VLOOKUP(F13,'Calcs - Winter PMF'!$A$10:$J$210,10,FALSE)) -> 
A13: =ROUND(A12+Inputs!$F$27,5) -> 1.25 | B13: =IF(ISNUMBER(VLOOKUP($A14,'Calcs - PMP'!$C$80:$F$178,2,FALSE)),VLOOKUP($A14,'Calcs - PMP'!$C$80:$F$178,2,FALSE),0) -> 0 | C13: =IF(ISNUMBER(VLOOKUP($A14,'Calcs - PMP'!$C$80:$F$178,3,FALSE)),VLOOKUP($A14,'Calcs - PMP'!$C$80:$F$178,3,FALSE),0) -> 0 | D13: =IF(ISNUMBER(VLOOKUP($A14,'Calcs - PMP'!$C$80:$F$178,4,FALSE)),VLOOKUP($A14,'Calcs - PMP'!$C$80:$F$178,4,FALSE),0) -> 0 | F13: 1.25 | G13: =IF(ISNA(VLOOKUP(F14,'Calcs - Summer PMF'!$A$10:$J$210,10,FALSE)),0,VLOOKUP(F14,'Calcs - Summer PMF'!$A$10:$J$210,10,FALSE)) ->  | H13: =IF(ISNA(VLOOKUP(F14,'Calcs - Winter PMF'!$A$10:$J$210,10,FALSE)),0,VLOOKUP(F14,'Calcs - Winter PMF'!$A$10:$J$210,10,FALSE)) -> 
A14: =ROUND(A13+Inputs!$F$27,5) -> 1.5 | B14: =IF(ISNUMBER(VLOOKUP($A15,'Calcs - PMP'!$C$80:$F$178,2,FALSE)),VLOOKUP($A15,'Calcs - PMP'!$C$80:$F$178,2,FALSE),0) -> 0 | C14: =IF(ISNUMBER(VLOOKUP($A15,'Calcs - PMP'!$C$80:$F$178,3,FALSE)),VLOOKUP($A15,'Calcs - PMP'!$C$80:$F$178,3,FALSE),0) -> 0 | D14: =IF(ISNUMBER(VLOOKUP($A15,'Calcs - PMP'!$C$80:$F$178,4,FALSE)),VLOOKUP($A15,'Calcs - PMP'!$C$80:$F$178,4,FALSE),0) -> 0 | F14: 1.5 | G14: =IF(ISNA(VLOOKUP(F15,'Calcs - Summer PMF'!$A$10:$J$210,10,FALSE)),0,VLOOKUP(F15,'Calcs - Summer PMF'!$A$10:$J$210,10,FALSE)) ->  | H14: =IF(ISNA(VLOOKUP(F15,'Calcs - Winter PMF'!$A$10:$J$210,10,FALSE)),0,VLOOKUP(F15,'Calcs - Winter PMF'!$A$10:$J$210,10,FALSE)) -> 
A15: =ROUND(A14+Inputs!$F$27,5) -> 1.75 | B15: =IF(ISNUMBER(VLOOKUP($A16,'Calcs - PMP'!$C$80:$F$178,2,FALSE)),VLOOKUP($A16,'Calcs - PMP'!$C$80:$F$178,2,FALSE),0) -> 0 | C15: =IF(ISNUMBER(VLOOKUP($A16,'Calcs - PMP'!$C$80:$F$178,3,FALSE)),VLOOKUP($A16,'Calcs - PMP'!$C$80:$F$178,3,FALSE),0) -> 0 | D15: =IF(ISNUMBER(VLOOKUP($A16,'Calcs - PMP'!$C$80:$F$178,4,FALSE)),VLOOKUP($A16,'Calcs - PMP'!$C$80:$F$178,4,FALSE),0) -> 0 | F15: 1.75 | G15: =IF(ISNA(VLOOKUP(F16,'Calcs - Summer PMF'!$A$10:$J$210,10,FALSE)),0,VLOOKUP(F16,'Calcs - Summer PMF'!$A$10:$J$210,10,FALSE)) ->  | H15: =IF(ISNA(VLOOKUP(F16,'Calcs - Winter PMF'!$A$10:$J$210,10,FALSE)),0,VLOOKUP(F16,'Calcs - Winter PMF'!$A$10:$J$210,10,FALSE)) -> 
A16: =ROUND(A15+Inputs!$F$27,5) -> 2 | B16: =IF(ISNUMBER(VLOOKUP($A17,'Calcs - PMP'!$C$80:$F$178,2,FALSE)),VLOOKUP($A17,'Calcs - PMP'!$C$80:$F$178,2,FALSE),0) -> 0 | C16: =IF(ISNUMBER(VLOOKUP($A17,'Calcs - PMP'!$C$80:$F$178,3,FALSE)),VLOOKUP($A17,'Calcs - PMP'!$C$80:$F$178,3,FALSE),0) -> 0 | D16: =IF(ISNUMBER(VLOOKUP($A17,'Calcs - PMP'!$C$80:$F$178,4,FALSE)),VLOOKUP($A17,'Calcs - PMP'!$C$80:$F$178,4,FALSE),0) -> 0 | F16: 2 | G16: =IF(ISNA(VLOOKUP(F17,'Calcs - Summer PMF'!$A$10:$J$210,10,FALSE)),0,VLOOKUP(F17,'Calcs - Summer PMF'!$A$10:$J$210,10,FALSE)) ->  | H16: =IF(ISNA(VLOOKUP(F17,'Calcs - Winter PMF'!$A$10:$J$210,10,FALSE)),0,VLOOKUP(F17,'Calcs - Winter PMF'!$A$10:$J$210,10,FALSE)) -> 
A17: =ROUND(A16+Inputs!$F$27,5) -> 2.25 | B17: =IF(ISNUMBER(VLOOKUP($A18,'Calcs - PMP'!$C$80:$F$178,2,FALSE)),VLOOKUP($A18,'Calcs - PMP'!$C$80:$F$178,2,FALSE),0) -> 0 | C17: =IF(ISNUMBER(VLOOKUP($A18,'Calcs - PMP'!$C$80:$F$178,3,FALSE)),VLOOKUP($A18,'Calcs - PMP'!$C$80:$F$178,3,FALSE),0) -> 0 | D17: =IF(ISNUMBER(VLOOKUP($A18,'Calcs - PMP'!$C$80:$F$178,4,FALSE)),VLOOKUP($A18,'Calcs - PMP'!$C$80:$F$178,4,FALSE),0) -> 0 | F17: 2.25 | G17: =IF(ISNA(VLOOKUP(F18,'Calcs - Summer PMF'!$A$10:$J$210,10,FALSE)),0,VLOOKUP(F18,'Calcs - Summer PMF'!$A$10:$J$210,10,FALSE)) ->  | H17: =IF(ISNA(VLOOKUP(F18,'Calcs - Winter PMF'!$A$10:$J$210,10,FALSE)),0,VLOOKUP(F18,'Calcs - Winter PMF'!$A$10:$J$210,10,FALSE)) -> 
A18: =ROUND(A17+Inputs!$F$27,5) -> 2.5 | B18: =IF(ISNUMBER(VLOOKUP($A19,'Calcs - PMP'!$C$80:$F$178,2,FALSE)),VLOOKUP($A19,'Calcs - PMP'!$C$80:$F$178,2,FALSE),0) -> 0 | C18: =IF(ISNUMBER(VLOOKUP($A19,'Calcs - PMP'!$C$80:$F$178,3,FALSE)),VLOOKUP($A19,'Calcs - PMP'!$C$80:$F$178,3,FALSE),0) -> 0 | D18: =IF(ISNUMBER(VLOOKUP($A19,'Calcs - PMP'!$C$80:$F$178,4,FALSE)),VLOOKUP($A19,'Calcs - PMP'!$C$80:$F$178,4,FALSE),0) -> 0 | F18: 2.5 | G18: =IF(ISNA(VLOOKUP(F19,'Calcs - Summer PMF'!$A$10:$J$210,10,FALSE)),0,VLOOKUP(F19,'Calcs - Summer PMF'!$A$10:$J$210,10,FALSE)) ->  | H18: =IF(ISNA(VLOOKUP(F19,'Calcs - Winter PMF'!$A$10:$J$210,10,FALSE)),0,VLOOKUP(F19,'Calcs - Winter PMF'!$A$10:$J$210,10,FALSE)) -> 
A19: =ROUND(A18+Inputs!$F$27,5) -> 2.75 | B19: =IF(ISNUMBER(VLOOKUP($A20,'Calcs - PMP'!$C$80:$F$178,2,FALSE)),VLOOKUP($A20,'Calcs - PMP'!$C$80:$F$178,2,FALSE),0) -> 0 | C19: =IF(ISNUMBER(VLOOKUP($A20,'Calcs - PMP'!$C$80:$F$178,3,FALSE)),VLOOKUP($A20,'Calcs - PMP'!$C$80:$F$178,3,FALSE),0) -> 0 | D19: =IF(ISNUMBER(VLOOKUP($A20,'Calcs - PMP'!$C$80:$F$178,4,FALSE)),VLOOKUP($A20,'Calcs - PMP'!$C$80:$F$178,4,FALSE),0) -> 0 | F19: 2.75 | G19: =IF(ISNA(VLOOKUP(F20,'Calcs - Summer PMF'!$A$10:$J$210,10,FALSE)),0,VLOOKUP(F20,'Calcs - Summer PMF'!$A$10:$J$210,10,FALSE)) ->  | H19: =IF(ISNA(VLOOKUP(F20,'Calcs - Winter PMF'!$A$10:$J$210,10,FALSE)),0,VLOOKUP(F20,'Calcs - Winter PMF'!$A$10:$J$210,10,FALSE)) -> 
A20: =ROUND(A19+Inputs!$F$27,5) -> 3 | B20: =IF(ISNUMBER(VLOOKUP($A21,'Calcs - PMP'!$C$80:$F$178,2,FALSE)),VLOOKUP($A21,'Calcs - PMP'!$C$80:$F$178,2,FALSE),0) -> 0 | C20: =IF(ISNUMBER(VLOOKUP($A21,'Calcs - PMP'!$C$80:$F$178,3,FALSE)),VLOOKUP($A21,'Calcs - PMP'!$C$80:$F$178,3,FALSE),0) -> 0 | D20: =IF(ISNUMBER(VLOOKUP($A21,'Calcs - PMP'!$C$80:$F$178,4,FALSE)),VLOOKUP($A21,'Calcs - PMP'!$C$80:$F$178,4,FALSE),0) -> 0 | F20: 3 | G20: =IF(ISNA(VLOOKUP(F21,'Calcs - Summer PMF'!$A$10:$J$210,10,FALSE)),0,VLOOKUP(F21,'Calcs - Summer PMF'!$A$10:$J$210,10,FALSE)) ->  | H20: =IF(ISNA(VLOOKUP(F21,'Calcs - Winter PMF'!$A$10:$J$210,10,FALSE)),0,VLOOKUP(F21,'Calcs - Winter PMF'!$A$10:$J$210,10,FALSE)) -> 
A21: =ROUND(A20+Inputs!$F$27,5) -> 3.25 | B21: =IF(ISNUMBER(VLOOKUP($A22,'Calcs - PMP'!$C$80:$F$178,2,FALSE)),VLOOKUP($A22,'Calcs - PMP'!$C$80:$F$178,2,FALSE),0) -> 0 | C21: =IF(ISNUMBER(VLOOKUP($A22,'Calcs - PMP'!$C$80:$F$178,3,FALSE)),VLOOKUP($A22,'Calcs - PMP'!$C$80:$F$178,3,FALSE),0) -> 0 | D21: =IF(ISNUMBER(VLOOKUP($A22,'Calcs - PMP'!$C$80:$F$178,4,FALSE)),VLOOKUP($A22,'Calcs - PMP'!$C$80:$F$178,4,FALSE),0) -> 0 | F21: 3.25 | G21: =IF(ISNA(VLOOKUP(F22,'Calcs - Summer PMF'!$A$10:$J$210,10,FALSE)),0,VLOOKUP(F22,'Calcs - Summer PMF'!$A$10:$J$210,10,FALSE)) ->  | H21: =IF(ISNA(VLOOKUP(F22,'Calcs - Winter PMF'!$A$10:$J$210,10,FALSE)),0,VLOOKUP(F22,'Calcs - Winter PMF'!$A$10:$J$210,10,FALSE)) -> 
A22: =ROUND(A21+Inputs!$F$27,5) -> 3.5 | B22: =IF(ISNUMBER(VLOOKUP($A23,'Calcs - PMP'!$C$80:$F$178,2,FALSE)),VLOOKUP($A23,'Calcs - PMP'!$C$80:$F$178,2,FALSE),0) -> 0 | C22: =IF(ISNUMBER(VLOOKUP($A23,'Calcs - PMP'!$C$80:$F$178,3,FALSE)),VLOOKUP($A23,'Calcs - PMP'!$C$80:$F$178,3,FALSE),0) -> 0 | D22: =IF(ISNUMBER(VLOOKUP($A23,'Calcs - PMP'!$C$80:$F$178,4,FALSE)),VLOOKUP($A23,'Calcs - PMP'!$C$80:$F$178,4,FALSE),0) -> 0 | F22: 3.5 | G22: =IF(ISNA(VLOOKUP(F23,'Calcs - Summer PMF'!$A$10:$J$210,10,FALSE)),0,VLOOKUP(F23,'Calcs - Summer PMF'!$A$10:$J$210,10,FALSE)) ->  | H22: =IF(ISNA(VLOOKUP(F23,'Calcs - Winter PMF'!$A$10:$J$210,10,FALSE)),0,VLOOKUP(F23,'Calcs - Winter PMF'!$A$10:$J$210,10,FALSE)) -> 
A23: =ROUND(A22+Inputs!$F$27,5) -> 3.75 | B23: =IF(ISNUMBER(VLOOKUP($A24,'Calcs - PMP'!$C$80:$F$178,2,FALSE)),VLOOKUP($A24,'Calcs - PMP'!$C$80:$F$178,2,FALSE),0) -> 0 | C23: =IF(ISNUMBER(VLOOKUP($A24,'Calcs - PMP'!$C$80:$F$178,3,FALSE)),VLOOKUP($A24,'Calcs - PMP'!$C$80:$F$178,3,FALSE),0) -> 0 | D23: =IF(ISNUMBER(VLOOKUP($A24,'Calcs - PMP'!$C$80:$F$178,4,FALSE)),VLOOKUP($A24,'Calcs - PMP'!$C$80:$F$178,4,FALSE),0) -> 0 | F23: 3.75 | G23: =IF(ISNA(VLOOKUP(F24,'Calcs - Summer PMF'!$A$10:$J$210,10,FALSE)),0,VLOOKUP(F24,'Calcs - Summer PMF'!$A$10:$J$210,10,FALSE)) ->  | H23: =IF(ISNA(VLOOKUP(F24,'Calcs - Winter PMF'!$A$10:$J$210,10,FALSE)),0,VLOOKUP(F24,'Calcs - Winter PMF'!$A$10:$J$210,10,FALSE)) -> 
A24: =ROUND(A23+Inputs!$F$27,5) -> 4 | B24: =IF(ISNUMBER(VLOOKUP($A25,'Calcs - PMP'!$C$80:$F$178,2,FALSE)),VLOOKUP($A25,'Calcs - PMP'!$C$80:$F$178,2,FALSE),0) -> 0 | C24: =IF(ISNUMBER(VLOOKUP($A25,'Calcs - PMP'!$C$80:$F$178,3,FALSE)),VLOOKUP($A25,'Calcs - PMP'!$C$80:$F$178,3,FALSE),0) -> 0 | D24: =IF(ISNUMBER(VLOOKUP($A25,'Calcs - PMP'!$C$80:$F$178,4,FALSE)),VLOOKUP($A25,'Calcs - PMP'!$C$80:$F$178,4,FALSE),0) -> 0 | F24: 4 | G24: =IF(ISNA(VLOOKUP(F25,'Calcs - Summer PMF'!$A$10:$J$210,10,FALSE)),0,VLOOKUP(F25,'Calcs - Summer PMF'!$A$10:$J$210,10,FALSE)) ->  | H24: =IF(ISNA(VLOOKUP(F25,'Calcs - Winter PMF'!$A$10:$J$210,10,FALSE)),0,VLOOKUP(F25,'Calcs - Winter PMF'!$A$10:$J$210,10,FALSE)) -> 
A25: =ROUND(A24+Inputs!$F$27,5) -> 4.25 | B25: =IF(ISNUMBER(VLOOKUP($A26,'Calcs - PMP'!$C$80:$F$178,2,FALSE)),VLOOKUP($A26,'Calcs - PMP'!$C$80:$F$178,2,FALSE),0) -> 0 | C25: =IF(ISNUMBER(VLOOKUP($A26,'Calcs - PMP'!$C$80:$F$178,3,FALSE)),VLOOKUP($A26,'Calcs - PMP'!$C$80:$F$178,3,FALSE),0) -> 0 | D25: =IF(ISNUMBER(VLOOKUP($A26,'Calcs - PMP'!$C$80:$F$178,4,FALSE)),VLOOKUP($A26,'Calcs - PMP'!$C$80:$F$178,4,FALSE),0) -> 0 | F25: 4.25 | G25: =IF(ISNA(VLOOKUP(F26,'Calcs - Summer PMF'!$A$10:$J$210,10,FALSE)),0,VLOOKUP(F26,'Calcs - Summer PMF'!$A$10:$J$210,10,FALSE)) ->  | H25: =IF(ISNA(VLOOKUP(F26,'Calcs - Winter PMF'!$A$10:$J$210,10,FALSE)),0,VLOOKUP(F26,'Calcs - Winter PMF'!$A$10:$J$210,10,FALSE)) -> 
A26: =ROUND(A25+Inputs!$F$27,5) -> 4.5 | B26: =IF(ISNUMBER(VLOOKUP($A27,'Calcs - PMP'!$C$80:$F$178,2,FALSE)),VLOOKUP($A27,'Calcs - PMP'!$C$80:$F$178,2,FALSE),0) -> 0 | C26: =IF(ISNUMBER(VLOOKUP($A27,'Calcs - PMP'!$C$80:$F$178,3,FALSE)),VLOOKUP($A27,'Calcs - PMP'!$C$80:$F$178,3,FALSE),0) -> 0 | D26: =IF(ISNUMBER(VLOOKUP($A27,'Calcs - PMP'!$C$80:$F$178,4,FALSE)),VLOOKUP($A27,'Calcs - PMP'!$C$80:$F$178,4,FALSE),0) -> 0 | F26: 4.5 | G26: =IF(ISNA(VLOOKUP(F27,'Calcs - Summer PMF'!$A$10:$J$210,10,FALSE)),0,VLOOKUP(F27,'Calcs - Summer PMF'!$A$10:$J$210,10,FALSE)) ->  | H26: =IF(ISNA(VLOOKUP(F27,'Calcs - Winter PMF'!$A$10:$J$210,10,FALSE)),0,VLOOKUP(F27,'Calcs - Winter PMF'!$A$10:$J$210,10,FALSE)) -> 
A27: =ROUND(A26+Inputs!$F$27,5) -> 4.75 | B27: =IF(ISNUMBER(VLOOKUP($A28,'Calcs - PMP'!$C$80:$F$178,2,FALSE)),VLOOKUP($A28,'Calcs - PMP'!$C$80:$F$178,2,FALSE),0) -> 0 | C27: =IF(ISNUMBER(VLOOKUP($A28,'Calcs - PMP'!$C$80:$F$178,3,FALSE)),VLOOKUP($A28,'Calcs - PMP'!$C$80:$F$178,3,FALSE),0) -> 0 | D27: =IF(ISNUMBER(VLOOKUP($A28,'Calcs - PMP'!$C$80:$F$178,4,FALSE)),VLOOKUP($A28,'Calcs - PMP'!$C$80:$F$178,4,FALSE),0) -> 0 | F27: 4.75 | G27: =IF(ISNA(VLOOKUP(F28,'Calcs - Summer PMF'!$A$10:$J$210,10,FALSE)),0,VLOOKUP(F28,'Calcs - Summer PMF'!$A$10:$J$210,10,FALSE)) ->  | H27: =IF(ISNA(VLOOKUP(F28,'Calcs - Winter PMF'!$A$10:$J$210,10,FALSE)),0,VLOOKUP(F28,'Calcs - Winter PMF'!$A$10:$J$210,10,FALSE)) -> 
A28: =ROUND(A27+Inputs!$F$27,5) -> 5 | B28: =IF(ISNUMBER(VLOOKUP($A29,'Calcs - PMP'!$C$80:$F$178,2,FALSE)),VLOOKUP($A29,'Calcs - PMP'!$C$80:$F$178,2,FALSE),0) -> 0 | C28: =IF(ISNUMBER(VLOOKUP($A29,'Calcs - PMP'!$C$80:$F$178,3,FALSE)),VLOOKUP($A29,'Calcs - PMP'!$C$80:$F$178,3,FALSE),0) -> 0 | D28: =IF(ISNUMBER(VLOOKUP($A29,'Calcs - PMP'!$C$80:$F$178,4,FALSE)),VLOOKUP($A29,'Calcs - PMP'!$C$80:$F$178,4,FALSE),0) -> 0 | F28: 5 | G28: =IF(ISNA(VLOOKUP(F29,'Calcs - Summer PMF'!$A$10:$J$210,10,FALSE)),0,VLOOKUP(F29,'Calcs - Summer PMF'!$A$10:$J$210,10,FALSE)) ->  | H28: =IF(ISNA(VLOOKUP(F29,'Calcs - Winter PMF'!$A$10:$J$210,10,FALSE)),0,VLOOKUP(F29,'Calcs - Winter PMF'!$A$10:$J$210,10,FALSE)) -> 
A29: =ROUND(A28+Inputs!$F$27,5) -> 5.25 | B29: =IF(ISNUMBER(VLOOKUP($A30,'Calcs - PMP'!$C$80:$F$178,2,FALSE)),VLOOKUP($A30,'Calcs - PMP'!$C$80:$F$178,2,FALSE),0) -> 0 | C29: =IF(ISNUMBER(VLOOKUP($A30,'Calcs - PMP'!$C$80:$F$178,3,FALSE)),VLOOKUP($A30,'Calcs - PMP'!$C$80:$F$178,3,FALSE),0) -> 0 | D29: =IF(ISNUMBER(VLOOKUP($A30,'Calcs - PMP'!$C$80:$F$178,4,FALSE)),VLOOKUP($A30,'Calcs - PMP'!$C$80:$F$178,4,FALSE),0) -> 0 | F29: 5.25 | G29: =IF(ISNA(VLOOKUP(F30,'Calcs - Summer PMF'!$A$10:$J$210,10,FALSE)),0,VLOOKUP(F30,'Calcs - Summer PMF'!$A$10:$J$210,10,FALSE)) ->  | H29: =IF(ISNA(VLOOKUP(F30,'Calcs - Winter PMF'!$A$10:$J$210,10,FALSE)),0,VLOOKUP(F30,'Calcs - Winter PMF'!$A$10:$J$210,10,FALSE)) -> 
A30: =ROUND(A29+Inputs!$F$27,5) -> 5.5 | B30: =IF(ISNUMBER(VLOOKUP($A31,'Calcs - PMP'!$C$80:$F$178,2,FALSE)),VLOOKUP($A31,'Calcs - PMP'!$C$80:$F$178,2,FALSE),0) -> 0 | C30: =IF(ISNUMBER(VLOOKUP($A31,'Calcs - PMP'!$C$80:$F$178,3,FALSE)),VLOOKUP($A31,'Calcs - PMP'!$C$80:$F$178,3,FALSE),0) -> 0 | D30: =IF(ISNUMBER(VLOOKUP($A31,'Calcs - PMP'!$C$80:$F$178,4,FALSE)),VLOOKUP($A31,'Calcs - PMP'!$C$80:$F$178,4,FALSE),0) -> 0 | F30: 5.5 | G30: =IF(ISNA(VLOOKUP(F31,'Calcs - Summer PMF'!$A$10:$J$210,10,FALSE)),0,VLOOKUP(F31,'Calcs - Summer PMF'!$A$10:$J$210,10,FALSE)) ->  | H30: =IF(ISNA(VLOOKUP(F31,'Calcs - Winter PMF'!$A$10:$J$210,10,FALSE)),0,VLOOKUP(F31,'Calcs - Winter PMF'!$A$10:$J$210,10,FALSE)) -> 
A31: =ROUND(A30+Inputs!$F$27,5) -> 5.75 | B31: =IF(ISNUMBER(VLOOKUP($A32,'Calcs - PMP'!$C$80:$F$178,2,FALSE)),VLOOKUP($A32,'Calcs - PMP'!$C$80:$F$178,2,FALSE),0) -> 0 | C31: =IF(ISNUMBER(VLOOKUP($A32,'Calcs - PMP'!$C$80:$F$178,3,FALSE)),VLOOKUP($A32,'Calcs - PMP'!$C$80:$F$178,3,FALSE),0) -> 0 | D31: =IF(ISNUMBER(VLOOKUP($A32,'Calcs - PMP'!$C$80:$F$178,4,FALSE)),VLOOKUP($A32,'Calcs - PMP'!$C$80:$F$178,4,FALSE),0) -> 0 | F31: 5.75 | G31: =IF(ISNA(VLOOKUP(F32,'Calcs - Summer PMF'!$A$10:$J$210,10,FALSE)),0,VLOOKUP(F32,'Calcs - Summer PMF'!$A$10:$J$210,10,FALSE)) ->  | H31: =IF(ISNA(VLOOKUP(F32,'Calcs - Winter PMF'!$A$10:$J$210,10,FALSE)),0,VLOOKUP(F32,'Calcs - Winter PMF'!$A$10:$J$210,10,FALSE)) -> 
A32: =ROUND(A31+Inputs!$F$27,5) -> 6 | B32: =IF(ISNUMBER(VLOOKUP($A33,'Calcs - PMP'!$C$80:$F$178,2,FALSE)),VLOOKUP($A33,'Calcs - PMP'!$C$80:$F$178,2,FALSE),0) -> 0 | C32: =IF(ISNUMBER(VLOOKUP($A33,'Calcs - PMP'!$C$80:$F$178,3,FALSE)),VLOOKUP($A33,'Calcs - PMP'!$C$80:$F$178,3,FALSE),0) -> 0 | D32: =IF(ISNUMBER(VLOOKUP($A33,'Calcs - PMP'!$C$80:$F$178,4,FALSE)),VLOOKUP($A33,'Calcs - PMP'!$C$80:$F$178,4,FALSE),0) -> 0 | F32: 6 | G32: =IF(ISNA(VLOOKUP(F33,'Calcs - Summer PMF'!$A$10:$J$210,10,FALSE)),0,VLOOKUP(F33,'Calcs - Summer PMF'!$A$10:$J$210,10,FALSE)) ->  | H32: =IF(ISNA(VLOOKUP(F33,'Calcs - Winter PMF'!$A$10:$J$210,10,FALSE)),0,VLOOKUP(F33,'Calcs - Winter PMF'!$A$10:$J$210,10,FALSE)) -> 
A33: =ROUND(A32+Inputs!$F$27,5) -> 6.25 | B33: =IF(ISNUMBER(VLOOKUP($A34,'Calcs - PMP'!$C$80:$F$178,2,FALSE)),VLOOKUP($A34,'Calcs - PMP'!$C$80:$F$178,2,FALSE),0) -> 0 | C33: =IF(ISNUMBER(VLOOKUP($A34,'Calcs - PMP'!$C$80:$F$178,3,FALSE)),VLOOKUP($A34,'Calcs - PMP'!$C$80:$F$178,3,FALSE),0) -> 0 | D33: =IF(ISNUMBER(VLOOKUP($A34,'Calcs - PMP'!$C$80:$F$178,4,FALSE)),VLOOKUP($A34,'Calcs - PMP'!$C$80:$F$178,4,FALSE),0) -> 0 | F33: 6.25 | G33: =IF(ISNA(VLOOKUP(F34,'Calcs - Summer PMF'!$A$10:$J$210,10,FALSE)),0,VLOOKUP(F34,'Calcs - Summer PMF'!$A$10:$J$210,10,FALSE)) ->  | H33: =IF(ISNA(VLOOKUP(F34,'Calcs - Winter PMF'!$A$10:$J$210,10,FALSE)),0,VLOOKUP(F34,'Calcs - Winter PMF'!$A$10:$J$210,10,FALSE)) -> 
A34: =ROUND(A33+Inputs!$F$27,5) -> 6.5 | B34: =IF(ISNUMBER(VLOOKUP($A35,'Calcs - PMP'!$C$80:$F$178,2,FALSE)),VLOOKUP($A35,'Calcs - PMP'!$C$80:$F$178,2,FALSE),0) -> 0 | C34: =IF(ISNUMBER(VLOOKUP($A35,'Calcs - PMP'!$C$80:$F$178,3,FALSE)),VLOOKUP($A35,'Calcs - PMP'!$C$80:$F$178,3,FALSE),0) -> 0 | D34: =IF(ISNUMBER(VLOOKUP($A35,'Calcs - PMP'!$C$80:$F$178,4,FALSE)),VLOOKUP($A35,'Calcs - PMP'!$C$80:$F$178,4,FALSE),0) -> 0 | F34: 6.5 | G34: =IF(ISNA(VLOOKUP(F35,'Calcs - Summer PMF'!$A$10:$J$210,10,FALSE)),0,VLOOKUP(F35,'Calcs - Summer PMF'!$A$10:$J$210,10,FALSE)) ->  | H34: =IF(ISNA(VLOOKUP(F35,'Calcs - Winter PMF'!$A$10:$J$210,10,FALSE)),0,VLOOKUP(F35,'Calcs - Winter PMF'!$A$10:$J$210,10,FALSE)) -> 
A35: =ROUND(A34+Inputs!$F$27,5) -> 6.75 | B35: =IF(ISNUMBER(VLOOKUP($A36,'Calcs - PMP'!$C$80:$F$178,2,FALSE)),VLOOKUP($A36,'Calcs - PMP'!$C$80:$F$178,2,FALSE),0) -> 0 | C35: =IF(ISNUMBER(VLOOKUP($A36,'Calcs - PMP'!$C$80:$F$178,3,FALSE)),VLOOKUP($A36,'Calcs - PMP'!$C$80:$F$178,3,FALSE),0) -> 0 | D35: =IF(ISNUMBER(VLOOKUP($A36,'Calcs - PMP'!$C$80:$F$178,4,FALSE)),VLOOKUP($A36,'Calcs - PMP'!$C$80:$F$178,4,FALSE),0) -> 0 | F35: 6.75 | G35: =IF(ISNA(VLOOKUP(F36,'Calcs - Summer PMF'!$A$10:$J$210,10,FALSE)),0,VLOOKUP(F36,'Calcs - Summer PMF'!$A$10:$J$210,10,FALSE)) ->  | H35: =IF(ISNA(VLOOKUP(F36,'Calcs - Winter PMF'!$A$10:$J$210,10,FALSE)),0,VLOOKUP(F36,'Calcs - Winter PMF'!$A$10:$J$210,10,FALSE)) -> 
A36: =ROUND(A35+Inputs!$F$27,5) -> 7 | B36: =IF(ISNUMBER(VLOOKUP($A37,'Calcs - PMP'!$C$80:$F$178,2,FALSE)),VLOOKUP($A37,'Calcs - PMP'!$C$80:$F$178,2,FALSE),0) -> 0 | C36: =IF(ISNUMBER(VLOOKUP($A37,'Calcs - PMP'!$C$80:$F$178,3,FALSE)),VLOOKUP($A37,'Calcs - PMP'!$C$80:$F$178,3,FALSE),0) -> 0 | D36: =IF(ISNUMBER(VLOOKUP($A37,'Calcs - PMP'!$C$80:$F$178,4,FALSE)),VLOOKUP($A37,'Calcs - PMP'!$C$80:$F$178,4,FALSE),0) -> 0 | F36: 7 | G36: =IF(ISNA(VLOOKUP(F37,'Calcs - Summer PMF'!$A$10:$J$210,10,FALSE)),0,VLOOKUP(F37,'Calcs - Summer PMF'!$A$10:$J$210,10,FALSE)) ->  | H36: =IF(ISNA(VLOOKUP(F37,'Calcs - Winter PMF'!$A$10:$J$210,10,FALSE)),0,VLOOKUP(F37,'Calcs - Winter PMF'!$A$10:$J$210,10,FALSE)) -> 
A37: =ROUND(A36+Inputs!$F$27,5) -> 7.25 | B37: =IF(ISNUMBER(VLOOKUP($A38,'Calcs - PMP'!$C$80:$F$178,2,FALSE)),VLOOKUP($A38,'Calcs - PMP'!$C$80:$F$178,2,FALSE),0) -> 0 | C37: =IF(ISNUMBER(VLOOKUP($A38,'Calcs - PMP'!$C$80:$F$178,3,FALSE)),VLOOKUP($A38,'Calcs - PMP'!$C$80:$F$178,3,FALSE),0) -> 0 | D37: =IF(ISNUMBER(VLOOKUP($A38,'Calcs - PMP'!$C$80:$F$178,4,FALSE)),VLOOKUP($A38,'Calcs - PMP'!$C$80:$F$178,4,FALSE),0) -> 0 | F37: 7.25 | G37: =IF(ISNA(VLOOKUP(F38,'Calcs - Summer PMF'!$A$10:$J$210,10,FALSE)),0,VLOOKUP(F38,'Calcs - Summer PMF'!$A$10:$J$210,10,FALSE)) ->  | H37: =IF(ISNA(VLOOKUP(F38,'Calcs - Winter PMF'!$A$10:$J$210,10,FALSE)),0,VLOOKUP(F38,'Calcs - Winter PMF'!$A$10:$J$210,10,FALSE)) -> 
A38: =ROUND(A37+Inputs!$F$27,5) -> 7.5 | B38: =IF(ISNUMBER(VLOOKUP($A39,'Calcs - PMP'!$C$80:$F$178,2,FALSE)),VLOOKUP($A39,'Calcs - PMP'!$C$80:$F$178,2,FALSE),0) -> 0 | C38: =IF(ISNUMBER(VLOOKUP($A39,'Calcs - PMP'!$C$80:$F$178,3,FALSE)),VLOOKUP($A39,'Calcs - PMP'!$C$80:$F$178,3,FALSE),0) -> 0 | D38: =IF(ISNUMBER(VLOOKUP($A39,'Calcs - PMP'!$C$80:$F$178,4,FALSE)),VLOOKUP($A39,'Calcs - PMP'!$C$80:$F$178,4,FALSE),0) -> 0 | F38: 7.5 | G38: =IF(ISNA(VLOOKUP(F39,'Calcs - Summer PMF'!$A$10:$J$210,10,FALSE)),0,VLOOKUP(F39,'Calcs - Summer PMF'!$A$10:$J$210,10,FALSE)) ->  | H38: =IF(ISNA(VLOOKUP(F39,'Calcs - Winter PMF'!$A$10:$J$210,10,FALSE)),0,VLOOKUP(F39,'Calcs - Winter PMF'!$A$10:$J$210,10,FALSE)) -> 
A39: =ROUND(A38+Inputs!$F$27,5) -> 7.75 | B39: =IF(ISNUMBER(VLOOKUP($A40,'Calcs - PMP'!$C$80:$F$178,2,FALSE)),VLOOKUP($A40,'Calcs - PMP'!$C$80:$F$178,2,FALSE),0) -> 0 | C39: =IF(ISNUMBER(VLOOKUP($A40,'Calcs - PMP'!$C$80:$F$178,3,FALSE)),VLOOKUP($A40,'Calcs - PMP'!$C$80:$F$178,3,FALSE),0) -> 0 | D39: =IF(ISNUMBER(VLOOKUP($A40,'Calcs - PMP'!$C$80:$F$178,4,FALSE)),VLOOKUP($A40,'Calcs - PMP'!$C$80:$F$178,4,FALSE),0) -> 0 | F39: 7.75 | G39: =IF(ISNA(VLOOKUP(F40,'Calcs - Summer PMF'!$A$10:$J$210,10,FALSE)),0,VLOOKUP(F40,'Calcs - Summer PMF'!$A$10:$J$210,10,FALSE)) ->  | H39: =IF(ISNA(VLOOKUP(F40,'Calcs - Winter PMF'!$A$10:$J$210,10,FALSE)),0,VLOOKUP(F40,'Calcs - Winter PMF'!$A$10:$J$210,10,FALSE)) -> 
A40: =ROUND(A39+Inputs!$F$27,5) -> 8 | B40: =IF(ISNUMBER(VLOOKUP($A41,'Calcs - PMP'!$C$80:$F$178,2,FALSE)),VLOOKUP($A41,'Calcs - PMP'!$C$80:$F$178,2,FALSE),0) -> 0 | C40: =IF(ISNUMBER(VLOOKUP($A41,'Calcs - PMP'!$C$80:$F$178,3,FALSE)),VLOOKUP($A41,'Calcs - PMP'!$C$80:$F$178,3,FALSE),0) -> 0 | D40: =IF(ISNUMBER(VLOOKUP($A41,'Calcs - PMP'!$C$80:$F$178,4,FALSE)),VLOOKUP($A41,'Calcs - PMP'!$C$80:$F$178,4,FALSE),0) -> 0 | F40: 8 | G40: =IF(ISNA(VLOOKUP(F41,'Calcs - Summer PMF'!$A$10:$J$210,10,FALSE)),0,VLOOKUP(F41,'Calcs - Summer PMF'!$A$10:$J$210,10,FALSE)) ->  | H40: =IF(ISNA(VLOOKUP(F41,'Calcs - Winter PMF'!$A$10:$J$210,10,FALSE)),0,VLOOKUP(F41,'Calcs - Winter PMF'!$A$10:$J$210,10,FALSE)) -> 
A41: =ROUND(A40+Inputs!$F$27,5) -> 8.25 | B41: =IF(ISNUMBER(VLOOKUP($A42,'Calcs - PMP'!$C$80:$F$178,2,FALSE)),VLOOKUP($A42,'Calcs - PMP'!$C$80:$F$178,2,FALSE),0) -> 0 | C41: =IF(ISNUMBER(VLOOKUP($A42,'Calcs - PMP'!$C$80:$F$178,3,FALSE)),VLOOKUP($A42,'Calcs - PMP'!$C$80:$F$178,3,FALSE),0) -> 0 | D41: =IF(ISNUMBER(VLOOKUP($A42,'Calcs - PMP'!$C$80:$F$178,4,FALSE)),VLOOKUP($A42,'Calcs - PMP'!$C$80:$F$178,4,FALSE),0) -> 0 | F41: 8.25 | G41: =IF(ISNA(VLOOKUP(F42,'Calcs - Summer PMF'!$A$10:$J$210,10,FALSE)),0,VLOOKUP(F42,'Calcs - Summer PMF'!$A$10:$J$210,10,FALSE)) ->  | H41: =IF(ISNA(VLOOKUP(F42,'Calcs - Winter PMF'!$A$10:$J$210,10,FALSE)),0,VLOOKUP(F42,'Calcs - Winter PMF'!$A$10:$J$210,10,FALSE)) -> 
A42: =ROUND(A41+Inputs!$F$27,5) -> 8.5 | B42: =IF(ISNUMBER(VLOOKUP($A43,'Calcs - PMP'!$C$80:$F$178,2,FALSE)),VLOOKUP($A43,'Calcs - PMP'!$C$80:$F$178,2,FALSE),0) -> 0 | C42: =IF(ISNUMBER(VLOOKUP($A43,'Calcs - PMP'!$C$80:$F$178,3,FALSE)),VLOOKUP($A43,'Calcs - PMP'!$C$80:$F$178,3,FALSE),0) -> 0 | D42: =IF(ISNUMBER(VLOOKUP($A43,'Calcs - PMP'!$C$80:$F$178,4,FALSE)),VLOOKUP($A43,'Calcs - PMP'!$C$80:$F$178,4,FALSE),0) -> 0 | F42: 8.5 | G42: =IF(ISNA(VLOOKUP(F43,'Calcs - Summer PMF'!$A$10:$J$210,10,FALSE)),0,VLOOKUP(F43,'Calcs - Summer PMF'!$A$10:$J$210,10,FALSE)) ->  | H42: =IF(ISNA(VLOOKUP(F43,'Calcs - Winter PMF'!$A$10:$J$210,10,FALSE)),0,VLOOKUP(F43,'Calcs - Winter PMF'!$A$10:$J$210,10,FALSE)) -> 
A43: =ROUND(A42+Inputs!$F$27,5) -> 8.75 | B43: =IF(ISNUMBER(VLOOKUP($A44,'Calcs - PMP'!$C$80:$F$178,2,FALSE)),VLOOKUP($A44,'Calcs - PMP'!$C$80:$F$178,2,FALSE),0) -> 0 | C43: =IF(ISNUMBER(VLOOKUP($A44,'Calcs - PMP'!$C$80:$F$178,3,FALSE)),VLOOKUP($A44,'Calcs - PMP'!$C$80:$F$178,3,FALSE),0) -> 0 | D43: =IF(ISNUMBER(VLOOKUP($A44,'Calcs - PMP'!$C$80:$F$178,4,FALSE)),VLOOKUP($A44,'Calcs - PMP'!$C$80:$F$178,4,FALSE),0) -> 0 | F43: 8.75 | G43: =IF(ISNA(VLOOKUP(F44,'Calcs - Summer PMF'!$A$10:$J$210,10,FALSE)),0,VLOOKUP(F44,'Calcs - Summer PMF'!$A$10:$J$210,10,FALSE)) ->  | H43: =IF(ISNA(VLOOKUP(F44,'Calcs - Winter PMF'!$A$10:$J$210,10,FALSE)),0,VLOOKUP(F44,'Calcs - Winter PMF'!$A$10:$J$210,10,FALSE)) -> 
A44: =ROUND(A43+Inputs!$F$27,5) -> 9 | B44: =IF(ISNUMBER(VLOOKUP($A45,'Calcs - PMP'!$C$80:$F$178,2,FALSE)),VLOOKUP($A45,'Calcs - PMP'!$C$80:$F$178,2,FALSE),0) -> 0 | C44: =IF(ISNUMBER(VLOOKUP($A45,'Calcs - PMP'!$C$80:$F$178,3,FALSE)),VLOOKUP($A45,'Calcs - PMP'!$C$80:$F$178,3,FALSE),0) -> 0 | D44: =IF(ISNUMBER(VLOOKUP($A45,'Calcs - PMP'!$C$80:$F$178,4,FALSE)),VLOOKUP($A45,'Calcs - PMP'!$C$80:$F$178,4,FALSE),0) -> 0 | F44: 9 | G44: =IF(ISNA(VLOOKUP(F45,'Calcs - Summer PMF'!$A$10:$J$210,10,FALSE)),0,VLOOKUP(F45,'Calcs - Summer PMF'!$A$10:$J$210,10,FALSE)) ->  | H44: =IF(ISNA(VLOOKUP(F45,'Calcs - Winter PMF'!$A$10:$J$210,10,FALSE)),0,VLOOKUP(F45,'Calcs - Winter PMF'!$A$10:$J$210,10,FALSE)) -> 
A45: =ROUND(A44+Inputs!$F$27,5) -> 9.25 | B45: =IF(ISNUMBER(VLOOKUP($A46,'Calcs - PMP'!$C$80:$F$178,2,FALSE)),VLOOKUP($A46,'Calcs - PMP'!$C$80:$F$178,2,FALSE),0) -> 0 | C45: =IF(ISNUMBER(VLOOKUP($A46,'Calcs - PMP'!$C$80:$F$178,3,FALSE)),VLOOKUP($A46,'Calcs - PMP'!$C$80:$F$178,3,FALSE),0) -> 0 | D45: =IF(ISNUMBER(VLOOKUP($A46,'Calcs - PMP'!$C$80:$F$178,4,FALSE)),VLOOKUP($A46,'Calcs - PMP'!$C$80:$F$178,4,FALSE),0) -> 0 | F45: 9.25 | G45: =IF(ISNA(VLOOKUP(F46,'Calcs - Summer PMF'!$A$10:$J$210,10,FALSE)),0,VLOOKUP(F46,'Calcs - Summer PMF'!$A$10:$J$210,10,FALSE)) ->  | H45: =IF(ISNA(VLOOKUP(F46,'Calcs - Winter PMF'!$A$10:$J$210,10,FALSE)),0,VLOOKUP(F46,'Calcs - Winter PMF'!$A$10:$J$210,10,FALSE)) -> 
A46: =ROUND(A45+Inputs!$F$27,5) -> 9.5 | B46: =IF(ISNUMBER(VLOOKUP($A47,'Calcs - PMP'!$C$80:$F$178,2,FALSE)),VLOOKUP($A47,'Calcs - PMP'!$C$80:$F$178,2,FALSE),0) -> 0 | C46: =IF(ISNUMBER(VLOOKUP($A47,'Calcs - PMP'!$C$80:$F$178,3,FALSE)),VLOOKUP($A47,'Calcs - PMP'!$C$80:$F$178,3,FALSE),0) -> 0 | D46: =IF(ISNUMBER(VLOOKUP($A47,'Calcs - PMP'!$C$80:$F$178,4,FALSE)),VLOOKUP($A47,'Calcs - PMP'!$C$80:$F$178,4,FALSE),0) -> 0 | F46: 9.5 | G46: =IF(ISNA(VLOOKUP(F47,'Calcs - Summer PMF'!$A$10:$J$210,10,FALSE)),0,VLOOKUP(F47,'Calcs - Summer PMF'!$A$10:$J$210,10,FALSE)) ->  | H46: =IF(ISNA(VLOOKUP(F47,'Calcs - Winter PMF'!$A$10:$J$210,10,FALSE)),0,VLOOKUP(F47,'Calcs - Winter PMF'!$A$10:$J$210,10,FALSE)) -> 
A47: =ROUND(A46+Inputs!$F$27,5) -> 9.75 | B47: =IF(ISNUMBER(VLOOKUP($A48,'Calcs - PMP'!$C$80:$F$178,2,FALSE)),VLOOKUP($A48,'Calcs - PMP'!$C$80:$F$178,2,FALSE),0) -> 0 | C47: =IF(ISNUMBER(VLOOKUP($A48,'Calcs - PMP'!$C$80:$F$178,3,FALSE)),VLOOKUP($A48,'Calcs - PMP'!$C$80:$F$178,3,FALSE),0) -> 0 | D47: =IF(ISNUMBER(VLOOKUP($A48,'Calcs - PMP'!$C$80:$F$178,4,FALSE)),VLOOKUP($A48,'Calcs - PMP'!$C$80:$F$178,4,FALSE),0) -> 0 | F47: 9.75 | G47: =IF(ISNA(VLOOKUP(F48,'Calcs - Summer PMF'!$A$10:$J$210,10,FALSE)),0,VLOOKUP(F48,'Calcs - Summer PMF'!$A$10:$J$210,10,FALSE)) ->  | H47: =IF(ISNA(VLOOKUP(F48,'Calcs - Winter PMF'!$A$10:$J$210,10,FALSE)),0,VLOOKUP(F48,'Calcs - Winter PMF'!$A$10:$J$210,10,FALSE)) -> 
A48: =ROUND(A47+Inputs!$F$27,5) -> 10 | B48: =IF(ISNUMBER(VLOOKUP($A49,'Calcs - PMP'!$C$80:$F$178,2,FALSE)),VLOOKUP($A49,'Calcs - PMP'!$C$80:$F$178,2,FALSE),0) -> 0 | C48: =IF(ISNUMBER(VLOOKUP($A49,'Calcs - PMP'!$C$80:$F$178,3,FALSE)),VLOOKUP($A49,'Calcs - PMP'!$C$80:$F$178,3,FALSE),0) -> 0 | D48: =IF(ISNUMBER(VLOOKUP($A49,'Calcs - PMP'!$C$80:$F$178,4,FALSE)),VLOOKUP($A49,'Calcs - PMP'!$C$80:$F$178,4,FALSE),0) -> 0 | F48: 10 | G48: =IF(ISNA(VLOOKUP(F49,'Calcs - Summer PMF'!$A$10:$J$210,10,FALSE)),0,VLOOKUP(F49,'Calcs - Summer PMF'!$A$10:$J$210,10,FALSE)) ->  | H48: =IF(ISNA(VLOOKUP(F49,'Calcs - Winter PMF'!$A$10:$J$210,10,FALSE)),0,VLOOKUP(F49,'Calcs - Winter PMF'!$A$10:$J$210,10,FALSE)) -> 
A49: =ROUND(A48+Inputs!$F$27,5) -> 10.25 | B49: =IF(ISNUMBER(VLOOKUP($A50,'Calcs - PMP'!$C$80:$F$178,2,FALSE)),VLOOKUP($A50,'Calcs - PMP'!$C$80:$F$178,2,FALSE),0) -> 0 | C49: =IF(ISNUMBER(VLOOKUP($A50,'Calcs - PMP'!$C$80:$F$178,3,FALSE)),VLOOKUP($A50,'Calcs - PMP'!$C$80:$F$178,3,FALSE),0) -> 0 | D49: =IF(ISNUMBER(VLOOKUP($A50,'Calcs - PMP'!$C$80:$F$178,4,FALSE)),VLOOKUP($A50,'Calcs - PMP'!$C$80:$F$178,4,FALSE),0) -> 0 | F49: 10.25 | G49: =IF(ISNA(VLOOKUP(F50,'Calcs - Summer PMF'!$A$10:$J$210,10,FALSE)),0,VLOOKUP(F50,'Calcs - Summer PMF'!$A$10:$J$210,10,FALSE)) ->  | H49: =IF(ISNA(VLOOKUP(F50,'Calcs - Winter PMF'!$A$10:$J$210,10,FALSE)),0,VLOOKUP(F50,'Calcs - Winter PMF'!$A$10:$J$210,10,FALSE)) -> 
A50: =ROUND(A49+Inputs!$F$27,5) -> 10.5 | B50: =IF(ISNUMBER(VLOOKUP($A51,'Calcs - PMP'!$C$80:$F$178,2,FALSE)),VLOOKUP($A51,'Calcs - PMP'!$C$80:$F$178,2,FALSE),0) -> 0 | C50: =IF(ISNUMBER(VLOOKUP($A51,'Calcs - PMP'!$C$80:$F$178,3,FALSE)),VLOOKUP($A51,'Calcs - PMP'!$C$80:$F$178,3,FALSE),0) -> 0 | D50: =IF(ISNUMBER(VLOOKUP($A51,'Calcs - PMP'!$C$80:$F$178,4,FALSE)),VLOOKUP($A51,'Calcs - PMP'!$C$80:$F$178,4,FALSE),0) -> 0 | F50: 10.5 | G50: =IF(ISNA(VLOOKUP(F51,'Calcs - Summer PMF'!$A$10:$J$210,10,FALSE)),0,VLOOKUP(F51,'Calcs - Summer PMF'!$A$10:$J$210,10,FALSE)) ->  | H50: =IF(ISNA(VLOOKUP(F51,'Calcs - Winter PMF'!$A$10:$J$210,10,FALSE)),0,VLOOKUP(F51,'Calcs - Winter PMF'!$A$10:$J$210,10,FALSE)) -> 
A51: =ROUND(A50+Inputs!$F$27,5) -> 10.75 | B51: =IF(ISNUMBER(VLOOKUP($A52,'Calcs - PMP'!$C$80:$F$178,2,FALSE)),VLOOKUP($A52,'Calcs - PMP'!$C$80:$F$178,2,FALSE),0) -> 0 | C51: =IF(ISNUMBER(VLOOKUP($A52,'Calcs - PMP'!$C$80:$F$178,3,FALSE)),VLOOKUP($A52,'Calcs - PMP'!$C$80:$F$178,3,FALSE),0) -> 0 | D51: =IF(ISNUMBER(VLOOKUP($A52,'Calcs - PMP'!$C$80:$F$178,4,FALSE)),VLOOKUP($A52,'Calcs - PMP'!$C$80:$F$178,4,FALSE),0) -> 0 | F51: 10.75 | G51: =IF(ISNA(VLOOKUP(F52,'Calcs - Summer PMF'!$A$10:$J$210,10,FALSE)),0,VLOOKUP(F52,'Calcs - Summer PMF'!$A$10:$J$210,10,FALSE)) ->  | H51: =IF(ISNA(VLOOKUP(F52,'Calcs - Winter PMF'!$A$10:$J$210,10,FALSE)),0,VLOOKUP(F52,'Calcs - Winter PMF'!$A$10:$J$210,10,FALSE)) -> 
A52: =ROUND(A51+Inputs!$F$27,5) -> 11 | B52: =IF(ISNUMBER(VLOOKUP($A53,'Calcs - PMP'!$C$80:$F$178,2,FALSE)),VLOOKUP($A53,'Calcs - PMP'!$C$80:$F$178,2,FALSE),0) -> 0 | C52: =IF(ISNUMBER(VLOOKUP($A53,'Calcs - PMP'!$C$80:$F$178,3,FALSE)),VLOOKUP($A53,'Calcs - PMP'!$C$80:$F$178,3,FALSE),0) -> 0 | D52: =IF(ISNUMBER(VLOOKUP($A53,'Calcs - PMP'!$C$80:$F$178,4,FALSE)),VLOOKUP($A53,'Calcs - PMP'!$C$80:$F$178,4,FALSE),0) -> 0 | F52: 11 | G52: =IF(ISNA(VLOOKUP(F53,'Calcs - Summer PMF'!$A$10:$J$210,10,FALSE)),0,VLOOKUP(F53,'Calcs - Summer PMF'!$A$10:$J$210,10,FALSE)) ->  | H52: =IF(ISNA(VLOOKUP(F53,'Calcs - Winter PMF'!$A$10:$J$210,10,FALSE)),0,VLOOKUP(F53,'Calcs - Winter PMF'!$A$10:$J$210,10,FALSE)) -> 
A53: =ROUND(A52+Inputs!$F$27,5) -> 11.25 | B53: =IF(ISNUMBER(VLOOKUP($A54,'Calcs - PMP'!$C$80:$F$178,2,FALSE)),VLOOKUP($A54,'Calcs - PMP'!$C$80:$F$178,2,FALSE),0) -> 0 | C53: =IF(ISNUMBER(VLOOKUP($A54,'Calcs - PMP'!$C$80:$F$178,3,FALSE)),VLOOKUP($A54,'Calcs - PMP'!$C$80:$F$178,3,FALSE),0) -> 0 | D53: =IF(ISNUMBER(VLOOKUP($A54,'Calcs - PMP'!$C$80:$F$178,4,FALSE)),VLOOKUP($A54,'Calcs - PMP'!$C$80:$F$178,4,FALSE),0) -> 0 | F53: 11.25 | G53: =IF(ISNA(VLOOKUP(F54,'Calcs - Summer PMF'!$A$10:$J$210,10,FALSE)),0,VLOOKUP(F54,'Calcs - Summer PMF'!$A$10:$J$210,10,FALSE)) ->  | H53: =IF(ISNA(VLOOKUP(F54,'Calcs - Winter PMF'!$A$10:$J$210,10,FALSE)),0,VLOOKUP(F54,'Calcs - Winter PMF'!$A$10:$J$210,10,FALSE)) -> 
A54: =ROUND(A53+Inputs!$F$27,5) -> 11.5 | B54: =IF(ISNUMBER(VLOOKUP($A55,'Calcs - PMP'!$C$80:$F$178,2,FALSE)),VLOOKUP($A55,'Calcs - PMP'!$C$80:$F$178,2,FALSE),0) -> 0 | C54: =IF(ISNUMBER(VLOOKUP($A55,'Calcs - PMP'!$C$80:$F$178,3,FALSE)),VLOOKUP($A55,'Calcs - PMP'!$C$80:$F$178,3,FALSE),0) -> 0 | D54: =IF(ISNUMBER(VLOOKUP($A55,'Calcs - PMP'!$C$80:$F$178,4,FALSE)),VLOOKUP($A55,'Calcs - PMP'!$C$80:$F$178,4,FALSE),0) -> 0 | F54: 11.5 | G54: =IF(ISNA(VLOOKUP(F55,'Calcs - Summer PMF'!$A$10:$J$210,10,FALSE)),0,VLOOKUP(F55,'Calcs - Summer PMF'!$A$10:$J$210,10,FALSE)) ->  | H54: =IF(ISNA(VLOOKUP(F55,'Calcs - Winter PMF'!$A$10:$J$210,10,FALSE)),0,VLOOKUP(F55,'Calcs - Winter PMF'!$A$10:$J$210,10,FALSE)) -> 
A55: =ROUND(A54+Inputs!$F$27,5) -> 11.75 | B55: =IF(ISNUMBER(VLOOKUP($A56,'Calcs - PMP'!$C$80:$F$178,2,FALSE)),VLOOKUP($A56,'Calcs - PMP'!$C$80:$F$178,2,FALSE),0) -> 0 | C55: =IF(ISNUMBER(VLOOKUP($A56,'Calcs - PMP'!$C$80:$F$178,3,FALSE)),VLOOKUP($A56,'Calcs - PMP'!$C$80:$F$178,3,FALSE),0) -> 0 | D55: =IF(ISNUMBER(VLOOKUP($A56,'Calcs - PMP'!$C$80:$F$178,4,FALSE)),VLOOKUP($A56,'Calcs - PMP'!$C$80:$F$178,4,FALSE),0) -> 0 | F55: 11.75 | G55: =IF(ISNA(VLOOKUP(F56,'Calcs - Summer PMF'!$A$10:$J$210,10,FALSE)),0,VLOOKUP(F56,'Calcs - Summer PMF'!$A$10:$J$210,10,FALSE)) ->  | H55: =IF(ISNA(VLOOKUP(F56,'Calcs - Winter PMF'!$A$10:$J$210,10,FALSE)),0,VLOOKUP(F56,'Calcs - Winter PMF'!$A$10:$J$210,10,FALSE)) -> 
A56: =ROUND(A55+Inputs!$F$27,5) -> 12 | B56: =IF(ISNUMBER(VLOOKUP($A57,'Calcs - PMP'!$C$80:$F$178,2,FALSE)),VLOOKUP($A57,'Calcs - PMP'!$C$80:$F$178,2,FALSE),0) -> 0 | C56: =IF(ISNUMBER(VLOOKUP($A57,'Calcs - PMP'!$C$80:$F$178,3,FALSE)),VLOOKUP($A57,'Calcs - PMP'!$C$80:$F$178,3,FALSE),0) -> 0 | D56: =IF(ISNUMBER(VLOOKUP($A57,'Calcs - PMP'!$C$80:$F$178,4,FALSE)),VLOOKUP($A57,'Calcs - PMP'!$C$80:$F$178,4,FALSE),0) -> 0 | F56: 12 | G56: =IF(ISNA(VLOOKUP(F57,'Calcs - Summer PMF'!$A$10:$J$210,10,FALSE)),0,VLOOKUP(F57,'Calcs - Summer PMF'!$A$10:$J$210,10,FALSE)) ->  | H56: =IF(ISNA(VLOOKUP(F57,'Calcs - Winter PMF'!$A$10:$J$210,10,FALSE)),0,VLOOKUP(F57,'Calcs - Winter PMF'!$A$10:$J$210,10,FALSE)) -> 
A57: =ROUND(A56+Inputs!$F$27,5) -> 12.25 | B57: =IF(ISNUMBER(VLOOKUP($A58,'Calcs - PMP'!$C$80:$F$178,2,FALSE)),VLOOKUP($A58,'Calcs - PMP'!$C$80:$F$178,2,FALSE),0) -> 0 | C57: =IF(ISNUMBER(VLOOKUP($A58,'Calcs - PMP'!$C$80:$F$178,3,FALSE)),VLOOKUP($A58,'Calcs - PMP'!$C$80:$F$178,3,FALSE),0) -> 0 | D57: =IF(ISNUMBER(VLOOKUP($A58,'Calcs - PMP'!$C$80:$F$178,4,FALSE)),VLOOKUP($A58,'Calcs - PMP'!$C$80:$F$178,4,FALSE),0) -> 0 | F57: 12.25 | G57: =IF(ISNA(VLOOKUP(F58,'Calcs - Summer PMF'!$A$10:$J$210,10,FALSE)),0,VLOOKUP(F58,'Calcs - Summer PMF'!$A$10:$J$210,10,FALSE)) ->  | H57: =IF(ISNA(VLOOKUP(F58,'Calcs - Winter PMF'!$A$10:$J$210,10,FALSE)),0,VLOOKUP(F58,'Calcs - Winter PMF'!$A$10:$J$210,10,FALSE)) -> 
A58: =ROUND(A57+Inputs!$F$27,5) -> 12.5 | B58: =IF(ISNUMBER(VLOOKUP($A59,'Calcs - PMP'!$C$80:$F$178,2,FALSE)),VLOOKUP($A59,'Calcs - PMP'!$C$80:$F$178,2,FALSE),0) -> 0 | C58: =IF(ISNUMBER(VLOOKUP($A59,'Calcs - PMP'!$C$80:$F$178,3,FALSE)),VLOOKUP($A59,'Calcs - PMP'!$C$80:$F$178,3,FALSE),0) -> 0 | D58: =IF(ISNUMBER(VLOOKUP($A59,'Calcs - PMP'!$C$80:$F$178,4,FALSE)),VLOOKUP($A59,'Calcs - PMP'!$C$80:$F$178,4,FALSE),0) -> 0 | F58: 12.5 | G58: =IF(ISNA(VLOOKUP(F59,'Calcs - Summer PMF'!$A$10:$J$210,10,FALSE)),0,VLOOKUP(F59,'Calcs - Summer PMF'!$A$10:$J$210,10,FALSE)) ->  | H58: =IF(ISNA(VLOOKUP(F59,'Calcs - Winter PMF'!$A$10:$J$210,10,FALSE)),0,VLOOKUP(F59,'Calcs - Winter PMF'!$A$10:$J$210,10,FALSE)) -> 
A59: =ROUND(A58+Inputs!$F$27,5) -> 12.75 | B59: =IF(ISNUMBER(VLOOKUP($A60,'Calcs - PMP'!$C$80:$F$178,2,FALSE)),VLOOKUP($A60,'Calcs - PMP'!$C$80:$F$178,2,FALSE),0) -> 0 | C59: =IF(ISNUMBER(VLOOKUP($A60,'Calcs - PMP'!$C$80:$F$178,3,FALSE)),VLOOKUP($A60,'Calcs - PMP'!$C$80:$F$178,3,FALSE),0) -> 0 | D59: =IF(ISNUMBER(VLOOKUP($A60,'Calcs - PMP'!$C$80:$F$178,4,FALSE)),VLOOKUP($A60,'Calcs - PMP'!$C$80:$F$178,4,FALSE),0) -> 0 | F59: 12.75 | G59: =IF(ISNA(VLOOKUP(F60,'Calcs - Summer PMF'!$A$10:$J$210,10,FALSE)),0,VLOOKUP(F60,'Calcs - Summer PMF'!$A$10:$J$210,10,FALSE)) ->  | H59: =IF(ISNA(VLOOKUP(F60,'Calcs - Winter PMF'!$A$10:$J$210,10,FALSE)),0,VLOOKUP(F60,'Calcs - Winter PMF'!$A$10:$J$210,10,FALSE)) -> 
A60: =ROUND(A59+Inputs!$F$27,5) -> 13 | B60: =IF(ISNUMBER(VLOOKUP($A61,'Calcs - PMP'!$C$80:$F$178,2,FALSE)),VLOOKUP($A61,'Calcs - PMP'!$C$80:$F$178,2,FALSE),0) -> 0 | C60: =IF(ISNUMBER(VLOOKUP($A61,'Calcs - PMP'!$C$80:$F$178,3,FALSE)),VLOOKUP($A61,'Calcs - PMP'!$C$80:$F$178,3,FALSE),0) -> 0 | D60: =IF(ISNUMBER(VLOOKUP($A61,'Calcs - PMP'!$C$80:$F$178,4,FALSE)),VLOOKUP($A61,'Calcs - PMP'!$C$80:$F$178,4,FALSE),0) -> 0 | F60: 13 | G60: =IF(ISNA(VLOOKUP(F61,'Calcs - Summer PMF'!$A$10:$J$210,10,FALSE)),0,VLOOKUP(F61,'Calcs - Summer PMF'!$A$10:$J$210,10,FALSE)) ->  | H60: =IF(ISNA(VLOOKUP(F61,'Calcs - Winter PMF'!$A$10:$J$210,10,FALSE)),0,VLOOKUP(F61,'Calcs - Winter PMF'!$A$10:$J$210,10,FALSE)) -> 
A61: =ROUND(A60+Inputs!$F$27,5) -> 13.25 | B61: =IF(ISNUMBER(VLOOKUP($A62,'Calcs - PMP'!$C$80:$F$178,2,FALSE)),VLOOKUP($A62,'Calcs - PMP'!$C$80:$F$178,2,FALSE),0) -> 0 | C61: =IF(ISNUMBER(VLOOKUP($A62,'Calcs - PMP'!$C$80:$F$178,3,FALSE)),VLOOKUP($A62,'Calcs - PMP'!$C$80:$F$178,3,FALSE),0) -> 0 | D61: =IF(ISNUMBER(VLOOKUP($A62,'Calcs - PMP'!$C$80:$F$178,4,FALSE)),VLOOKUP($A62,'Calcs - PMP'!$C$80:$F$178,4,FALSE),0) -> 0 | F61: 13.25 | G61: =IF(ISNA(VLOOKUP(F62,'Calcs - Summer PMF'!$A$10:$J$210,10,FALSE)),0,VLOOKUP(F62,'Calcs - Summer PMF'!$A$10:$J$210,10,FALSE)) ->  | H61: =IF(ISNA(VLOOKUP(F62,'Calcs - Winter PMF'!$A$10:$J$210,10,FALSE)),0,VLOOKUP(F62,'Calcs - Winter PMF'!$A$10:$J$210,10,FALSE)) -> 
A62: =ROUND(A61+Inputs!$F$27,5) -> 13.5 | B62: =IF(ISNUMBER(VLOOKUP($A63,'Calcs - PMP'!$C$80:$F$178,2,FALSE)),VLOOKUP($A63,'Calcs - PMP'!$C$80:$F$178,2,FALSE),0) -> 0 | C62: =IF(ISNUMBER(VLOOKUP($A63,'Calcs - PMP'!$C$80:$F$178,3,FALSE)),VLOOKUP($A63,'Calcs - PMP'!$C$80:$F$178,3,FALSE),0) -> 0 | D62: =IF(ISNUMBER(VLOOKUP($A63,'Calcs - PMP'!$C$80:$F$178,4,FALSE)),VLOOKUP($A63,'Calcs - PMP'!$C$80:$F$178,4,FALSE),0) -> 0 | F62: 13.5 | G62: =IF(ISNA(VLOOKUP(F63,'Calcs - Summer PMF'!$A$10:$J$210,10,FALSE)),0,VLOOKUP(F63,'Calcs - Summer PMF'!$A$10:$J$210,10,FALSE)) ->  | H62: =IF(ISNA(VLOOKUP(F63,'Calcs - Winter PMF'!$A$10:$J$210,10,FALSE)),0,VLOOKUP(F63,'Calcs - Winter PMF'!$A$10:$J$210,10,FALSE)) -> 
A63: =ROUND(A62+Inputs!$F$27,5) -> 13.75 | B63: =IF(ISNUMBER(VLOOKUP($A64,'Calcs - PMP'!$C$80:$F$178,2,FALSE)),VLOOKUP($A64,'Calcs - PMP'!$C$80:$F$178,2,FALSE),0) -> 0 | C63: =IF(ISNUMBER(VLOOKUP($A64,'Calcs - PMP'!$C$80:$F$178,3,FALSE)),VLOOKUP($A64,'Calcs - PMP'!$C$80:$F$178,3,FALSE),0) -> 0 | D63: =IF(ISNUMBER(VLOOKUP($A64,'Calcs - PMP'!$C$80:$F$178,4,FALSE)),VLOOKUP($A64,'Calcs - PMP'!$C$80:$F$178,4,FALSE),0) -> 0 | F63: 13.75 | G63: =IF(ISNA(VLOOKUP(F64,'Calcs - Summer PMF'!$A$10:$J$210,10,FALSE)),0,VLOOKUP(F64,'Calcs - Summer PMF'!$A$10:$J$210,10,FALSE)) ->  | H63: =IF(ISNA(VLOOKUP(F64,'Calcs - Winter PMF'!$A$10:$J$210,10,FALSE)),0,VLOOKUP(F64,'Calcs - Winter PMF'!$A$10:$J$210,10,FALSE)) -> 
A64: =ROUND(A63+Inputs!$F$27,5) -> 14 | B64: =IF(ISNUMBER(VLOOKUP($A65,'Calcs - PMP'!$C$80:$F$178,2,FALSE)),VLOOKUP($A65,'Calcs - PMP'!$C$80:$F$178,2,FALSE),0) -> 0 | C64: =IF(ISNUMBER(VLOOKUP($A65,'Calcs - PMP'!$C$80:$F$178,3,FALSE)),VLOOKUP($A65,'Calcs - PMP'!$C$80:$F$178,3,FALSE),0) -> 0 | D64: =IF(ISNUMBER(VLOOKUP($A65,'Calcs - PMP'!$C$80:$F$178,4,FALSE)),VLOOKUP($A65,'Calcs - PMP'!$C$80:$F$178,4,FALSE),0) -> 0 | F64: 14 | G64: =IF(ISNA(VLOOKUP(F65,'Calcs - Summer PMF'!$A$10:$J$210,10,FALSE)),0,VLOOKUP(F65,'Calcs - Summer PMF'!$A$10:$J$210,10,FALSE)) ->  | H64: =IF(ISNA(VLOOKUP(F65,'Calcs - Winter PMF'!$A$10:$J$210,10,FALSE)),0,VLOOKUP(F65,'Calcs - Winter PMF'!$A$10:$J$210,10,FALSE)) -> 
A65: =ROUND(A64+Inputs!$F$27,5) -> 14.25 | B65: =IF(ISNUMBER(VLOOKUP($A66,'Calcs - PMP'!$C$80:$F$178,2,FALSE)),VLOOKUP($A66,'Calcs - PMP'!$C$80:$F$178,2,FALSE),0) -> 0 | C65: =IF(ISNUMBER(VLOOKUP($A66,'Calcs - PMP'!$C$80:$F$178,3,FALSE)),VLOOKUP($A66,'Calcs - PMP'!$C$80:$F$178,3,FALSE),0) -> 0 | D65: =IF(ISNUMBER(VLOOKUP($A66,'Calcs - PMP'!$C$80:$F$178,4,FALSE)),VLOOKUP($A66,'Calcs - PMP'!$C$80:$F$178,4,FALSE),0) -> 0 | F65: 14.25 | G65: =IF(ISNA(VLOOKUP(F66,'Calcs - Summer PMF'!$A$10:$J$210,10,FALSE)),0,VLOOKUP(F66,'Calcs - Summer PMF'!$A$10:$J$210,10,FALSE)) ->  | H65: =IF(ISNA(VLOOKUP(F66,'Calcs - Winter PMF'!$A$10:$J$210,10,FALSE)),0,VLOOKUP(F66,'Calcs - Winter PMF'!$A$10:$J$210,10,FALSE)) -> 
A66: =ROUND(A65+Inputs!$F$27,5) -> 14.5 | B66: =IF(ISNUMBER(VLOOKUP($A67,'Calcs - PMP'!$C$80:$F$178,2,FALSE)),VLOOKUP($A67,'Calcs - PMP'!$C$80:$F$178,2,FALSE),0) -> 0 | C66: =IF(ISNUMBER(VLOOKUP($A67,'Calcs - PMP'!$C$80:$F$178,3,FALSE)),VLOOKUP($A67,'Calcs - PMP'!$C$80:$F$178,3,FALSE),0) -> 0 | D66: =IF(ISNUMBER(VLOOKUP($A67,'Calcs - PMP'!$C$80:$F$178,4,FALSE)),VLOOKUP($A67,'Calcs - PMP'!$C$80:$F$178,4,FALSE),0) -> 0 | F66: 14.5 | G66: =IF(ISNA(VLOOKUP(F67,'Calcs - Summer PMF'!$A$10:$J$210,10,FALSE)),0,VLOOKUP(F67,'Calcs - Summer PMF'!$A$10:$J$210,10,FALSE)) ->  | H66: =IF(ISNA(VLOOKUP(F67,'Calcs - Winter PMF'!$A$10:$J$210,10,FALSE)),0,VLOOKUP(F67,'Calcs - Winter PMF'!$A$10:$J$210,10,FALSE)) -> 
A67: =ROUND(A66+Inputs!$F$27,5) -> 14.75 | B67: =IF(ISNUMBER(VLOOKUP($A68,'Calcs - PMP'!$C$80:$F$178,2,FALSE)),VLOOKUP($A68,'Calcs - PMP'!$C$80:$F$178,2,FALSE),0) -> 0 | C67: =IF(ISNUMBER(VLOOKUP($A68,'Calcs - PMP'!$C$80:$F$178,3,FALSE)),VLOOKUP($A68,'Calcs - PMP'!$C$80:$F$178,3,FALSE),0) -> 0 | D67: =IF(ISNUMBER(VLOOKUP($A68,'Calcs - PMP'!$C$80:$F$178,4,FALSE)),VLOOKUP($A68,'Calcs - PMP'!$C$80:$F$178,4,FALSE),0) -> 0 | F67: 14.75 | G67: =IF(ISNA(VLOOKUP(F68,'Calcs - Summer PMF'!$A$10:$J$210,10,FALSE)),0,VLOOKUP(F68,'Calcs - Summer PMF'!$A$10:$J$210,10,FALSE)) ->  | H67: =IF(ISNA(VLOOKUP(F68,'Calcs - Winter PMF'!$A$10:$J$210,10,FALSE)),0,VLOOKUP(F68,'Calcs - Winter PMF'!$A$10:$J$210,10,FALSE)) -> 
A68: =ROUND(A67+Inputs!$F$27,5) -> 15 | B68: =IF(ISNUMBER(VLOOKUP($A69,'Calcs - PMP'!$C$80:$F$178,2,FALSE)),VLOOKUP($A69,'Calcs - PMP'!$C$80:$F$178,2,FALSE),0) -> 0 | C68: =IF(ISNUMBER(VLOOKUP($A69,'Calcs - PMP'!$C$80:$F$178,3,FALSE)),VLOOKUP($A69,'Calcs - PMP'!$C$80:$F$178,3,FALSE),0) -> 0 | D68: =IF(ISNUMBER(VLOOKUP($A69,'Calcs - PMP'!$C$80:$F$178,4,FALSE)),VLOOKUP($A69,'Calcs - PMP'!$C$80:$F$178,4,FALSE),0) -> 0 | F68: 15 | G68: =IF(ISNA(VLOOKUP(F69,'Calcs - Summer PMF'!$A$10:$J$210,10,FALSE)),0,VLOOKUP(F69,'Calcs - Summer PMF'!$A$10:$J$210,10,FALSE)) ->  | H68: =IF(ISNA(VLOOKUP(F69,'Calcs - Winter PMF'!$A$10:$J$210,10,FALSE)),0,VLOOKUP(F69,'Calcs - Winter PMF'!$A$10:$J$210,10,FALSE)) -> 
A69: =ROUND(A68+Inputs!$F$27,5) -> 15.25 | B69: =IF(ISNUMBER(VLOOKUP($A70,'Calcs - PMP'!$C$80:$F$178,2,FALSE)),VLOOKUP($A70,'Calcs - PMP'!$C$80:$F$178,2,FALSE),0) -> 0 | C69: =IF(ISNUMBER(VLOOKUP($A70,'Calcs - PMP'!$C$80:$F$178,3,FALSE)),VLOOKUP($A70,'Calcs - PMP'!$C$80:$F$178,3,FALSE),0) -> 0 | D69: =IF(ISNUMBER(VLOOKUP($A70,'Calcs - PMP'!$C$80:$F$178,4,FALSE)),VLOOKUP($A70,'Calcs - PMP'!$C$80:$F$178,4,FALSE),0) -> 0 | F69: 15.25 | G69: =IF(ISNA(VLOOKUP(F70,'Calcs - Summer PMF'!$A$10:$J$210,10,FALSE)),0,VLOOKUP(F70,'Calcs - Summer PMF'!$A$10:$J$210,10,FALSE)) ->  | H69: =IF(ISNA(VLOOKUP(F70,'Calcs - Winter PMF'!$A$10:$J$210,10,FALSE)),0,VLOOKUP(F70,'Calcs - Winter PMF'!$A$10:$J$210,10,FALSE)) -> 
A70: =ROUND(A69+Inputs!$F$27,5) -> 15.5 | B70: =IF(ISNUMBER(VLOOKUP($A71,'Calcs - PMP'!$C$80:$F$178,2,FALSE)),VLOOKUP($A71,'Calcs - PMP'!$C$80:$F$178,2,FALSE),0) -> 0 | C70: =IF(ISNUMBER(VLOOKUP($A71,'Calcs - PMP'!$C$80:$F$178,3,FALSE)),VLOOKUP($A71,'Calcs - PMP'!$C$80:$F$178,3,FALSE),0) -> 0 | D70: =IF(ISNUMBER(VLOOKUP($A71,'Calcs - PMP'!$C$80:$F$178,4,FALSE)),VLOOKUP($A71,'Calcs - PMP'!$C$80:$F$178,4,FALSE),0) -> 0 | F70: 15.5 | G70: =IF(ISNA(VLOOKUP(F71,'Calcs - Summer PMF'!$A$10:$J$210,10,FALSE)),0,VLOOKUP(F71,'Calcs - Summer PMF'!$A$10:$J$210,10,FALSE)) ->  | H70: =IF(ISNA(VLOOKUP(F71,'Calcs - Winter PMF'!$A$10:$J$210,10,FALSE)),0,VLOOKUP(F71,'Calcs - Winter PMF'!$A$10:$J$210,10,FALSE)) -> 
A71: =ROUND(A70+Inputs!$F$27,5) -> 15.75 | B71: =IF(ISNUMBER(VLOOKUP($A72,'Calcs - PMP'!$C$80:$F$178,2,FALSE)),VLOOKUP($A72,'Calcs - PMP'!$C$80:$F$178,2,FALSE),0) -> 0 | C71: =IF(ISNUMBER(VLOOKUP($A72,'Calcs - PMP'!$C$80:$F$178,3,FALSE)),VLOOKUP($A72,'Calcs - PMP'!$C$80:$F$178,3,FALSE),0) -> 0 | D71: =IF(ISNUMBER(VLOOKUP($A72,'Calcs - PMP'!$C$80:$F$178,4,FALSE)),VLOOKUP($A72,'Calcs - PMP'!$C$80:$F$178,4,FALSE),0) -> 0 | F71: 15.75 | G71: =IF(ISNA(VLOOKUP(F72,'Calcs - Summer PMF'!$A$10:$J$210,10,FALSE)),0,VLOOKUP(F72,'Calcs - Summer PMF'!$A$10:$J$210,10,FALSE)) ->  | H71: =IF(ISNA(VLOOKUP(F72,'Calcs - Winter PMF'!$A$10:$J$210,10,FALSE)),0,VLOOKUP(F72,'Calcs - Winter PMF'!$A$10:$J$210,10,FALSE)) -> 
A72: =ROUND(A71+Inputs!$F$27,5) -> 16 | B72: =IF(ISNUMBER(VLOOKUP($A73,'Calcs - PMP'!$C$80:$F$178,2,FALSE)),VLOOKUP($A73,'Calcs - PMP'!$C$80:$F$178,2,FALSE),0) -> 0 | C72: =IF(ISNUMBER(VLOOKUP($A73,'Calcs - PMP'!$C$80:$F$178,3,FALSE)),VLOOKUP($A73,'Calcs - PMP'!$C$80:$F$178,3,FALSE),0) -> 0 | D72: =IF(ISNUMBER(VLOOKUP($A73,'Calcs - PMP'!$C$80:$F$178,4,FALSE)),VLOOKUP($A73,'Calcs - PMP'!$C$80:$F$178,4,FALSE),0) -> 0 | F72: 16 | G72: =IF(ISNA(VLOOKUP(F73,'Calcs - Summer PMF'!$A$10:$J$210,10,FALSE)),0,VLOOKUP(F73,'Calcs - Summer PMF'!$A$10:$J$210,10,FALSE)) ->  | H72: =IF(ISNA(VLOOKUP(F73,'Calcs - Winter PMF'!$A$10:$J$210,10,FALSE)),0,VLOOKUP(F73,'Calcs - Winter PMF'!$A$10:$J$210,10,FALSE)) -> 
A73: =ROUND(A72+Inputs!$F$27,5) -> 16.25 | B73: =IF(ISNUMBER(VLOOKUP($A74,'Calcs - PMP'!$C$80:$F$178,2,FALSE)),VLOOKUP($A74,'Calcs - PMP'!$C$80:$F$178,2,FALSE),0) -> 0 | C73: =IF(ISNUMBER(VLOOKUP($A74,'Calcs - PMP'!$C$80:$F$178,3,FALSE)),VLOOKUP($A74,'Calcs - PMP'!$C$80:$F$178,3,FALSE),0) -> 0 | D73: =IF(ISNUMBER(VLOOKUP($A74,'Calcs - PMP'!$C$80:$F$178,4,FALSE)),VLOOKUP($A74,'Calcs - PMP'!$C$80:$F$178,4,FALSE),0) -> 0 | F73: =A73 -> 16.25 | G73: =IF(ISNA(VLOOKUP(F74,'Calcs - Summer PMF'!$A$10:$J$210,10,FALSE)),0,VLOOKUP(F74,'Calcs - Summer PMF'!$A$10:$J$210,10,FALSE)) ->  | H73: =IF(ISNA(VLOOKUP(F74,'Calcs - Winter PMF'!$A$10:$J$210,10,FALSE)),0,VLOOKUP(F74,'Calcs - Winter PMF'!$A$10:$J$210,10,FALSE)) -> 
A74: =ROUND(A73+Inputs!$F$27,5) -> 16.5 | B74: =IF(ISNUMBER(VLOOKUP($A75,'Calcs - PMP'!$C$80:$F$178,2,FALSE)),VLOOKUP($A75,'Calcs - PMP'!$C$80:$F$178,2,FALSE),0) -> 0 | C74: =IF(ISNUMBER(VLOOKUP($A75,'Calcs - PMP'!$C$80:$F$178,3,FALSE)),VLOOKUP($A75,'Calcs - PMP'!$C$80:$F$178,3,FALSE),0) -> 0 | D74: =IF(ISNUMBER(VLOOKUP($A75,'Calcs - PMP'!$C$80:$F$178,4,FALSE)),VLOOKUP($A75,'Calcs - PMP'!$C$80:$F$178,4,FALSE),0) -> 0 | F74: =A74 -> 16.5 | G74: =IF(ISNA(VLOOKUP(F75,'Calcs - Summer PMF'!$A$10:$J$210,10,FALSE)),0,VLOOKUP(F75,'Calcs - Summer PMF'!$A$10:$J$210,10,FALSE)) ->  | H74: =IF(ISNA(VLOOKUP(F75,'Calcs - Winter PMF'!$A$10:$J$210,10,FALSE)),0,VLOOKUP(F75,'Calcs - Winter PMF'!$A$10:$J$210,10,FALSE)) -> 
A75: =ROUND(A74+Inputs!$F$27,5) -> 16.75 | B75: =IF(ISNUMBER(VLOOKUP($A76,'Calcs - PMP'!$C$80:$F$178,2,FALSE)),VLOOKUP($A76,'Calcs - PMP'!$C$80:$F$178,2,FALSE),0) -> 0 | C75: =IF(ISNUMBER(VLOOKUP($A76,'Calcs - PMP'!$C$80:$F$178,3,FALSE)),VLOOKUP($A76,'Calcs - PMP'!$C$80:$F$178,3,FALSE),0) -> 0 | D75: =IF(ISNUMBER(VLOOKUP($A76,'Calcs - PMP'!$C$80:$F$178,4,FALSE)),VLOOKUP($A76,'Calcs - PMP'!$C$80:$F$178,4,FALSE),0) -> 0 | F75: 16.75 | G75: =IF(ISNA(VLOOKUP(F76,'Calcs - Summer PMF'!$A$10:$J$210,10,FALSE)),0,VLOOKUP(F76,'Calcs - Summer PMF'!$A$10:$J$210,10,FALSE)) ->  | H75: =IF(ISNA(VLOOKUP(F76,'Calcs - Winter PMF'!$A$10:$J$210,10,FALSE)),0,VLOOKUP(F76,'Calcs - Winter PMF'!$A$10:$J$210,10,FALSE)) -> 
A76: =ROUND(A75+Inputs!$F$27,5) -> 17 | B76: =IF(ISNUMBER(VLOOKUP($A77,'Calcs - PMP'!$C$80:$F$178,2,FALSE)),VLOOKUP($A77,'Calcs - PMP'!$C$80:$F$178,2,FALSE),0) -> 0 | C76: =IF(ISNUMBER(VLOOKUP($A77,'Calcs - PMP'!$C$80:$F$178,3,FALSE)),VLOOKUP($A77,'Calcs - PMP'!$C$80:$F$178,3,FALSE),0) -> 0 | D76: =IF(ISNUMBER(VLOOKUP($A77,'Calcs - PMP'!$C$80:$F$178,4,FALSE)),VLOOKUP($A77,'Calcs - PMP'!$C$80:$F$178,4,FALSE),0) -> 0 | F76: 17 | G76: =IF(ISNA(VLOOKUP(F77,'Calcs - Summer PMF'!$A$10:$J$210,10,FALSE)),0,VLOOKUP(F77,'Calcs - Summer PMF'!$A$10:$J$210,10,FALSE)) ->  | H76: =IF(ISNA(VLOOKUP(F77,'Calcs - Winter PMF'!$A$10:$J$210,10,FALSE)),0,VLOOKUP(F77,'Calcs - Winter PMF'!$A$10:$J$210,10,FALSE)) -> 
A77: =ROUND(A76+Inputs!$F$27,5) -> 17.25 | B77: =IF(ISNUMBER(VLOOKUP($A78,'Calcs - PMP'!$C$80:$F$178,2,FALSE)),VLOOKUP($A78,'Calcs - PMP'!$C$80:$F$178,2,FALSE),0) -> 0 | C77: =IF(ISNUMBER(VLOOKUP($A78,'Calcs - PMP'!$C$80:$F$178,3,FALSE)),VLOOKUP($A78,'Calcs - PMP'!$C$80:$F$178,3,FALSE),0) -> 0 | D77: =IF(ISNUMBER(VLOOKUP($A78,'Calcs - PMP'!$C$80:$F$178,4,FALSE)),VLOOKUP($A78,'Calcs - PMP'!$C$80:$F$178,4,FALSE),0) -> 0 | F77: 17.25 | G77: =IF(ISNA(VLOOKUP(F78,'Calcs - Summer PMF'!$A$10:$J$210,10,FALSE)),0,VLOOKUP(F78,'Calcs - Summer PMF'!$A$10:$J$210,10,FALSE)) ->  | H77: =IF(ISNA(VLOOKUP(F78,'Calcs - Winter PMF'!$A$10:$J$210,10,FALSE)),0,VLOOKUP(F78,'Calcs - Winter PMF'!$A$10:$J$210,10,FALSE)) -> 
A78: =ROUND(A77+Inputs!$F$27,5) -> 17.5 | B78: =IF(ISNUMBER(VLOOKUP($A79,'Calcs - PMP'!$C$80:$F$178,2,FALSE)),VLOOKUP($A79,'Calcs - PMP'!$C$80:$F$178,2,FALSE),0) -> 0 | C78: =IF(ISNUMBER(VLOOKUP($A79,'Calcs - PMP'!$C$80:$F$178,3,FALSE)),VLOOKUP($A79,'Calcs - PMP'!$C$80:$F$178,3,FALSE),0) -> 0 | D78: =IF(ISNUMBER(VLOOKUP($A79,'Calcs - PMP'!$C$80:$F$178,4,FALSE)),VLOOKUP($A79,'Calcs - PMP'!$C$80:$F$178,4,FALSE),0) -> 0 | F78: 17.5 | G78: =IF(ISNA(VLOOKUP(F79,'Calcs - Summer PMF'!$A$10:$J$210,10,FALSE)),0,VLOOKUP(F79,'Calcs - Summer PMF'!$A$10:$J$210,10,FALSE)) ->  | H78: =IF(ISNA(VLOOKUP(F79,'Calcs - Winter PMF'!$A$10:$J$210,10,FALSE)),0,VLOOKUP(F79,'Calcs - Winter PMF'!$A$10:$J$210,10,FALSE)) -> 
A79: =ROUND(A78+Inputs!$F$27,5) -> 17.75 | B79: =IF(ISNUMBER(VLOOKUP($A80,'Calcs - PMP'!$C$80:$F$178,2,FALSE)),VLOOKUP($A80,'Calcs - PMP'!$C$80:$F$178,2,FALSE),0) -> 0 | C79: =IF(ISNUMBER(VLOOKUP($A80,'Calcs - PMP'!$C$80:$F$178,3,FALSE)),VLOOKUP($A80,'Calcs - PMP'!$C$80:$F$178,3,FALSE),0) -> 0 | D79: =IF(ISNUMBER(VLOOKUP($A80,'Calcs - PMP'!$C$80:$F$178,4,FALSE)),VLOOKUP($A80,'Calcs - PMP'!$C$80:$F$178,4,FALSE),0) -> 0 | F79: 17.75 | G79: =IF(ISNA(VLOOKUP(F80,'Calcs - Summer PMF'!$A$10:$J$210,10,FALSE)),0,VLOOKUP(F80,'Calcs - Summer PMF'!$A$10:$J$210,10,FALSE)) ->  | H79: =IF(ISNA(VLOOKUP(F80,'Calcs - Winter PMF'!$A$10:$J$210,10,FALSE)),0,VLOOKUP(F80,'Calcs - Winter PMF'!$A$10:$J$210,10,FALSE)) -> 
A80: =ROUND(A79+Inputs!$F$27,5) -> 18 | B80: =IF(ISNUMBER(VLOOKUP($A81,'Calcs - PMP'!$C$80:$F$178,2,FALSE)),VLOOKUP($A81,'Calcs - PMP'!$C$80:$F$178,2,FALSE),0) -> 0 | C80: =IF(ISNUMBER(VLOOKUP($A81,'Calcs - PMP'!$C$80:$F$178,3,FALSE)),VLOOKUP($A81,'Calcs - PMP'!$C$80:$F$178,3,FALSE),0) -> 0 | D80: =IF(ISNUMBER(VLOOKUP($A81,'Calcs - PMP'!$C$80:$F$178,4,FALSE)),VLOOKUP($A81,'Calcs - PMP'!$C$80:$F$178,4,FALSE),0) -> 0 | F80: 18 | G80: =IF(ISNA(VLOOKUP(F81,'Calcs - Summer PMF'!$A$10:$J$210,10,FALSE)),0,VLOOKUP(F81,'Calcs - Summer PMF'!$A$10:$J$210,10,FALSE)) ->  | H80: =IF(ISNA(VLOOKUP(F81,'Calcs - Winter PMF'!$A$10:$J$210,10,FALSE)),0,VLOOKUP(F81,'Calcs - Winter PMF'!$A$10:$J$210,10,FALSE)) -> 
A81: =ROUND(A80+Inputs!$F$27,5) -> 18.25 | B81: =IF(ISNUMBER(VLOOKUP($A82,'Calcs - PMP'!$C$80:$F$178,2,FALSE)),VLOOKUP($A82,'Calcs - PMP'!$C$80:$F$178,2,FALSE),0) -> 0 | C81: =IF(ISNUMBER(VLOOKUP($A82,'Calcs - PMP'!$C$80:$F$178,3,FALSE)),VLOOKUP($A82,'Calcs - PMP'!$C$80:$F$178,3,FALSE),0) -> 0 | D81: =IF(ISNUMBER(VLOOKUP($A82,'Calcs - PMP'!$C$80:$F$178,4,FALSE)),VLOOKUP($A82,'Calcs - PMP'!$C$80:$F$178,4,FALSE),0) -> 0 | F81: 18.25 | G81: =IF(ISNA(VLOOKUP(F82,'Calcs - Summer PMF'!$A$10:$J$210,10,FALSE)),0,VLOOKUP(F82,'Calcs - Summer PMF'!$A$10:$J$210,10,FALSE)) ->  | H81: =IF(ISNA(VLOOKUP(F82,'Calcs - Winter PMF'!$A$10:$J$210,10,FALSE)),0,VLOOKUP(F82,'Calcs - Winter PMF'!$A$10:$J$210,10,FALSE)) -> 
A82: =ROUND(A81+Inputs!$F$27,5) -> 18.5 | B82: =IF(ISNUMBER(VLOOKUP($A83,'Calcs - PMP'!$C$80:$F$178,2,FALSE)),VLOOKUP($A83,'Calcs - PMP'!$C$80:$F$178,2,FALSE),0) -> 0 | C82: =IF(ISNUMBER(VLOOKUP($A83,'Calcs - PMP'!$C$80:$F$178,3,FALSE)),VLOOKUP($A83,'Calcs - PMP'!$C$80:$F$178,3,FALSE),0) -> 0 | D82: =IF(ISNUMBER(VLOOKUP($A83,'Calcs - PMP'!$C$80:$F$178,4,FALSE)),VLOOKUP($A83,'Calcs - PMP'!$C$80:$F$178,4,FALSE),0) -> 0 | F82: 18.5 | G82: =IF(ISNA(VLOOKUP(F83,'Calcs - Summer PMF'!$A$10:$J$210,10,FALSE)),0,VLOOKUP(F83,'Calcs - Summer PMF'!$A$10:$J$210,10,FALSE)) ->  | H82: =IF(ISNA(VLOOKUP(F83,'Calcs - Winter PMF'!$A$10:$J$210,10,FALSE)),0,VLOOKUP(F83,'Calcs - Winter PMF'!$A$10:$J$210,10,FALSE)) -> 
A83: =ROUND(A82+Inputs!$F$27,5) -> 18.75 | B83: =IF(ISNUMBER(VLOOKUP($A84,'Calcs - PMP'!$C$80:$F$178,2,FALSE)),VLOOKUP($A84,'Calcs - PMP'!$C$80:$F$178,2,FALSE),0) -> 0 | C83: =IF(ISNUMBER(VLOOKUP($A84,'Calcs - PMP'!$C$80:$F$178,3,FALSE)),VLOOKUP($A84,'Calcs - PMP'!$C$80:$F$178,3,FALSE),0) -> 0 | D83: =IF(ISNUMBER(VLOOKUP($A84,'Calcs - PMP'!$C$80:$F$178,4,FALSE)),VLOOKUP($A84,'Calcs - PMP'!$C$80:$F$178,4,FALSE),0) -> 0 | F83: 18.75 | G83: =IF(ISNA(VLOOKUP(F84,'Calcs - Summer PMF'!$A$10:$J$210,10,FALSE)),0,VLOOKUP(F84,'Calcs - Summer PMF'!$A$10:$J$210,10,FALSE)) ->  | H83: =IF(ISNA(VLOOKUP(F84,'Calcs - Winter PMF'!$A$10:$J$210,10,FALSE)),0,VLOOKUP(F84,'Calcs - Winter PMF'!$A$10:$J$210,10,FALSE)) -> 
A84: =ROUND(A83+Inputs!$F$27,5) -> 19 | B84: =IF(ISNUMBER(VLOOKUP($A85,'Calcs - PMP'!$C$80:$F$178,2,FALSE)),VLOOKUP($A85,'Calcs - PMP'!$C$80:$F$178,2,FALSE),0) -> 0 | C84: =IF(ISNUMBER(VLOOKUP($A85,'Calcs - PMP'!$C$80:$F$178,3,FALSE)),VLOOKUP($A85,'Calcs - PMP'!$C$80:$F$178,3,FALSE),0) -> 0 | D84: =IF(ISNUMBER(VLOOKUP($A85,'Calcs - PMP'!$C$80:$F$178,4,FALSE)),VLOOKUP($A85,'Calcs - PMP'!$C$80:$F$178,4,FALSE),0) -> 0 | F84: 19 | G84: =IF(ISNA(VLOOKUP(F85,'Calcs - Summer PMF'!$A$10:$J$210,10,FALSE)),0,VLOOKUP(F85,'Calcs - Summer PMF'!$A$10:$J$210,10,FALSE)) ->  | H84: =IF(ISNA(VLOOKUP(F85,'Calcs - Winter PMF'!$A$10:$J$210,10,FALSE)),0,VLOOKUP(F85,'Calcs - Winter PMF'!$A$10:$J$210,10,FALSE)) -> 
A85: =ROUND(A84+Inputs!$F$27,5) -> 19.25 | B85: =IF(ISNUMBER(VLOOKUP($A86,'Calcs - PMP'!$C$80:$F$178,2,FALSE)),VLOOKUP($A86,'Calcs - PMP'!$C$80:$F$178,2,FALSE),0) -> 0 | C85: =IF(ISNUMBER(VLOOKUP($A86,'Calcs - PMP'!$C$80:$F$178,3,FALSE)),VLOOKUP($A86,'Calcs - PMP'!$C$80:$F$178,3,FALSE),0) -> 0 | D85: =IF(ISNUMBER(VLOOKUP($A86,'Calcs - PMP'!$C$80:$F$178,4,FALSE)),VLOOKUP($A86,'Calcs - PMP'!$C$80:$F$178,4,FALSE),0) -> 0 | F85: 19.25 | G85: =IF(ISNA(VLOOKUP(F86,'Calcs - Summer PMF'!$A$10:$J$210,10,FALSE)),0,VLOOKUP(F86,'Calcs - Summer PMF'!$A$10:$J$210,10,FALSE)) ->  | H85: =IF(ISNA(VLOOKUP(F86,'Calcs - Winter PMF'!$A$10:$J$210,10,FALSE)),0,VLOOKUP(F86,'Calcs - Winter PMF'!$A$10:$J$210,10,FALSE)) -> 
A86: =ROUND(A85+Inputs!$F$27,5) -> 19.5 | B86: =IF(ISNUMBER(VLOOKUP($A87,'Calcs - PMP'!$C$80:$F$178,2,FALSE)),VLOOKUP($A87,'Calcs - PMP'!$C$80:$F$178,2,FALSE),0) -> 0 | C86: =IF(ISNUMBER(VLOOKUP($A87,'Calcs - PMP'!$C$80:$F$178,3,FALSE)),VLOOKUP($A87,'Calcs - PMP'!$C$80:$F$178,3,FALSE),0) -> 0 | D86: =IF(ISNUMBER(VLOOKUP($A87,'Calcs - PMP'!$C$80:$F$178,4,FALSE)),VLOOKUP($A87,'Calcs - PMP'!$C$80:$F$178,4,FALSE),0) -> 0 | F86: 19.5 | G86: =IF(ISNA(VLOOKUP(F87,'Calcs - Summer PMF'!$A$10:$J$210,10,FALSE)),0,VLOOKUP(F87,'Calcs - Summer PMF'!$A$10:$J$210,10,FALSE)) ->  | H86: =IF(ISNA(VLOOKUP(F87,'Calcs - Winter PMF'!$A$10:$J$210,10,FALSE)),0,VLOOKUP(F87,'Calcs - Winter PMF'!$A$10:$J$210,10,FALSE)) -> 
A87: =ROUND(A86+Inputs!$F$27,5) -> 19.75 | B87: =IF(ISNUMBER(VLOOKUP($A88,'Calcs - PMP'!$C$80:$F$178,2,FALSE)),VLOOKUP($A88,'Calcs - PMP'!$C$80:$F$178,2,FALSE),0) -> 0 | C87: =IF(ISNUMBER(VLOOKUP($A88,'Calcs - PMP'!$C$80:$F$178,3,FALSE)),VLOOKUP($A88,'Calcs - PMP'!$C$80:$F$178,3,FALSE),0) -> 0 | D87: =IF(ISNUMBER(VLOOKUP($A88,'Calcs - PMP'!$C$80:$F$178,4,FALSE)),VLOOKUP($A88,'Calcs - PMP'!$C$80:$F$178,4,FALSE),0) -> 0 | F87: 19.75 | G87: =IF(ISNA(VLOOKUP(F88,'Calcs - Summer PMF'!$A$10:$J$210,10,FALSE)),0,VLOOKUP(F88,'Calcs - Summer PMF'!$A$10:$J$210,10,FALSE)) ->  | H87: =IF(ISNA(VLOOKUP(F88,'Calcs - Winter PMF'!$A$10:$J$210,10,FALSE)),0,VLOOKUP(F88,'Calcs - Winter PMF'!$A$10:$J$210,10,FALSE)) -> 
A88: =ROUND(A87+Inputs!$F$27,5) -> 20 | B88: =IF(ISNUMBER(VLOOKUP($A89,'Calcs - PMP'!$C$80:$F$178,2,FALSE)),VLOOKUP($A89,'Calcs - PMP'!$C$80:$F$178,2,FALSE),0) -> 0 | C88: =IF(ISNUMBER(VLOOKUP($A89,'Calcs - PMP'!$C$80:$F$178,3,FALSE)),VLOOKUP($A89,'Calcs - PMP'!$C$80:$F$178,3,FALSE),0) -> 0 | D88: =IF(ISNUMBER(VLOOKUP($A89,'Calcs - PMP'!$C$80:$F$178,4,FALSE)),VLOOKUP($A89,'Calcs - PMP'!$C$80:$F$178,4,FALSE),0) -> 0 | F88: 20 | G88: =IF(ISNA(VLOOKUP(F89,'Calcs - Summer PMF'!$A$10:$J$210,10,FALSE)),0,VLOOKUP(F89,'Calcs - Summer PMF'!$A$10:$J$210,10,FALSE)) ->  | H88: =IF(ISNA(VLOOKUP(F89,'Calcs - Winter PMF'!$A$10:$J$210,10,FALSE)),0,VLOOKUP(F89,'Calcs - Winter PMF'!$A$10:$J$210,10,FALSE)) -> 
A89: =ROUND(A88+Inputs!$F$27,5) -> 20.25 | B89: =IF(ISNUMBER(VLOOKUP($A90,'Calcs - PMP'!$C$80:$F$178,2,FALSE)),VLOOKUP($A90,'Calcs - PMP'!$C$80:$F$178,2,FALSE),0) -> 0 | C89: =IF(ISNUMBER(VLOOKUP($A90,'Calcs - PMP'!$C$80:$F$178,3,FALSE)),VLOOKUP($A90,'Calcs - PMP'!$C$80:$F$178,3,FALSE),0) -> 0 | D89: =IF(ISNUMBER(VLOOKUP($A90,'Calcs - PMP'!$C$80:$F$178,4,FALSE)),VLOOKUP($A90,'Calcs - PMP'!$C$80:$F$178,4,FALSE),0) -> 0 | F89: 20.25 | G89: =IF(ISNA(VLOOKUP(F90,'Calcs - Summer PMF'!$A$10:$J$210,10,FALSE)),0,VLOOKUP(F90,'Calcs - Summer PMF'!$A$10:$J$210,10,FALSE)) ->  | H89: =IF(ISNA(VLOOKUP(F90,'Calcs - Winter PMF'!$A$10:$J$210,10,FALSE)),0,VLOOKUP(F90,'Calcs - Winter PMF'!$A$10:$J$210,10,FALSE)) -> 
A90: =ROUND(A89+Inputs!$F$27,5) -> 20.5 | B90: =IF(ISNUMBER(VLOOKUP($A91,'Calcs - PMP'!$C$80:$F$178,2,FALSE)),VLOOKUP($A91,'Calcs - PMP'!$C$80:$F$178,2,FALSE),0) -> 0 | C90: =IF(ISNUMBER(VLOOKUP($A91,'Calcs - PMP'!$C$80:$F$178,3,FALSE)),VLOOKUP($A91,'Calcs - PMP'!$C$80:$F$178,3,FALSE),0) -> 0 | D90: =IF(ISNUMBER(VLOOKUP($A91,'Calcs - PMP'!$C$80:$F$178,4,FALSE)),VLOOKUP($A91,'Calcs - PMP'!$C$80:$F$178,4,FALSE),0) -> 0 | F90: 20.5 | G90: =IF(ISNA(VLOOKUP(F91,'Calcs - Summer PMF'!$A$10:$J$210,10,FALSE)),0,VLOOKUP(F91,'Calcs - Summer PMF'!$A$10:$J$210,10,FALSE)) ->  | H90: =IF(ISNA(VLOOKUP(F91,'Calcs - Winter PMF'!$A$10:$J$210,10,FALSE)),0,VLOOKUP(F91,'Calcs - Winter PMF'!$A$10:$J$210,10,FALSE)) -> 
A91: =ROUND(A90+Inputs!$F$27,5) -> 20.75 | B91: =IF(ISNUMBER(VLOOKUP($A92,'Calcs - PMP'!$C$80:$F$178,2,FALSE)),VLOOKUP($A92,'Calcs - PMP'!$C$80:$F$178,2,FALSE),0) -> 0 | C91: =IF(ISNUMBER(VLOOKUP($A92,'Calcs - PMP'!$C$80:$F$178,3,FALSE)),VLOOKUP($A92,'Calcs - PMP'!$C$80:$F$178,3,FALSE),0) -> 0 | D91: =IF(ISNUMBER(VLOOKUP($A92,'Calcs - PMP'!$C$80:$F$178,4,FALSE)),VLOOKUP($A92,'Calcs - PMP'!$C$80:$F$178,4,FALSE),0) -> 0 | F91: 20.75 | G91: =IF(ISNA(VLOOKUP(F92,'Calcs - Summer PMF'!$A$10:$J$210,10,FALSE)),0,VLOOKUP(F92,'Calcs - Summer PMF'!$A$10:$J$210,10,FALSE)) ->  | H91: =IF(ISNA(VLOOKUP(F92,'Calcs - Winter PMF'!$A$10:$J$210,10,FALSE)),0,VLOOKUP(F92,'Calcs - Winter PMF'!$A$10:$J$210,10,FALSE)) -> 
A92: =ROUND(A91+Inputs!$F$27,5) -> 21 | B92: =IF(ISNUMBER(VLOOKUP($A93,'Calcs - PMP'!$C$80:$F$178,2,FALSE)),VLOOKUP($A93,'Calcs - PMP'!$C$80:$F$178,2,FALSE),0) -> 0 | C92: =IF(ISNUMBER(VLOOKUP($A93,'Calcs - PMP'!$C$80:$F$178,3,FALSE)),VLOOKUP($A93,'Calcs - PMP'!$C$80:$F$178,3,FALSE),0) -> 0 | D92: =IF(ISNUMBER(VLOOKUP($A93,'Calcs - PMP'!$C$80:$F$178,4,FALSE)),VLOOKUP($A93,'Calcs - PMP'!$C$80:$F$178,4,FALSE),0) -> 0 | F92: 21 | G92: =IF(ISNA(VLOOKUP(F93,'Calcs - Summer PMF'!$A$10:$J$210,10,FALSE)),0,VLOOKUP(F93,'Calcs - Summer PMF'!$A$10:$J$210,10,FALSE)) ->  | H92: =IF(ISNA(VLOOKUP(F93,'Calcs - Winter PMF'!$A$10:$J$210,10,FALSE)),0,VLOOKUP(F93,'Calcs - Winter PMF'!$A$10:$J$210,10,FALSE)) -> 
A93: =ROUND(A92+Inputs!$F$27,5) -> 21.25 | B93: =IF(ISNUMBER(VLOOKUP($A94,'Calcs - PMP'!$C$80:$F$178,2,FALSE)),VLOOKUP($A94,'Calcs - PMP'!$C$80:$F$178,2,FALSE),0) -> 0 | C93: =IF(ISNUMBER(VLOOKUP($A94,'Calcs - PMP'!$C$80:$F$178,3,FALSE)),VLOOKUP($A94,'Calcs - PMP'!$C$80:$F$178,3,FALSE),0) -> 0 | D93: =IF(ISNUMBER(VLOOKUP($A94,'Calcs - PMP'!$C$80:$F$178,4,FALSE)),VLOOKUP($A94,'Calcs - PMP'!$C$80:$F$178,4,FALSE),0) -> 0 | F93: 21.25 | G93: =IF(ISNA(VLOOKUP(F94,'Calcs - Summer PMF'!$A$10:$J$210,10,FALSE)),0,VLOOKUP(F94,'Calcs - Summer PMF'!$A$10:$J$210,10,FALSE)) ->  | H93: =IF(ISNA(VLOOKUP(F94,'Calcs - Winter PMF'!$A$10:$J$210,10,FALSE)),0,VLOOKUP(F94,'Calcs - Winter PMF'!$A$10:$J$210,10,FALSE)) -> 
A94: =ROUND(A93+Inputs!$F$27,5) -> 21.5 | B94: =IF(ISNUMBER(VLOOKUP($A95,'Calcs - PMP'!$C$80:$F$178,2,FALSE)),VLOOKUP($A95,'Calcs - PMP'!$C$80:$F$178,2,FALSE),0) -> 0 | C94: =IF(ISNUMBER(VLOOKUP($A95,'Calcs - PMP'!$C$80:$F$178,3,FALSE)),VLOOKUP($A95,'Calcs - PMP'!$C$80:$F$178,3,FALSE),0) -> 0 | D94: =IF(ISNUMBER(VLOOKUP($A95,'Calcs - PMP'!$C$80:$F$178,4,FALSE)),VLOOKUP($A95,'Calcs - PMP'!$C$80:$F$178,4,FALSE),0) -> 0 | F94: 21.5 | G94: =IF(ISNA(VLOOKUP(F95,'Calcs - Summer PMF'!$A$10:$J$210,10,FALSE)),0,VLOOKUP(F95,'Calcs - Summer PMF'!$A$10:$J$210,10,FALSE)) ->  | H94: =IF(ISNA(VLOOKUP(F95,'Calcs - Winter PMF'!$A$10:$J$210,10,FALSE)),0,VLOOKUP(F95,'Calcs - Winter PMF'!$A$10:$J$210,10,FALSE)) -> 
A95: =ROUND(A94+Inputs!$F$27,5) -> 21.75 | B95: =IF(ISNUMBER(VLOOKUP($A96,'Calcs - PMP'!$C$80:$F$178,2,FALSE)),VLOOKUP($A96,'Calcs - PMP'!$C$80:$F$178,2,FALSE),0) -> 0 | C95: =IF(ISNUMBER(VLOOKUP($A96,'Calcs - PMP'!$C$80:$F$178,3,FALSE)),VLOOKUP($A96,'Calcs - PMP'!$C$80:$F$178,3,FALSE),0) -> 0 | D95: =IF(ISNUMBER(VLOOKUP($A96,'Calcs - PMP'!$C$80:$F$178,4,FALSE)),VLOOKUP($A96,'Calcs - PMP'!$C$80:$F$178,4,FALSE),0) -> 0 | F95: 21.75 | G95: =IF(ISNA(VLOOKUP(F96,'Calcs - Summer PMF'!$A$10:$J$210,10,FALSE)),0,VLOOKUP(F96,'Calcs - Summer PMF'!$A$10:$J$210,10,FALSE)) ->  | H95: =IF(ISNA(VLOOKUP(F96,'Calcs - Winter PMF'!$A$10:$J$210,10,FALSE)),0,VLOOKUP(F96,'Calcs - Winter PMF'!$A$10:$J$210,10,FALSE)) -> 
A96: =ROUND(A95+Inputs!$F$27,5) -> 22 | B96: =IF(ISNUMBER(VLOOKUP($A97,'Calcs - PMP'!$C$80:$F$178,2,FALSE)),VLOOKUP($A97,'Calcs - PMP'!$C$80:$F$178,2,FALSE),0) -> 0 | C96: =IF(ISNUMBER(VLOOKUP($A97,'Calcs - PMP'!$C$80:$F$178,3,FALSE)),VLOOKUP($A97,'Calcs - PMP'!$C$80:$F$178,3,FALSE),0) -> 0 | D96: =IF(ISNUMBER(VLOOKUP($A97,'Calcs - PMP'!$C$80:$F$178,4,FALSE)),VLOOKUP($A97,'Calcs - PMP'!$C$80:$F$178,4,FALSE),0) -> 0 | F96: 22 | G96: =IF(ISNA(VLOOKUP(F97,'Calcs - Summer PMF'!$A$10:$J$210,10,FALSE)),0,VLOOKUP(F97,'Calcs - Summer PMF'!$A$10:$J$210,10,FALSE)) ->  | H96: =IF(ISNA(VLOOKUP(F97,'Calcs - Winter PMF'!$A$10:$J$210,10,FALSE)),0,VLOOKUP(F97,'Calcs - Winter PMF'!$A$10:$J$210,10,FALSE)) -> 
A97: =ROUND(A96+Inputs!$F$27,5) -> 22.25 | B97: =IF(ISNUMBER(VLOOKUP($A98,'Calcs - PMP'!$C$80:$F$178,2,FALSE)),VLOOKUP($A98,'Calcs - PMP'!$C$80:$F$178,2,FALSE),0) -> 0 | C97: =IF(ISNUMBER(VLOOKUP($A98,'Calcs - PMP'!$C$80:$F$178,3,FALSE)),VLOOKUP($A98,'Calcs - PMP'!$C$80:$F$178,3,FALSE),0) -> 0 | D97: =IF(ISNUMBER(VLOOKUP($A98,'Calcs - PMP'!$C$80:$F$178,4,FALSE)),VLOOKUP($A98,'Calcs - PMP'!$C$80:$F$178,4,FALSE),0) -> 0 | F97: 22.25 | G97: =IF(ISNA(VLOOKUP(F98,'Calcs - Summer PMF'!$A$10:$J$210,10,FALSE)),0,VLOOKUP(F98,'Calcs - Summer PMF'!$A$10:$J$210,10,FALSE)) ->  | H97: =IF(ISNA(VLOOKUP(F98,'Calcs - Winter PMF'!$A$10:$J$210,10,FALSE)),0,VLOOKUP(F98,'Calcs - Winter PMF'!$A$10:$J$210,10,FALSE)) -> 
A98: =ROUND(A97+Inputs!$F$27,5) -> 22.5 | B98: =IF(ISNUMBER(VLOOKUP($A99,'Calcs - PMP'!$C$80:$F$178,2,FALSE)),VLOOKUP($A99,'Calcs - PMP'!$C$80:$F$178,2,FALSE),0) -> 0 | C98: =IF(ISNUMBER(VLOOKUP($A99,'Calcs - PMP'!$C$80:$F$178,3,FALSE)),VLOOKUP($A99,'Calcs - PMP'!$C$80:$F$178,3,FALSE),0) -> 0 | D98: =IF(ISNUMBER(VLOOKUP($A99,'Calcs - PMP'!$C$80:$F$178,4,FALSE)),VLOOKUP($A99,'Calcs - PMP'!$C$80:$F$178,4,FALSE),0) -> 0 | F98: 22.5 | G98: =IF(ISNA(VLOOKUP(F99,'Calcs - Summer PMF'!$A$10:$J$210,10,FALSE)),0,VLOOKUP(F99,'Calcs - Summer PMF'!$A$10:$J$210,10,FALSE)) ->  | H98: =IF(ISNA(VLOOKUP(F99,'Calcs - Winter PMF'!$A$10:$J$210,10,FALSE)),0,VLOOKUP(F99,'Calcs - Winter PMF'!$A$10:$J$210,10,FALSE)) -> 
A99: =ROUND(A98+Inputs!$F$27,5) -> 22.75 | B99: =IF(ISNUMBER(VLOOKUP($A100,'Calcs - PMP'!$C$80:$F$178,2,FALSE)),VLOOKUP($A100,'Calcs - PMP'!$C$80:$F$178,2,FALSE),0) -> 0 | C99: =IF(ISNUMBER(VLOOKUP($A100,'Calcs - PMP'!$C$80:$F$178,3,FALSE)),VLOOKUP($A100,'Calcs - PMP'!$C$80:$F$178,3,FALSE),0) -> 0 | D99: =IF(ISNUMBER(VLOOKUP($A100,'Calcs - PMP'!$C$80:$F$178,4,FALSE)),VLOOKUP($A100,'Calcs - PMP'!$C$80:$F$178,4,FALSE),0) -> 0 | F99: 22.75 | G99: =IF(ISNA(VLOOKUP(F100,'Calcs - Summer PMF'!$A$10:$J$210,10,FALSE)),0,VLOOKUP(F100,'Calcs - Summer PMF'!$A$10:$J$210,10,FALSE)) ->  | H99: =IF(ISNA(VLOOKUP(F100,'Calcs - Winter PMF'!$A$10:$J$210,10,FALSE)),0,VLOOKUP(F100,'Calcs - Winter PMF'!$A$10:$J$210,10,FALSE)) -> 
A100: =ROUND(A99+Inputs!$F$27,5) -> 23 | B100: =IF(ISNUMBER(VLOOKUP($A101,'Calcs - PMP'!$C$80:$F$178,2,FALSE)),VLOOKUP($A101,'Calcs - PMP'!$C$80:$F$178,2,FALSE),0) -> 0 | C100: =IF(ISNUMBER(VLOOKUP($A101,'Calcs - PMP'!$C$80:$F$178,3,FALSE)),VLOOKUP($A101,'Calcs - PMP'!$C$80:$F$178,3,FALSE),0) -> 0 | D100: =IF(ISNUMBER(VLOOKUP($A101,'Calcs - PMP'!$C$80:$F$178,4,FALSE)),VLOOKUP($A101,'Calcs - PMP'!$C$80:$F$178,4,FALSE),0) -> 0 | F100: 23 | G100: =IF(ISNA(VLOOKUP(F101,'Calcs - Summer PMF'!$A$10:$J$210,10,FALSE)),0,VLOOKUP(F101,'Calcs - Summer PMF'!$A$10:$J$210,10,FALSE)) ->  | H100: =IF(ISNA(VLOOKUP(F101,'Calcs - Winter PMF'!$A$10:$J$210,10,FALSE)),0,VLOOKUP(F101,'Calcs - Winter PMF'!$A$10:$J$210,10,FALSE)) -> 
A101: =ROUND(A100+Inputs!$F$27,5) -> 23.25 | B101: =IF(ISNUMBER(VLOOKUP($A102,'Calcs - PMP'!$C$80:$F$178,2,FALSE)),VLOOKUP($A102,'Calcs - PMP'!$C$80:$F$178,2,FALSE),0) -> 0 | C101: =IF(ISNUMBER(VLOOKUP($A102,'Calcs - PMP'!$C$80:$F$178,3,FALSE)),VLOOKUP($A102,'Calcs - PMP'!$C$80:$F$178,3,FALSE),0) -> 0 | D101: =IF(ISNUMBER(VLOOKUP($A102,'Calcs - PMP'!$C$80:$F$178,4,FALSE)),VLOOKUP($A102,'Calcs - PMP'!$C$80:$F$178,4,FALSE),0) -> 0 | F101: 23.25 | G101: =IF(ISNA(VLOOKUP(F102,'Calcs - Summer PMF'!$A$10:$J$210,10,FALSE)),0,VLOOKUP(F102,'Calcs - Summer PMF'!$A$10:$J$210,10,FALSE)) ->  | H101: =IF(ISNA(VLOOKUP(F102,'Calcs - Winter PMF'!$A$10:$J$210,10,FALSE)),0,VLOOKUP(F102,'Calcs - Winter PMF'!$A$10:$J$210,10,FALSE)) -> 
A102: =ROUND(A101+Inputs!$F$27,5) -> 23.5 | B102: =IF(ISNUMBER(VLOOKUP($A103,'Calcs - PMP'!$C$80:$F$178,2,FALSE)),VLOOKUP($A103,'Calcs - PMP'!$C$80:$F$178,2,FALSE),0) -> 0 | C102: =IF(ISNUMBER(VLOOKUP($A103,'Calcs - PMP'!$C$80:$F$178,3,FALSE)),VLOOKUP($A103,'Calcs - PMP'!$C$80:$F$178,3,FALSE),0) -> 0 | D102: =IF(ISNUMBER(VLOOKUP($A103,'Calcs - PMP'!$C$80:$F$178,4,FALSE)),VLOOKUP($A103,'Calcs - PMP'!$C$80:$F$178,4,FALSE),0) -> 0 | F102: 23.5 | G102: =IF(ISNA(VLOOKUP(F103,'Calcs - Summer PMF'!$A$10:$J$210,10,FALSE)),0,VLOOKUP(F103,'Calcs - Summer PMF'!$A$10:$J$210,10,FALSE)) ->  | H102: =IF(ISNA(VLOOKUP(F103,'Calcs - Winter PMF'!$A$10:$J$210,10,FALSE)),0,VLOOKUP(F103,'Calcs - Winter PMF'!$A$10:$J$210,10,FALSE)) -> 
A103: =ROUND(A102+Inputs!$F$27,5) -> 23.75 | B103: =IF(ISNUMBER(VLOOKUP($A104,'Calcs - PMP'!$C$80:$F$178,2,FALSE)),VLOOKUP($A104,'Calcs - PMP'!$C$80:$F$178,2,FALSE),0) -> 0 | C103: =IF(ISNUMBER(VLOOKUP($A104,'Calcs - PMP'!$C$80:$F$178,3,FALSE)),VLOOKUP($A104,'Calcs - PMP'!$C$80:$F$178,3,FALSE),0) -> 0 | D103: =IF(ISNUMBER(VLOOKUP($A104,'Calcs - PMP'!$C$80:$F$178,4,FALSE)),VLOOKUP($A104,'Calcs - PMP'!$C$80:$F$178,4,FALSE),0) -> 0 | F103: 23.75 | G103: =IF(ISNA(VLOOKUP(F104,'Calcs - Summer PMF'!$A$10:$J$210,10,FALSE)),0,VLOOKUP(F104,'Calcs - Summer PMF'!$A$10:$J$210,10,FALSE)) ->  | H103: =IF(ISNA(VLOOKUP(F104,'Calcs - Winter PMF'!$A$10:$J$210,10,FALSE)),0,VLOOKUP(F104,'Calcs - Winter PMF'!$A$10:$J$210,10,FALSE)) -> 
A104: =ROUND(A103+Inputs!$F$27,5) -> 24 | B104: =IF(ISNUMBER(VLOOKUP($A105,'Calcs - PMP'!$C$80:$F$178,2,FALSE)),VLOOKUP($A105,'Calcs - PMP'!$C$80:$F$178,2,FALSE),0) -> 0 | C104: =IF(ISNUMBER(VLOOKUP($A105,'Calcs - PMP'!$C$80:$F$178,3,FALSE)),VLOOKUP($A105,'Calcs - PMP'!$C$80:$F$178,3,FALSE),0) -> 0 | D104: =IF(ISNUMBER(VLOOKUP($A105,'Calcs - PMP'!$C$80:$F$178,4,FALSE)),VLOOKUP($A105,'Calcs - PMP'!$C$80:$F$178,4,FALSE),0) -> 0 | F104: 24 | G104: =IF(ISNA(VLOOKUP(F105,'Calcs - Summer PMF'!$A$10:$J$210,10,FALSE)),0,VLOOKUP(F105,'Calcs - Summer PMF'!$A$10:$J$210,10,FALSE)) ->  | H104: =IF(ISNA(VLOOKUP(F105,'Calcs - Winter PMF'!$A$10:$J$210,10,FALSE)),0,VLOOKUP(F105,'Calcs - Winter PMF'!$A$10:$J$210,10,FALSE)) -> 
A105: =ROUND(A104+Inputs!$F$27,5) -> 24.25 | B105: =IF(ISNUMBER(VLOOKUP($A106,'Calcs - PMP'!$C$80:$F$178,2,FALSE)),VLOOKUP($A106,'Calcs - PMP'!$C$80:$F$178,2,FALSE),0) -> 0 | C105: =IF(ISNUMBER(VLOOKUP($A106,'Calcs - PMP'!$C$80:$F$178,3,FALSE)),VLOOKUP($A106,'Calcs - PMP'!$C$80:$F$178,3,FALSE),0) -> 0 | D105: =IF(ISNUMBER(VLOOKUP($A106,'Calcs - PMP'!$C$80:$F$178,4,FALSE)),VLOOKUP($A106,'Calcs - PMP'!$C$80:$F$178,4,FALSE),0) -> 0 | F105: 24.25 | G105: =IF(ISNA(VLOOKUP(F106,'Calcs - Summer PMF'!$A$10:$J$210,10,FALSE)),0,VLOOKUP(F106,'Calcs - Summer PMF'!$A$10:$J$210,10,FALSE)) ->  | H105: =IF(ISNA(VLOOKUP(F106,'Calcs - Winter PMF'!$A$10:$J$210,10,FALSE)),0,VLOOKUP(F106,'Calcs - Winter PMF'!$A$10:$J$210,10,FALSE)) -> 
A106: =ROUND(A105+Inputs!$F$27,5) -> 24.5 | B106: 0 | C106: 0 | D106: 0 | F106: 24.5 | G106: =IF(ISNA(VLOOKUP(F107,'Calcs - Summer PMF'!$A$10:$J$210,10,FALSE)),0,VLOOKUP(F107,'Calcs - Summer PMF'!$A$10:$J$210,10,FALSE)) ->  | H106: =IF(ISNA(VLOOKUP(F107,'Calcs - Winter PMF'!$A$10:$J$210,10,FALSE)),0,VLOOKUP(F107,'Calcs - Winter PMF'!$A$10:$J$210,10,FALSE)) -> 
A107: =ROUND(A106+Inputs!$F$27,5) -> 24.75 | B107: 0 | C107: 0 | D107: 0 | F107: 24.75 | G107: =IF(ISNA(VLOOKUP(F108,'Calcs - Summer PMF'!$A$10:$J$210,10,FALSE)),0,VLOOKUP(F108,'Calcs - Summer PMF'!$A$10:$J$210,10,FALSE)) ->  | H107: =IF(ISNA(VLOOKUP(F108,'Calcs - Winter PMF'!$A$10:$J$210,10,FALSE)),0,VLOOKUP(F108,'Calcs - Winter PMF'!$A$10:$J$210,10,FALSE)) -> 
A108: =ROUND(A107+Inputs!$F$27,5) -> 25 | B108: 0 | C108: 0 | D108: 0 | F108: 25 | G108: =IF(ISNA(VLOOKUP(F109,'Calcs - Summer PMF'!$A$10:$J$210,10,FALSE)),0,VLOOKUP(F109,'Calcs - Summer PMF'!$A$10:$J$210,10,FALSE)) ->  | H108: =IF(ISNA(VLOOKUP(F109,'Calcs - Winter PMF'!$A$10:$J$210,10,FALSE)),0,VLOOKUP(F109,'Calcs - Winter PMF'!$A$10:$J$210,10,FALSE)) -> 
A109: =ROUND(A108+Inputs!$F$27,5) -> 25.25 | B109: 0 | C109: 0 | D109: 0 | F109: 25.25 | G109: =IF(ISNA(VLOOKUP(F110,'Calcs - Summer PMF'!$A$10:$J$210,10,FALSE)),0,VLOOKUP(F110,'Calcs - Summer PMF'!$A$10:$J$210,10,FALSE)) ->  | H109: =IF(ISNA(VLOOKUP(F110,'Calcs - Winter PMF'!$A$10:$J$210,10,FALSE)),0,VLOOKUP(F110,'Calcs - Winter PMF'!$A$10:$J$210,10,FALSE)) -> 
A110: =ROUND(A109+Inputs!$F$27,5) -> 25.5 | B110: 0 | C110: 0 | D110: 0 | F110: 25.5 | G110: =IF(ISNA(VLOOKUP(F111,'Calcs - Summer PMF'!$A$10:$J$210,10,FALSE)),0,VLOOKUP(F111,'Calcs - Summer PMF'!$A$10:$J$210,10,FALSE)) ->  | H110: =IF(ISNA(VLOOKUP(F111,'Calcs - Winter PMF'!$A$10:$J$210,10,FALSE)),0,VLOOKUP(F111,'Calcs - Winter PMF'!$A$10:$J$210,10,FALSE)) -> 
A111: =ROUND(A110+Inputs!$F$27,5) -> 25.75 | B111: 0 | C111: 0 | D111: 0 | F111: 25.75 | G111: =IF(ISNA(VLOOKUP(F112,'Calcs - Summer PMF'!$A$10:$J$210,10,FALSE)),0,VLOOKUP(F112,'Calcs - Summer PMF'!$A$10:$J$210,10,FALSE)) ->  | H111: =IF(ISNA(VLOOKUP(F112,'Calcs - Winter PMF'!$A$10:$J$210,10,FALSE)),0,VLOOKUP(F112,'Calcs - Winter PMF'!$A$10:$J$210,10,FALSE)) -> 
A112: =ROUND(A111+Inputs!$F$27,5) -> 26 | B112: 0 | C112: 0 | D112: 0 | F112: 26 | G112: =IF(ISNA(VLOOKUP(F113,'Calcs - Summer PMF'!$A$10:$J$210,10,FALSE)),0,VLOOKUP(F113,'Calcs - Summer PMF'!$A$10:$J$210,10,FALSE)) ->  | H112: =IF(ISNA(VLOOKUP(F113,'Calcs - Winter PMF'!$A$10:$J$210,10,FALSE)),0,VLOOKUP(F113,'Calcs - Winter PMF'!$A$10:$J$210,10,FALSE)) -> 
A113: =ROUND(A112+Inputs!$F$27,5) -> 26.25 | B113: 0 | C113: 0 | D113: 0 | F113: 26.25 | G113: =IF(ISNA(VLOOKUP(F114,'Calcs - Summer PMF'!$A$10:$J$210,10,FALSE)),0,VLOOKUP(F114,'Calcs - Summer PMF'!$A$10:$J$210,10,FALSE)) ->  | H113: =IF(ISNA(VLOOKUP(F114,'Calcs - Winter PMF'!$A$10:$J$210,10,FALSE)),0,VLOOKUP(F114,'Calcs - Winter PMF'!$A$10:$J$210,10,FALSE)) -> 
A114: =ROUND(A113+Inputs!$F$27,5) -> 26.5 | B114: 0 | C114: 0 | D114: 0 | F114: 26.5 | G114: =IF(ISNA(VLOOKUP(F115,'Calcs - Summer PMF'!$A$10:$J$210,10,FALSE)),0,VLOOKUP(F115,'Calcs - Summer PMF'!$A$10:$J$210,10,FALSE)) ->  | H114: =IF(ISNA(VLOOKUP(F115,'Calcs - Winter PMF'!$A$10:$J$210,10,FALSE)),0,VLOOKUP(F115,'Calcs - Winter PMF'!$A$10:$J$210,10,FALSE)) -> 
A115: =ROUND(A114+Inputs!$F$27,5) -> 26.75 | B115: 0 | C115: 0 | D115: 0 | F115: 26.75 | G115: =IF(ISNA(VLOOKUP(F116,'Calcs - Summer PMF'!$A$10:$J$210,10,FALSE)),0,VLOOKUP(F116,'Calcs - Summer PMF'!$A$10:$J$210,10,FALSE)) ->  | H115: =IF(ISNA(VLOOKUP(F116,'Calcs - Winter PMF'!$A$10:$J$210,10,FALSE)),0,VLOOKUP(F116,'Calcs - Winter PMF'!$A$10:$J$210,10,FALSE)) -> 
A116: =ROUND(A115+Inputs!$F$27,5) -> 27 | B116: 0 | C116: 0 | D116: 0 | F116: 27 | G116: =IF(ISNA(VLOOKUP(F117,'Calcs - Summer PMF'!$A$10:$J$210,10,FALSE)),0,VLOOKUP(F117,'Calcs - Summer PMF'!$A$10:$J$210,10,FALSE)) ->  | H116: =IF(ISNA(VLOOKUP(F117,'Calcs - Winter PMF'!$A$10:$J$210,10,FALSE)),0,VLOOKUP(F117,'Calcs - Winter PMF'!$A$10:$J$210,10,FALSE)) -> 
A117: =ROUND(A116+Inputs!$F$27,5) -> 27.25 | B117: 0 | C117: 0 | D117: 0 | F117: 27.25 | G117: =IF(ISNA(VLOOKUP(F118,'Calcs - Summer PMF'!$A$10:$J$210,10,FALSE)),0,VLOOKUP(F118,'Calcs - Summer PMF'!$A$10:$J$210,10,FALSE)) ->  | H117: =IF(ISNA(VLOOKUP(F118,'Calcs - Winter PMF'!$A$10:$J$210,10,FALSE)),0,VLOOKUP(F118,'Calcs - Winter PMF'!$A$10:$J$210,10,FALSE)) -> 
A118: =ROUND(A117+Inputs!$F$27,5) -> 27.5 | B118: 0 | C118: 0 | D118: 0 | F118: 27.5 | G118: =IF(ISNA(VLOOKUP(F119,'Calcs - Summer PMF'!$A$10:$J$210,10,FALSE)),0,VLOOKUP(F119,'Calcs - Summer PMF'!$A$10:$J$210,10,FALSE)) ->  | H118: =IF(ISNA(VLOOKUP(F119,'Calcs - Winter PMF'!$A$10:$J$210,10,FALSE)),0,VLOOKUP(F119,'Calcs - Winter PMF'!$A$10:$J$210,10,FALSE)) -> 
A119: =ROUND(A118+Inputs!$F$27,5) -> 27.75 | B119: 0 | C119: 0 | D119: 0 | F119: 27.75 | G119: =IF(ISNA(VLOOKUP(F120,'Calcs - Summer PMF'!$A$10:$J$210,10,FALSE)),0,VLOOKUP(F120,'Calcs - Summer PMF'!$A$10:$J$210,10,FALSE)) ->  | H119: =IF(ISNA(VLOOKUP(F120,'Calcs - Winter PMF'!$A$10:$J$210,10,FALSE)),0,VLOOKUP(F120,'Calcs - Winter PMF'!$A$10:$J$210,10,FALSE)) -> 
A120: =ROUND(A119+Inputs!$F$27,5) -> 28 | B120: 0 | C120: 0 | D120: 0 | F120: 28 | G120: =IF(ISNA(VLOOKUP(F121,'Calcs - Summer PMF'!$A$10:$J$210,10,FALSE)),0,VLOOKUP(F121,'Calcs - Summer PMF'!$A$10:$J$210,10,FALSE)) ->  | H120: =IF(ISNA(VLOOKUP(F121,'Calcs - Winter PMF'!$A$10:$J$210,10,FALSE)),0,VLOOKUP(F121,'Calcs - Winter PMF'!$A$10:$J$210,10,FALSE)) -> 
A121: =ROUND(A120+Inputs!$F$27,5) -> 28.25 | B121: 0 | C121: 0 | D121: 0 | F121: 28.25 | G121: =IF(ISNA(VLOOKUP(F122,'Calcs - Summer PMF'!$A$10:$J$210,10,FALSE)),0,VLOOKUP(F122,'Calcs - Summer PMF'!$A$10:$J$210,10,FALSE)) ->  | H121: =IF(ISNA(VLOOKUP(F122,'Calcs - Winter PMF'!$A$10:$J$210,10,FALSE)),0,VLOOKUP(F122,'Calcs - Winter PMF'!$A$10:$J$210,10,FALSE)) -> 
A122: =ROUND(A121+Inputs!$F$27,5) -> 28.5 | B122: 0 | C122: 0 | D122: 0 | F122: 28.5 | G122: =IF(ISNA(VLOOKUP(F123,'Calcs - Summer PMF'!$A$10:$J$210,10,FALSE)),0,VLOOKUP(F123,'Calcs - Summer PMF'!$A$10:$J$210,10,FALSE)) ->  | H122: =IF(ISNA(VLOOKUP(F123,'Calcs - Winter PMF'!$A$10:$J$210,10,FALSE)),0,VLOOKUP(F123,'Calcs - Winter PMF'!$A$10:$J$210,10,FALSE)) -> 
A123: =ROUND(A122+Inputs!$F$27,5) -> 28.75 | B123: 0 | C123: 0 | D123: 0 | F123: 28.75 | G123: =IF(ISNA(VLOOKUP(F124,'Calcs - Summer PMF'!$A$10:$J$210,10,FALSE)),0,VLOOKUP(F124,'Calcs - Summer PMF'!$A$10:$J$210,10,FALSE)) ->  | H123: =IF(ISNA(VLOOKUP(F124,'Calcs - Winter PMF'!$A$10:$J$210,10,FALSE)),0,VLOOKUP(F124,'Calcs - Winter PMF'!$A$10:$J$210,10,FALSE)) -> 
A124: =ROUND(A123+Inputs!$F$27,5) -> 29 | B124: 0 | C124: 0 | D124: 0 | F124: 29 | G124: =IF(ISNA(VLOOKUP(F125,'Calcs - Summer PMF'!$A$10:$J$210,10,FALSE)),0,VLOOKUP(F125,'Calcs - Summer PMF'!$A$10:$J$210,10,FALSE)) ->  | H124: =IF(ISNA(VLOOKUP(F125,'Calcs - Winter PMF'!$A$10:$J$210,10,FALSE)),0,VLOOKUP(F125,'Calcs - Winter PMF'!$A$10:$J$210,10,FALSE)) -> 
A125: =ROUND(A124+Inputs!$F$27,5) -> 29.25 | B125: 0 | C125: 0 | D125: 0 | F125: 29.25 | G125: =IF(ISNA(VLOOKUP(F126,'Calcs - Summer PMF'!$A$10:$J$210,10,FALSE)),0,VLOOKUP(F126,'Calcs - Summer PMF'!$A$10:$J$210,10,FALSE)) ->  | H125: =IF(ISNA(VLOOKUP(F126,'Calcs - Winter PMF'!$A$10:$J$210,10,FALSE)),0,VLOOKUP(F126,'Calcs - Winter PMF'!$A$10:$J$210,10,FALSE)) -> 
A126: =ROUND(A125+Inputs!$F$27,5) -> 29.5 | B126: 0 | C126: 0 | D126: 0 | F126: 29.5 | G126: =IF(ISNA(VLOOKUP(F127,'Calcs - Summer PMF'!$A$10:$J$210,10,FALSE)),0,VLOOKUP(F127,'Calcs - Summer PMF'!$A$10:$J$210,10,FALSE)) ->  | H126: =IF(ISNA(VLOOKUP(F127,'Calcs - Winter PMF'!$A$10:$J$210,10,FALSE)),0,VLOOKUP(F127,'Calcs - Winter PMF'!$A$10:$J$210,10,FALSE)) -> 
A127: =ROUND(A126+Inputs!$F$27,5) -> 29.75 | B127: 0 | C127: 0 | D127: 0 | F127: 29.75 | G127: =IF(ISNA(VLOOKUP(F128,'Calcs - Summer PMF'!$A$10:$J$210,10,FALSE)),0,VLOOKUP(F128,'Calcs - Summer PMF'!$A$10:$J$210,10,FALSE)) ->  | H127: =IF(ISNA(VLOOKUP(F128,'Calcs - Winter PMF'!$A$10:$J$210,10,FALSE)),0,VLOOKUP(F128,'Calcs - Winter PMF'!$A$10:$J$210,10,FALSE)) -> 
A128: =ROUND(A127+Inputs!$F$27,5) -> 30 | B128: 0 | C128: 0 | D128: 0 | F128: 30 | G128: =IF(ISNA(VLOOKUP(F129,'Calcs - Summer PMF'!$A$10:$J$210,10,FALSE)),0,VLOOKUP(F129,'Calcs - Summer PMF'!$A$10:$J$210,10,FALSE)) ->  | H128: =IF(ISNA(VLOOKUP(F129,'Calcs - Winter PMF'!$A$10:$J$210,10,FALSE)),0,VLOOKUP(F129,'Calcs - Winter PMF'!$A$10:$J$210,10,FALSE)) -> 
A129: =ROUND(A128+Inputs!$F$27,5) -> 30.25 | B129: 0 | C129: 0 | D129: 0 | F129: 30.25 | G129: =IF(ISNA(VLOOKUP(F130,'Calcs - Summer PMF'!$A$10:$J$210,10,FALSE)),0,VLOOKUP(F130,'Calcs - Summer PMF'!$A$10:$J$210,10,FALSE)) ->  | H129: =IF(ISNA(VLOOKUP(F130,'Calcs - Winter PMF'!$A$10:$J$210,10,FALSE)),0,VLOOKUP(F130,'Calcs - Winter PMF'!$A$10:$J$210,10,FALSE)) -> 
A130: =ROUND(A129+Inputs!$F$27,5) -> 30.5 | B130: 0 | C130: 0 | D130: 0 | F130: 30.5 | G130: =IF(ISNA(VLOOKUP(F131,'Calcs - Summer PMF'!$A$10:$J$210,10,FALSE)),0,VLOOKUP(F131,'Calcs - Summer PMF'!$A$10:$J$210,10,FALSE)) ->  | H130: =IF(ISNA(VLOOKUP(F131,'Calcs - Winter PMF'!$A$10:$J$210,10,FALSE)),0,VLOOKUP(F131,'Calcs - Winter PMF'!$A$10:$J$210,10,FALSE)) -> 
A131: =ROUND(A130+Inputs!$F$27,5) -> 30.75 | B131: 0 | C131: 0 | D131: 0 | F131: 30.75 | G131: =IF(ISNA(VLOOKUP(F132,'Calcs - Summer PMF'!$A$10:$J$210,10,FALSE)),0,VLOOKUP(F132,'Calcs - Summer PMF'!$A$10:$J$210,10,FALSE)) ->  | H131: =IF(ISNA(VLOOKUP(F132,'Calcs - Winter PMF'!$A$10:$J$210,10,FALSE)),0,VLOOKUP(F132,'Calcs - Winter PMF'!$A$10:$J$210,10,FALSE)) -> 
A132: =ROUND(A131+Inputs!$F$27,5) -> 31 | B132: 0 | C132: 0 | D132: 0 | F132: 31 | G132: =IF(ISNA(VLOOKUP(F133,'Calcs - Summer PMF'!$A$10:$J$210,10,FALSE)),0,VLOOKUP(F133,'Calcs - Summer PMF'!$A$10:$J$210,10,FALSE)) ->  | H132: =IF(ISNA(VLOOKUP(F133,'Calcs - Winter PMF'!$A$10:$J$210,10,FALSE)),0,VLOOKUP(F133,'Calcs - Winter PMF'!$A$10:$J$210,10,FALSE)) -> 
A133: =ROUND(A132+Inputs!$F$27,5) -> 31.25 | B133: 0 | C133: 0 | D133: 0 | F133: 31.25 | G133: =IF(ISNA(VLOOKUP(F134,'Calcs - Summer PMF'!$A$10:$J$210,10,FALSE)),0,VLOOKUP(F134,'Calcs - Summer PMF'!$A$10:$J$210,10,FALSE)) ->  | H133: =IF(ISNA(VLOOKUP(F134,'Calcs - Winter PMF'!$A$10:$J$210,10,FALSE)),0,VLOOKUP(F134,'Calcs - Winter PMF'!$A$10:$J$210,10,FALSE)) -> 
A134: =ROUND(A133+Inputs!$F$27,5) -> 31.5 | B134: 0 | C134: 0 | D134: 0 | F134: 31.5 | G134: =IF(ISNA(VLOOKUP(F135,'Calcs - Summer PMF'!$A$10:$J$210,10,FALSE)),0,VLOOKUP(F135,'Calcs - Summer PMF'!$A$10:$J$210,10,FALSE)) ->  | H134: =IF(ISNA(VLOOKUP(F135,'Calcs - Winter PMF'!$A$10:$J$210,10,FALSE)),0,VLOOKUP(F135,'Calcs - Winter PMF'!$A$10:$J$210,10,FALSE)) -> 
A135: =ROUND(A134+Inputs!$F$27,5) -> 31.75 | B135: 0 | C135: 0 | D135: 0 | F135: 31.75 | G135: =IF(ISNA(VLOOKUP(F136,'Calcs - Summer PMF'!$A$10:$J$210,10,FALSE)),0,VLOOKUP(F136,'Calcs - Summer PMF'!$A$10:$J$210,10,FALSE)) ->  | H135: =IF(ISNA(VLOOKUP(F136,'Calcs - Winter PMF'!$A$10:$J$210,10,FALSE)),0,VLOOKUP(F136,'Calcs - Winter PMF'!$A$10:$J$210,10,FALSE)) -> 
A136: =ROUND(A135+Inputs!$F$27,5) -> 32 | B136: 0 | C136: 0 | D136: 0 | F136: 32 | G136: =IF(ISNA(VLOOKUP(F137,'Calcs - Summer PMF'!$A$10:$J$210,10,FALSE)),0,VLOOKUP(F137,'Calcs - Summer PMF'!$A$10:$J$210,10,FALSE)) ->  | H136: =IF(ISNA(VLOOKUP(F137,'Calcs - Winter PMF'!$A$10:$J$210,10,FALSE)),0,VLOOKUP(F137,'Calcs - Winter PMF'!$A$10:$J$210,10,FALSE)) -> 
A137: =ROUND(A136+Inputs!$F$27,5) -> 32.25 | B137: 0 | C137: 0 | D137: 0 | F137: =A137 -> 32.25 | G137: =IF(ISNA(VLOOKUP(F138,'Calcs - Summer PMF'!$A$10:$J$210,10,FALSE)),0,VLOOKUP(F138,'Calcs - Summer PMF'!$A$10:$J$210,10,FALSE)) ->  | H137: =IF(ISNA(VLOOKUP(F138,'Calcs - Winter PMF'!$A$10:$J$210,10,FALSE)),0,VLOOKUP(F138,'Calcs - Winter PMF'!$A$10:$J$210,10,FALSE)) -> 
A138: =ROUND(A137+Inputs!$F$27,5) -> 32.5 | B138: 0 | C138: 0 | D138: 0 | F138: 32.5 | G138: =IF(ISNA(VLOOKUP(F139,'Calcs - Summer PMF'!$A$10:$J$210,10,FALSE)),0,VLOOKUP(F139,'Calcs - Summer PMF'!$A$10:$J$210,10,FALSE)) ->  | H138: =IF(ISNA(VLOOKUP(F139,'Calcs - Winter PMF'!$A$10:$J$210,10,FALSE)),0,VLOOKUP(F139,'Calcs - Winter PMF'!$A$10:$J$210,10,FALSE)) -> 
A139: =ROUND(A138+Inputs!$F$27,5) -> 32.75 | B139: 0 | C139: 0 | D139: 0 | F139: 32.75 | G139: =IF(ISNA(VLOOKUP(F140,'Calcs - Summer PMF'!$A$10:$J$210,10,FALSE)),0,VLOOKUP(F140,'Calcs - Summer PMF'!$A$10:$J$210,10,FALSE)) ->  | H139: =IF(ISNA(VLOOKUP(F140,'Calcs - Winter PMF'!$A$10:$J$210,10,FALSE)),0,VLOOKUP(F140,'Calcs - Winter PMF'!$A$10:$J$210,10,FALSE)) -> 
A140: =ROUND(A139+Inputs!$F$27,5) -> 33 | B140: 0 | C140: 0 | D140: 0 | F140: 33 | G140: =IF(ISNA(VLOOKUP(F141,'Calcs - Summer PMF'!$A$10:$J$210,10,FALSE)),0,VLOOKUP(F141,'Calcs - Summer PMF'!$A$10:$J$210,10,FALSE)) ->  | H140: =IF(ISNA(VLOOKUP(F141,'Calcs - Winter PMF'!$A$10:$J$210,10,FALSE)),0,VLOOKUP(F141,'Calcs - Winter PMF'!$A$10:$J$210,10,FALSE)) -> 
A141: =ROUND(A140+Inputs!$F$27,5) -> 33.25 | B141: 0 | C141: 0 | D141: 0 | F141: 33.25 | G141: =IF(ISNA(VLOOKUP(F142,'Calcs - Summer PMF'!$A$10:$J$210,10,FALSE)),0,VLOOKUP(F142,'Calcs - Summer PMF'!$A$10:$J$210,10,FALSE)) ->  | H141: =IF(ISNA(VLOOKUP(F142,'Calcs - Winter PMF'!$A$10:$J$210,10,FALSE)),0,VLOOKUP(F142,'Calcs - Winter PMF'!$A$10:$J$210,10,FALSE)) -> 
A142: =ROUND(A141+Inputs!$F$27,5) -> 33.5 | B142: 0 | C142: 0 | D142: 0 | F142: 33.5 | G142: =IF(ISNA(VLOOKUP(F143,'Calcs - Summer PMF'!$A$10:$J$210,10,FALSE)),0,VLOOKUP(F143,'Calcs - Summer PMF'!$A$10:$J$210,10,FALSE)) ->  | H142: =IF(ISNA(VLOOKUP(F143,'Calcs - Winter PMF'!$A$10:$J$210,10,FALSE)),0,VLOOKUP(F143,'Calcs - Winter PMF'!$A$10:$J$210,10,FALSE)) -> 
A143: =ROUND(A142+Inputs!$F$27,5) -> 33.75 | B143: 0 | C143: 0 | D143: 0 | F143: 33.75 | G143: =IF(ISNA(VLOOKUP(F144,'Calcs - Summer PMF'!$A$10:$J$210,10,FALSE)),0,VLOOKUP(F144,'Calcs - Summer PMF'!$A$10:$J$210,10,FALSE)) ->  | H143: =IF(ISNA(VLOOKUP(F144,'Calcs - Winter PMF'!$A$10:$J$210,10,FALSE)),0,VLOOKUP(F144,'Calcs - Winter PMF'!$A$10:$J$210,10,FALSE)) -> 
A144: =ROUND(A143+Inputs!$F$27,5) -> 34 | B144: 0 | C144: 0 | D144: 0 | F144: 34 | G144: =IF(ISNA(VLOOKUP(F145,'Calcs - Summer PMF'!$A$10:$J$210,10,FALSE)),0,VLOOKUP(F145,'Calcs - Summer PMF'!$A$10:$J$210,10,FALSE)) ->  | H144: =IF(ISNA(VLOOKUP(F145,'Calcs - Winter PMF'!$A$10:$J$210,10,FALSE)),0,VLOOKUP(F145,'Calcs - Winter PMF'!$A$10:$J$210,10,FALSE)) -> 
A145: =ROUND(A144+Inputs!$F$27,5) -> 34.25 | B145: 0 | C145: 0 | D145: 0 | F145: 34.25 | G145: =IF(ISNA(VLOOKUP(F146,'Calcs - Summer PMF'!$A$10:$J$210,10,FALSE)),0,VLOOKUP(F146,'Calcs - Summer PMF'!$A$10:$J$210,10,FALSE)) ->  | H145: =IF(ISNA(VLOOKUP(F146,'Calcs - Winter PMF'!$A$10:$J$210,10,FALSE)),0,VLOOKUP(F146,'Calcs - Winter PMF'!$A$10:$J$210,10,FALSE)) -> 
A146: =ROUND(A145+Inputs!$F$27,5) -> 34.5 | B146: 0 | C146: 0 | D146: 0 | F146: 34.5 | G146: =IF(ISNA(VLOOKUP(F147,'Calcs - Summer PMF'!$A$10:$J$210,10,FALSE)),0,VLOOKUP(F147,'Calcs - Summer PMF'!$A$10:$J$210,10,FALSE)) ->  | H146: =IF(ISNA(VLOOKUP(F147,'Calcs - Winter PMF'!$A$10:$J$210,10,FALSE)),0,VLOOKUP(F147,'Calcs - Winter PMF'!$A$10:$J$210,10,FALSE)) -> 
A147: =ROUND(A146+Inputs!$F$27,5) -> 34.75 | B147: 0 | C147: 0 | D147: 0 | F147: 34.75 | G147: =IF(ISNA(VLOOKUP(F148,'Calcs - Summer PMF'!$A$10:$J$210,10,FALSE)),0,VLOOKUP(F148,'Calcs - Summer PMF'!$A$10:$J$210,10,FALSE)) ->  | H147: =IF(ISNA(VLOOKUP(F148,'Calcs - Winter PMF'!$A$10:$J$210,10,FALSE)),0,VLOOKUP(F148,'Calcs - Winter PMF'!$A$10:$J$210,10,FALSE)) -> 
A148: =ROUND(A147+Inputs!$F$27,5) -> 35 | B148: 0 | C148: 0 | D148: 0 | F148: 35 | G148: =IF(ISNA(VLOOKUP(F149,'Calcs - Summer PMF'!$A$10:$J$210,10,FALSE)),0,VLOOKUP(F149,'Calcs - Summer PMF'!$A$10:$J$210,10,FALSE)) ->  | H148: =IF(ISNA(VLOOKUP(F149,'Calcs - Winter PMF'!$A$10:$J$210,10,FALSE)),0,VLOOKUP(F149,'Calcs - Winter PMF'!$A$10:$J$210,10,FALSE)) -> 
A149: =ROUND(A148+Inputs!$F$27,5) -> 35.25 | B149: 0 | C149: 0 | D149: 0 | F149: 35.25 | G149: =IF(ISNA(VLOOKUP(F150,'Calcs - Summer PMF'!$A$10:$J$210,10,FALSE)),0,VLOOKUP(F150,'Calcs - Summer PMF'!$A$10:$J$210,10,FALSE)) ->  | H149: =IF(ISNA(VLOOKUP(F150,'Calcs - Winter PMF'!$A$10:$J$210,10,FALSE)),0,VLOOKUP(F150,'Calcs - Winter PMF'!$A$10:$J$210,10,FALSE)) -> 
A150: =ROUND(A149+Inputs!$F$27,5) -> 35.5 | B150: 0 | C150: 0 | D150: 0 | F150: 35.5 | G150: =IF(ISNA(VLOOKUP(F151,'Calcs - Summer PMF'!$A$10:$J$210,10,FALSE)),0,VLOOKUP(F151,'Calcs - Summer PMF'!$A$10:$J$210,10,FALSE)) ->  | H150: =IF(ISNA(VLOOKUP(F151,'Calcs - Winter PMF'!$A$10:$J$210,10,FALSE)),0,VLOOKUP(F151,'Calcs - Winter PMF'!$A$10:$J$210,10,FALSE)) -> 
A151: =ROUND(A150+Inputs!$F$27,5) -> 35.75 | B151: 0 | C151: 0 | D151: 0 | F151: 35.75 | G151: =IF(ISNA(VLOOKUP(F152,'Calcs - Summer PMF'!$A$10:$J$210,10,FALSE)),0,VLOOKUP(F152,'Calcs - Summer PMF'!$A$10:$J$210,10,FALSE)) ->  | H151: =IF(ISNA(VLOOKUP(F152,'Calcs - Winter PMF'!$A$10:$J$210,10,FALSE)),0,VLOOKUP(F152,'Calcs - Winter PMF'!$A$10:$J$210,10,FALSE)) -> 
A152: =ROUND(A151+Inputs!$F$27,5) -> 36 | B152: 0 | C152: 0 | D152: 0 | F152: 36 | G152: =IF(ISNA(VLOOKUP(F153,'Calcs - Summer PMF'!$A$10:$J$210,10,FALSE)),0,VLOOKUP(F153,'Calcs - Summer PMF'!$A$10:$J$210,10,FALSE)) ->  | H152: =IF(ISNA(VLOOKUP(F153,'Calcs - Winter PMF'!$A$10:$J$210,10,FALSE)),0,VLOOKUP(F153,'Calcs - Winter PMF'!$A$10:$J$210,10,FALSE)) -> 
A153: =ROUND(A152+Inputs!$F$27,5) -> 36.25 | B153: 0 | C153: 0 | D153: 0 | F153: 36.25 | G153: =IF(ISNA(VLOOKUP(F154,'Calcs - Summer PMF'!$A$10:$J$210,10,FALSE)),0,VLOOKUP(F154,'Calcs - Summer PMF'!$A$10:$J$210,10,FALSE)) ->  | H153: =IF(ISNA(VLOOKUP(F154,'Calcs - Winter PMF'!$A$10:$J$210,10,FALSE)),0,VLOOKUP(F154,'Calcs - Winter PMF'!$A$10:$J$210,10,FALSE)) -> 
A154: =ROUND(A153+Inputs!$F$27,5) -> 36.5 | B154: 0 | C154: 0 | D154: 0 | F154: 36.5 | G154: =IF(ISNA(VLOOKUP(F155,'Calcs - Summer PMF'!$A$10:$J$210,10,FALSE)),0,VLOOKUP(F155,'Calcs - Summer PMF'!$A$10:$J$210,10,FALSE)) ->  | H154: =IF(ISNA(VLOOKUP(F155,'Calcs - Winter PMF'!$A$10:$J$210,10,FALSE)),0,VLOOKUP(F155,'Calcs - Winter PMF'!$A$10:$J$210,10,FALSE)) -> 
A155: =ROUND(A154+Inputs!$F$27,5) -> 36.75 | B155: 0 | C155: 0 | D155: 0 | F155: 36.75 | G155: =IF(ISNA(VLOOKUP(F156,'Calcs - Summer PMF'!$A$10:$J$210,10,FALSE)),0,VLOOKUP(F156,'Calcs - Summer PMF'!$A$10:$J$210,10,FALSE)) ->  | H155: =IF(ISNA(VLOOKUP(F156,'Calcs - Winter PMF'!$A$10:$J$210,10,FALSE)),0,VLOOKUP(F156,'Calcs - Winter PMF'!$A$10:$J$210,10,FALSE)) -> 
A156: =ROUND(A155+Inputs!$F$27,5) -> 37 | B156: 0 | C156: 0 | D156: 0 | F156: 37 | G156: =IF(ISNA(VLOOKUP(F157,'Calcs - Summer PMF'!$A$10:$J$210,10,FALSE)),0,VLOOKUP(F157,'Calcs - Summer PMF'!$A$10:$J$210,10,FALSE)) ->  | H156: =IF(ISNA(VLOOKUP(F157,'Calcs - Winter PMF'!$A$10:$J$210,10,FALSE)),0,VLOOKUP(F157,'Calcs - Winter PMF'!$A$10:$J$210,10,FALSE)) -> 
A157: =ROUND(A156+Inputs!$F$27,5) -> 37.25 | B157: 0 | C157: 0 | D157: 0 | F157: 37.25 | G157: =IF(ISNA(VLOOKUP(F158,'Calcs - Summer PMF'!$A$10:$J$210,10,FALSE)),0,VLOOKUP(F158,'Calcs - Summer PMF'!$A$10:$J$210,10,FALSE)) ->  | H157: =IF(ISNA(VLOOKUP(F158,'Calcs - Winter PMF'!$A$10:$J$210,10,FALSE)),0,VLOOKUP(F158,'Calcs - Winter PMF'!$A$10:$J$210,10,FALSE)) -> 
A158: =ROUND(A157+Inputs!$F$27,5) -> 37.5 | B158: 0 | C158: 0 | D158: 0 | F158: 37.5 | G158: =IF(ISNA(VLOOKUP(F159,'Calcs - Summer PMF'!$A$10:$J$210,10,FALSE)),0,VLOOKUP(F159,'Calcs - Summer PMF'!$A$10:$J$210,10,FALSE)) ->  | H158: =IF(ISNA(VLOOKUP(F159,'Calcs - Winter PMF'!$A$10:$J$210,10,FALSE)),0,VLOOKUP(F159,'Calcs - Winter PMF'!$A$10:$J$210,10,FALSE)) -> 
A159: =ROUND(A158+Inputs!$F$27,5) -> 37.75 | B159: 0 | C159: 0 | D159: 0 | F159: 37.75 | G159: =IF(ISNA(VLOOKUP(F160,'Calcs - Summer PMF'!$A$10:$J$210,10,FALSE)),0,VLOOKUP(F160,'Calcs - Summer PMF'!$A$10:$J$210,10,FALSE)) ->  | H159: =IF(ISNA(VLOOKUP(F160,'Calcs - Winter PMF'!$A$10:$J$210,10,FALSE)),0,VLOOKUP(F160,'Calcs - Winter PMF'!$A$10:$J$210,10,FALSE)) -> 
A160: =ROUND(A159+Inputs!$F$27,5) -> 38 | B160: 0 | C160: 0 | D160: 0 | F160: 38 | G160: =IF(ISNA(VLOOKUP(F161,'Calcs - Summer PMF'!$A$10:$J$210,10,FALSE)),0,VLOOKUP(F161,'Calcs - Summer PMF'!$A$10:$J$210,10,FALSE)) ->  | H160: =IF(ISNA(VLOOKUP(F161,'Calcs - Winter PMF'!$A$10:$J$210,10,FALSE)),0,VLOOKUP(F161,'Calcs - Winter PMF'!$A$10:$J$210,10,FALSE)) -> 
A161: =ROUND(A160+Inputs!$F$27,5) -> 38.25 | B161: 0 | C161: 0 | D161: 0 | F161: 38.25 | G161: =IF(ISNA(VLOOKUP(F162,'Calcs - Summer PMF'!$A$10:$J$210,10,FALSE)),0,VLOOKUP(F162,'Calcs - Summer PMF'!$A$10:$J$210,10,FALSE)) ->  | H161: =IF(ISNA(VLOOKUP(F162,'Calcs - Winter PMF'!$A$10:$J$210,10,FALSE)),0,VLOOKUP(F162,'Calcs - Winter PMF'!$A$10:$J$210,10,FALSE)) -> 
A162: =ROUND(A161+Inputs!$F$27,5) -> 38.5 | B162: 0 | C162: 0 | D162: 0 | F162: 38.5 | G162: =IF(ISNA(VLOOKUP(F163,'Calcs - Summer PMF'!$A$10:$J$210,10,FALSE)),0,VLOOKUP(F163,'Calcs - Summer PMF'!$A$10:$J$210,10,FALSE)) ->  | H162: =IF(ISNA(VLOOKUP(F163,'Calcs - Winter PMF'!$A$10:$J$210,10,FALSE)),0,VLOOKUP(F163,'Calcs - Winter PMF'!$A$10:$J$210,10,FALSE)) -> 
A163: =ROUND(A162+Inputs!$F$27,5) -> 38.75 | B163: 0 | C163: 0 | D163: 0 | F163: 38.75 | G163: =IF(ISNA(VLOOKUP(F164,'Calcs - Summer PMF'!$A$10:$J$210,10,FALSE)),0,VLOOKUP(F164,'Calcs - Summer PMF'!$A$10:$J$210,10,FALSE)) ->  | H163: =IF(ISNA(VLOOKUP(F164,'Calcs - Winter PMF'!$A$10:$J$210,10,FALSE)),0,VLOOKUP(F164,'Calcs - Winter PMF'!$A$10:$J$210,10,FALSE)) -> 
A164: =ROUND(A163+Inputs!$F$27,5) -> 39 | B164: 0 | C164: 0 | D164: 0 | F164: 39 | G164: =IF(ISNA(VLOOKUP(F165,'Calcs - Summer PMF'!$A$10:$J$210,10,FALSE)),0,VLOOKUP(F165,'Calcs - Summer PMF'!$A$10:$J$210,10,FALSE)) ->  | H164: =IF(ISNA(VLOOKUP(F165,'Calcs - Winter PMF'!$A$10:$J$210,10,FALSE)),0,VLOOKUP(F165,'Calcs - Winter PMF'!$A$10:$J$210,10,FALSE)) -> 
A165: =ROUND(A164+Inputs!$F$27,5) -> 39.25 | B165: 0 | C165: 0 | D165: 0 | F165: 39.25 | G165: =IF(ISNA(VLOOKUP(F166,'Calcs - Summer PMF'!$A$10:$J$210,10,FALSE)),0,VLOOKUP(F166,'Calcs - Summer PMF'!$A$10:$J$210,10,FALSE)) ->  | H165: =IF(ISNA(VLOOKUP(F166,'Calcs - Winter PMF'!$A$10:$J$210,10,FALSE)),0,VLOOKUP(F166,'Calcs - Winter PMF'!$A$10:$J$210,10,FALSE)) -> 
A166: =ROUND(A165+Inputs!$F$27,5) -> 39.5 | B166: 0 | C166: 0 | D166: 0 | F166: 39.5 | G166: =IF(ISNA(VLOOKUP(F167,'Calcs - Summer PMF'!$A$10:$J$210,10,FALSE)),0,VLOOKUP(F167,'Calcs - Summer PMF'!$A$10:$J$210,10,FALSE)) ->  | H166: =IF(ISNA(VLOOKUP(F167,'Calcs - Winter PMF'!$A$10:$J$210,10,FALSE)),0,VLOOKUP(F167,'Calcs - Winter PMF'!$A$10:$J$210,10,FALSE)) -> 
A167: =ROUND(A166+Inputs!$F$27,5) -> 39.75 | B167: 0 | C167: 0 | D167: 0 | F167: 39.75 | G167: =IF(ISNA(VLOOKUP(F168,'Calcs - Summer PMF'!$A$10:$J$210,10,FALSE)),0,VLOOKUP(F168,'Calcs - Summer PMF'!$A$10:$J$210,10,FALSE)) ->  | H167: =IF(ISNA(VLOOKUP(F168,'Calcs - Winter PMF'!$A$10:$J$210,10,FALSE)),0,VLOOKUP(F168,'Calcs - Winter PMF'!$A$10:$J$210,10,FALSE)) -> 
A168: =ROUND(A167+Inputs!$F$27,5) -> 40 | B168: 0 | C168: 0 | D168: 0 | F168: 40 | G168: =IF(ISNA(VLOOKUP(F169,'Calcs - Summer PMF'!$A$10:$J$210,10,FALSE)),0,VLOOKUP(F169,'Calcs - Summer PMF'!$A$10:$J$210,10,FALSE)) ->  | H168: =IF(ISNA(VLOOKUP(F169,'Calcs - Winter PMF'!$A$10:$J$210,10,FALSE)),0,VLOOKUP(F169,'Calcs - Winter PMF'!$A$10:$J$210,10,FALSE)) -> 
A169: =ROUND(A168+Inputs!$F$27,5) -> 40.25 | B169: 0 | C169: 0 | D169: 0 | F169: 40.25 | G169: =IF(ISNA(VLOOKUP(F170,'Calcs - Summer PMF'!$A$10:$J$210,10,FALSE)),0,VLOOKUP(F170,'Calcs - Summer PMF'!$A$10:$J$210,10,FALSE)) ->  | H169: =IF(ISNA(VLOOKUP(F170,'Calcs - Winter PMF'!$A$10:$J$210,10,FALSE)),0,VLOOKUP(F170,'Calcs - Winter PMF'!$A$10:$J$210,10,FALSE)) -> 
A170: =ROUND(A169+Inputs!$F$27,5) -> 40.5 | B170: 0 | C170: 0 | D170: 0 | F170: 40.5 | G170: =IF(ISNA(VLOOKUP(F171,'Calcs - Summer PMF'!$A$10:$J$210,10,FALSE)),0,VLOOKUP(F171,'Calcs - Summer PMF'!$A$10:$J$210,10,FALSE)) ->  | H170: =IF(ISNA(VLOOKUP(F171,'Calcs - Winter PMF'!$A$10:$J$210,10,FALSE)),0,VLOOKUP(F171,'Calcs - Winter PMF'!$A$10:$J$210,10,FALSE)) -> 
A171: =ROUND(A170+Inputs!$F$27,5) -> 40.75 | B171: 0 | C171: 0 | D171: 0 | F171: 40.75 | G171: =IF(ISNA(VLOOKUP(F172,'Calcs - Summer PMF'!$A$10:$J$210,10,FALSE)),0,VLOOKUP(F172,'Calcs - Summer PMF'!$A$10:$J$210,10,FALSE)) -> 0 | H171: =IF(ISNA(VLOOKUP(F172,'Calcs - Winter PMF'!$A$10:$J$210,10,FALSE)),0,VLOOKUP(F172,'Calcs - Winter PMF'!$A$10:$J$210,10,FALSE)) -> 0
A172: =ROUND(A171+Inputs!$F$27,5) -> 41 | B172: 0 | C172: 0 | D172: 0 | F172: 41 | G172: =IF(ISNA(VLOOKUP(F173,'Calcs - Summer PMF'!$A$10:$J$210,10,FALSE)),0,VLOOKUP(F173,'Calcs - Summer PMF'!$A$10:$J$210,10,FALSE)) -> 0 | H172: =IF(ISNA(VLOOKUP(F173,'Calcs - Winter PMF'!$A$10:$J$210,10,FALSE)),0,VLOOKUP(F173,'Calcs - Winter PMF'!$A$10:$J$210,10,FALSE)) -> 0
A173: =ROUND(A172+Inputs!$F$27,5) -> 41.25 | B173: 0 | C173: 0 | D173: 0 | F173: 41.25 | G173: =IF(ISNA(VLOOKUP(F174,'Calcs - Summer PMF'!$A$10:$J$210,10,FALSE)),0,VLOOKUP(F174,'Calcs - Summer PMF'!$A$10:$J$210,10,FALSE)) -> 0 | H173: =IF(ISNA(VLOOKUP(F174,'Calcs - Winter PMF'!$A$10:$J$210,10,FALSE)),0,VLOOKUP(F174,'Calcs - Winter PMF'!$A$10:$J$210,10,FALSE)) -> 0
A174: =ROUND(A173+Inputs!$F$27,5) -> 41.5 | B174: 0 | C174: 0 | D174: 0 | F174: 41.5 | G174: =IF(ISNA(VLOOKUP(F175,'Calcs - Summer PMF'!$A$10:$J$210,10,FALSE)),0,VLOOKUP(F175,'Calcs - Summer PMF'!$A$10:$J$210,10,FALSE)) -> 0 | H174: =IF(ISNA(VLOOKUP(F175,'Calcs - Winter PMF'!$A$10:$J$210,10,FALSE)),0,VLOOKUP(F175,'Calcs - Winter PMF'!$A$10:$J$210,10,FALSE)) -> 0
A175: =ROUND(A174+Inputs!$F$27,5) -> 41.75 | B175: 0 | C175: 0 | D175: 0 | F175: 41.75 | G175: =IF(ISNA(VLOOKUP(F176,'Calcs - Summer PMF'!$A$10:$J$210,10,FALSE)),0,VLOOKUP(F176,'Calcs - Summer PMF'!$A$10:$J$210,10,FALSE)) -> 0 | H175: =IF(ISNA(VLOOKUP(F176,'Calcs - Winter PMF'!$A$10:$J$210,10,FALSE)),0,VLOOKUP(F176,'Calcs - Winter PMF'!$A$10:$J$210,10,FALSE)) -> 0
A176: =ROUND(A175+Inputs!$F$27,5) -> 42 | B176: 0 | C176: 0 | D176: 0 | F176: 42 | G176: =IF(ISNA(VLOOKUP(F177,'Calcs - Summer PMF'!$A$10:$J$210,10,FALSE)),0,VLOOKUP(F177,'Calcs - Summer PMF'!$A$10:$J$210,10,FALSE)) -> 0 | H176: =IF(ISNA(VLOOKUP(F177,'Calcs - Winter PMF'!$A$10:$J$210,10,FALSE)),0,VLOOKUP(F177,'Calcs - Winter PMF'!$A$10:$J$210,10,FALSE)) -> 0
A177: =ROUND(A176+Inputs!$F$27,5) -> 42.25 | B177: 0 | C177: 0 | D177: 0 | F177: 42.25 | G177: =IF(ISNA(VLOOKUP(F178,'Calcs - Summer PMF'!$A$10:$J$210,10,FALSE)),0,VLOOKUP(F178,'Calcs - Summer PMF'!$A$10:$J$210,10,FALSE)) -> 0 | H177: =IF(ISNA(VLOOKUP(F178,'Calcs - Winter PMF'!$A$10:$J$210,10,FALSE)),0,VLOOKUP(F178,'Calcs - Winter PMF'!$A$10:$J$210,10,FALSE)) -> 0
A178: =ROUND(A177+Inputs!$F$27,5) -> 42.5 | B178: 0 | C178: 0 | D178: 0 | F178: 42.5 | G178: =IF(ISNA(VLOOKUP(F179,'Calcs - Summer PMF'!$A$10:$J$210,10,FALSE)),0,VLOOKUP(F179,'Calcs - Summer PMF'!$A$10:$J$210,10,FALSE)) -> 0 | H178: =IF(ISNA(VLOOKUP(F179,'Calcs - Winter PMF'!$A$10:$J$210,10,FALSE)),0,VLOOKUP(F179,'Calcs - Winter PMF'!$A$10:$J$210,10,FALSE)) -> 0
A179: =ROUND(A178+Inputs!$F$27,5) -> 42.75 | B179: 0 | C179: 0 | D179: 0 | F179: 42.75 | G179: =IF(ISNA(VLOOKUP(F180,'Calcs - Summer PMF'!$A$10:$J$210,10,FALSE)),0,VLOOKUP(F180,'Calcs - Summer PMF'!$A$10:$J$210,10,FALSE)) -> 0 | H179: =IF(ISNA(VLOOKUP(F180,'Calcs - Winter PMF'!$A$10:$J$210,10,FALSE)),0,VLOOKUP(F180,'Calcs - Winter PMF'!$A$10:$J$210,10,FALSE)) -> 0
A180: =ROUND(A179+Inputs!$F$27,5) -> 43 | B180: 0 | C180: 0 | D180: 0 | F180: 43 | G180: =IF(ISNA(VLOOKUP(F181,'Calcs - Summer PMF'!$A$10:$J$210,10,FALSE)),0,VLOOKUP(F181,'Calcs - Summer PMF'!$A$10:$J$210,10,FALSE)) -> 0 | H180: =IF(ISNA(VLOOKUP(F181,'Calcs - Winter PMF'!$A$10:$J$210,10,FALSE)),0,VLOOKUP(F181,'Calcs - Winter PMF'!$A$10:$J$210,10,FALSE)) -> 0
A181: =ROUND(A180+Inputs!$F$27,5) -> 43.25 | B181: 0 | C181: 0 | D181: 0 | F181: 43.25 | G181: =IF(ISNA(VLOOKUP(F182,'Calcs - Summer PMF'!$A$10:$J$210,10,FALSE)),0,VLOOKUP(F182,'Calcs - Summer PMF'!$A$10:$J$210,10,FALSE)) -> 0 | H181: =IF(ISNA(VLOOKUP(F182,'Calcs - Winter PMF'!$A$10:$J$210,10,FALSE)),0,VLOOKUP(F182,'Calcs - Winter PMF'!$A$10:$J$210,10,FALSE)) -> 0
A182: =ROUND(A181+Inputs!$F$27,5) -> 43.5 | B182: 0 | C182: 0 | D182: 0 | F182: 43.5 | G182: =IF(ISNA(VLOOKUP(F183,'Calcs - Summer PMF'!$A$10:$J$210,10,FALSE)),0,VLOOKUP(F183,'Calcs - Summer PMF'!$A$10:$J$210,10,FALSE)) -> 0 | H182: =IF(ISNA(VLOOKUP(F183,'Calcs - Winter PMF'!$A$10:$J$210,10,FALSE)),0,VLOOKUP(F183,'Calcs - Winter PMF'!$A$10:$J$210,10,FALSE)) -> 0
A183: =ROUND(A182+Inputs!$F$27,5) -> 43.75 | B183: 0 | C183: 0 | D183: 0 | F183: 43.75 | G183: =IF(ISNA(VLOOKUP(F184,'Calcs - Summer PMF'!$A$10:$J$210,10,FALSE)),0,VLOOKUP(F184,'Calcs - Summer PMF'!$A$10:$J$210,10,FALSE)) -> 0 | H183: =IF(ISNA(VLOOKUP(F184,'Calcs - Winter PMF'!$A$10:$J$210,10,FALSE)),0,VLOOKUP(F184,'Calcs - Winter PMF'!$A$10:$J$210,10,FALSE)) -> 0
A184: =ROUND(A183+Inputs!$F$27,5) -> 44 | B184: 0 | C184: 0 | D184: 0 | F184: 44 | G184: =IF(ISNA(VLOOKUP(F185,'Calcs - Summer PMF'!$A$10:$J$210,10,FALSE)),0,VLOOKUP(F185,'Calcs - Summer PMF'!$A$10:$J$210,10,FALSE)) -> 0 | H184: =IF(ISNA(VLOOKUP(F185,'Calcs - Winter PMF'!$A$10:$J$210,10,FALSE)),0,VLOOKUP(F185,'Calcs - Winter PMF'!$A$10:$J$210,10,FALSE)) -> 0
A185: =ROUND(A184+Inputs!$F$27,5) -> 44.25 | B185: 0 | C185: 0 | D185: 0 | F185: 44.25 | G185: =IF(ISNA(VLOOKUP(F186,'Calcs - Summer PMF'!$A$10:$J$210,10,FALSE)),0,VLOOKUP(F186,'Calcs - Summer PMF'!$A$10:$J$210,10,FALSE)) -> 0 | H185: =IF(ISNA(VLOOKUP(F186,'Calcs - Winter PMF'!$A$10:$J$210,10,FALSE)),0,VLOOKUP(F186,'Calcs - Winter PMF'!$A$10:$J$210,10,FALSE)) -> 0
A186: =ROUND(A185+Inputs!$F$27,5) -> 44.5 | B186: 0 | C186: 0 | D186: 0 | F186: 44.5 | G186: =IF(ISNA(VLOOKUP(F187,'Calcs - Summer PMF'!$A$10:$J$210,10,FALSE)),0,VLOOKUP(F187,'Calcs - Summer PMF'!$A$10:$J$210,10,FALSE)) -> 0 | H186: =IF(ISNA(VLOOKUP(F187,'Calcs - Winter PMF'!$A$10:$J$210,10,FALSE)),0,VLOOKUP(F187,'Calcs - Winter PMF'!$A$10:$J$210,10,FALSE)) -> 0
A187: =ROUND(A186+Inputs!$F$27,5) -> 44.75 | B187: 0 | C187: 0 | D187: 0 | F187: 44.75 | G187: =IF(ISNA(VLOOKUP(F188,'Calcs - Summer PMF'!$A$10:$J$210,10,FALSE)),0,VLOOKUP(F188,'Calcs - Summer PMF'!$A$10:$J$210,10,FALSE)) -> 0 | H187: =IF(ISNA(VLOOKUP(F188,'Calcs - Winter PMF'!$A$10:$J$210,10,FALSE)),0,VLOOKUP(F188,'Calcs - Winter PMF'!$A$10:$J$210,10,FALSE)) -> 0
A188: =ROUND(A187+Inputs!$F$27,5) -> 45 | B188: 0 | C188: 0 | D188: 0 | F188: 45 | G188: =IF(ISNA(VLOOKUP(F189,'Calcs - Summer PMF'!$A$10:$J$210,10,FALSE)),0,VLOOKUP(F189,'Calcs - Summer PMF'!$A$10:$J$210,10,FALSE)) -> 0 | H188: =IF(ISNA(VLOOKUP(F189,'Calcs - Winter PMF'!$A$10:$J$210,10,FALSE)),0,VLOOKUP(F189,'Calcs - Winter PMF'!$A$10:$J$210,10,FALSE)) -> 0
A189: =ROUND(A188+Inputs!$F$27,5) -> 45.25 | B189: 0 | C189: 0 | D189: 0 | F189: 45.25 | G189: =IF(ISNA(VLOOKUP(F190,'Calcs - Summer PMF'!$A$10:$J$210,10,FALSE)),0,VLOOKUP(F190,'Calcs - Summer PMF'!$A$10:$J$210,10,FALSE)) -> 0 | H189: =IF(ISNA(VLOOKUP(F190,'Calcs - Winter PMF'!$A$10:$J$210,10,FALSE)),0,VLOOKUP(F190,'Calcs - Winter PMF'!$A$10:$J$210,10,FALSE)) -> 0
A190: =ROUND(A189+Inputs!$F$27,5) -> 45.5 | B190: 0 | C190: 0 | D190: 0 | F190: 45.5 | G190: =IF(ISNA(VLOOKUP(F191,'Calcs - Summer PMF'!$A$10:$J$210,10,FALSE)),0,VLOOKUP(F191,'Calcs - Summer PMF'!$A$10:$J$210,10,FALSE)) -> 0 | H190: =IF(ISNA(VLOOKUP(F191,'Calcs - Winter PMF'!$A$10:$J$210,10,FALSE)),0,VLOOKUP(F191,'Calcs - Winter PMF'!$A$10:$J$210,10,FALSE)) -> 0
A191: =ROUND(A190+Inputs!$F$27,5) -> 45.75 | B191: 0 | C191: 0 | D191: 0 | F191: 45.75 | G191: =IF(ISNA(VLOOKUP(F192,'Calcs - Summer PMF'!$A$10:$J$210,10,FALSE)),0,VLOOKUP(F192,'Calcs - Summer PMF'!$A$10:$J$210,10,FALSE)) -> 0 | H191: =IF(ISNA(VLOOKUP(F192,'Calcs - Winter PMF'!$A$10:$J$210,10,FALSE)),0,VLOOKUP(F192,'Calcs - Winter PMF'!$A$10:$J$210,10,FALSE)) -> 0
A192: =ROUND(A191+Inputs!$F$27,5) -> 46 | B192: 0 | C192: 0 | D192: 0 | F192: 46 | G192: =IF(ISNA(VLOOKUP(F193,'Calcs - Summer PMF'!$A$10:$J$210,10,FALSE)),0,VLOOKUP(F193,'Calcs - Summer PMF'!$A$10:$J$210,10,FALSE)) -> 0 | H192: =IF(ISNA(VLOOKUP(F193,'Calcs - Winter PMF'!$A$10:$J$210,10,FALSE)),0,VLOOKUP(F193,'Calcs - Winter PMF'!$A$10:$J$210,10,FALSE)) -> 0
A193: =ROUND(A192+Inputs!$F$27,5) -> 46.25 | B193: 0 | C193: 0 | D193: 0 | F193: 46.25 | G193: =IF(ISNA(VLOOKUP(F194,'Calcs - Summer PMF'!$A$10:$J$210,10,FALSE)),0,VLOOKUP(F194,'Calcs - Summer PMF'!$A$10:$J$210,10,FALSE)) -> 0 | H193: =IF(ISNA(VLOOKUP(F194,'Calcs - Winter PMF'!$A$10:$J$210,10,FALSE)),0,VLOOKUP(F194,'Calcs - Winter PMF'!$A$10:$J$210,10,FALSE)) -> 0
A194: =ROUND(A193+Inputs!$F$27,5) -> 46.5 | B194: 0 | C194: 0 | D194: 0 | F194: 46.5 | G194: =IF(ISNA(VLOOKUP(F195,'Calcs - Summer PMF'!$A$10:$J$210,10,FALSE)),0,VLOOKUP(F195,'Calcs - Summer PMF'!$A$10:$J$210,10,FALSE)) -> 0 | H194: =IF(ISNA(VLOOKUP(F195,'Calcs - Winter PMF'!$A$10:$J$210,10,FALSE)),0,VLOOKUP(F195,'Calcs - Winter PMF'!$A$10:$J$210,10,FALSE)) -> 0
A195: =ROUND(A194+Inputs!$F$27,5) -> 46.75 | B195: 0 | C195: 0 | D195: 0 | F195: 46.75 | G195: =IF(ISNA(VLOOKUP(F196,'Calcs - Summer PMF'!$A$10:$J$210,10,FALSE)),0,VLOOKUP(F196,'Calcs - Summer PMF'!$A$10:$J$210,10,FALSE)) -> 0 | H195: =IF(ISNA(VLOOKUP(F196,'Calcs - Winter PMF'!$A$10:$J$210,10,FALSE)),0,VLOOKUP(F196,'Calcs - Winter PMF'!$A$10:$J$210,10,FALSE)) -> 0
A196: =ROUND(A195+Inputs!$F$27,5) -> 47 | B196: 0 | C196: 0 | D196: 0 | F196: 47 | G196: =IF(ISNA(VLOOKUP(F197,'Calcs - Summer PMF'!$A$10:$J$210,10,FALSE)),0,VLOOKUP(F197,'Calcs - Summer PMF'!$A$10:$J$210,10,FALSE)) -> 0 | H196: =IF(ISNA(VLOOKUP(F197,'Calcs - Winter PMF'!$A$10:$J$210,10,FALSE)),0,VLOOKUP(F197,'Calcs - Winter PMF'!$A$10:$J$210,10,FALSE)) -> 0
A197: =ROUND(A196+Inputs!$F$27,5) -> 47.25 | B197: 0 | C197: 0 | D197: 0 | F197: 47.25 | G197: =IF(ISNA(VLOOKUP(F198,'Calcs - Summer PMF'!$A$10:$J$210,10,FALSE)),0,VLOOKUP(F198,'Calcs - Summer PMF'!$A$10:$J$210,10,FALSE)) -> 0 | H197: =IF(ISNA(VLOOKUP(F198,'Calcs - Winter PMF'!$A$10:$J$210,10,FALSE)),0,VLOOKUP(F198,'Calcs - Winter PMF'!$A$10:$J$210,10,FALSE)) -> 0
A198: =ROUND(A197+Inputs!$F$27,5) -> 47.5 | B198: 0 | C198: 0 | D198: 0 | F198: 47.5 | G198: =IF(ISNA(VLOOKUP(F199,'Calcs - Summer PMF'!$A$10:$J$210,10,FALSE)),0,VLOOKUP(F199,'Calcs - Summer PMF'!$A$10:$J$210,10,FALSE)) -> 0 | H198: =IF(ISNA(VLOOKUP(F199,'Calcs - Winter PMF'!$A$10:$J$210,10,FALSE)),0,VLOOKUP(F199,'Calcs - Winter PMF'!$A$10:$J$210,10,FALSE)) -> 0
A199: =ROUND(A198+Inputs!$F$27,5) -> 47.75 | B199: 0 | C199: 0 | D199: 0 | F199: 47.75 | G199: =IF(ISNA(VLOOKUP(F200,'Calcs - Summer PMF'!$A$10:$J$210,10,FALSE)),0,VLOOKUP(F200,'Calcs - Summer PMF'!$A$10:$J$210,10,FALSE)) -> 0 | H199: =IF(ISNA(VLOOKUP(F200,'Calcs - Winter PMF'!$A$10:$J$210,10,FALSE)),0,VLOOKUP(F200,'Calcs - Winter PMF'!$A$10:$J$210,10,FALSE)) -> 0
A200: =ROUND(A199+Inputs!$F$27,5) -> 48 | B200: 0 | C200: 0 | D200: 0 | F200: 48 | G200: =IF(ISNA(VLOOKUP(F201,'Calcs - Summer PMF'!$A$10:$J$210,10,FALSE)),0,VLOOKUP(F201,'Calcs - Summer PMF'!$A$10:$J$210,10,FALSE)) -> 0 | H200: =IF(ISNA(VLOOKUP(F201,'Calcs - Winter PMF'!$A$10:$J$210,10,FALSE)),0,VLOOKUP(F201,'Calcs - Winter PMF'!$A$10:$J$210,10,FALSE)) -> 0
A201: =ROUND(A200+Inputs!$F$27,5) -> 48.25 | B201: 0 | C201: 0 | D201: 0 | F201: =A201 -> 48.25 | G201: =IF(ISNA(VLOOKUP(F202,'Calcs - Summer PMF'!$A$10:$J$210,10,FALSE)),0,VLOOKUP(F202,'Calcs - Summer PMF'!$A$10:$J$210,10,FALSE)) -> 0 | H201: =IF(ISNA(VLOOKUP(F202,'Calcs - Winter PMF'!$A$10:$J$210,10,FALSE)),0,VLOOKUP(F202,'Calcs - Winter PMF'!$A$10:$J$210,10,FALSE)) -> 0
... 7 more rows

Sheet Hidden (hidden)
A1: Hidden tab for behind-the-scenes lists, temporary storage, etc | K1: Initialisation flag (deactivates the X-axis update routine when importing descriptors
K2: FALSE
A3: Allowable grid sources | D3: Yes/No
A4: GB | D4: Yes | K4: Error check flag (= TRUE if one or more data entry errors is detected, FALSE otherwise)
A5: NI | D5: No | K5: =IF(COUNTIF(Inputs!H9:H20,"=OK")+COUNTIF(Inputs!H26:H31,"=OK")=P5,FALSE,TRUE) -> FALSE | M5: # of "OK" flags required | P5: 18
A7: Time of peak of fluvial hydrographs (for setting the x-axis width in the results plot)
C9: Row of the peak | E9: Equivalent time | G9: Recommended max-x-axis setting | K9: Row number on the Results tab where this timestep occurs
A10: Summer Event | C10: =MATCH(Results!G3,Results!G8:G208,0) ->  | E10: =INDIRECT("Results!F"&(C10+7)) ->  | F10: hrs | G10: =MAX(E10:E11)*2+10*Inputs!F27 ->  | H10: hours | K10: =MATCH(G10,Results!A8:A208,0)+7 -> 
A11: Winter Event | C11: =MATCH(Results!H3,Results!H8:H208,0) ->  | E11: =INDIRECT("Results!F"&(C11+7)) ->  | F11: hrs
A13: Plot filtering list
A14: Summer only
A15: Winter only
A16: Summer and Winter
A18: Protection password
A19: PMFmethod

Sheet Calcs - Snow (hidden)
A1: Snowmelt calculation for PMF
A3: Winter PMP characteristics, transferred from Results sheet
A4: PMP duration (hours) | B4: =Inputs!F26 -> 5.75
A5: PMP depth (mm) | B5: =Results!C3 -> 
A6: Antecedent rain duration (hours) | B6: =2*B4 -> 11.5
A7: Antecedent depth (mm) | B7: =Results!C4 -> 
A8: 24-hour melt rate ignoring rain for 5-year RP from Hough & Hollis | B8: =IF(-3.8 + 0.083*Inputs!F12 + 0.00187*(Inputs!F10/100)<0,0,-3.8 + 0.083*Inputs!F12 + 0.00187*(Inputs!F10/100)) -> 25.199103 | C8: Regression model based on catchment northing, strictly speaking only valid in mainland Great Britain (only one station datapoint available in Northern Ireland).
A9: Allowance for heat energy from incoming rain
A10: Additional 24-hour melt due to energy from PMP storm rain (mm) | B10: =0.0125*B5*10*(24/B4) ->  | C10: Assumes a temperature of 10 degrees C
A11: Additional 24-hour melt due to energy from antecedent rain (mm) | B11: =0.0125*B7*10*(24/B6) ->  | C11: Assumes a temperature of 10 degrees C
A12: Checking for available snow depth
A13: 100-year melt rate during PMP storm (mm/day) | B13: =B38+B10 -> 
A14: 100-year melt rate during antecedent period (mm/day) | B14: =B38+B11 -> 
A15: Enough snow depth to sustain melt during PMP storm? | B15: =IF(B13*B4/24<=Inputs!E31,"Yes","No") -> 
A16: Enough snow depth to sustain melt during antecedent period? | B16: =IF((B13*B4/24 + B14*B6/24)<=Inputs!E31,"Yes","No") -> 
A17: Results to be used in PMF calculation
A18: Total snowmelt during PMP storm (MELTwet) (mm) | B18: =IF(B15="Yes",B13*B4/24,Inputs!E31) ->  | C18: Added to the PMP rainfall depth
A19: Duration of snowmelt during PMP storm (hours) | B19: =IF(B15="Yes",B4,B18/(B13/24)) ->  | C19: If not enough snow to sustain melt for entire storm, melt is distributed evenly over this duration, centred on the middle of the storm
A20: Snowmelt per time step (mm) | B20: =B18*Inputs!F27/B19 -> 
A21: Total snowmelt during antecedent period (MELTweta) (mm) | B21: =IF(B16="Yes",B14*B6/24,Inputs!E31-B18) -> 
A22: Duration of snowmelt during antecedent period (hours) | B22: =IF(B16="Yes",B6,(Inputs!E31-B18)/(B14/24)) -> 
A24: Conversion to 100-year return period
A25: Gumbel parameters of a representative climate station
A26: u | B26: =IF(Inputs!D8="GB",VLOOKUP('GEV params'!$B$28,'GEV params'!$B$4:$H$27,5,FALSE),'GEV params'!$F$31) -> 17.35 | C26: Fixed a bug in V2.1, previous versions had incorrect cell references in this block for Northern Ireland cases
A27: a | B27: =IF(Inputs!D8="GB",VLOOKUP('GEV params'!$B$28,'GEV params'!$B$4:$H$27,6,FALSE),'GEV params'!$G$31) -> 7.33
A28: p (probability of no snow in a year for that duration) | B28: =IF(Inputs!D8="GB",VLOOKUP('GEV params'!$B$28,'GEV params'!$B$4:$H$27,7,FALSE),'GEV params'!$H$31) -> 0
A29: Climate station used in calculations (closest to catchment centroid) | B29: =IF(Inputs!D8="GB",VLOOKUP('GEV params'!$B$28,'GEV params'!$B$4:$H$27,2,FALSE),'GEV params'!$C$31) -> Wilsden
A31: Calculating ratio of 100-year to 5-year
A32: T | B32: 5 | C32: 100
A33: F'(x) | B33: =1-1/B32 -> 0.8 | C33: =1-1/C32 -> 0.99
A34: F(x) | B34: =(B33-$B$28)/(1-$B$28) -> 0.8 | C34: =(C33-$B$28)/(1-$B$28) -> 0.99
A35: y'(x) | B35: =-LN(-LN(B34)) -> 1.499939987 | C35: =-LN(-LN(C34)) -> 4.600149227
A36: x | B36: =$B26+$B27*B35 -> 28.3445601 | C36: =$B26+$B27*C35 -> 51.06909383
A37: Ratio of 100-year to 5-year | B37: =C36/B36 -> 1.801724692
A38: 24-hour melt rate ignoring rain for 100-year RP (mm) | B38: =B37*B8 -> 45.4018461

Sheet GEV params (hidden)
A1: GEV snowmelt distribution parameters at hourly and daily stations from Hough and Hollis (1997)
A2: Station type | B2: Distance to catchment centroid (km) | C2: Station_Name | D2: X | E2: Y | F2: 24_u | G2: 24_alpha | H2: 24_p
B3: Stations in GB
A4: Hourly | B4: =SQRT((D4-Inputs!$F$9)^2+('GEV params'!E4-Inputs!$F$10)^2)/1000 -> 705.3531761 | C4: Lerwick | D4: 445300 | E4: 1139700 | F4: 9.65 | G4: 7 | H4: 0
A5: Hourly | B5: =SQRT((D5-Inputs!$F$9)^2+('GEV params'!E5-Inputs!$F$10)^2)/1000 -> 518.0714953 | C5: Wick | D5: 336400 | E5: 952200 | F5: 9.77 | G5: 7.1 | H5: 0.08
A6: Hourly | B6: =SQRT((D6-Inputs!$F$9)^2+('GEV params'!E6-Inputs!$F$10)^2)/1000 -> 552.1070677 | C6: Stornaway | D6: 146400 | E6: 933200 | F6: 6.82 | G6: 7.09 | H6: 0.06
A7: Hourly | B7: =SQRT((D7-Inputs!$F$9)^2+('GEV params'!E7-Inputs!$F$10)^2)/1000 -> 390.1834961 | C7: Aveimore | D7: 289600 | E7: 814300 | F7: 16.59 | G7: 12.53 | H7: 0
A8: Hourly | B8: =SQRT((D8-Inputs!$F$9)^2+('GEV params'!E8-Inputs!$F$10)^2)/1000 -> 269.1909014 | C8: Abbotsinch | D8: 248000 | E8: 666700 | F8: 4.82 | G8: 4.09 | H8: 0.22
A9: Hourly | B9: =SQRT((D9-Inputs!$F$9)^2+('GEV params'!E9-Inputs!$F$10)^2)/1000 -> 177.9538295 | C9: Eskdalemuir | D9: 323500 | E9: 602600 | F9: 11.69 | G9: 3.95 | H9: 0
A10: Hourly | B10: =SQRT((D10-Inputs!$F$9)^2+('GEV params'!E10-Inputs!$F$10)^2)/1000 -> 67.56840546 | C10: Leeming/Dishforth | D10: 430500 | E10: 489100 | F10: 5.78 | G10: 5.43 | H10: 0.11
A11: Hourly | B11: =SQRT((D11-Inputs!$F$9)^2+('GEV params'!E11-Inputs!$F$10)^2)/1000 -> 38.39414299 | C11: Manchester | D11: 383900 | E11: 398500 | F11: 2.56 | G11: 3.32 | H11: 0.39
A12: Hourly | B12: =SQRT((D12-Inputs!$F$9)^2+('GEV params'!E12-Inputs!$F$10)^2)/1000 -> 131.9300838 | C12: Waddington | D12: 498800 | E12: 365300 | F12: 4.34 | G12: 3.14 | H12: 0.19
A13: Hourly | B13: =SQRT((D13-Inputs!$F$9)^2+('GEV params'!E13-Inputs!$F$10)^2)/1000 -> 155.2926264 | C13: Elmdon | D13: 416700 | E13: 284100 | F13: 3.85 | G13: 4.1 | H13: 0.25
A14: Hourly | B14: =SQRT((D14-Inputs!$F$9)^2+('GEV params'!E14-Inputs!$F$10)^2)/1000 -> 257.9204354 | C14: Honington/Mildenhall | D14: 588800 | E14: 275000 | F14: 3.64 | G14: 3.85 | H14: 0.22
A15: Hourly | B15: =SQRT((D15-Inputs!$F$9)^2+('GEV params'!E15-Inputs!$F$10)^2)/1000 -> 365.1637898 | C15: Manston | D15: 633500 | E15: 166500 | F15: 3.46 | G15: 2.74 | H15: 0.41
A16: Hourly | B16: =SQRT((D16-Inputs!$F$9)^2+('GEV params'!E16-Inputs!$F$10)^2)/1000 -> 297.8392516 | C16: Boscombe Down | D16: 417200 | E16: 140300 | F16: 3.59 | G16: 4.64 | H16: 0.5
A17: Hourly | B17: =SQRT((D17-Inputs!$F$9)^2+('GEV params'!E17-Inputs!$F$10)^2)/1000 -> 408.2563555 | C17: Plymouth | D17: 249200 | E17: 52700 | F17: 2.34 | G17: 4.84 | H17: 0.54
A18: Hourly | B18: =SQRT((D18-Inputs!$F$9)^2+('GEV params'!E18-Inputs!$F$10)^2)/1000 -> 269.7384433 | C18: Cardiff | D18: 318200 | E18: 176100 | F18: 5.55 | G18: 8.75 | H18: 0.58
A19: Hourly | B19: =SQRT((D19-Inputs!$F$9)^2+('GEV params'!E19-Inputs!$F$10)^2)/1000 -> 168.3874645 | C19: Valley | D19: 230900 | E19: 375700 | F19: 3.62 | G19: 3.52 | H19: 0.64
A20: Daily | B20: =SQRT((D20-Inputs!$F$9)^2+('GEV params'!E20-Inputs!$F$10)^2)/1000 -> 369.7869368 | C20: Dalwhinnie | D20: 263448 | E20: 784922 | F20: 21.11 | G20: 7.44 | H20: 0
A21: Daily | B21: =SQRT((D21-Inputs!$F$9)^2+('GEV params'!E21-Inputs!$F$10)^2)/1000 -> 93.65846835 | C21: Widdybank Fell | D21: 382636 | E21: 530203 | F21: 41.45 | G21: 18.96 | H21: 0
A22: Daily | B22: =SQRT((D22-Inputs!$F$9)^2+('GEV params'!E22-Inputs!$F$10)^2)/1000 -> 180.8607903 | C22: Moel Cynnedd | D22: 284652 | E22: 288164 | F22: 13.9 | G22: 1.48 | H22: 0
A23: Daily | B23: =SQRT((D23-Inputs!$F$9)^2+('GEV params'!E23-Inputs!$F$10)^2)/1000 -> 158.8724464 | C23: Redesdale | D23: 383400 | E23: 595500 | F23: 16.86 | G23: 5.69 | H23: 0
A24: Daily | B24: =SQRT((D24-Inputs!$F$9)^2+('GEV params'!E24-Inputs!$F$10)^2)/1000 -> 30.44927283 | C24: Malham Tarn | D24: 389400 | E24: 467100 | F24: 24.34 | G24: 15.53 | H24: 0
A25: Daily | B25: =SQRT((D25-Inputs!$F$9)^2+('GEV params'!E25-Inputs!$F$10)^2)/1000 -> 195.9545637 | C25: Cwmystwyth | D25: 277300 | E25: 274900 | F25: 13.61 | G25: 6.77 | H25: 0.17
A26: Daily | B26: =SQRT((D26-Inputs!$F$9)^2+('GEV params'!E26-Inputs!$F$10)^2)/1000 -> 96.86294966 | C26: Moor House | D26: 375800 | E26: 532800 | F26: 31.42 | G26: 9.27 | H26: 0
A27: Daily | B27: =SQRT((D27-Inputs!$F$9)^2+('GEV params'!E27-Inputs!$F$10)^2)/1000 -> 21.45322549 | C27: Wilsden | D27: 409304 | E27: 436318 | F27: 17.35 | G27: 7.33 | H27: 0
B28: =MIN(B4:B27) -> 21.45322549 | C28: Minimum distance
B30: Stations in NI (only one so use this for all sites in NI)
C31: Aldergrove | D31: 314700 | E31: 379800 | F31: 5.05 | G31: 4.12 | H31: 0.31

Sheet Calcs - PMP (hidden)
A1: Calculations - rain depths | C1: Variation of PMP with duration and SAAR | M1: Seasonal variation of PMP
C2: Maximum of SAAR range | D2: 800 | E2: 1000 | F2: 1400 | G2: 2000 | H2: 2800 | I2: 4000 | J2: % for provided SAAR | M2: 1400 | N2: 2000 | O2: 9999 | P2: % for provided SAAR | S2: 600 | T2: 800 | U2: 1000 | V2: 1400 | W2: 2000 | X2: 9999 | Y2: % for provided SAAR
B3: From tables in FEH (Vol 4, Table 4.1) | C3: Duration (hours) | K3: All-year PMP (mm) | L3: log D | M3: Summer as % of all-year | Q3: Summer PMP (mm) | R3: log D | S3: Winter as % of all-year | Z3: Winter PMP (mm) | AA3: log D
A4: 5min | B4: % of EM-2h | C4: =5/60 -> 0.08333333333 | D4: 0.23 | E4: 0.23 | F4: 0.23 | G4: 0.22 | H4: 0.22 | I4: 0.21 | J4: =IF(Inputs!$F$16<D$2,D4,IF(Inputs!$F$16<E$2,E4,IF(Inputs!$F$16<F$2,F4,IF(Inputs!$F$16<G$2,G4,IF(Inputs!$F$16<H$2,H4,I4))))) -> 0.23 | K4: =J4*Inputs!$E$28 -> 41.4 | L4: =LOG10(C4) -> -1.079181246 | M4: 1 | N4: 1 | O4: 1 | P4: =IF(Inputs!$F$16<M$2,M4,IF(Inputs!$F$16<N$2,N4,IF(Inputs!$F$16<O$2,O4))) -> 1 | Q4: =P4*K4 -> 41.4 | R4: =LOG10(C4) -> -1.079181246 | S4: 0.21 | T4: 0.24 | U4: 0.3 | V4: 0.4 | W4: 0.47 | X4: 0.55 | Y4: =IF(Inputs!$F$16<S$2,S4,IF(Inputs!$F$16<T$2,T4,IF(Inputs!$F$16<U$2,U4,IF(Inputs!$F$16<V$2,V4,IF(Inputs!$F$16<W$2,W4,X4))))) -> 0.4 | Z4: =Y4*K4 -> 16.56 | AA4: =L4 -> -1.079181246
A5: 10min | B5: % of EM-2h | C5: =1/6 -> 0.1666666667 | D5: 0.36 | E5: 0.36 | F5: 0.36 | G5: 0.34 | H5: 0.34 | I5: 0.32 | J5: =IF(Inputs!$F$16<D$2,D5,IF(Inputs!$F$16<E$2,E5,IF(Inputs!$F$16<F$2,F5,IF(Inputs!$F$16<G$2,G5,IF(Inputs!$F$16<H$2,H5,I5))))) -> 0.36 | K5: =J5*Inputs!$E$28 -> 64.8 | L5: -0.7781512504 | M5: 1 | N5: 1 | O5: 1 | P5: =IF(Inputs!$F$16<M$2,M5,IF(Inputs!$F$16<N$2,N5,IF(Inputs!$F$16<O$2,O5))) -> 1 | Q5: 64.8 | R5: -0.7781512504 | S5: 0.24 | T5: 0.27 | U5: 0.35 | V5: 0.47 | W5: 0.55 | X5: 0.61 | Y5: =IF(Inputs!$F$16<S$2,S5,IF(Inputs!$F$16<T$2,T5,IF(Inputs!$F$16<U$2,U5,IF(Inputs!$F$16<V$2,V5,IF(Inputs!$F$16<W$2,W5,X5))))) -> 0.47 | Z5: =Y5*K5 -> 30.456 | AA5: -0.7781512504
B6: % of EM-2h | C6: 0.25 | D6: 0.47 | E6: 0.47 | F6: 0.47 | G6: 0.45 | H6: 0.45 | I6: 0.43 | J6: =IF(Inputs!$F$16<D$2,D6,IF(Inputs!$F$16<E$2,E6,IF(Inputs!$F$16<F$2,F6,IF(Inputs!$F$16<G$2,G6,IF(Inputs!$F$16<H$2,H6,I6))))) -> 0.47 | K6: =J6*Inputs!$E$28 -> 84.6 | L6: =LOG10(C6) -> -0.6020599913 | M6: 1 | N6: 1 | O6: 1 | P6: =IF(Inputs!$F$16<M$2,M6,IF(Inputs!$F$16<N$2,N6,IF(Inputs!$F$16<O$2,O6))) -> 1 | Q6: 84.6 | R6: =LOG10(C6) -> -0.6020599913 | S6: 0.26 | T6: 0.3 | U6: 0.38 | V6: 0.5 | W6: 0.59 | X6: 0.66 | Y6: =IF(Inputs!$F$16<S$2,S6,IF(Inputs!$F$16<T$2,T6,IF(Inputs!$F$16<U$2,U6,IF(Inputs!$F$16<V$2,V6,IF(Inputs!$F$16<W$2,W6,X6))))) -> 0.5 | Z6: =Y6*K6 -> 42.3 | AA6: =L6 -> -0.6020599913
B7: % of EM-2h | C7: 0.5 | D7: 0.65 | E7: 0.65 | F7: 0.65 | G7: 0.62 | H7: 0.62 | I7: 0.59 | J7: =IF(Inputs!$F$16<D$2,D7,IF(Inputs!$F$16<E$2,E7,IF(Inputs!$F$16<F$2,F7,IF(Inputs!$F$16<G$2,G7,IF(Inputs!$F$16<H$2,H7,I7))))) -> 0.65 | K7: =J7*Inputs!$E$28 -> 117 | L7: =LOG10(C7) -> -0.3010299957 | M7: 1 | N7: 1 | O7: 1 | P7: =IF(Inputs!$F$16<M$2,M7,IF(Inputs!$F$16<N$2,N7,IF(Inputs!$F$16<O$2,O7))) -> 1 | Q7: 117 | R7: =LOG10(C7) -> -0.3010299957 | S7: 0.3 | T7: 0.33 | U7: 0.42 | V7: 0.57 | W7: 0.67 | X7: 0.74 | Y7: =IF(Inputs!$F$16<S$2,S7,IF(Inputs!$F$16<T$2,T7,IF(Inputs!$F$16<U$2,U7,IF(Inputs!$F$16<V$2,V7,IF(Inputs!$F$16<W$2,W7,X7))))) -> 0.57 | Z7: =Y7*K7 -> 66.69 | AA7: =L7 -> -0.3010299957
B8: % of EM-2h | C8: 1 | D8: 0.83 | E8: 0.83 | F8: 0.83 | G8: 0.79 | H8: 0.79 | I8: 0.75 | J8: =IF(Inputs!$F$16<D$2,D8,IF(Inputs!$F$16<E$2,E8,IF(Inputs!$F$16<F$2,F8,IF(Inputs!$F$16<G$2,G8,IF(Inputs!$F$16<H$2,H8,I8))))) -> 0.83 | K8: =J8*Inputs!$E$28 -> 149.4 | L8: 0 | M8: 1 | N8: 1 | O8: 1 | P8: =IF(Inputs!$F$16<M$2,M8,IF(Inputs!$F$16<N$2,N8,IF(Inputs!$F$16<O$2,O8))) -> 1 | Q8: 149.4 | R8: =LOG10(C8) -> 0 | S8: 0.33 | T8: 0.37 | U8: 0.47 | V8: 0.63 | W8: 0.74 | X8: 0.82 | Y8: =IF(Inputs!$F$16<S$2,S8,IF(Inputs!$F$16<T$2,T8,IF(Inputs!$F$16<U$2,U8,IF(Inputs!$F$16<V$2,V8,IF(Inputs!$F$16<W$2,W8,X8))))) -> 0.63 | Z8: =Y8*K8 -> 94.122 | AA8: 0
C9: 2 | D9: n/a | E9: n/a | F9: n/a | G9: n/a | H9: n/a | I9: n/a | J9: n/a | K9: =Inputs!E28 -> 180 | L9: 0.3010299957 | M9: 1 | N9: 1 | O9: 1 | P9: =IF(Inputs!$F$16<M$2,M9,IF(Inputs!$F$16<N$2,N9,IF(Inputs!$F$16<O$2,O9))) -> 1 | Q9: 180 | R9: 0.3010299957 | S9: 0.38 | T9: 0.42 | U9: 0.5 | V9: 0.69 | W9: 0.86 | X9: 0.9 | Y9: =IF(Inputs!$F$16<S$2,S9,IF(Inputs!$F$16<T$2,T9,IF(Inputs!$F$16<U$2,U9,IF(Inputs!$F$16<V$2,V9,IF(Inputs!$F$16<W$2,W9,X9))))) -> 0.69 | Z9: =Y9*K9 -> 124.2 | AA9: 0.3010299957
C10: 24 | D10: n/a | E10: n/a | F10: n/a | G10: n/a | H10: n/a | I10: n/a | J10: n/a | K10: =Inputs!E29 -> 290 | L10: 1.380211242 | M10: 1 | N10: 1 | O10: 0.92 | P10: =IF(Inputs!$F$16<M$2,M10,IF(Inputs!$F$16<N$2,N10,IF(Inputs!$F$16<O$2,O10))) -> 1 | Q10: 290 | R10: 1.380211242 | S10: 0.55 | T10: 0.62 | U10: 0.7 | V10: 0.79 | W10: 0.99 | X10: 1 | Y10: =IF(Inputs!$F$16<S$2,S10,IF(Inputs!$F$16<T$2,T10,IF(Inputs!$F$16<U$2,U10,IF(Inputs!$F$16<V$2,V10,IF(Inputs!$F$16<W$2,W10,X10))))) -> 0.79 | Z10: 229.1 | AA10: 1.380211242
B11: % of EM-24h | C11: 48 | D11: 1.1 | E11: 1.1 | F11: 1.11 | G11: 1.12 | H11: 1.14 | I11: 1.2 | J11: =IF(Inputs!$F$16<D$2,D11,IF(Inputs!$F$16<E$2,E11,IF(Inputs!$F$16<F$2,F11,IF(Inputs!$F$16<G$2,G11,IF(Inputs!$F$16<H$2,H11,I11))))) -> 1.11 | K11: =J11*Inputs!$E$29 -> 321.9 | L11: 1.681241237 | M11: 1 | N11: 0.9 | O11: 0.84 | P11: =IF(Inputs!$F$16<M$2,M11,IF(Inputs!$F$16<N$2,N11,IF(Inputs!$F$16<O$2,O11))) -> 1 | Q11: =P11*K11 -> 321.9 | R11: 1.681241237 | S11: 0.63 | T11: 0.69 | U11: 0.78 | V11: 0.85 | W11: 1 | X11: 1 | Y11: =IF(Inputs!$F$16<S$2,S11,IF(Inputs!$F$16<T$2,T11,IF(Inputs!$F$16<U$2,U11,IF(Inputs!$F$16<V$2,V11,IF(Inputs!$F$16<W$2,W11,X11))))) -> 0.85 | Z11: 273.615 | AA11: 1.681241237
B12: % of EM-24h | C12: 72 | D12: 1.13 | E12: 1.14 | F12: 1.16 | G12: 1.16 | H12: 1.23 | I12: 1.31 | J12: =IF(Inputs!$F$16<D$2,D12,IF(Inputs!$F$16<E$2,E12,IF(Inputs!$F$16<F$2,F12,IF(Inputs!$F$16<G$2,G12,IF(Inputs!$F$16<H$2,H12,I12))))) -> 1.16 | K12: =J12*Inputs!$E$29 -> 336.4 | L12: 1.857332496 | M12: 1 | N12: =(N11+N13)/2 -> 0.91 | O12: =(O11+O13)/2 -> 0.86 | P12: =IF(Inputs!$F$16<M$2,M12,IF(Inputs!$F$16<N$2,N12,IF(Inputs!$F$16<O$2,O12))) -> 1 | Q12: 336.4 | R12: 1.857332496 | S12: =(S11+S13)/2 -> 0.635 | T12: 0.71 | U12: 0.81 | V12: 0.885 | W12: 1 | X12: 1 | Y12: =IF(Inputs!$F$16<S$2,S12,IF(Inputs!$F$16<T$2,T12,IF(Inputs!$F$16<U$2,U12,IF(Inputs!$F$16<V$2,V12,IF(Inputs!$F$16<W$2,W12,X12))))) -> 0.885 | Z12: 297.714 | AA12: 1.857332496
B13: % of EM-24h | C13: 96 | D13: 1.17 | E13: 1.18 | F13: 1.2 | G13: 1.24 | H13: 1.32 | I13: 1.42 | J13: =IF(Inputs!$F$16<D$2,D13,IF(Inputs!$F$16<E$2,E13,IF(Inputs!$F$16<F$2,F13,IF(Inputs!$F$16<G$2,G13,IF(Inputs!$F$16<H$2,H13,I13))))) -> 1.2 | K13: =J13*Inputs!$E$29 -> 348 | L13: 1.982271233 | M13: 1 | N13: 0.92 | O13: 0.88 | P13: =IF(Inputs!$F$16<M$2,M13,IF(Inputs!$F$16<N$2,N13,IF(Inputs!$F$16<O$2,O13))) -> 1 | Q13: 348 | R13: 1.982271233 | S13: 0.64 | T13: 0.73 | U13: 0.84 | V13: 0.92 | W13: 1 | X13: 1 | Y13: =IF(Inputs!$F$16<S$2,S13,IF(Inputs!$F$16<T$2,T13,IF(Inputs!$F$16<U$2,U13,IF(Inputs!$F$16<V$2,V13,IF(Inputs!$F$16<W$2,W13,X13))))) -> 0.92 | Z13: =Y13*K13 -> 320.16 | AA13: 1.982271233
B14: % of EM-25day | C14: 192 | D14: 0.8 | E14: 0.76 | F14: 0.71 | G14: 0.68 | H14: 0.65 | I14: 0.62 | J14: =IF(Inputs!$F$16<D$2,D14,IF(Inputs!$F$16<E$2,E14,IF(Inputs!$F$16<F$2,F14,IF(Inputs!$F$16<G$2,G14,IF(Inputs!$F$16<H$2,H14,I14))))) -> 0.71 | K14: =J14*Inputs!$E$30 -> 284 | L14: 2.283301229 | M14: 1 | N14: 0.89 | O14: 0.83 | P14: =IF(Inputs!$F$16<M$2,M14,IF(Inputs!$F$16<N$2,N14,IF(Inputs!$F$16<O$2,O14))) -> 1 | Q14: 284 | R14: 2.283301229 | S14: 0.67 | T14: 0.8 | U14: 0.91 | V14: 0.96 | W14: 1 | X14: 1 | Y14: =IF(Inputs!$F$16<S$2,S14,IF(Inputs!$F$16<T$2,T14,IF(Inputs!$F$16<U$2,U14,IF(Inputs!$F$16<V$2,V14,IF(Inputs!$F$16<W$2,W14,X14))))) -> 0.96 | Z14: 272.64 | AA14: 2.283301229
A16: New in V2.1 | B16: Area for ARF calc | C16: =Inputs!F32 -> 178.6825 | F16: a parameter | G16: =IF($C$16<20, 0.4-0.0208*LN(4.6-LN($C$16)),IF($C$16<500,0.4-0.00382*(4.6-LN($C$16))^2,0.4-0.0208*LN(LN($C$16)-4.6))) -> 0.3986899706 | H16: Altered in V2.1 for manual storm area update
F17: b parameter | G17: =IF($C$16<100,0.0394*$C$16^0.354, IF($C$16<1000,0.0627*$C$16^0.254, 0.105*$C$16^0.18)) -> 0.2340433867 | H17: Altered in V2.1 for manual storm area update
C18: Interpolation | E18: Point rainfalls (mm) | H18: Catchment rainfalls (mm)
C19: Duration | D19: log D | E19: Summer PMP | F19: Winter PMP | G19: ARF | H19: Summer PMP | I19: Winter PMP
B20: Storm duration | C20: =Inputs!F26 -> 5.75 | D20: =LOG10(C20) -> 0.7596678447 | E20: =interp(D20,Q$4:R$14) ->  | F20: =interp(D20,Z$4:AA$14) ->  | G20: =1-$G$17*$C20^-$G$16 -> 0.8834735748 | H20: =E20*$G20 ->  | I20: =F20*$G20 -> 
B21: 5x storm duration | C21: =5*C20 -> 28.75 | D21: =LOG10(C21) -> 1.458637849 | E21: =interp(D21,Q$4:R$14) ->  | F21: =interp(D21,Z$4:AA$14) ->  | G21: =1-$G$17*$C21^-$G$16 -> 0.9386588247 | H21: =E21*$G21 ->  | I21: =F21*$G21 -> 
B22: Antecedent period | E22: =0.5*(E21-E20) ->  | F22: =0.5*(F21-F20) ->  | H22: =0.5*(H21-H20) ->  | I22: =0.5*(I21-I20) -> 
A24: Calculations - hyetograph | J24: Half of difference between successive durations
A25: Row | B25: Multiplier of time step | C25: Duration (hr) centred on peak of storm | D25: log D | E25: Summer point PMP | F25: Winter point PMP | G25: ARF | H25: Summer catchment PMP | I25: Winter catchment PMP | J25: Summer catchment PMP | K25: Winter catchment PMP
A26: 0 | B26: =A26*2+1 -> 1 | C26: =IF(B26*Inputs!$F$27>Inputs!$F$26,"-",B26*Inputs!$F$27) -> 0.25 | D26: =IF(C26="-","-",LOG10(C26)) -> -0.6020599913 | E26: =IF(C26="-","-",interp(D26,Q$4:R$14)) ->  | F26: =IF(C26="-","-",interp(D26,Z$4:AA$14)) ->  | G26: =IF(C26="-","-",1-$G$17*$C26^-$G$16) -> 0.593246167 | H26: =IF(C26="-","-",E26*$G26) ->  | I26: =IF(C26="-","-",F26*$G26) ->  | J26: =H26 ->  | K26: =I26 -> 
A27: 1 | B27: =A27*2+1 -> 3 | C27: =IF(B27*Inputs!$F$27>Inputs!$F$26,"-",B27*Inputs!$F$27) -> 0.75 | D27: -0.1249387366 | E27: =IF(C27="-","-",interp(D27,Q$4:R$14)) ->  | F27: =IF(C27="-","-",interp(D27,Z$4:AA$14)) ->  | G27: =IF(C27="-","-",1-$G$17*$C27^-$G$16) -> 0.7375127607 | H27: =IF(C27="-","-",E27*$G27) ->  | I27: =IF(C27="-","-",F27*$G27) ->  | J27: =IF($C27="-","-",0.5*(H27-H26)) ->  | K27: =IF($C27="-","-",0.5*(I27-I26)) -> 
A28: 2 | B28: 5 | C28: =IF(B28*Inputs!$F$27>Inputs!$F$26,"-",B28*Inputs!$F$27) -> 1.25 | D28: 0.09691001301 | E28: =IF(C28="-","-",interp(D28,Q$4:R$14)) ->  | F28: =IF(C28="-","-",interp(D28,Z$4:AA$14)) ->  | G28: =IF(C28="-","-",1-$G$17*$C28^-$G$16) -> 0.7858789701 | I28: =IF(C28="-","-",F28*$G28) ->  | J28: =IF($C28="-","-",0.5*(H28-H27)) ->  | K28: =IF($C28="-","-",0.5*(I28-I27)) -> 
A29: 3 | B29: 7 | C29: =IF(B29*Inputs!$F$27>Inputs!$F$26,"-",B29*Inputs!$F$27) -> 1.75 | D29: 0.2430380487 | E29: =IF(C29="-","-",interp(D29,Q$4:R$14)) ->  | F29: =IF(C29="-","-",interp(D29,Z$4:AA$14)) ->  | G29: 0.8127596081 | H29: =IF(C29="-","-",E29*$G29) ->  | I29: =IF(C29="-","-",F29*$G29) ->  | J29: =IF($C29="-","-",0.5*(H29-H28)) ->  | K29: =IF($C29="-","-",0.5*(I29-I28)) -> 
A30: 4 | B30: 9 | C30: =IF(B30*Inputs!$F$27>Inputs!$F$26,"-",B30*Inputs!$F$27) -> 2.25 | D30: 0.3521825181 | E30: =IF(C30="-","-",interp(D30,Q$4:R$14)) ->  | F30: =IF(C30="-","-",interp(D30,Z$4:AA$14)) ->  | G30: 0.8306111825 | I30: =IF(C30="-","-",F30*$G30) ->  | J30: =IF($C30="-","-",0.5*(H30-H29)) -> 
A31: 5 | B31: 11 | C31: =IF(B31*Inputs!$F$27>Inputs!$F$26,"-",B31*Inputs!$F$27) -> 2.75 | D31: 0.4393326938 | E31: =IF(C31="-","-",interp(D31,Q$4:R$14)) ->  | F31: =IF(C31="-","-",interp(D31,Z$4:AA$14)) ->  | G31: 0.8436352571
A32: 6 | B32: 13 | C32: =IF(B32*Inputs!$F$27>Inputs!$F$26,"-",B32*Inputs!$F$27) -> 3.25 | D32: 0.511883361 | E32: =IF(C32="-","-",interp(D32,Q$4:R$14)) ->  | F32: =IF(C32="-","-",interp(D32,Z$4:AA$14)) ->  | G32: 0.8537103463
A33: 7 | B33: 15 | C33: =IF(B33*Inputs!$F$27>Inputs!$F$26,"-",B33*Inputs!$F$27) -> 3.75 | D33: 0.5740312677 | E33: =IF(C33="-","-",interp(D33,Q$4:R$14)) ->  | F33: =IF(C33="-","-",interp(D33,Z$4:AA$14)) ->  | G33: 0.8618229665 | J33: =IF($C33="-","-",0.5*(H33-H32)) -> 
A34: 8 | B34: 17 | C34: =IF(B34*Inputs!$F$27>Inputs!$F$26,"-",B34*Inputs!$F$27) -> 4.25 | D34: 0.6283889301 | E34: =IF(C34="-","-",interp(D34,Q$4:R$14)) ->  | F34: =IF(C34="-","-",interp(D34,Z$4:AA$14)) ->  | G34: 0.868548965
A35: 9 | B35: 19 | C35: =IF(B35*Inputs!$F$27>Inputs!$F$26,"-",B35*Inputs!$F$27) -> 4.75 | D35: 0.6766936096 | E35: =IF(C35="-","-",interp(D35,Q$4:R$14)) ->  | F35: =IF(C35="-","-",interp(D35,Z$4:AA$14)) ->  | G35: 0.8742507456
A36: 10 | B36: 21 | C36: =IF(B36*Inputs!$F$27>Inputs!$F$26,"-",B36*Inputs!$F$27) -> 5.25 | D36: 0.7201593034 | E36: =IF(C36="-","-",interp(D36,Q$4:R$14)) ->  | F36: =IF(C36="-","-",interp(D36,Z$4:AA$14)) ->  | G36: 0.8791696364
A37: 11 | B37: 23 | C37: =IF(B37*Inputs!$F$27>Inputs!$F$26,"-",B37*Inputs!$F$27) -> 5.75 | D37: 0.7596678447 | E37: =IF(C37="-","-",interp(D37,Q$4:R$14)) ->  | F37: =IF(C37="-","-",interp(D37,Z$4:AA$14)) ->  | G37: 0.8834735748
A38: 12 | B38: 25 | C38: =IF(B38*Inputs!$F$27>Inputs!$F$26,"-",B38*Inputs!$F$27) -> - | D38: - | E38: =IF(C38="-","-",interp(D38,Q$4:R$14)) -> - | F38: =IF(C38="-","-",interp(D38,Z$4:AA$14)) -> - | G38: - | H38: - | I38: - | J38: - | K38: -
A39: 13 | B39: 27 | C39: =IF(B39*Inputs!$F$27>Inputs!$F$26,"-",B39*Inputs!$F$27) -> - | D39: - | E39: =IF(C39="-","-",interp(D39,Q$4:R$14)) -> - | F39: =IF(C39="-","-",interp(D39,Z$4:AA$14)) -> - | G39: - | H39: - | I39: - | J39: - | K39: -
A40: 14 | B40: 29 | C40: =IF(B40*Inputs!$F$27>Inputs!$F$26,"-",B40*Inputs!$F$27) -> - | D40: - | E40: =IF(C40="-","-",interp(D40,Q$4:R$14)) -> - | F40: =IF(C40="-","-",interp(D40,Z$4:AA$14)) -> - | G40: - | H40: - | I40: - | J40: - | K40: -
A41: 15 | B41: 31 | C41: =IF(B41*Inputs!$F$27>Inputs!$F$26,"-",B41*Inputs!$F$27) -> - | D41: - | E41: =IF(C41="-","-",interp(D41,Q$4:R$14)) -> - | F41: =IF(C41="-","-",interp(D41,Z$4:AA$14)) -> - | G41: - | H41: - | I41: - | J41: - | K41: -
A42: 16 | B42: 33 | C42: =IF(B42*Inputs!$F$27>Inputs!$F$26,"-",B42*Inputs!$F$27) -> - | D42: - | E42: =IF(C42="-","-",interp(D42,Q$4:R$14)) -> - | F42: =IF(C42="-","-",interp(D42,Z$4:AA$14)) -> - | G42: - | H42: - | I42: - | J42: - | K42: -
A43: 17 | B43: 35 | C43: =IF(B43*Inputs!$F$27>Inputs!$F$26,"-",B43*Inputs!$F$27) -> - | D43: - | E43: =IF(C43="-","-",interp(D43,Q$4:R$14)) -> - | F43: =IF(C43="-","-",interp(D43,Z$4:AA$14)) -> - | G43: - | H43: - | I43: - | J43: - | K43: -
A44: 18 | B44: 37 | C44: =IF(B44*Inputs!$F$27>Inputs!$F$26,"-",B44*Inputs!$F$27) -> - | D44: - | E44: =IF(C44="-","-",interp(D44,Q$4:R$14)) -> - | F44: =IF(C44="-","-",interp(D44,Z$4:AA$14)) -> - | G44: - | H44: - | I44: - | J44: - | K44: -
A45: 19 | B45: 39 | C45: =IF(B45*Inputs!$F$27>Inputs!$F$26,"-",B45*Inputs!$F$27) -> - | D45: - | E45: =IF(C45="-","-",interp(D45,Q$4:R$14)) -> - | F45: =IF(C45="-","-",interp(D45,Z$4:AA$14)) -> - | G45: - | H45: - | I45: - | J45: - | K45: -
A46: 20 | B46: 41 | C46: =IF(B46*Inputs!$F$27>Inputs!$F$26,"-",B46*Inputs!$F$27) -> - | D46: - | E46: =IF(C46="-","-",interp(D46,Q$4:R$14)) -> - | F46: =IF(C46="-","-",interp(D46,Z$4:AA$14)) -> - | G46: - | H46: =IF(C46="-","-",E46*$G46) -> - | I46: =IF(C46="-","-",F46*$G46) -> - | J46: =IF($C46="-","-",0.5*(H46-H45)) -> - | K46: =IF($C46="-","-",0.5*(I46-I45)) -> -
A47: 21 | B47: 43 | C47: =IF(B47*Inputs!$F$27>Inputs!$F$26,"-",B47*Inputs!$F$27) -> - | D47: - | E47: =IF(C47="-","-",interp(D47,Q$4:R$14)) -> - | F47: =IF(C47="-","-",interp(D47,Z$4:AA$14)) -> - | G47: - | H47: - | I47: - | J47: - | K47: -
A48: 22 | B48: 45 | C48: =IF(B48*Inputs!$F$27>Inputs!$F$26,"-",B48*Inputs!$F$27) -> - | D48: - | E48: =IF(C48="-","-",interp(D48,Q$4:R$14)) -> - | F48: =IF(C48="-","-",interp(D48,Z$4:AA$14)) -> - | G48: - | H48: - | I48: - | J48: - | K48: -
A49: 23 | B49: 47 | C49: =IF(B49*Inputs!$F$27>Inputs!$F$26,"-",B49*Inputs!$F$27) -> - | D49: - | E49: =IF(C49="-","-",interp(D49,Q$4:R$14)) -> - | F49: =IF(C49="-","-",interp(D49,Z$4:AA$14)) -> - | G49: - | H49: - | I49: - | J49: - | K49: -
A50: 24 | B50: 49 | C50: =IF(B50*Inputs!$F$27>Inputs!$F$26,"-",B50*Inputs!$F$27) -> - | D50: - | E50: =IF(C50="-","-",interp(D50,Q$4:R$14)) -> - | F50: =IF(C50="-","-",interp(D50,Z$4:AA$14)) -> - | G50: - | H50: - | I50: - | J50: - | K50: -
A51: 25 | B51: 51 | C51: =IF(B51*Inputs!$F$27>Inputs!$F$26,"-",B51*Inputs!$F$27) -> - | D51: - | E51: =IF(C51="-","-",interp(D51,Q$4:R$14)) -> - | F51: =IF(C51="-","-",interp(D51,Z$4:AA$14)) -> - | G51: - | H51: - | I51: - | J51: - | K51: -
A52: 26 | B52: 53 | C52: =IF(B52*Inputs!$F$27>Inputs!$F$26,"-",B52*Inputs!$F$27) -> - | D52: - | E52: =IF(C52="-","-",interp(D52,Q$4:R$14)) -> - | F52: =IF(C52="-","-",interp(D52,Z$4:AA$14)) -> - | G52: - | H52: - | I52: - | J52: - | K52: -
A53: 27 | B53: 55 | C53: =IF(B53*Inputs!$F$27>Inputs!$F$26,"-",B53*Inputs!$F$27) -> - | D53: - | E53: =IF(C53="-","-",interp(D53,Q$4:R$14)) -> - | F53: =IF(C53="-","-",interp(D53,Z$4:AA$14)) -> - | G53: - | H53: - | I53: - | J53: - | K53: -
A54: 28 | B54: 57 | C54: =IF(B54*Inputs!$F$27>Inputs!$F$26,"-",B54*Inputs!$F$27) -> - | D54: - | E54: =IF(C54="-","-",interp(D54,Q$4:R$14)) -> - | F54: =IF(C54="-","-",interp(D54,Z$4:AA$14)) -> - | G54: - | H54: - | I54: - | J54: - | K54: -
A55: 29 | B55: 59 | C55: =IF(B55*Inputs!$F$27>Inputs!$F$26,"-",B55*Inputs!$F$27) -> - | D55: - | E55: =IF(C55="-","-",interp(D55,Q$4:R$14)) -> - | F55: =IF(C55="-","-",interp(D55,Z$4:AA$14)) -> - | G55: - | H55: - | I55: - | J55: - | K55: -
A56: 30 | B56: 61 | C56: =IF(B56*Inputs!$F$27>Inputs!$F$26,"-",B56*Inputs!$F$27) -> - | D56: - | E56: =IF(C56="-","-",interp(D56,Q$4:R$14)) -> - | F56: =IF(C56="-","-",interp(D56,Z$4:AA$14)) -> - | G56: - | H56: - | I56: - | J56: - | K56: -
A57: 31 | B57: 63 | C57: =IF(B57*Inputs!$F$27>Inputs!$F$26,"-",B57*Inputs!$F$27) -> - | D57: - | E57: =IF(C57="-","-",interp(D57,Q$4:R$14)) -> - | F57: =IF(C57="-","-",interp(D57,Z$4:AA$14)) -> - | G57: - | H57: - | I57: - | J57: - | K57: -
A58: 32 | B58: 65 | C58: =IF(B58*Inputs!$F$27>Inputs!$F$26,"-",B58*Inputs!$F$27) -> - | D58: - | E58: =IF(C58="-","-",interp(D58,Q$4:R$14)) -> - | F58: =IF(C58="-","-",interp(D58,Z$4:AA$14)) -> - | G58: - | H58: - | I58: - | J58: - | K58: -
A59: 33 | B59: =A59*2+1 -> 67 | C59: =IF(B59*Inputs!$F$27>Inputs!$F$26,"-",B59*Inputs!$F$27) -> - | D59: - | E59: =IF(C59="-","-",interp(D59,Q$4:R$14)) -> - | F59: =IF(C59="-","-",interp(D59,Z$4:AA$14)) -> - | G59: - | H59: - | I59: - | J59: - | K59: -
A60: 34 | B60: 69 | C60: =IF(B60*Inputs!$F$27>Inputs!$F$26,"-",B60*Inputs!$F$27) -> - | D60: - | E60: =IF(C60="-","-",interp(D60,Q$4:R$14)) -> - | F60: =IF(C60="-","-",interp(D60,Z$4:AA$14)) -> - | G60: - | H60: - | I60: - | J60: - | K60: -
A61: 35 | B61: 71 | C61: =IF(B61*Inputs!$F$27>Inputs!$F$26,"-",B61*Inputs!$F$27) -> - | D61: - | E61: =IF(C61="-","-",interp(D61,Q$4:R$14)) -> - | F61: =IF(C61="-","-",interp(D61,Z$4:AA$14)) -> - | G61: - | H61: - | I61: - | J61: - | K61: -
A62: 36 | B62: 73 | C62: =IF(B62*Inputs!$F$27>Inputs!$F$26,"-",B62*Inputs!$F$27) -> - | D62: - | E62: =IF(C62="-","-",interp(D62,Q$4:R$14)) -> - | F62: =IF(C62="-","-",interp(D62,Z$4:AA$14)) -> - | G62: - | H62: - | I62: - | J62: - | K62: -
A63: 37 | B63: 75 | C63: =IF(B63*Inputs!$F$27>Inputs!$F$26,"-",B63*Inputs!$F$27) -> - | D63: - | E63: =IF(C63="-","-",interp(D63,Q$4:R$14)) -> - | F63: =IF(C63="-","-",interp(D63,Z$4:AA$14)) -> - | G63: - | H63: - | I63: - | J63: - | K63: -
A64: 38 | B64: 77 | C64: =IF(B64*Inputs!$F$27>Inputs!$F$26,"-",B64*Inputs!$F$27) -> - | D64: - | E64: =IF(C64="-","-",interp(D64,Q$4:R$14)) -> - | F64: =IF(C64="-","-",interp(D64,Z$4:AA$14)) -> - | G64: - | H64: - | I64: - | J64: - | K64: -
A65: 39 | B65: 79 | C65: =IF(B65*Inputs!$F$27>Inputs!$F$26,"-",B65*Inputs!$F$27) -> - | D65: - | E65: =IF(C65="-","-",interp(D65,Q$4:R$14)) -> - | F65: =IF(C65="-","-",interp(D65,Z$4:AA$14)) -> - | G65: - | H65: - | I65: - | J65: - | K65: -
A66: 40 | B66: 81 | C66: =IF(B66*Inputs!$F$27>Inputs!$F$26,"-",B66*Inputs!$F$27) -> - | D66: - | E66: =IF(C66="-","-",interp(D66,Q$4:R$14)) -> - | F66: =IF(C66="-","-",interp(D66,Z$4:AA$14)) -> - | G66: - | H66: - | I66: - | J66: - | K66: -
A67: 41 | B67: 83 | C67: =IF(B67*Inputs!$F$27>Inputs!$F$26,"-",B67*Inputs!$F$27) -> - | D67: - | E67: =IF(C67="-","-",interp(D67,Q$4:R$14)) -> - | F67: =IF(C67="-","-",interp(D67,Z$4:AA$14)) -> - | G67: - | H67: - | I67: - | J67: - | K67: -
A68: 42 | B68: 85 | C68: =IF(B68*Inputs!$F$27>Inputs!$F$26,"-",B68*Inputs!$F$27) -> - | D68: - | E68: =IF(C68="-","-",interp(D68,Q$4:R$14)) -> - | F68: =IF(C68="-","-",interp(D68,Z$4:AA$14)) -> - | G68: - | H68: - | I68: - | J68: - | K68: -
A69: 43 | B69: 87 | C69: =IF(B69*Inputs!$F$27>Inputs!$F$26,"-",B69*Inputs!$F$27) -> - | D69: - | E69: =IF(C69="-","-",interp(D69,Q$4:R$14)) -> - | F69: =IF(C69="-","-",interp(D69,Z$4:AA$14)) -> - | G69: - | H69: - | I69: - | J69: - | K69: -
A70: 44 | B70: 89 | C70: =IF(B70*Inputs!$F$27>Inputs!$F$26,"-",B70*Inputs!$F$27) -> - | D70: - | E70: =IF(C70="-","-",interp(D70,Q$4:R$14)) -> - | F70: =IF(C70="-","-",interp(D70,Z$4:AA$14)) -> - | G70: - | H70: - | I70: - | J70: - | K70: -
A71: 45 | B71: 91 | C71: =IF(B71*Inputs!$F$27>Inputs!$F$26,"-",B71*Inputs!$F$27) -> - | D71: - | E71: =IF(C71="-","-",interp(D71,Q$4:R$14)) -> - | F71: =IF(C71="-","-",interp(D71,Z$4:AA$14)) -> - | G71: - | H71: - | I71: - | J71: - | K71: -
A72: 46 | B72: 93 | C72: =IF(B72*Inputs!$F$27>Inputs!$F$26,"-",B72*Inputs!$F$27) -> - | D72: - | E72: =IF(C72="-","-",interp(D72,Q$4:R$14)) -> - | F72: =IF(C72="-","-",interp(D72,Z$4:AA$14)) -> - | G72: - | H72: - | I72: - | J72: - | K72: -
A73: 47 | B73: =A73*2+1 -> 95 | C73: =IF(B73*Inputs!$F$27>Inputs!$F$26,"-",B73*Inputs!$F$27) -> - | D73: - | E73: =IF(C73="-","-",interp(D73,Q$4:R$14)) -> - | F73: =IF(C73="-","-",interp(D73,Z$4:AA$14)) -> - | G73: - | H73: - | I73: - | J73: - | K73: -
A74: 48 | B74: 97 | C74: =IF(B74*Inputs!$F$27>Inputs!$F$26,"-",B74*Inputs!$F$27) -> - | D74: - | E74: =IF(C74="-","-",interp(D74,Q$4:R$14)) -> - | F74: =IF(C74="-","-",interp(D74,Z$4:AA$14)) -> - | G74: - | H74: - | I74: - | J74: - | K74: -
A75: 49 | B75: 99 | C75: =IF(B75*Inputs!$F$27>Inputs!$F$26,"-",B75*Inputs!$F$27) -> - | D75: - | E75: =IF(C75="-","-",interp(D75,Q$4:R$14)) -> - | F75: =IF(C75="-","-",interp(D75,Z$4:AA$14)) -> - | G75: - | H75: - | I75: - | J75: - | K75: -
A78: Building up the hyetograph from the centre
A79: Time step away from centre | B79: Time from centre (hr) | C79: Time within storm (hr) | D79: Summer catchment PMP | E79: Winter catchment PMP | F79: Winter PMP + snowmelt
A80: =A81+1 -> 49 | B80: =-A80*Inputs!$F$27 -> -12.25 | C80: =ROUND(B80+Inputs!$F$27+(Inputs!$F$26-Inputs!$F$27)/2,5) -> -9.25 | D80: =VLOOKUP($A80,$A$26:$K$75,10,FALSE) -> - | E80: =VLOOKUP($A80,$A$26:$K$75,11,FALSE) -> - | F80: =IF(E80="-","-",IF(ABS(B80)<'Calcs - Snow'!$B$19/2,E80+'Calcs - Snow'!$B$20,E80)) -> -
A81: 48 | B81: =-A81*Inputs!$F$27 -> -12 | C81: =ROUND(B81+Inputs!$F$27+(Inputs!$F$26-Inputs!$F$27)/2,5) -> -9 | D81: =VLOOKUP($A81,$A$26:$K$75,10,FALSE) -> - | E81: =VLOOKUP($A81,$A$26:$K$75,11,FALSE) -> - | F81: =IF(E81="-","-",IF(ABS(B81)<'Calcs - Snow'!$B$19/2,E81+'Calcs - Snow'!$B$20,E81)) -> -
A82: 47 | B82: =-A82*Inputs!$F$27 -> -11.75 | C82: =ROUND(B82+Inputs!$F$27+(Inputs!$F$26-Inputs!$F$27)/2,5) -> -8.75 | D82: - | E82: - | F82: =IF(E82="-","-",IF(ABS(B82)<'Calcs - Snow'!$B$19/2,E82+'Calcs - Snow'!$B$20,E82)) -> -
A83: 46 | B83: =-A83*Inputs!$F$27 -> -11.5 | C83: =ROUND(B83+Inputs!$F$27+(Inputs!$F$26-Inputs!$F$27)/2,5) -> -8.5 | D83: - | E83: - | F83: =IF(E83="-","-",IF(ABS(B83)<'Calcs - Snow'!$B$19/2,E83+'Calcs - Snow'!$B$20,E83)) -> -
A84: 45 | B84: =-A84*Inputs!$F$27 -> -11.25 | C84: =ROUND(B84+Inputs!$F$27+(Inputs!$F$26-Inputs!$F$27)/2,5) -> -8.25 | D84: - | E84: - | F84: =IF(E84="-","-",IF(ABS(B84)<'Calcs - Snow'!$B$19/2,E84+'Calcs - Snow'!$B$20,E84)) -> -
A85: 44 | B85: =-A85*Inputs!$F$27 -> -11 | C85: =ROUND(B85+Inputs!$F$27+(Inputs!$F$26-Inputs!$F$27)/2,5) -> -8 | D85: - | E85: - | F85: =IF(E85="-","-",IF(ABS(B85)<'Calcs - Snow'!$B$19/2,E85+'Calcs - Snow'!$B$20,E85)) -> -
A86: 43 | B86: =-A86*Inputs!$F$27 -> -10.75 | C86: =ROUND(B86+Inputs!$F$27+(Inputs!$F$26-Inputs!$F$27)/2,5) -> -7.75 | D86: - | E86: - | F86: =IF(E86="-","-",IF(ABS(B86)<'Calcs - Snow'!$B$19/2,E86+'Calcs - Snow'!$B$20,E86)) -> -
A87: 42 | B87: =-A87*Inputs!$F$27 -> -10.5 | C87: =ROUND(B87+Inputs!$F$27+(Inputs!$F$26-Inputs!$F$27)/2,5) -> -7.5 | D87: - | E87: - | F87: =IF(E87="-","-",IF(ABS(B87)<'Calcs - Snow'!$B$19/2,E87+'Calcs - Snow'!$B$20,E87)) -> -
A88: 41 | B88: =-A88*Inputs!$F$27 -> -10.25 | C88: =ROUND(B88+Inputs!$F$27+(Inputs!$F$26-Inputs!$F$27)/2,5) -> -7.25 | D88: - | E88: - | F88: =IF(E88="-","-",IF(ABS(B88)<'Calcs - Snow'!$B$19/2,E88+'Calcs - Snow'!$B$20,E88)) -> -
A89: 40 | B89: =-A89*Inputs!$F$27 -> -10 | C89: =ROUND(B89+Inputs!$F$27+(Inputs!$F$26-Inputs!$F$27)/2,5) -> -7 | D89: - | E89: - | F89: =IF(E89="-","-",IF(ABS(B89)<'Calcs - Snow'!$B$19/2,E89+'Calcs - Snow'!$B$20,E89)) -> -
A90: 39 | B90: =-A90*Inputs!$F$27 -> -9.75 | C90: =ROUND(B90+Inputs!$F$27+(Inputs!$F$26-Inputs!$F$27)/2,5) -> -6.75 | D90: - | E90: - | F90: =IF(E90="-","-",IF(ABS(B90)<'Calcs - Snow'!$B$19/2,E90+'Calcs - Snow'!$B$20,E90)) -> -
A91: 38 | B91: =-A91*Inputs!$F$27 -> -9.5 | C91: =ROUND(B91+Inputs!$F$27+(Inputs!$F$26-Inputs!$F$27)/2,5) -> -6.5 | D91: - | E91: - | F91: =IF(E91="-","-",IF(ABS(B91)<'Calcs - Snow'!$B$19/2,E91+'Calcs - Snow'!$B$20,E91)) -> -
A92: 37 | B92: =-A92*Inputs!$F$27 -> -9.25 | C92: =ROUND(B92+Inputs!$F$27+(Inputs!$F$26-Inputs!$F$27)/2,5) -> -6.25 | D92: - | E92: - | F92: =IF(E92="-","-",IF(ABS(B92)<'Calcs - Snow'!$B$19/2,E92+'Calcs - Snow'!$B$20,E92)) -> -
A93: 36 | B93: =-A93*Inputs!$F$27 -> -9 | C93: =ROUND(B93+Inputs!$F$27+(Inputs!$F$26-Inputs!$F$27)/2,5) -> -6 | D93: - | E93: - | F93: =IF(E93="-","-",IF(ABS(B93)<'Calcs - Snow'!$B$19/2,E93+'Calcs - Snow'!$B$20,E93)) -> -
A94: 35 | B94: =-A94*Inputs!$F$27 -> -8.75 | C94: =ROUND(B94+Inputs!$F$27+(Inputs!$F$26-Inputs!$F$27)/2,5) -> -5.75 | D94: - | E94: - | F94: =IF(E94="-","-",IF(ABS(B94)<'Calcs - Snow'!$B$19/2,E94+'Calcs - Snow'!$B$20,E94)) -> -
A95: =A96+1 -> 34 | B95: =-A95*Inputs!$F$27 -> -8.5 | C95: =ROUND(B95+Inputs!$F$27+(Inputs!$F$26-Inputs!$F$27)/2,5) -> -5.5 | D95: - | E95: - | F95: =IF(E95="-","-",IF(ABS(B95)<'Calcs - Snow'!$B$19/2,E95+'Calcs - Snow'!$B$20,E95)) -> -
A96: 33 | B96: =-A96*Inputs!$F$27 -> -8.25 | C96: =ROUND(B96+Inputs!$F$27+(Inputs!$F$26-Inputs!$F$27)/2,5) -> -5.25 | D96: - | E96: - | F96: =IF(E96="-","-",IF(ABS(B96)<'Calcs - Snow'!$B$19/2,E96+'Calcs - Snow'!$B$20,E96)) -> -
A97: 32 | B97: =-A97*Inputs!$F$27 -> -8 | C97: =ROUND(B97+Inputs!$F$27+(Inputs!$F$26-Inputs!$F$27)/2,5) -> -5 | D97: - | E97: - | F97: =IF(E97="-","-",IF(ABS(B97)<'Calcs - Snow'!$B$19/2,E97+'Calcs - Snow'!$B$20,E97)) -> -
A98: 31 | B98: =-A98*Inputs!$F$27 -> -7.75 | C98: =ROUND(B98+Inputs!$F$27+(Inputs!$F$26-Inputs!$F$27)/2,5) -> -4.75 | D98: - | E98: - | F98: =IF(E98="-","-",IF(ABS(B98)<'Calcs - Snow'!$B$19/2,E98+'Calcs - Snow'!$B$20,E98)) -> -
A99: 30 | B99: =-A99*Inputs!$F$27 -> -7.5 | C99: =ROUND(B99+Inputs!$F$27+(Inputs!$F$26-Inputs!$F$27)/2,5) -> -4.5 | D99: - | E99: - | F99: =IF(E99="-","-",IF(ABS(B99)<'Calcs - Snow'!$B$19/2,E99+'Calcs - Snow'!$B$20,E99)) -> -
A100: 29 | B100: =-A100*Inputs!$F$27 -> -7.25 | C100: =ROUND(B100+Inputs!$F$27+(Inputs!$F$26-Inputs!$F$27)/2,5) -> -4.25 | D100: - | E100: - | F100: =IF(E100="-","-",IF(ABS(B100)<'Calcs - Snow'!$B$19/2,E100+'Calcs - Snow'!$B$20,E100)) -> -
A101: 28 | B101: =-A101*Inputs!$F$27 -> -7 | C101: =ROUND(B101+Inputs!$F$27+(Inputs!$F$26-Inputs!$F$27)/2,5) -> -4 | D101: - | E101: - | F101: =IF(E101="-","-",IF(ABS(B101)<'Calcs - Snow'!$B$19/2,E101+'Calcs - Snow'!$B$20,E101)) -> -
A102: 27 | B102: =-A102*Inputs!$F$27 -> -6.75 | C102: =ROUND(B102+Inputs!$F$27+(Inputs!$F$26-Inputs!$F$27)/2,5) -> -3.75 | D102: - | E102: - | F102: =IF(E102="-","-",IF(ABS(B102)<'Calcs - Snow'!$B$19/2,E102+'Calcs - Snow'!$B$20,E102)) -> -
A103: 26 | B103: =-A103*Inputs!$F$27 -> -6.5 | C103: =ROUND(B103+Inputs!$F$27+(Inputs!$F$26-Inputs!$F$27)/2,5) -> -3.5 | D103: - | E103: - | F103: =IF(E103="-","-",IF(ABS(B103)<'Calcs - Snow'!$B$19/2,E103+'Calcs - Snow'!$B$20,E103)) -> -
A104: 25 | B104: =-A104*Inputs!$F$27 -> -6.25 | C104: =ROUND(B104+Inputs!$F$27+(Inputs!$F$26-Inputs!$F$27)/2,5) -> -3.25 | D104: - | E104: - | F104: =IF(E104="-","-",IF(ABS(B104)<'Calcs - Snow'!$B$19/2,E104+'Calcs - Snow'!$B$20,E104)) -> -
A105: 24 | B105: =-A105*Inputs!$F$27 -> -6 | C105: =ROUND(B105+Inputs!$F$27+(Inputs!$F$26-Inputs!$F$27)/2,5) -> -3 | D105: - | E105: - | F105: =IF(E105="-","-",IF(ABS(B105)<'Calcs - Snow'!$B$19/2,E105+'Calcs - Snow'!$B$20,E105)) -> -
A106: 23 | B106: =-A106*Inputs!$F$27 -> -5.75 | C106: =ROUND(B106+Inputs!$F$27+(Inputs!$F$26-Inputs!$F$27)/2,5) -> -2.75 | D106: - | E106: - | F106: =IF(E106="-","-",IF(ABS(B106)<'Calcs - Snow'!$B$19/2,E106+'Calcs - Snow'!$B$20,E106)) -> -
A107: 22 | B107: =-A107*Inputs!$F$27 -> -5.5 | C107: =ROUND(B107+Inputs!$F$27+(Inputs!$F$26-Inputs!$F$27)/2,5) -> -2.5 | D107: - | E107: - | F107: =IF(E107="-","-",IF(ABS(B107)<'Calcs - Snow'!$B$19/2,E107+'Calcs - Snow'!$B$20,E107)) -> -
A108: 21 | B108: =-A108*Inputs!$F$27 -> -5.25 | C108: =ROUND(B108+Inputs!$F$27+(Inputs!$F$26-Inputs!$F$27)/2,5) -> -2.25 | D108: - | E108: - | F108: =IF(E108="-","-",IF(ABS(B108)<'Calcs - Snow'!$B$19/2,E108+'Calcs - Snow'!$B$20,E108)) -> -
A109: 20 | B109: =-A109*Inputs!$F$27 -> -5 | C109: =ROUND(B109+Inputs!$F$27+(Inputs!$F$26-Inputs!$F$27)/2,5) -> -2 | D109: - | E109: - | F109: =IF(E109="-","-",IF(ABS(B109)<'Calcs - Snow'!$B$19/2,E109+'Calcs - Snow'!$B$20,E109)) -> -
A110: =A111+1 -> 19 | B110: =-A110*Inputs!$F$27 -> -4.75 | C110: =ROUND(B110+Inputs!$F$27+(Inputs!$F$26-Inputs!$F$27)/2,5) -> -1.75 | D110: - | E110: - | F110: =IF(E110="-","-",IF(ABS(B110)<'Calcs - Snow'!$B$19/2,E110+'Calcs - Snow'!$B$20,E110)) -> -
A111: =A112+1 -> 18 | B111: =-A111*Inputs!$F$27 -> -4.5 | C111: =ROUND(B111+Inputs!$F$27+(Inputs!$F$26-Inputs!$F$27)/2,5) -> -1.5 | D111: - | E111: - | F111: =IF(E111="-","-",IF(ABS(B111)<'Calcs - Snow'!$B$19/2,E111+'Calcs - Snow'!$B$20,E111)) -> -
A112: 17 | B112: =-A112*Inputs!$F$27 -> -4.25 | C112: =ROUND(B112+Inputs!$F$27+(Inputs!$F$26-Inputs!$F$27)/2,5) -> -1.25 | D112: =VLOOKUP($A112,$A$26:$K$75,10,FALSE) -> - | E112: =VLOOKUP($A112,$A$26:$K$75,11,FALSE) -> - | F112: =IF(E112="-","-",IF(ABS(B112)<'Calcs - Snow'!$B$19/2,E112+'Calcs - Snow'!$B$20,E112)) -> -
A113: 16 | B113: =-A113*Inputs!$F$27 -> -4 | C113: =ROUND(B113+Inputs!$F$27+(Inputs!$F$26-Inputs!$F$27)/2,5) -> -1 | D113: - | E113: - | F113: =IF(E113="-","-",IF(ABS(B113)<'Calcs - Snow'!$B$19/2,E113+'Calcs - Snow'!$B$20,E113)) -> -
A114: 15 | B114: =-A114*Inputs!$F$27 -> -3.75 | C114: =ROUND(B114+Inputs!$F$27+(Inputs!$F$26-Inputs!$F$27)/2,5) -> -0.75 | D114: - | E114: - | F114: =IF(E114="-","-",IF(ABS(B114)<'Calcs - Snow'!$B$19/2,E114+'Calcs - Snow'!$B$20,E114)) -> -
A115: 14 | B115: =-A115*Inputs!$F$27 -> -3.5 | C115: =ROUND(B115+Inputs!$F$27+(Inputs!$F$26-Inputs!$F$27)/2,5) -> -0.5 | D115: - | E115: - | F115: =IF(E115="-","-",IF(ABS(B115)<'Calcs - Snow'!$B$19/2,E115+'Calcs - Snow'!$B$20,E115)) -> -
A116: 13 | B116: =-A116*Inputs!$F$27 -> -3.25 | C116: =ROUND(B116+Inputs!$F$27+(Inputs!$F$26-Inputs!$F$27)/2,5) -> -0.25 | D116: - | E116: - | F116: =IF(E116="-","-",IF(ABS(B116)<'Calcs - Snow'!$B$19/2,E116+'Calcs - Snow'!$B$20,E116)) -> -
A117: 12 | B117: =-A117*Inputs!$F$27 -> -3 | C117: =ROUND(B117+Inputs!$F$27+(Inputs!$F$26-Inputs!$F$27)/2,5) -> 0 | D117: - | E117: - | F117: =IF(E117="-","-",IF(ABS(B117)<'Calcs - Snow'!$B$19/2,E117+'Calcs - Snow'!$B$20,E117)) -> -
A118: 11 | B118: =-A118*Inputs!$F$27 -> -2.75 | C118: =ROUND(B118+Inputs!$F$27+(Inputs!$F$26-Inputs!$F$27)/2,5) -> 0.25 | F118: =IF(E118="-","-",IF(ABS(B118)<'Calcs - Snow'!$B$19/2,E118+'Calcs - Snow'!$B$20,E118)) -> 
A119: 10 | B119: =-A119*Inputs!$F$27 -> -2.5 | C119: =ROUND(B119+Inputs!$F$27+(Inputs!$F$26-Inputs!$F$27)/2,5) -> 0.5 | F119: =IF(E119="-","-",IF(ABS(B119)<'Calcs - Snow'!$B$19/2,E119+'Calcs - Snow'!$B$20,E119)) -> 
A120: 9 | B120: =-A120*Inputs!$F$27 -> -2.25 | C120: =ROUND(B120+Inputs!$F$27+(Inputs!$F$26-Inputs!$F$27)/2,5) -> 0.75 | F120: =IF(E120="-","-",IF(ABS(B120)<'Calcs - Snow'!$B$19/2,E120+'Calcs - Snow'!$B$20,E120)) -> 
A121: 8 | B121: =-A121*Inputs!$F$27 -> -2 | C121: =ROUND(B121+Inputs!$F$27+(Inputs!$F$26-Inputs!$F$27)/2,5) -> 1 | F121: =IF(E121="-","-",IF(ABS(B121)<'Calcs - Snow'!$B$19/2,E121+'Calcs - Snow'!$B$20,E121)) -> 
A122: 7 | B122: =-A122*Inputs!$F$27 -> -1.75 | C122: =ROUND(B122+Inputs!$F$27+(Inputs!$F$26-Inputs!$F$27)/2,5) -> 1.25 | F122: =IF(E122="-","-",IF(ABS(B122)<'Calcs - Snow'!$B$19/2,E122+'Calcs - Snow'!$B$20,E122)) -> 
A123: 6 | B123: =-A123*Inputs!$F$27 -> -1.5 | C123: =ROUND(B123+Inputs!$F$27+(Inputs!$F$26-Inputs!$F$27)/2,5) -> 1.5 | F123: =IF(E123="-","-",IF(ABS(B123)<'Calcs - Snow'!$B$19/2,E123+'Calcs - Snow'!$B$20,E123)) -> 
A124: 5 | B124: =-A124*Inputs!$F$27 -> -1.25 | C124: =ROUND(B124+Inputs!$F$27+(Inputs!$F$26-Inputs!$F$27)/2,5) -> 1.75 | F124: =IF(E124="-","-",IF(ABS(B124)<'Calcs - Snow'!$B$19/2,E124+'Calcs - Snow'!$B$20,E124)) -> 
A125: 4 | B125: =-A125*Inputs!$F$27 -> -1 | C125: =ROUND(B125+Inputs!$F$27+(Inputs!$F$26-Inputs!$F$27)/2,5) -> 2 | F125: =IF(E125="-","-",IF(ABS(B125)<'Calcs - Snow'!$B$19/2,E125+'Calcs - Snow'!$B$20,E125)) -> 
A126: 3 | B126: =-A126*Inputs!$F$27 -> -0.75 | C126: =ROUND(B126+Inputs!$F$27+(Inputs!$F$26-Inputs!$F$27)/2,5) -> 2.25 | F126: =IF(E126="-","-",IF(ABS(B126)<'Calcs - Snow'!$B$19/2,E126+'Calcs - Snow'!$B$20,E126)) -> 
A127: 2 | B127: =-A127*Inputs!$F$27 -> -0.5 | C127: =ROUND(B127+Inputs!$F$27+(Inputs!$F$26-Inputs!$F$27)/2,5) -> 2.5 | F127: =IF(E127="-","-",IF(ABS(B127)<'Calcs - Snow'!$B$19/2,E127+'Calcs - Snow'!$B$20,E127)) -> 
A128: 1 | B128: =-A128*Inputs!$F$27 -> -0.25 | C128: =ROUND(B128+Inputs!$F$27+(Inputs!$F$26-Inputs!$F$27)/2,5) -> 2.75 | F128: =IF(E128="-","-",IF(ABS(B128)<'Calcs - Snow'!$B$19/2,E128+'Calcs - Snow'!$B$20,E128)) -> 
A129: 0 | B129: 0 | C129: =ROUND(B129+Inputs!$F$27+(Inputs!$F$26-Inputs!$F$27)/2,5) -> 3 | F129: =IF(E129="-","-",IF(ABS(B129)<'Calcs - Snow'!$B$19/2,E129+'Calcs - Snow'!$B$20,E129)) -> 
A130: =A129+1 -> 1 | B130: =A130*Inputs!$F$27 -> 0.25 | C130: =ROUND(B130+Inputs!$F$27+(Inputs!$F$26-Inputs!$F$27)/2,5) -> 3.25 | F130: =IF(E130="-","-",IF(ABS(B130)<'Calcs - Snow'!$B$19/2,E130+'Calcs - Snow'!$B$20,E130)) -> 
A131: 2 | B131: =A131*Inputs!$F$27 -> 0.5 | C131: =ROUND(B131+Inputs!$F$27+(Inputs!$F$26-Inputs!$F$27)/2,5) -> 3.5 | F131: =IF(E131="-","-",IF(ABS(B131)<'Calcs - Snow'!$B$19/2,E131+'Calcs - Snow'!$B$20,E131)) -> 
A132: 3 | B132: =A132*Inputs!$F$27 -> 0.75 | C132: =ROUND(B132+Inputs!$F$27+(Inputs!$F$26-Inputs!$F$27)/2,5) -> 3.75 | F132: =IF(E132="-","-",IF(ABS(B132)<'Calcs - Snow'!$B$19/2,E132+'Calcs - Snow'!$B$20,E132)) -> 
A133: 4 | B133: =A133*Inputs!$F$27 -> 1 | C133: =ROUND(B133+Inputs!$F$27+(Inputs!$F$26-Inputs!$F$27)/2,5) -> 4 | F133: =IF(E133="-","-",IF(ABS(B133)<'Calcs - Snow'!$B$19/2,E133+'Calcs - Snow'!$B$20,E133)) -> 
A134: 5 | B134: =A134*Inputs!$F$27 -> 1.25 | C134: =ROUND(B134+Inputs!$F$27+(Inputs!$F$26-Inputs!$F$27)/2,5) -> 4.25 | F134: =IF(E134="-","-",IF(ABS(B134)<'Calcs - Snow'!$B$19/2,E134+'Calcs - Snow'!$B$20,E134)) -> 
A135: 6 | B135: =A135*Inputs!$F$27 -> 1.5 | C135: =ROUND(B135+Inputs!$F$27+(Inputs!$F$26-Inputs!$F$27)/2,5) -> 4.5 | F135: =IF(E135="-","-",IF(ABS(B135)<'Calcs - Snow'!$B$19/2,E135+'Calcs - Snow'!$B$20,E135)) -> 
A136: 7 | B136: =A136*Inputs!$F$27 -> 1.75 | C136: =ROUND(B136+Inputs!$F$27+(Inputs!$F$26-Inputs!$F$27)/2,5) -> 4.75 | F136: =IF(E136="-","-",IF(ABS(B136)<'Calcs - Snow'!$B$19/2,E136+'Calcs - Snow'!$B$20,E136)) -> 
A137: 8 | B137: =A137*Inputs!$F$27 -> 2 | C137: =ROUND(B137+Inputs!$F$27+(Inputs!$F$26-Inputs!$F$27)/2,5) -> 5 | F137: =IF(E137="-","-",IF(ABS(B137)<'Calcs - Snow'!$B$19/2,E137+'Calcs - Snow'!$B$20,E137)) -> 
A138: 9 | B138: =A138*Inputs!$F$27 -> 2.25 | C138: =ROUND(B138+Inputs!$F$27+(Inputs!$F$26-Inputs!$F$27)/2,5) -> 5.25 | F138: =IF(E138="-","-",IF(ABS(B138)<'Calcs - Snow'!$B$19/2,E138+'Calcs - Snow'!$B$20,E138)) -> 
A139: 10 | B139: =A139*Inputs!$F$27 -> 2.5 | C139: =ROUND(B139+Inputs!$F$27+(Inputs!$F$26-Inputs!$F$27)/2,5) -> 5.5 | F139: =IF(E139="-","-",IF(ABS(B139)<'Calcs - Snow'!$B$19/2,E139+'Calcs - Snow'!$B$20,E139)) -> 
A140: 11 | B140: =A140*Inputs!$F$27 -> 2.75 | C140: =ROUND(B140+Inputs!$F$27+(Inputs!$F$26-Inputs!$F$27)/2,5) -> 5.75 | F140: =IF(E140="-","-",IF(ABS(B140)<'Calcs - Snow'!$B$19/2,E140+'Calcs - Snow'!$B$20,E140)) -> 
A141: 12 | B141: =A141*Inputs!$F$27 -> 3 | C141: =ROUND(B141+Inputs!$F$27+(Inputs!$F$26-Inputs!$F$27)/2,5) -> 6 | D141: - | E141: - | F141: =IF(E141="-","-",IF(ABS(B141)<'Calcs - Snow'!$B$19/2,E141+'Calcs - Snow'!$B$20,E141)) -> -
A142: 13 | B142: =A142*Inputs!$F$27 -> 3.25 | C142: =ROUND(B142+Inputs!$F$27+(Inputs!$F$26-Inputs!$F$27)/2,5) -> 6.25 | D142: - | E142: - | F142: =IF(E142="-","-",IF(ABS(B142)<'Calcs - Snow'!$B$19/2,E142+'Calcs - Snow'!$B$20,E142)) -> -
A143: 14 | B143: =A143*Inputs!$F$27 -> 3.5 | C143: =ROUND(B143+Inputs!$F$27+(Inputs!$F$26-Inputs!$F$27)/2,5) -> 6.5 | D143: - | E143: - | F143: =IF(E143="-","-",IF(ABS(B143)<'Calcs - Snow'!$B$19/2,E143+'Calcs - Snow'!$B$20,E143)) -> -
A144: 15 | B144: =A144*Inputs!$F$27 -> 3.75 | C144: =ROUND(B144+Inputs!$F$27+(Inputs!$F$26-Inputs!$F$27)/2,5) -> 6.75 | D144: =VLOOKUP($A144,$A$26:$K$75,10,FALSE) -> - | E144: =VLOOKUP($A144,$A$26:$K$75,11,FALSE) -> - | F144: =IF(E144="-","-",IF(ABS(B144)<'Calcs - Snow'!$B$19/2,E144+'Calcs - Snow'!$B$20,E144)) -> -
A145: 16 | B145: =A145*Inputs!$F$27 -> 4 | C145: =ROUND(B145+Inputs!$F$27+(Inputs!$F$26-Inputs!$F$27)/2,5) -> 7 | D145: - | E145: - | F145: =IF(E145="-","-",IF(ABS(B145)<'Calcs - Snow'!$B$19/2,E145+'Calcs - Snow'!$B$20,E145)) -> -
A146: 17 | B146: =A146*Inputs!$F$27 -> 4.25 | C146: =ROUND(B146+Inputs!$F$27+(Inputs!$F$26-Inputs!$F$27)/2,5) -> 7.25 | D146: - | E146: - | F146: =IF(E146="-","-",IF(ABS(B146)<'Calcs - Snow'!$B$19/2,E146+'Calcs - Snow'!$B$20,E146)) -> -
A147: 18 | B147: =A147*Inputs!$F$27 -> 4.5 | C147: =ROUND(B147+Inputs!$F$27+(Inputs!$F$26-Inputs!$F$27)/2,5) -> 7.5 | D147: - | E147: - | F147: =IF(E147="-","-",IF(ABS(B147)<'Calcs - Snow'!$B$19/2,E147+'Calcs - Snow'!$B$20,E147)) -> -
A148: 19 | B148: =A148*Inputs!$F$27 -> 4.75 | C148: =ROUND(B148+Inputs!$F$27+(Inputs!$F$26-Inputs!$F$27)/2,5) -> 7.75 | D148: - | E148: - | F148: =IF(E148="-","-",IF(ABS(B148)<'Calcs - Snow'!$B$19/2,E148+'Calcs - Snow'!$B$20,E148)) -> -
A149: 20 | B149: =A149*Inputs!$F$27 -> 5 | C149: =ROUND(B149+Inputs!$F$27+(Inputs!$F$26-Inputs!$F$27)/2,5) -> 8 | D149: - | E149: - | F149: =IF(E149="-","-",IF(ABS(B149)<'Calcs - Snow'!$B$19/2,E149+'Calcs - Snow'!$B$20,E149)) -> -
A150: 21 | B150: =A150*Inputs!$F$27 -> 5.25 | C150: =ROUND(B150+Inputs!$F$27+(Inputs!$F$26-Inputs!$F$27)/2,5) -> 8.25 | D150: - | E150: - | F150: =IF(E150="-","-",IF(ABS(B150)<'Calcs - Snow'!$B$19/2,E150+'Calcs - Snow'!$B$20,E150)) -> -
A151: 22 | B151: =A151*Inputs!$F$27 -> 5.5 | C151: =ROUND(B151+Inputs!$F$27+(Inputs!$F$26-Inputs!$F$27)/2,5) -> 8.5 | D151: - | E151: - | F151: =IF(E151="-","-",IF(ABS(B151)<'Calcs - Snow'!$B$19/2,E151+'Calcs - Snow'!$B$20,E151)) -> -
A152: 23 | B152: =A152*Inputs!$F$27 -> 5.75 | C152: =ROUND(B152+Inputs!$F$27+(Inputs!$F$26-Inputs!$F$27)/2,5) -> 8.75 | D152: - | E152: - | F152: =IF(E152="-","-",IF(ABS(B152)<'Calcs - Snow'!$B$19/2,E152+'Calcs - Snow'!$B$20,E152)) -> -
A153: 24 | B153: =A153*Inputs!$F$27 -> 6 | C153: =ROUND(B153+Inputs!$F$27+(Inputs!$F$26-Inputs!$F$27)/2,5) -> 9 | D153: - | E153: - | F153: =IF(E153="-","-",IF(ABS(B153)<'Calcs - Snow'!$B$19/2,E153+'Calcs - Snow'!$B$20,E153)) -> -
A154: 25 | B154: =A154*Inputs!$F$27 -> 6.25 | C154: =ROUND(B154+Inputs!$F$27+(Inputs!$F$26-Inputs!$F$27)/2,5) -> 9.25 | D154: - | E154: - | F154: =IF(E154="-","-",IF(ABS(B154)<'Calcs - Snow'!$B$19/2,E154+'Calcs - Snow'!$B$20,E154)) -> -
A155: 26 | B155: =A155*Inputs!$F$27 -> 6.5 | C155: =ROUND(B155+Inputs!$F$27+(Inputs!$F$26-Inputs!$F$27)/2,5) -> 9.5 | D155: - | E155: - | F155: =IF(E155="-","-",IF(ABS(B155)<'Calcs - Snow'!$B$19/2,E155+'Calcs - Snow'!$B$20,E155)) -> -
A156: 27 | B156: =A156*Inputs!$F$27 -> 6.75 | C156: =ROUND(B156+Inputs!$F$27+(Inputs!$F$26-Inputs!$F$27)/2,5) -> 9.75 | D156: - | E156: - | F156: =IF(E156="-","-",IF(ABS(B156)<'Calcs - Snow'!$B$19/2,E156+'Calcs - Snow'!$B$20,E156)) -> -
A157: 28 | B157: =A157*Inputs!$F$27 -> 7 | C157: =ROUND(B157+Inputs!$F$27+(Inputs!$F$26-Inputs!$F$27)/2,5) -> 10 | D157: - | E157: - | F157: =IF(E157="-","-",IF(ABS(B157)<'Calcs - Snow'!$B$19/2,E157+'Calcs - Snow'!$B$20,E157)) -> -
A158: 29 | B158: =A158*Inputs!$F$27 -> 7.25 | C158: =ROUND(B158+Inputs!$F$27+(Inputs!$F$26-Inputs!$F$27)/2,5) -> 10.25 | D158: - | E158: - | F158: =IF(E158="-","-",IF(ABS(B158)<'Calcs - Snow'!$B$19/2,E158+'Calcs - Snow'!$B$20,E158)) -> -
A159: 30 | B159: =A159*Inputs!$F$27 -> 7.5 | C159: =ROUND(B159+Inputs!$F$27+(Inputs!$F$26-Inputs!$F$27)/2,5) -> 10.5 | D159: - | E159: - | F159: =IF(E159="-","-",IF(ABS(B159)<'Calcs - Snow'!$B$19/2,E159+'Calcs - Snow'!$B$20,E159)) -> -
A160: 31 | B160: =A160*Inputs!$F$27 -> 7.75 | C160: =ROUND(B160+Inputs!$F$27+(Inputs!$F$26-Inputs!$F$27)/2,5) -> 10.75 | D160: - | E160: - | F160: =IF(E160="-","-",IF(ABS(B160)<'Calcs - Snow'!$B$19/2,E160+'Calcs - Snow'!$B$20,E160)) -> -
A161: 32 | B161: =A161*Inputs!$F$27 -> 8 | C161: =ROUND(B161+Inputs!$F$27+(Inputs!$F$26-Inputs!$F$27)/2,5) -> 11 | D161: - | E161: - | F161: =IF(E161="-","-",IF(ABS(B161)<'Calcs - Snow'!$B$19/2,E161+'Calcs - Snow'!$B$20,E161)) -> -
A162: 33 | B162: =A162*Inputs!$F$27 -> 8.25 | C162: =ROUND(B162+Inputs!$F$27+(Inputs!$F$26-Inputs!$F$27)/2,5) -> 11.25 | D162: - | E162: - | F162: =IF(E162="-","-",IF(ABS(B162)<'Calcs - Snow'!$B$19/2,E162+'Calcs - Snow'!$B$20,E162)) -> -
A163: 34 | B163: =A163*Inputs!$F$27 -> 8.5 | C163: =ROUND(B163+Inputs!$F$27+(Inputs!$F$26-Inputs!$F$27)/2,5) -> 11.5 | D163: - | E163: - | F163: =IF(E163="-","-",IF(ABS(B163)<'Calcs - Snow'!$B$19/2,E163+'Calcs - Snow'!$B$20,E163)) -> -
A164: 35 | B164: =A164*Inputs!$F$27 -> 8.75 | C164: =ROUND(B164+Inputs!$F$27+(Inputs!$F$26-Inputs!$F$27)/2,5) -> 11.75 | D164: - | E164: - | F164: =IF(E164="-","-",IF(ABS(B164)<'Calcs - Snow'!$B$19/2,E164+'Calcs - Snow'!$B$20,E164)) -> -
A165: 36 | B165: =A165*Inputs!$F$27 -> 9 | C165: =ROUND(B165+Inputs!$F$27+(Inputs!$F$26-Inputs!$F$27)/2,5) -> 12 | D165: - | E165: - | F165: =IF(E165="-","-",IF(ABS(B165)<'Calcs - Snow'!$B$19/2,E165+'Calcs - Snow'!$B$20,E165)) -> -
A166: 37 | B166: =A166*Inputs!$F$27 -> 9.25 | C166: =ROUND(B166+Inputs!$F$27+(Inputs!$F$26-Inputs!$F$27)/2,5) -> 12.25 | D166: - | E166: - | F166: =IF(E166="-","-",IF(ABS(B166)<'Calcs - Snow'!$B$19/2,E166+'Calcs - Snow'!$B$20,E166)) -> -
A167: 38 | B167: =A167*Inputs!$F$27 -> 9.5 | C167: =ROUND(B167+Inputs!$F$27+(Inputs!$F$26-Inputs!$F$27)/2,5) -> 12.5 | D167: - | E167: - | F167: =IF(E167="-","-",IF(ABS(B167)<'Calcs - Snow'!$B$19/2,E167+'Calcs - Snow'!$B$20,E167)) -> -
A168: 39 | B168: =A168*Inputs!$F$27 -> 9.75 | C168: =ROUND(B168+Inputs!$F$27+(Inputs!$F$26-Inputs!$F$27)/2,5) -> 12.75 | D168: - | E168: - | F168: =IF(E168="-","-",IF(ABS(B168)<'Calcs - Snow'!$B$19/2,E168+'Calcs - Snow'!$B$20,E168)) -> -
A169: 40 | B169: =A169*Inputs!$F$27 -> 10 | C169: =ROUND(B169+Inputs!$F$27+(Inputs!$F$26-Inputs!$F$27)/2,5) -> 13 | D169: - | E169: - | F169: =IF(E169="-","-",IF(ABS(B169)<'Calcs - Snow'!$B$19/2,E169+'Calcs - Snow'!$B$20,E169)) -> -
A170: 41 | B170: =A170*Inputs!$F$27 -> 10.25 | C170: =ROUND(B170+Inputs!$F$27+(Inputs!$F$26-Inputs!$F$27)/2,5) -> 13.25 | D170: - | E170: - | F170: =IF(E170="-","-",IF(ABS(B170)<'Calcs - Snow'!$B$19/2,E170+'Calcs - Snow'!$B$20,E170)) -> -
A171: 42 | B171: =A171*Inputs!$F$27 -> 10.5 | C171: =ROUND(B171+Inputs!$F$27+(Inputs!$F$26-Inputs!$F$27)/2,5) -> 13.5 | D171: - | E171: - | F171: =IF(E171="-","-",IF(ABS(B171)<'Calcs - Snow'!$B$19/2,E171+'Calcs - Snow'!$B$20,E171)) -> -
A172: 43 | B172: =A172*Inputs!$F$27 -> 10.75 | C172: =ROUND(B172+Inputs!$F$27+(Inputs!$F$26-Inputs!$F$27)/2,5) -> 13.75 | D172: - | E172: - | F172: =IF(E172="-","-",IF(ABS(B172)<'Calcs - Snow'!$B$19/2,E172+'Calcs - Snow'!$B$20,E172)) -> -
A173: 44 | B173: =A173*Inputs!$F$27 -> 11 | C173: =ROUND(B173+Inputs!$F$27+(Inputs!$F$26-Inputs!$F$27)/2,5) -> 14 | D173: - | E173: - | F173: =IF(E173="-","-",IF(ABS(B173)<'Calcs - Snow'!$B$19/2,E173+'Calcs - Snow'!$B$20,E173)) -> -
A174: 45 | B174: =A174*Inputs!$F$27 -> 11.25 | C174: =ROUND(B174+Inputs!$F$27+(Inputs!$F$26-Inputs!$F$27)/2,5) -> 14.25 | D174: - | E174: - | F174: =IF(E174="-","-",IF(ABS(B174)<'Calcs - Snow'!$B$19/2,E174+'Calcs - Snow'!$B$20,E174)) -> -
A175: 46 | B175: =A175*Inputs!$F$27 -> 11.5 | C175: =ROUND(B175+Inputs!$F$27+(Inputs!$F$26-Inputs!$F$27)/2,5) -> 14.5 | D175: - | E175: - | F175: =IF(E175="-","-",IF(ABS(B175)<'Calcs - Snow'!$B$19/2,E175+'Calcs - Snow'!$B$20,E175)) -> -
A176: 47 | B176: =A176*Inputs!$F$27 -> 11.75 | C176: =ROUND(B176+Inputs!$F$27+(Inputs!$F$26-Inputs!$F$27)/2,5) -> 14.75 | D176: - | E176: - | F176: =IF(E176="-","-",IF(ABS(B176)<'Calcs - Snow'!$B$19/2,E176+'Calcs - Snow'!$B$20,E176)) -> -
A177: 48 | B177: =A177*Inputs!$F$27 -> 12 | C177: =ROUND(B177+Inputs!$F$27+(Inputs!$F$26-Inputs!$F$27)/2,5) -> 15 | D177: - | E177: - | F177: =IF(E177="-","-",IF(ABS(B177)<'Calcs - Snow'!$B$19/2,E177+'Calcs - Snow'!$B$20,E177)) -> -
A178: 49 | B178: =A178*Inputs!$F$27 -> 12.25 | C178: =ROUND(B178+Inputs!$F$27+(Inputs!$F$26-Inputs!$F$27)/2,5) -> 15.25 | D178: - | E178: - | F178: =IF(E178="-","-",IF(ABS(B178)<'Calcs - Snow'!$B$19/2,E178+'Calcs - Snow'!$B$20,E178)) -> -
A179: Check | D179: =IF(AND(SUM(D80:D178)>H20-0.1,SUM(D80:D178)<H20+0.1),"OK","Error") ->  | E179: =IF(AND(SUM(E80:E178)>I20-0.1,SUM(E80:E178)<I20+0.1),"OK","Error") ->  | F179: =SUM(F80:F178)-SUM(E80:E178)-'Calcs - Snow'!B18 -> 

Sheet Calcs - Winter PMF (hidden)
A1: Model parameters | F1: Checks
A2: Percentage runoff | C2: =Inputs!D50 ->  | D2: % | F2: Volume check of UH | H2: =SUM(G10:G210)*C3*3600 -> 178269.1893 | I2: or | J2: =0.5*C5*C6*3600 -> 178310.8404
A3: dt | C3: =Inputs!F27 -> 0.25 | D3: hours | F3: Theoretical volume | H3: =Inputs!F11*1000000/1000 -> 178682.5
A4: TP(dt) | C4: =Inputs!D57 -> 2.539208158 | D4: hours | F4: %difference | H4: =ABS(H2-H3)/H3 -> 0.002313101126 | J4: =ABS(J2-H3)/H3 -> 0.00208
A5: UP | C5: =Inputs!D58 -> 15.48126327 | D5: m3/s/mm
A6: TB | C6: =Inputs!D59 -> 6.398804558 | D6: hours
A7: Baseflow | C7: =Inputs!F51 ->  | D7: m3/s | M7: UH convolution per timestep. Cells in orange are required to extend the convolution process beyond the range of the PMP data.
A9: Time within storm (hrs) | B9: Gross rainfall (mm) | C9: Net Rainfall (mm) | E9: Timestep (hours) | F9: UH (m3/s/mm) | G9: UH (cleaned) | I9: Quick Runoff | J9: Total Hydrograph | L9: Step offsets | M9: 0 | N9: 1 | O9: 2 | P9: 3 | Q9: 4 | R9: 5 | S9: 6 | T9: 7 | U9: 8 | V9: 9 | W9: 10 | X9: 11 | Y9: 12 | Z9: 13 | AA9: 14 | AB9: 15 | AC9: 16 | AD9: 17 | AE9: 18 | AF9: 19 | AG9: 20 | AH9: 21 | AI9: 22 | AJ9: 23 | AK9: 24 | AL9: 25 | AM9: 26 | AN9: 27 | AO9: 28 | AP9: 29 | AQ9: 30 | AR9: 31 | AS9: 32 | AT9: 33 | AU9: 34 | AV9: 35 | AW9: 36 | AX9: 37 | AY9: 38 | AZ9: 39 | BA9: 40 | BB9: 41 | BC9: 42 | BD9: 43 | BE9: 44 | BF9: 45 | BG9: 46 | BH9: 47 | BI9: 48 | BJ9: 49 | BK9: 50 | BL9: 51 | BM9: 52 | BN9: 53 | BO9: 54 | BP9: 55 | BQ9: 56 | BR9: 57 | BS9: 58 | BT9: 59 | BU9: 60 | BV9: 61 | BW9: 62 | BX9: 63 | BY9: 64 | BZ9: 65 | CA9: 66 | CB9: 67 | CC9: 68 | CD9: 69 | CE9: 70 | CF9: 71 | CG9: 72 | CH9: 73 | CI9: 74 | CJ9: 75 | CK9: 76 | CL9: 77 | CM9: 78 | CN9: 79 | CO9: 80 | CP9: 81 | CQ9: 82 | CR9: 83 | CS9: 84 | CT9: 85 | CU9: 86 | CV9: 87 | CW9: 88 | CX9: 89 | CY9: 90 | CZ9: 91 | DA9: 92 | DB9: 93 | DC9: 94 | DD9: 95 | DE9: 96 | DF9: 97 | DG9: 98 | DH9: 99 | DI9: 100 | DJ9: 101 | DK9: 102 | DL9: 103 | DM9: 104 | DN9: 105 | DO9: 106 | DP9: 107 | DQ9: 108 | DR9: 109 | DS9: 110 | DT9: 111 | DU9: 112 | DV9: 113 | DW9: 114 | DX9: 115 | DY9: 116 | DZ9: 117 | EA9: 118 | EB9: 119 | EC9: 120 | ED9: 121 | EE9: 122 | EF9: 123 | EG9: 124 | EH9: 125 | EI9: 126 | EJ9: 127 | EK9: 128 | EL9: 129 | EM9: 130 | EN9: 131 | EO9: 132 | EP9: 133 | EQ9: 134 | ER9: 135 | ES9: 136 | ET9: 137 | EU9: 138 | EV9: 139 | EW9: 140 | EX9: 141 | EY9: 142 | EZ9: 143 | FA9: 144 | FB9: 145 | FC9: 146 | FD9: 147 | FE9: 148 | FF9: 149 | FG9: 150 | FH9: 151 | FI9: 152 | FJ9: 153 | FK9: 154 | FL9: 155 | FM9: 156 | FN9: 157 | FO9: 158 | FP9: 159 | FQ9: 160 | FR9: 161 | FS9: 162 | FT9: 163 | FU9: 164 | FV9: 165 | FW9: 166 | FX9: 167 | FY9: 168 | FZ9: 169 | GA9: 170 | GB9: 171 | GC9: 172 | GD9: 173 | GE9: 174 | GF9: 175 | GG9: 176 | GH9: 177 | GI9: 178 | GJ9: 179 | GK9: 180 | GL9: 181 | GM9: 182 | GN9: 183 | GO9: 184 | GP9: 185 | GQ9: 186 | GR9: 187 | GS9: 188 | GT9: 189 | GU9: 190 | GV9: 191 | GW9: 192 | GX9: 193 | GY9: 194 | GZ9: 195 | HA9: 196 | HB9: 197 | HC9: 198 | HD9: 199 | HE9: 200
A10: ='Calcs - PMP'!C80 -> -9.25 | B10: ='Calcs - PMP'!F80 -> - | C10: =IF(B10="-","-",B10*$C$2/100) -> - | E10: 0 | F10: =IF(E10<=$C$4,E10*$C$5/$C$4,($C$6-E10)*$C$5/($C$6-$C$4)) -> 0 | G10: =IF(F10<0,0,F10) -> 0 | I10: =SUM(M10:HE10) ->  | J10: =I10+$C$7 ->  | L10: 0 | M10: =IF(OFFSET($C$10,M$9,0)="-",0,IF(M$9>=$L10,0,OFFSET($C$10,M$9,0)*OFFSET($G$10,$L10-M$9,0))) -> 0 | N10: 0 | O10: 0 | P10: 0 | Q10: 0 | R10: 0 | S10: 0 | T10: 0 | U10: 0 | V10: 0 | W10: =IF(OFFSET($C$10,W$9,0)="-",0,IF(W$9>=$L10,0,OFFSET($C$10,W$9,0)*OFFSET($G$10,$L10-W$9,0))) -> 0 | X10: 0 | Y10: 0 | Z10: 0 | AA10: 0 | AB10: 0 | AC10: 0 | AD10: 0 | AE10: 0 | AF10: 0 | AG10: =IF(OFFSET($C$10,AG$9,0)="-",0,IF(AG$9>=$L10,0,OFFSET($C$10,AG$9,0)*OFFSET($G$10,$L10-AG$9,0))) -> 0 | AH10: 0 | AI10: 0 | AJ10: 0 | AK10: 0 | AL10: 0 | AM10: 0 | AN10: 0 | AO10: 0 | AP10: 0 | AQ10: =IF(OFFSET($C$10,AQ$9,0)="-",0,IF(AQ$9>=$L10,0,OFFSET($C$10,AQ$9,0)*OFFSET($G$10,$L10-AQ$9,0))) -> 0 | AR10: 0 | AS10: 0 | AT10: 0 | AU10: 0 | AV10: 0 | AW10: 0 | AX10: 0 | BA10: =IF(OFFSET($C$10,BA$9,0)="-",0,IF(BA$9>=$L10,0,OFFSET($C$10,BA$9,0)*OFFSET($G$10,$L10-BA$9,0))) ->  | BK10: =IF(OFFSET($C$10,BK$9,0)="-",0,IF(BK$9>=$L10,0,OFFSET($C$10,BK$9,0)*OFFSET($G$10,$L10-BK$9,0))) ->  | BV10: 0 | BW10: 0 | BX10: 0 | BY10: 0 | BZ10: 0 | CA10: =IF(OFFSET($C$10,CA$9,0)="-",0,IF(CA$9>=$L10,0,OFFSET($C$10,CA$9,0)*OFFSET($G$10,$L10-CA$9,0))) -> 0 | CB10: 0 | CC10: 0 | CD10: 0 | CE10: 0 | CF10: 0 | CG10: 0 | CH10: 0 | CI10: 0 | CJ10: 0 | CK10: 0 | CL10: 0 | CM10: 0 | CN10: 0 | CO10: 0 | CP10: 0 | CQ10: 0 | CR10: 0 | CS10: 0 | CT10: 0 | CU10: 0 | CV10: 0 | CW10: 0 | CX10: 0 | CY10: 0 | CZ10: 0 | DA10: 0 | DB10: 0 | DC10: 0 | DD10: 0 | DE10: 0 | DF10: 0 | DG10: 0 | DH10: =IF(OFFSET($C$10,DH$9,0)="-",0,IF(DH$9>=$L10,0,OFFSET($C$10,DH$9,0)*OFFSET($G$10,$L10-DH$9,0))) -> 0 | DI10: 0 | DJ10: 0 | DK10: 0 | DL10: 0 | DM10: 0 | DN10: 0 | DO10: 0 | DP10: 0 | DQ10: 0 | DR10: 0 | DS10: 0 | DT10: 0 | DU10: 0 | DV10: 0 | DW10: 0 | DX10: =IF(OFFSET($C$10,DX$9,0)="-",0,IF(DX$9>=$L10,0,OFFSET($C$10,DX$9,0)*OFFSET($G$10,$L10-DX$9,0))) -> 0 | DY10: 0 | DZ10: 0 | EA10: 0 | EB10: 0 | EC10: 0 | ED10: 0 | EE10: 0 | EF10: 0 | EG10: 0 | EH10: 0 | EI10: 0 | EJ10: 0 | EK10: 0 | EL10: 0 | EM10: 0 | EN10: 0 | EO10: 0 | EP10: 0 | EQ10: 0 | ER10: 0 | ES10: 0 | ET10: 0 | EU10: 0 | EV10: 0 | EW10: 0 | EX10: 0 | EY10: 0 | EZ10: 0 | FA10: 0 | FB10: 0 | FC10: 0 | FD10: 0 | FE10: 0 | FF10: 0 | FG10: 0 | FH10: 0 | FI10: 0 | FJ10: 0 | FK10: 0 | FL10: 0 | FM10: 0 | FN10: 0 | FO10: 0 | FP10: 0 | FQ10: 0 | FR10: 0 | FS10: 0 | FT10: 0 | FU10: 0 | FV10: 0 | FW10: 0 | FX10: 0 | FY10: 0 | FZ10: 0 | GA10: 0 | GB10: 0 | GC10: 0 | GD10: 0 | GE10: 0 | GF10: 0 | GG10: 0 | GH10: 0 | GI10: 0 | GJ10: =IF(OFFSET($C$10,GJ$9,0)="-",0,IF(GJ$9>=$L10,0,OFFSET($C$10,GJ$9,0)*OFFSET($G$10,$L10-GJ$9,0))) -> 0 | GK10: 0 | GL10: 0 | GM10: 0 | GN10: 0 | GO10: 0 | GP10: 0 | GQ10: 0 | GR10: 0 | GS10: 0 | GT10: 0 | GU10: 0 | GV10: 0 | GW10: 0 | GX10: 0 | GY10: 0 | GZ10: 0 | HA10: 0 | HB10: 0 | HC10: 0 | HD10: 0 | HE10: 0
A11: ='Calcs - PMP'!C81 -> -9 | B11: ='Calcs - PMP'!F81 -> - | C11: =IF(B11="-","-",B11*$C$2/100) -> - | E11: =E10+$C$3 -> 0.25 | F11: =IF(E11<=$C$4,E11*$C$5/$C$4,($C$6-E11)*$C$5/($C$6-$C$4)) -> 1.524221559 | G11: =IF(F11<0,0,F11) -> 1.524221559 | I11: =SUM(M11:HE11) ->  | J11: =I11+$C$7 ->  | L11: 1 | M11: 0 | N11: 0 | O11: 0 | P11: 0 | Q11: 0 | R11: 0 | S11: 0 | T11: 0 | U11: 0 | V11: 0 | W11: 0 | X11: 0 | Y11: 0 | Z11: 0 | AA11: 0 | AB11: 0 | AC11: 0 | AD11: 0 | AE11: 0 | AF11: 0 | AG11: 0 | AH11: 0 | AI11: 0 | AJ11: 0 | AK11: 0 | AL11: 0 | AM11: 0 | AN11: 0 | AO11: 0 | AP11: 0 | AQ11: 0 | AR11: 0 | AS11: 0 | AT11: 0 | AU11: 0 | AV11: 0 | AW11: 0 | AX11: 0 | BV11: 0 | BW11: 0 | BX11: 0 | BY11: 0 | BZ11: 0 | CA11: 0 | CB11: 0 | CC11: 0 | CD11: 0 | CE11: 0 | CF11: 0 | CG11: 0 | CH11: 0 | CI11: 0 | CJ11: 0 | CK11: 0 | CL11: 0 | CM11: 0 | CN11: 0 | CO11: 0 | CP11: 0 | CQ11: 0 | CR11: 0 | CS11: 0 | CT11: 0 | CU11: 0 | CV11: 0 | CW11: 0 | CX11: 0 | CY11: 0 | CZ11: 0 | DA11: 0 | DB11: 0 | DC11: 0 | DD11: 0 | DE11: 0 | DF11: 0 | DG11: 0 | DH11: 0 | DI11: =IF(OFFSET($C$10,DI$9,0)="-",0,IF(DI$9>=$L11,0,OFFSET($C$10,DI$9,0)*OFFSET($G$10,$L11-DI$9,0))) -> 0 | DJ11: 0 | DK11: 0 | DL11: 0 | DM11: 0 | DN11: 0 | DO11: 0 | DP11: 0 | DQ11: 0 | DR11: 0 | DS11: 0 | DT11: 0 | DU11: 0 | DV11: 0 | DW11: 0 | DX11: 0 | DY11: 0 | DZ11: 0 | EA11: 0 | EB11: 0 | EC11: 0 | ED11: 0 | EE11: 0 | EF11: 0 | EG11: 0 | EH11: 0 | EI11: 0 | EJ11: 0 | EK11: 0 | EL11: 0 | EM11: 0 | EN11: 0 | EO11: 0 | EP11: 0 | EQ11: 0 | ER11: 0 | ES11: 0 | ET11: 0 | EU11: 0 | EV11: 0 | EW11: 0 | EX11: 0 | EY11: 0 | EZ11: 0 | FA11: 0 | FB11: 0 | FC11: 0 | FD11: 0 | FE11: 0 | FF11: 0 | FG11: 0 | FH11: 0 | FI11: 0 | FJ11: 0 | FK11: 0 | FL11: 0 | FM11: 0 | FN11: 0 | FO11: 0 | FP11: 0 | FQ11: 0 | FR11: 0 | FS11: 0 | FT11: 0 | FU11: 0 | FV11: 0 | FW11: 0 | FX11: 0 | FY11: 0 | FZ11: 0 | GA11: 0 | GB11: 0 | GC11: 0 | GD11: 0 | GE11: 0 | GF11: 0 | GG11: 0 | GH11: 0 | GI11: 0 | GJ11: 0 | GK11: 0 | GL11: 0 | GM11: 0 | GN11: 0 | GO11: 0 | GP11: 0 | GQ11: 0 | GR11: 0 | GS11: 0 | GT11: 0 | GU11: 0 | GV11: 0 | GW11: 0 | GX11: 0 | GY11: 0 | GZ11: 0 | HA11: 0 | HB11: 0 | HC11: 0 | HD11: 0 | HE11: 0
A12: ='Calcs - PMP'!C82 -> -8.75 | B12: ='Calcs - PMP'!F82 -> - | C12: - | E12: =E11+$C$3 -> 0.5 | F12: 3.048443119 | G12: 3.048443119 | L12: 2 | M12: 0 | N12: 0 | O12: 0 | P12: 0 | Q12: 0 | R12: 0 | S12: 0 | T12: 0 | U12: 0 | V12: 0 | W12: 0 | X12: 0 | Y12: 0 | Z12: 0 | AA12: 0 | AB12: 0 | AC12: 0 | AD12: 0 | AE12: 0 | AF12: 0 | AG12: 0 | AH12: 0 | AI12: 0 | AJ12: 0 | AK12: 0 | AL12: 0 | AM12: 0 | AN12: 0 | AO12: 0 | AP12: 0 | AQ12: 0 | AR12: 0 | AS12: 0 | AT12: 0 | AU12: 0 | AV12: 0 | AW12: 0 | AX12: 0 | BV12: 0 | BW12: 0 | BX12: 0 | BY12: 0 | BZ12: 0 | CA12: 0 | CB12: 0 | CC12: 0 | CD12: 0 | CE12: 0 | CF12: 0 | CG12: 0 | CH12: 0 | CI12: 0 | CJ12: 0 | CK12: 0 | CL12: 0 | CM12: 0 | CN12: 0 | CO12: 0 | CP12: 0 | CQ12: 0 | CR12: 0 | CS12: 0 | CT12: 0 | CU12: 0 | CV12: 0 | CW12: 0 | CX12: 0 | CY12: 0 | CZ12: 0 | DA12: 0 | DB12: 0 | DC12: 0 | DD12: 0 | DE12: 0 | DF12: 0 | DG12: 0 | DH12: 0 | DI12: 0 | DJ12: 0 | DK12: 0 | DL12: 0 | DM12: 0 | DN12: 0 | DO12: 0 | DP12: 0 | DQ12: 0 | DR12: 0 | DS12: 0 | DT12: 0 | DU12: 0 | DV12: 0 | DW12: 0 | DX12: 0 | DY12: 0 | DZ12: 0 | EA12: 0 | EB12: 0 | EC12: 0 | ED12: 0 | EE12: 0 | EF12: 0 | EG12: 0 | EH12: 0 | EI12: 0 | EJ12: 0 | EK12: 0 | EL12: 0 | EM12: 0 | EN12: 0 | EO12: 0 | EP12: 0 | EQ12: 0 | ER12: 0 | ES12: 0 | ET12: 0 | EU12: 0 | EV12: 0 | EW12: 0 | EX12: 0 | EY12: 0 | EZ12: 0 | FA12: 0 | FB12: 0 | FC12: 0 | FD12: 0 | FE12: 0 | FF12: 0 | FG12: 0 | FH12: 0 | FI12: 0 | FJ12: 0 | FK12: 0 | FL12: 0 | FM12: 0 | FN12: 0 | FO12: 0 | FP12: 0 | FQ12: 0 | FR12: 0 | FS12: 0 | FT12: 0 | FU12: 0 | FV12: 0 | FW12: 0 | FX12: 0 | FY12: 0 | FZ12: 0 | GA12: 0 | GB12: 0 | GC12: 0 | GD12: 0 | GE12: 0 | GF12: 0 | GG12: 0 | GH12: 0 | GI12: 0 | GJ12: 0 | GK12: 0 | GL12: 0 | GM12: 0 | GN12: 0 | GO12: 0 | GP12: 0 | GQ12: 0 | GR12: 0 | GS12: 0 | GT12: 0 | GU12: 0 | GV12: 0 | GW12: 0 | GX12: 0 | GY12: 0 | GZ12: 0 | HA12: 0 | HB12: 0 | HC12: 0 | HD12: 0 | HE12: 0
A13: ='Calcs - PMP'!C83 -> -8.5 | B13: ='Calcs - PMP'!F83 -> - | C13: - | E13: =E12+$C$3 -> 0.75 | F13: 4.572664678 | G13: 4.572664678 | L13: 3 | M13: 0 | N13: 0 | O13: 0 | P13: 0 | Q13: 0 | R13: 0 | S13: 0 | T13: 0 | U13: 0 | V13: 0 | W13: 0 | X13: 0 | Y13: 0 | Z13: 0 | AA13: 0 | AB13: 0 | AC13: 0 | AD13: 0 | AE13: 0 | AF13: 0 | AG13: 0 | AH13: 0 | AI13: 0 | AJ13: 0 | AK13: 0 | AL13: 0 | AM13: 0 | AN13: 0 | AO13: 0 | AP13: 0 | AQ13: 0 | AR13: 0 | AS13: 0 | AT13: 0 | AU13: 0 | AV13: 0 | AW13: 0 | AX13: 0 | BV13: 0 | BW13: 0 | BX13: 0 | BY13: 0 | BZ13: 0 | CA13: 0 | CB13: 0 | CC13: 0 | CD13: 0 | CE13: 0 | CF13: 0 | CG13: 0 | CH13: 0 | CI13: 0 | CJ13: 0 | CK13: 0 | CL13: 0 | CM13: 0 | CN13: 0 | CO13: 0 | CP13: 0 | CQ13: 0 | CR13: 0 | CS13: 0 | CT13: 0 | CU13: 0 | CV13: 0 | CW13: 0 | CX13: 0 | CY13: 0 | CZ13: 0 | DA13: 0 | DB13: 0 | DC13: 0 | DD13: 0 | DE13: 0 | DF13: 0 | DG13: 0 | DH13: 0 | DI13: 0 | DJ13: 0 | DK13: 0 | DL13: 0 | DM13: 0 | DN13: 0 | DO13: 0 | DP13: 0 | DQ13: 0 | DR13: 0 | DS13: 0 | DT13: 0 | DU13: 0 | DV13: 0 | DW13: 0 | DX13: 0 | DY13: 0 | DZ13: 0 | EA13: 0 | EB13: 0 | EC13: 0 | ED13: 0 | EE13: 0 | EF13: 0 | EG13: 0 | EH13: 0 | EI13: 0 | EJ13: 0 | EK13: 0 | EL13: 0 | EM13: 0 | EN13: 0 | EO13: 0 | EP13: 0 | EQ13: 0 | ER13: 0 | ES13: 0 | ET13: 0 | EU13: 0 | EV13: 0 | EW13: 0 | EX13: 0 | EY13: 0 | EZ13: 0 | FA13: 0 | FB13: 0 | FC13: 0 | FD13: 0 | FE13: 0 | FF13: 0 | FG13: 0 | FH13: 0 | FI13: 0 | FJ13: 0 | FK13: 0 | FL13: 0 | FM13: 0 | FN13: 0 | FO13: 0 | FP13: 0 | FQ13: 0 | FR13: 0 | FS13: 0 | FT13: 0 | FU13: 0 | FV13: 0 | FW13: 0 | FX13: 0 | FY13: 0 | FZ13: 0 | GA13: 0 | GB13: 0 | GC13: 0 | GD13: 0 | GE13: 0 | GF13: 0 | GG13: 0 | GH13: 0 | GI13: 0 | GJ13: 0 | GK13: 0 | GL13: 0 | GM13: 0 | GN13: 0 | GO13: 0 | GP13: 0 | GQ13: 0 | GR13: 0 | GS13: 0 | GT13: 0 | GU13: 0 | GV13: 0 | GW13: 0 | GX13: 0 | GY13: 0 | GZ13: 0 | HA13: 0 | HB13: 0 | HC13: 0 | HD13: 0 | HE13: 0
A14: ='Calcs - PMP'!C84 -> -8.25 | B14: ='Calcs - PMP'!F84 -> - | C14: - | E14: 1 | F14: 6.096886238 | G14: 6.096886238 | L14: 4 | M14: 0 | N14: 0 | O14: 0 | P14: 0 | Q14: 0 | R14: 0 | S14: 0 | T14: 0 | U14: 0 | V14: 0 | W14: 0 | X14: 0 | Y14: 0 | Z14: 0 | AA14: 0 | AB14: 0 | AC14: 0 | AD14: 0 | AE14: 0 | AF14: 0 | AG14: 0 | AH14: 0 | AI14: 0 | AJ14: 0 | AK14: 0 | AL14: 0 | AM14: 0 | AN14: 0 | AO14: 0 | AP14: 0 | AQ14: 0 | AR14: 0 | AS14: 0 | AT14: 0 | AU14: 0 | AV14: 0 | AW14: 0 | AX14: 0 | BV14: 0 | BW14: 0 | BX14: 0 | BY14: 0 | BZ14: 0 | CA14: 0 | CB14: 0 | CC14: 0 | CD14: 0 | CE14: 0 | CF14: 0 | CG14: 0 | CH14: 0 | CI14: 0 | CJ14: 0 | CK14: 0 | CL14: 0 | CM14: 0 | CN14: 0 | CO14: 0 | CP14: 0 | CQ14: 0 | CR14: 0 | CS14: 0 | CT14: 0 | CU14: 0 | CV14: 0 | CW14: 0 | CX14: 0 | CY14: 0 | CZ14: 0 | DA14: 0 | DB14: 0 | DC14: 0 | DD14: 0 | DE14: 0 | DF14: 0 | DG14: 0 | DH14: 0 | DI14: 0 | DJ14: 0 | DK14: 0 | DL14: 0 | DM14: 0 | DN14: 0 | DO14: 0 | DP14: 0 | DQ14: 0 | DR14: 0 | DS14: 0 | DT14: 0 | DU14: 0 | DV14: 0 | DW14: 0 | DX14: 0 | DY14: 0 | DZ14: 0 | EA14: 0 | EB14: 0 | EC14: 0 | ED14: 0 | EE14: 0 | EF14: 0 | EG14: 0 | EH14: 0 | EI14: 0 | EJ14: 0 | EK14: 0 | EL14: 0 | EM14: 0 | EN14: 0 | EO14: 0 | EP14: 0 | EQ14: 0 | ER14: 0 | ES14: 0 | ET14: 0 | EU14: 0 | EV14: 0 | EW14: 0 | EX14: 0 | EY14: 0 | EZ14: 0 | FA14: 0 | FB14: 0 | FC14: 0 | FD14: 0 | FE14: 0 | FF14: 0 | FG14: 0 | FH14: 0 | FI14: 0 | FJ14: 0 | FK14: 0 | FL14: 0 | FM14: 0 | FN14: 0 | FO14: 0 | FP14: 0 | FQ14: 0 | FR14: 0 | FS14: 0 | FT14: =IF(OFFSET($C$10,FT$9,0)="-",0,IF(FT$9>=$L14,0,OFFSET($C$10,FT$9,0)*OFFSET($G$10,$L14-FT$9,0))) -> 0 | FU14: 0 | FV14: 0 | FW14: 0 | FX14: 0 | FY14: 0 | FZ14: 0 | GA14: 0 | GB14: 0 | GC14: 0 | GD14: 0 | GE14: 0 | GF14: 0 | GG14: 0 | GH14: 0 | GI14: 0 | GJ14: 0 | GK14: 0 | GL14: 0 | GM14: 0 | GN14: 0 | GO14: 0 | GP14: 0 | GQ14: 0 | GR14: 0 | GS14: 0 | GT14: 0 | GU14: 0 | GV14: 0 | GW14: 0 | GX14: 0 | GY14: 0 | GZ14: 0 | HA14: 0 | HB14: 0 | HC14: 0 | HD14: 0 | HE14: 0
A15: ='Calcs - PMP'!C85 -> -8 | B15: ='Calcs - PMP'!F85 -> - | C15: - | E15: 1.25 | F15: 7.621107797 | G15: 7.621107797 | L15: 5 | M15: 0 | N15: 0 | O15: 0 | P15: 0 | Q15: 0 | R15: 0 | S15: 0 | T15: 0 | U15: 0 | V15: 0 | W15: 0 | X15: 0 | Y15: 0 | Z15: 0 | AA15: 0 | AB15: 0 | AC15: 0 | AD15: 0 | AE15: 0 | AF15: 0 | AG15: 0 | AH15: 0 | AI15: 0 | AJ15: 0 | AK15: 0 | AL15: 0 | AM15: 0 | AN15: 0 | AO15: 0 | AP15: 0 | AQ15: 0 | AR15: 0 | AS15: 0 | AT15: 0 | AU15: 0 | AV15: 0 | AW15: 0 | AX15: 0 | BV15: 0 | BW15: 0 | BX15: 0 | BY15: 0 | BZ15: 0 | CA15: 0 | CB15: 0 | CC15: 0 | CD15: 0 | CE15: 0 | CF15: 0 | CG15: 0 | CH15: 0 | CI15: 0 | CJ15: 0 | CK15: 0 | CL15: 0 | CM15: 0 | CN15: 0 | CO15: 0 | CP15: 0 | CQ15: 0 | CR15: 0 | CS15: 0 | CT15: 0 | CU15: 0 | CV15: 0 | CW15: 0 | CX15: 0 | CY15: 0 | CZ15: 0 | DA15: 0 | DB15: 0 | DC15: 0 | DD15: 0 | DE15: 0 | DF15: 0 | DG15: 0 | DH15: 0 | DI15: =IF(OFFSET($C$10,DI$9,0)="-",0,IF(DI$9>=$L15,0,OFFSET($C$10,DI$9,0)*OFFSET($G$10,$L15-DI$9,0))) -> 0 | DJ15: 0 | DK15: 0 | DL15: 0 | DM15: 0 | DN15: 0 | DO15: 0 | DP15: 0 | DQ15: 0 | DR15: 0 | DS15: 0 | DT15: 0 | DU15: 0 | DV15: 0 | DW15: 0 | DX15: 0 | DY15: 0 | DZ15: 0 | EA15: 0 | EB15: 0 | EC15: 0 | ED15: 0 | EE15: 0 | EF15: 0 | EG15: 0 | EH15: 0 | EI15: 0 | EJ15: 0 | EK15: 0 | EL15: 0 | EM15: 0 | EN15: 0 | EO15: 0 | EP15: 0 | EQ15: 0 | ER15: 0 | ES15: 0 | ET15: 0 | EU15: 0 | EV15: 0 | EW15: 0 | EX15: 0 | EY15: 0 | EZ15: 0 | FA15: 0 | FB15: 0 | FC15: 0 | FD15: 0 | FE15: 0 | FF15: 0 | FG15: 0 | FH15: 0 | FI15: 0 | FJ15: 0 | FK15: 0 | FL15: 0 | FM15: 0 | FN15: 0 | FO15: 0 | FP15: 0 | FQ15: 0 | FR15: 0 | FS15: 0 | FT15: 0 | FU15: 0 | FV15: 0 | FW15: 0 | FX15: 0 | FY15: 0 | FZ15: 0 | GA15: 0 | GB15: 0 | GC15: 0 | GD15: 0 | GE15: 0 | GF15: 0 | GG15: 0 | GH15: 0 | GI15: 0 | GJ15: 0 | GK15: 0 | GL15: 0 | GM15: 0 | GN15: 0 | GO15: 0 | GP15: 0 | GQ15: 0 | GR15: 0 | GS15: 0 | GT15: 0 | GU15: 0 | GV15: 0 | GW15: 0 | GX15: 0 | GY15: 0 | GZ15: 0 | HA15: 0 | HB15: 0 | HC15: 0 | HD15: 0 | HE15: 0
A16: ='Calcs - PMP'!C86 -> -7.75 | B16: ='Calcs - PMP'!F86 -> - | C16: - | E16: 1.5 | F16: 9.145329357 | G16: 9.145329357 | J16: =I16+$C$7 ->  | L16: 6 | M16: 0 | N16: 0 | O16: 0 | P16: 0 | Q16: 0 | R16: 0 | S16: 0 | T16: 0 | U16: 0 | V16: 0 | W16: 0 | X16: 0 | Y16: 0 | Z16: 0 | AA16: 0 | AB16: 0 | AC16: 0 | AD16: 0 | AE16: 0 | AF16: 0 | AG16: 0 | AH16: 0 | AI16: 0 | AJ16: 0 | AK16: 0 | AL16: 0 | AM16: 0 | AN16: 0 | AO16: 0 | AP16: 0 | AQ16: 0 | AR16: 0 | AS16: 0 | AT16: 0 | AU16: 0 | AV16: 0 | AW16: 0 | AX16: 0 | BV16: 0 | BW16: 0 | BX16: 0 | BY16: 0 | BZ16: 0 | CA16: 0 | CB16: 0 | CC16: 0 | CD16: 0 | CE16: 0 | CF16: 0 | CG16: 0 | CH16: 0 | CI16: 0 | CJ16: 0 | CK16: 0 | CL16: 0 | CM16: 0 | CN16: 0 | CO16: 0 | CP16: 0 | CQ16: 0 | CR16: 0 | CS16: 0 | CT16: 0 | CU16: 0 | CV16: 0 | CW16: 0 | CX16: 0 | CY16: 0 | CZ16: 0 | DA16: 0 | DB16: =IF(OFFSET($C$10,DB$9,0)="-",0,IF(DB$9>=$L16,0,OFFSET($C$10,DB$9,0)*OFFSET($G$10,$L16-DB$9,0))) -> 0 | DC16: 0 | DD16: 0 | DE16: 0 | DF16: 0 | DG16: 0 | DH16: 0 | DI16: 0 | DJ16: 0 | DK16: 0 | DL16: 0 | DM16: 0 | DN16: 0 | DO16: 0 | DP16: 0 | DQ16: 0 | DR16: 0 | DS16: 0 | DT16: 0 | DU16: 0 | DV16: 0 | DW16: 0 | DX16: 0 | DY16: 0 | DZ16: 0 | EA16: 0 | EB16: 0 | EC16: 0 | ED16: 0 | EE16: 0 | EF16: 0 | EG16: 0 | EH16: 0 | EI16: 0 | EJ16: 0 | EK16: 0 | EL16: 0 | EM16: 0 | EN16: 0 | EO16: 0 | EP16: 0 | EQ16: 0 | ER16: 0 | ES16: 0 | ET16: 0 | EU16: 0 | EV16: 0 | EW16: 0 | EX16: 0 | EY16: 0 | EZ16: 0 | FA16: 0 | FB16: 0 | FC16: 0 | FD16: 0 | FE16: 0 | FF16: 0 | FG16: 0 | FH16: 0 | FI16: 0 | FJ16: 0 | FK16: 0 | FL16: 0 | FM16: 0 | FN16: 0 | FO16: 0 | FP16: 0 | FQ16: 0 | FR16: 0 | FS16: 0 | FT16: 0 | FU16: 0 | FV16: 0 | FW16: 0 | FX16: 0 | FY16: 0 | FZ16: 0 | GA16: 0 | GB16: 0 | GC16: 0 | GD16: 0 | GE16: 0 | GF16: 0 | GG16: 0 | GH16: 0 | GI16: 0 | GJ16: 0 | GK16: 0 | GL16: 0 | GM16: 0 | GN16: 0 | GO16: 0 | GP16: 0 | GQ16: 0 | GR16: 0 | GS16: 0 | GT16: 0 | GU16: 0 | GV16: 0 | GW16: 0 | GX16: 0 | GY16: 0 | GZ16: 0 | HA16: 0 | HB16: 0 | HC16: 0 | HD16: 0 | HE16: 0
A17: ='Calcs - PMP'!C87 -> -7.5 | B17: ='Calcs - PMP'!F87 -> - | C17: - | E17: 1.75 | F17: 10.66955092 | G17: 10.66955092 | L17: 7 | M17: 0 | N17: 0 | O17: 0 | P17: 0 | Q17: 0 | R17: 0 | S17: 0 | T17: 0 | U17: 0 | V17: 0 | W17: 0 | X17: 0 | Y17: 0 | Z17: 0 | AA17: 0 | AB17: 0 | AC17: 0 | AD17: 0 | AE17: 0 | AF17: 0 | AG17: 0 | AH17: 0 | AI17: 0 | AJ17: 0 | AK17: 0 | AL17: 0 | AM17: 0 | AN17: 0 | AO17: 0 | AP17: 0 | AQ17: 0 | AR17: 0 | AS17: 0 | AT17: 0 | AU17: 0 | AV17: 0 | AW17: 0 | AX17: 0 | BV17: 0 | BW17: 0 | BX17: 0 | BY17: 0 | BZ17: 0 | CA17: 0 | CB17: 0 | CC17: 0 | CD17: 0 | CE17: 0 | CF17: 0 | CG17: 0 | CH17: 0 | CI17: 0 | CJ17: 0 | CK17: 0 | CL17: 0 | CM17: 0 | CN17: 0 | CO17: 0 | CP17: 0 | CQ17: 0 | CR17: 0 | CS17: 0 | CT17: 0 | CU17: 0 | CV17: 0 | CW17: 0 | CX17: 0 | CY17: 0 | CZ17: 0 | DA17: 0 | DB17: 0 | DC17: 0 | DD17: 0 | DE17: 0 | DF17: 0 | DG17: 0 | DH17: 0 | DI17: 0 | DJ17: 0 | DK17: 0 | DL17: 0 | DM17: 0 | DN17: 0 | DO17: 0 | DP17: 0 | DQ17: 0 | DR17: 0 | DS17: 0 | DT17: 0 | DU17: 0 | DV17: 0 | DW17: 0 | DX17: 0 | DY17: 0 | DZ17: 0 | EA17: 0 | EB17: 0 | EC17: 0 | ED17: 0 | EE17: 0 | EF17: 0 | EG17: 0 | EH17: 0 | EI17: 0 | EJ17: 0 | EK17: 0 | EL17: 0 | EM17: 0 | EN17: 0 | EO17: 0 | EP17: 0 | EQ17: 0 | ER17: 0 | ES17: 0 | ET17: 0 | EU17: 0 | EV17: 0 | EW17: 0 | EX17: 0 | EY17: 0 | EZ17: 0 | FA17: 0 | FB17: 0 | FC17: 0 | FD17: 0 | FE17: 0 | FF17: 0 | FG17: 0 | FH17: 0 | FI17: 0 | FJ17: 0 | FK17: 0 | FL17: 0 | FM17: 0 | FN17: 0 | FO17: 0 | FP17: 0 | FQ17: 0 | FR17: 0 | FS17: 0 | FT17: 0 | FU17: 0 | FV17: 0 | FW17: 0 | FX17: 0 | FY17: 0 | FZ17: 0 | GA17: 0 | GB17: 0 | GC17: 0 | GD17: 0 | GE17: 0 | GF17: 0 | GG17: 0 | GH17: 0 | GI17: 0 | GJ17: 0 | GK17: 0 | GL17: 0 | GM17: 0 | GN17: 0 | GO17: 0 | GP17: 0 | GQ17: 0 | GR17: 0 | GS17: 0 | GT17: 0 | GU17: 0 | GV17: 0 | GW17: 0 | GX17: 0 | GY17: 0 | GZ17: 0 | HA17: 0 | HB17: 0 | HC17: 0 | HD17: 0 | HE17: 0
A18: ='Calcs - PMP'!C88 -> -7.25 | B18: ='Calcs - PMP'!F88 -> - | C18: - | E18: 2 | F18: 12.19377248 | G18: 12.19377248 | L18: 8 | M18: 0 | N18: 0 | O18: 0 | P18: 0 | Q18: 0 | R18: 0 | S18: 0 | T18: 0 | U18: 0 | V18: 0 | W18: 0 | X18: 0 | Y18: 0 | Z18: 0 | AA18: 0 | AB18: 0 | AC18: 0 | AD18: 0 | AE18: 0 | AF18: 0 | AG18: 0 | AH18: 0 | AI18: 0 | AJ18: 0 | AK18: 0 | AL18: 0 | AM18: 0 | AN18: 0 | AO18: 0 | AP18: 0 | AQ18: 0 | AR18: 0 | AS18: 0 | AT18: 0 | AU18: 0 | AV18: 0 | AW18: 0 | AX18: 0 | BV18: 0 | BW18: 0 | BX18: 0 | BY18: 0 | BZ18: 0 | CA18: 0 | CB18: 0 | CC18: 0 | CD18: 0 | CE18: 0 | CF18: 0 | CG18: 0 | CH18: 0 | CI18: 0 | CJ18: 0 | CK18: 0 | CL18: 0 | CM18: 0 | CN18: 0 | CO18: 0 | CP18: 0 | CQ18: 0 | CR18: 0 | CS18: 0 | CT18: 0 | CU18: 0 | CV18: 0 | CW18: 0 | CX18: 0 | CY18: 0 | CZ18: 0 | DA18: 0 | DB18: 0 | DC18: 0 | DD18: 0 | DE18: 0 | DF18: 0 | DG18: 0 | DH18: 0 | DI18: 0 | DJ18: 0 | DK18: 0 | DL18: 0 | DM18: 0 | DN18: 0 | DO18: 0 | DP18: 0 | DQ18: 0 | DR18: 0 | DS18: 0 | DT18: 0 | DU18: 0 | DV18: 0 | DW18: 0 | DX18: 0 | DY18: 0 | DZ18: 0 | EA18: 0 | EB18: 0 | EC18: 0 | ED18: 0 | EE18: 0 | EF18: 0 | EG18: 0 | EH18: 0 | EI18: 0 | EJ18: 0 | EK18: 0 | EL18: 0 | EM18: 0 | EN18: 0 | EO18: 0 | EP18: 0 | EQ18: 0 | ER18: 0 | ES18: 0 | ET18: 0 | EU18: 0 | EV18: 0 | EW18: 0 | EX18: 0 | EY18: 0 | EZ18: 0 | FA18: 0 | FB18: 0 | FC18: 0 | FD18: 0 | FE18: 0 | FF18: 0 | FG18: 0 | FH18: 0 | FI18: 0 | FJ18: 0 | FK18: 0 | FL18: 0 | FM18: 0 | FN18: 0 | FO18: 0 | FP18: 0 | FQ18: 0 | FR18: 0 | FS18: 0 | FT18: =IF(OFFSET($C$10,FT$9,0)="-",0,IF(FT$9>=$L18,0,OFFSET($C$10,FT$9,0)*OFFSET($G$10,$L18-FT$9,0))) -> 0 | FU18: 0 | FV18: 0 | FW18: 0 | FX18: 0 | FY18: 0 | FZ18: 0 | GA18: 0 | GB18: 0 | GC18: 0 | GD18: 0 | GE18: 0 | GF18: 0 | GG18: 0 | GH18: 0 | GI18: 0 | GJ18: 0 | GK18: 0 | GL18: 0 | GM18: 0 | GN18: 0 | GO18: 0 | GP18: 0 | GQ18: 0 | GR18: 0 | GS18: 0 | GT18: 0 | GU18: 0 | GV18: 0 | GW18: 0 | GX18: 0 | GY18: 0 | GZ18: 0 | HA18: 0 | HB18: 0 | HC18: 0 | HD18: 0 | HE18: 0
A19: ='Calcs - PMP'!C89 -> -7 | B19: ='Calcs - PMP'!F89 -> - | C19: - | E19: 2.25 | F19: 13.71799403 | G19: 13.71799403 | L19: 9 | M19: 0 | N19: 0 | O19: 0 | P19: 0 | Q19: 0 | R19: 0 | S19: 0 | T19: 0 | U19: 0 | V19: 0 | W19: 0 | X19: 0 | Y19: 0 | Z19: 0 | AA19: 0 | AB19: 0 | AC19: 0 | AD19: 0 | AE19: 0 | AF19: 0 | AG19: 0 | AH19: 0 | AI19: 0 | AJ19: 0 | AK19: 0 | AL19: 0 | AM19: 0 | AN19: 0 | AO19: 0 | AP19: 0 | AQ19: 0 | AR19: 0 | AS19: 0 | AT19: 0 | AU19: 0 | AV19: 0 | AW19: 0 | AX19: 0 | BV19: 0 | BW19: 0 | BX19: 0 | BY19: 0 | BZ19: 0 | CA19: 0 | CB19: 0 | CC19: 0 | CD19: 0 | CE19: 0 | CF19: 0 | CG19: 0 | CH19: 0 | CI19: 0 | CJ19: 0 | CK19: 0 | CL19: 0 | CM19: 0 | CN19: 0 | CO19: 0 | CP19: 0 | CQ19: 0 | CR19: 0 | CS19: 0 | CT19: 0 | CU19: 0 | CV19: 0 | CW19: 0 | CX19: 0 | CY19: 0 | CZ19: 0 | DA19: 0 | DB19: 0 | DC19: 0 | DD19: 0 | DE19: 0 | DF19: 0 | DG19: 0 | DH19: 0 | DI19: =IF(OFFSET($C$10,DI$9,0)="-",0,IF(DI$9>=$L19,0,OFFSET($C$10,DI$9,0)*OFFSET($G$10,$L19-DI$9,0))) -> 0 | DJ19: 0 | DK19: 0 | DL19: 0 | DM19: 0 | DN19: 0 | DO19: 0 | DP19: 0 | DQ19: 0 | DR19: 0 | DS19: 0 | DT19: 0 | DU19: 0 | DV19: 0 | DW19: 0 | DX19: 0 | DY19: 0 | DZ19: 0 | EA19: 0 | EB19: 0 | EC19: 0 | ED19: 0 | EE19: 0 | EF19: 0 | EG19: 0 | EH19: 0 | EI19: 0 | EJ19: 0 | EK19: 0 | EL19: 0 | EM19: 0 | EN19: 0 | EO19: 0 | EP19: 0 | EQ19: 0 | ER19: 0 | ES19: 0 | ET19: 0 | EU19: 0 | EV19: 0 | EW19: 0 | EX19: 0 | EY19: 0 | EZ19: 0 | FA19: 0 | FB19: 0 | FC19: 0 | FD19: 0 | FE19: 0 | FF19: 0 | FG19: 0 | FH19: 0 | FI19: 0 | FJ19: 0 | FK19: 0 | FL19: 0 | FM19: 0 | FN19: 0 | FO19: 0 | FP19: 0 | FQ19: 0 | FR19: 0 | FS19: 0 | FT19: 0 | FU19: 0 | FV19: 0 | FW19: 0 | FX19: 0 | FY19: 0 | FZ19: 0 | GA19: 0 | GB19: 0 | GC19: 0 | GD19: 0 | GE19: 0 | GF19: 0 | GG19: 0 | GH19: 0 | GI19: 0 | GJ19: 0 | GK19: 0 | GL19: 0 | GM19: 0 | GN19: 0 | GO19: 0 | GP19: 0 | GQ19: 0 | GR19: 0 | GS19: 0 | GT19: 0 | GU19: 0 | GV19: 0 | GW19: 0 | GX19: 0 | GY19: 0 | GZ19: 0 | HA19: 0 | HB19: 0 | HC19: 0 | HD19: 0 | HE19: 0
A20: ='Calcs - PMP'!C90 -> -6.75 | B20: ='Calcs - PMP'!F90 -> - | C20: - | E20: 2.5 | F20: 15.24221559 | G20: 15.24221559 | L20: 10 | M20: =IF(OFFSET($C$10,M$9,0)="-",0,IF(M$9>=$L20,0,OFFSET($C$10,M$9,0)*OFFSET($G$10,$L20-M$9,0))) -> 0 | N20: 0 | O20: 0 | P20: 0 | Q20: 0 | R20: 0 | S20: 0 | T20: 0 | U20: 0 | V20: 0 | W20: =IF(OFFSET($C$10,W$9,0)="-",0,IF(W$9>=$L20,0,OFFSET($C$10,W$9,0)*OFFSET($G$10,$L20-W$9,0))) -> 0 | X20: 0 | Y20: 0 | Z20: 0 | AA20: 0 | AB20: 0 | AC20: 0 | AD20: 0 | AE20: 0 | AF20: 0 | AG20: =IF(OFFSET($C$10,AG$9,0)="-",0,IF(AG$9>=$L20,0,OFFSET($C$10,AG$9,0)*OFFSET($G$10,$L20-AG$9,0))) -> 0 | AH20: 0 | AI20: 0 | AJ20: 0 | AK20: 0 | AL20: 0 | AM20: 0 | AN20: 0 | AO20: 0 | AP20: 0 | AQ20: =IF(OFFSET($C$10,AQ$9,0)="-",0,IF(AQ$9>=$L20,0,OFFSET($C$10,AQ$9,0)*OFFSET($G$10,$L20-AQ$9,0))) -> 0 | AR20: 0 | AS20: 0 | AT20: 0 | AU20: 0 | AV20: 0 | AW20: 0 | AX20: 0 | BA20: =IF(OFFSET($C$10,BA$9,0)="-",0,IF(BA$9>=$L20,0,OFFSET($C$10,BA$9,0)*OFFSET($G$10,$L20-BA$9,0))) ->  | BK20: =IF(OFFSET($C$10,BK$9,0)="-",0,IF(BK$9>=$L20,0,OFFSET($C$10,BK$9,0)*OFFSET($G$10,$L20-BK$9,0))) ->  | BV20: 0 | BW20: 0 | BX20: 0 | BY20: 0 | BZ20: 0 | CA20: 0 | CB20: 0 | CC20: 0 | CD20: 0 | CE20: 0 | CF20: 0 | CG20: 0 | CH20: 0 | CI20: 0 | CJ20: 0 | CK20: 0 | CL20: 0 | CM20: 0 | CN20: 0 | CO20: 0 | CP20: 0 | CQ20: 0 | CR20: 0 | CS20: 0 | CT20: 0 | CU20: 0 | CV20: 0 | CW20: 0 | CX20: 0 | CY20: 0 | CZ20: 0 | DA20: 0 | DB20: 0 | DC20: 0 | DD20: 0 | DE20: 0 | DF20: 0 | DG20: 0 | DH20: 0 | DI20: 0 | DJ20: 0 | DK20: 0 | DL20: 0 | DM20: 0 | DN20: 0 | DO20: 0 | DP20: 0 | DQ20: 0 | DR20: 0 | DS20: 0 | DT20: 0 | DU20: 0 | DV20: 0 | DW20: 0 | DX20: 0 | DY20: 0 | DZ20: 0 | EA20: 0 | EB20: 0 | EC20: 0 | ED20: 0 | EE20: 0 | EF20: 0 | EG20: 0 | EH20: 0 | EI20: 0 | EJ20: 0 | EK20: 0 | EL20: 0 | EM20: 0 | EN20: 0 | EO20: 0 | EP20: 0 | EQ20: 0 | ER20: 0 | ES20: 0 | ET20: 0 | EU20: 0 | EV20: 0 | EW20: 0 | EX20: 0 | EY20: 0 | EZ20: 0 | FA20: 0 | FB20: 0 | FC20: 0 | FD20: 0 | FE20: 0 | FF20: 0 | FG20: 0 | FH20: 0 | FI20: 0 | FJ20: 0 | FK20: 0 | FL20: 0 | FM20: 0 | FN20: 0 | FO20: 0 | FP20: 0 | FQ20: 0 | FR20: 0 | FS20: 0 | FT20: 0 | FU20: 0 | FV20: 0 | FW20: 0 | FX20: 0 | FY20: 0 | FZ20: 0 | GA20: 0 | GB20: 0 | GC20: 0 | GD20: 0 | GE20: 0 | GF20: 0 | GG20: 0 | GH20: 0 | GI20: 0 | GJ20: 0 | GK20: 0 | GL20: 0 | GM20: 0 | GN20: 0 | GO20: 0 | GP20: 0 | GQ20: 0 | GR20: 0 | GS20: 0 | GT20: 0 | GU20: 0 | GV20: 0 | GW20: 0 | GX20: 0 | GY20: 0 | GZ20: 0 | HA20: 0 | HB20: 0 | HC20: 0 | HD20: 0 | HE20: 0
A21: ='Calcs - PMP'!C91 -> -6.5 | B21: ='Calcs - PMP'!F91 -> - | C21: - | E21: 2.75 | F21: 14.63575414 | G21: 14.63575414 | L21: 11 | M21: 0 | N21: 0 | O21: 0 | P21: 0 | Q21: 0 | R21: 0 | S21: 0 | T21: 0 | U21: 0 | V21: 0 | W21: 0 | X21: 0 | Y21: 0 | Z21: 0 | AA21: 0 | AB21: 0 | AC21: 0 | AD21: 0 | AE21: 0 | AF21: 0 | AG21: 0 | AH21: 0 | AI21: 0 | AJ21: 0 | AK21: 0 | AL21: 0 | AM21: 0 | AN21: 0 | AO21: 0 | AP21: 0 | AQ21: 0 | AR21: 0 | AS21: 0 | AT21: 0 | AU21: 0 | AV21: 0 | AW21: 0 | AX21: 0 | BV21: 0 | BW21: 0 | BX21: 0 | BY21: 0 | BZ21: 0 | CA21: 0 | CB21: 0 | CC21: 0 | CD21: 0 | CE21: 0 | CF21: 0 | CG21: 0 | CH21: 0 | CI21: 0 | CJ21: 0 | CK21: 0 | CL21: 0 | CM21: 0 | CN21: 0 | CO21: 0 | CP21: 0 | CQ21: 0 | CR21: 0 | CS21: 0 | CT21: 0 | CU21: 0 | CV21: 0 | CW21: 0 | CX21: 0 | CY21: 0 | CZ21: 0 | DA21: 0 | DB21: 0 | DC21: 0 | DD21: 0 | DE21: 0 | DF21: 0 | DG21: 0 | DH21: 0 | DI21: 0 | DJ21: 0 | DK21: 0 | DL21: 0 | DM21: 0 | DN21: 0 | DO21: 0 | DP21: 0 | DQ21: 0 | DR21: 0 | DS21: 0 | DT21: 0 | DU21: 0 | DV21: 0 | DW21: 0 | DX21: 0 | DY21: 0 | DZ21: 0 | EA21: 0 | EB21: 0 | EC21: 0 | ED21: 0 | EE21: 0 | EF21: 0 | EG21: 0 | EH21: 0 | EI21: 0 | EJ21: 0 | EK21: 0 | EL21: 0 | EM21: 0 | EN21: 0 | EO21: 0 | EP21: 0 | EQ21: 0 | ER21: 0 | ES21: 0 | ET21: 0 | EU21: 0 | EV21: 0 | EW21: 0 | EX21: 0 | EY21: 0 | EZ21: 0 | FA21: 0 | FB21: 0 | FC21: 0 | FD21: 0 | FE21: 0 | FF21: 0 | FG21: 0 | FH21: 0 | FI21: 0 | FJ21: 0 | FK21: 0 | FL21: 0 | FM21: 0 | FN21: 0 | FO21: 0 | FP21: 0 | FQ21: 0 | FR21: 0 | FS21: 0 | FT21: 0 | FU21: 0 | FV21: 0 | FW21: 0 | FX21: 0 | FY21: 0 | FZ21: 0 | GA21: 0 | GB21: 0 | GC21: 0 | GD21: 0 | GE21: 0 | GF21: 0 | GG21: 0 | GH21: 0 | GI21: 0 | GJ21: 0 | GK21: 0 | GL21: 0 | GM21: 0 | GN21: 0 | GO21: 0 | GP21: 0 | GQ21: 0 | GR21: 0 | GS21: 0 | GT21: 0 | GU21: 0 | GV21: 0 | GW21: 0 | GX21: 0 | GY21: 0 | GZ21: 0 | HA21: 0 | HB21: 0 | HC21: 0 | HD21: 0 | HE21: 0
A22: ='Calcs - PMP'!C92 -> -6.25 | B22: ='Calcs - PMP'!F92 -> - | C22: - | E22: 3 | F22: 13.6329768 | G22: 13.6329768 | L22: 12 | M22: 0 | N22: 0 | O22: 0 | P22: 0 | Q22: 0 | R22: 0 | S22: 0 | T22: 0 | U22: 0 | V22: 0 | W22: 0 | X22: 0 | Y22: 0 | Z22: 0 | AA22: 0 | AB22: 0 | AC22: 0 | AD22: 0 | AE22: 0 | AF22: 0 | AG22: 0 | AH22: 0 | AI22: 0 | AJ22: 0 | AK22: 0 | AL22: 0 | AM22: 0 | AN22: 0 | AO22: 0 | AP22: 0 | AQ22: 0 | AR22: 0 | AS22: 0 | AT22: 0 | AU22: 0 | AV22: 0 | AW22: 0 | AX22: 0 | BV22: 0 | BW22: 0 | BX22: 0 | BY22: 0 | BZ22: 0 | CA22: 0 | CB22: 0 | CC22: 0 | CD22: 0 | CE22: 0 | CF22: 0 | CG22: 0 | CH22: 0 | CI22: 0 | CJ22: 0 | CK22: 0 | CL22: 0 | CM22: 0 | CN22: 0 | CO22: 0 | CP22: 0 | CQ22: 0 | CR22: 0 | CS22: 0 | CT22: 0 | CU22: 0 | CV22: 0 | CW22: 0 | CX22: 0 | CY22: 0 | CZ22: 0 | DA22: 0 | DB22: 0 | DC22: 0 | DD22: 0 | DE22: 0 | DF22: 0 | DG22: 0 | DH22: 0 | DI22: 0 | DJ22: 0 | DK22: 0 | DL22: 0 | DM22: 0 | DN22: 0 | DO22: 0 | DP22: 0 | DQ22: 0 | DR22: 0 | DS22: 0 | DT22: 0 | DU22: 0 | DV22: 0 | DW22: 0 | DX22: 0 | DY22: 0 | DZ22: 0 | EA22: 0 | EB22: 0 | EC22: 0 | ED22: 0 | EE22: 0 | EF22: 0 | EG22: 0 | EH22: 0 | EI22: 0 | EJ22: 0 | EK22: 0 | EL22: 0 | EM22: 0 | EN22: 0 | EO22: 0 | EP22: 0 | EQ22: 0 | ER22: 0 | ES22: 0 | ET22: 0 | EU22: 0 | EV22: 0 | EW22: 0 | EX22: 0 | EY22: 0 | EZ22: 0 | FA22: 0 | FB22: 0 | FC22: 0 | FD22: 0 | FE22: 0 | FF22: 0 | FG22: 0 | FH22: 0 | FI22: 0 | FJ22: 0 | FK22: 0 | FL22: 0 | FM22: 0 | FN22: 0 | FO22: 0 | FP22: 0 | FQ22: 0 | FR22: 0 | FS22: 0 | FT22: =IF(OFFSET($C$10,FT$9,0)="-",0,IF(FT$9>=$L22,0,OFFSET($C$10,FT$9,0)*OFFSET($G$10,$L22-FT$9,0))) -> 0 | FU22: 0 | FV22: 0 | FW22: 0 | FX22: 0 | FY22: 0 | FZ22: 0 | GA22: 0 | GB22: 0 | GC22: 0 | GD22: 0 | GE22: 0 | GF22: 0 | GG22: 0 | GH22: 0 | GI22: 0 | GJ22: 0 | GK22: 0 | GL22: 0 | GM22: 0 | GN22: 0 | GO22: 0 | GP22: 0 | GQ22: 0 | GR22: 0 | GS22: 0 | GT22: 0 | GU22: 0 | GV22: 0 | GW22: 0 | GX22: 0 | GY22: 0 | GZ22: 0 | HA22: 0 | HB22: 0 | HC22: 0 | HD22: 0 | HE22: 0
A23: ='Calcs - PMP'!C93 -> -6 | B23: ='Calcs - PMP'!F93 -> - | C23: - | E23: 3.25 | F23: 12.63019946 | G23: 12.63019946 | L23: 13 | M23: 0 | N23: 0 | O23: 0 | P23: 0 | Q23: 0 | R23: 0 | S23: 0 | T23: 0 | U23: 0 | V23: 0 | W23: 0 | X23: 0 | Y23: 0 | Z23: 0 | AA23: 0 | AB23: 0 | AC23: 0 | AD23: 0 | AE23: 0 | AF23: 0 | AG23: 0 | AH23: 0 | AI23: 0 | AJ23: 0 | AK23: 0 | AL23: 0 | AM23: 0 | AN23: 0 | AO23: 0 | AP23: 0 | AQ23: 0 | AR23: 0 | AS23: 0 | AT23: 0 | AU23: 0 | AV23: 0 | AW23: 0 | AX23: 0 | BV23: 0 | BW23: 0 | BX23: 0 | BY23: 0 | BZ23: 0 | CA23: 0 | CB23: 0 | CC23: 0 | CD23: 0 | CE23: 0 | CF23: 0 | CG23: 0 | CH23: 0 | CI23: 0 | CJ23: 0 | CK23: 0 | CL23: 0 | CM23: 0 | CN23: 0 | CO23: 0 | CP23: 0 | CQ23: 0 | CR23: 0 | CS23: 0 | CT23: 0 | CU23: 0 | CV23: =IF(OFFSET($C$10,CV$9,0)="-",0,IF(CV$9>=$L23,0,OFFSET($C$10,CV$9,0)*OFFSET($G$10,$L23-CV$9,0))) -> 0 | CW23: 0 | CX23: 0 | CY23: 0 | CZ23: 0 | DA23: 0 | DB23: 0 | DC23: 0 | DD23: 0 | DE23: 0 | DF23: 0 | DG23: 0 | DH23: 0 | DI23: =IF(OFFSET($C$10,DI$9,0)="-",0,IF(DI$9>=$L23,0,OFFSET($C$10,DI$9,0)*OFFSET($G$10,$L23-DI$9,0))) -> 0 | DJ23: 0 | DK23: 0 | DL23: 0 | DM23: 0 | DN23: 0 | DO23: 0 | DP23: 0 | DQ23: 0 | DR23: 0 | DS23: 0 | DT23: 0 | DU23: 0 | DV23: 0 | DW23: 0 | DX23: 0 | DY23: 0 | DZ23: 0 | EA23: 0 | EB23: 0 | EC23: 0 | ED23: 0 | EE23: 0 | EF23: 0 | EG23: 0 | EH23: 0 | EI23: 0 | EJ23: 0 | EK23: 0 | EL23: 0 | EM23: 0 | EN23: 0 | EO23: 0 | EP23: 0 | EQ23: 0 | ER23: 0 | ES23: 0 | ET23: 0 | EU23: 0 | EV23: 0 | EW23: 0 | EX23: 0 | EY23: 0 | EZ23: 0 | FA23: 0 | FB23: 0 | FC23: 0 | FD23: 0 | FE23: 0 | FF23: 0 | FG23: 0 | FH23: 0 | FI23: 0 | FJ23: 0 | FK23: 0 | FL23: 0 | FM23: 0 | FN23: 0 | FO23: 0 | FP23: 0 | FQ23: 0 | FR23: 0 | FS23: 0 | FT23: 0 | FU23: 0 | FV23: 0 | FW23: 0 | FX23: 0 | FY23: 0 | FZ23: 0 | GA23: 0 | GB23: 0 | GC23: 0 | GD23: 0 | GE23: 0 | GF23: 0 | GG23: 0 | GH23: 0 | GI23: 0 | GJ23: 0 | GK23: 0 | GL23: 0 | GM23: 0 | GN23: 0 | GO23: 0 | GP23: 0 | GQ23: 0 | GR23: 0 | GS23: 0 | GT23: 0 | GU23: 0 | GV23: 0 | GW23: 0 | GX23: 0 | GY23: 0 | GZ23: 0 | HA23: 0 | HB23: 0 | HC23: 0 | HD23: 0 | HE23: 0
A24: ='Calcs - PMP'!C94 -> -5.75 | B24: ='Calcs - PMP'!F94 -> - | C24: - | E24: 3.5 | F24: 11.62742212 | G24: 11.62742212 | L24: 14 | M24: 0 | N24: 0 | O24: 0 | P24: 0 | Q24: 0 | R24: 0 | S24: 0 | T24: 0 | U24: 0 | V24: 0 | W24: 0 | X24: 0 | Y24: 0 | Z24: 0 | AA24: 0 | AB24: 0 | AC24: 0 | AD24: 0 | AE24: 0 | AF24: 0 | AG24: 0 | AH24: 0 | AI24: 0 | AJ24: 0 | AK24: 0 | AL24: 0 | AM24: 0 | AN24: 0 | AO24: 0 | AP24: 0 | AQ24: 0 | AR24: 0 | AS24: 0 | AT24: 0 | AU24: 0 | AV24: 0 | AW24: 0 | AX24: 0 | BV24: 0 | BW24: 0 | BX24: 0 | BY24: 0 | BZ24: 0 | CA24: 0 | CB24: 0 | CC24: 0 | CD24: 0 | CE24: 0 | CF24: 0 | CG24: 0 | CH24: 0 | CI24: 0 | CJ24: 0 | CK24: 0 | CL24: 0 | CM24: 0 | CN24: 0 | CO24: 0 | CP24: 0 | CQ24: 0 | CR24: 0 | CS24: 0 | CT24: 0 | CU24: 0 | CV24: 0 | CW24: 0 | CX24: 0 | CY24: 0 | CZ24: 0 | DA24: 0 | DB24: 0 | DC24: 0 | DD24: 0 | DE24: 0 | DF24: 0 | DG24: 0 | DH24: 0 | DI24: 0 | DJ24: 0 | DK24: 0 | DL24: 0 | DM24: 0 | DN24: 0 | DO24: 0 | DP24: 0 | DQ24: 0 | DR24: 0 | DS24: 0 | DT24: 0 | DU24: 0 | DV24: 0 | DW24: 0 | DX24: 0 | DY24: 0 | DZ24: 0 | EA24: 0 | EB24: 0 | EC24: 0 | ED24: 0 | EE24: 0 | EF24: 0 | EG24: 0 | EH24: 0 | EI24: 0 | EJ24: 0 | EK24: 0 | EL24: 0 | EM24: 0 | EN24: 0 | EO24: 0 | EP24: 0 | EQ24: 0 | ER24: 0 | ES24: 0 | ET24: 0 | EU24: 0 | EV24: 0 | EW24: 0 | EX24: 0 | EY24: 0 | EZ24: 0 | FA24: 0 | FB24: 0 | FC24: 0 | FD24: 0 | FE24: 0 | FF24: 0 | FG24: 0 | FH24: 0 | FI24: 0 | FJ24: 0 | FK24: 0 | FL24: 0 | FM24: 0 | FN24: 0 | FO24: 0 | FP24: 0 | FQ24: 0 | FR24: 0 | FS24: 0 | FT24: 0 | FU24: 0 | FV24: 0 | FW24: 0 | FX24: 0 | FY24: 0 | FZ24: 0 | GA24: 0 | GB24: 0 | GC24: 0 | GD24: 0 | GE24: 0 | GF24: 0 | GG24: 0 | GH24: 0 | GI24: 0 | GJ24: 0 | GK24: 0 | GL24: 0 | GM24: 0 | GN24: 0 | GO24: 0 | GP24: 0 | GQ24: 0 | GR24: 0 | GS24: 0 | GT24: 0 | GU24: 0 | GV24: 0 | GW24: 0 | GX24: 0 | GY24: 0 | GZ24: 0 | HA24: 0 | HB24: 0 | HC24: 0 | HD24: 0 | HE24: 0
A25: ='Calcs - PMP'!C95 -> -5.5 | B25: ='Calcs - PMP'!F95 -> - | C25: - | E25: 3.75 | F25: 10.62464477 | G25: 10.62464477 | L25: 15 | M25: 0 | N25: 0 | O25: 0 | P25: 0 | Q25: 0 | R25: 0 | S25: 0 | T25: 0 | U25: 0 | V25: 0 | W25: 0 | X25: 0 | Y25: 0 | Z25: 0 | AA25: 0 | AB25: 0 | AC25: 0 | AD25: 0 | AE25: 0 | AF25: 0 | AG25: 0 | AH25: 0 | AI25: 0 | AJ25: 0 | AK25: 0 | AL25: 0 | AM25: 0 | AN25: 0 | AO25: 0 | AP25: 0 | AQ25: 0 | AR25: 0 | AS25: 0 | AT25: 0 | AU25: 0 | AV25: 0 | AW25: 0 | AX25: 0 | BV25: 0 | BW25: 0 | BX25: 0 | BY25: 0 | BZ25: 0 | CA25: 0 | CB25: 0 | CC25: 0 | CD25: 0 | CE25: 0 | CF25: 0 | CG25: 0 | CH25: 0 | CI25: 0 | CJ25: 0 | CK25: 0 | CL25: 0 | CM25: 0 | CN25: 0 | CO25: 0 | CP25: 0 | CQ25: 0 | CR25: 0 | CS25: 0 | CT25: 0 | CU25: 0 | CV25: 0 | CW25: 0 | CX25: 0 | CY25: 0 | CZ25: 0 | DA25: 0 | DB25: 0 | DC25: 0 | DD25: 0 | DE25: 0 | DF25: 0 | DG25: 0 | DH25: 0 | DI25: 0 | DJ25: 0 | DK25: 0 | DL25: 0 | DM25: 0 | DN25: 0 | DO25: 0 | DP25: 0 | DQ25: 0 | DR25: 0 | DS25: 0 | DT25: 0 | DU25: 0 | DV25: 0 | DW25: 0 | DX25: 0 | DY25: 0 | DZ25: 0 | EA25: 0 | EB25: 0 | EC25: 0 | ED25: 0 | EE25: 0 | EF25: 0 | EG25: 0 | EH25: 0 | EI25: 0 | EJ25: 0 | EK25: 0 | EL25: 0 | EM25: 0 | EN25: 0 | EO25: 0 | EP25: 0 | EQ25: 0 | ER25: 0 | ES25: 0 | ET25: 0 | EU25: 0 | EV25: 0 | EW25: 0 | EX25: 0 | EY25: 0 | EZ25: 0 | FA25: 0 | FB25: 0 | FC25: 0 | FD25: 0 | FE25: 0 | FF25: 0 | FG25: 0 | FH25: 0 | FI25: 0 | FJ25: 0 | FK25: 0 | FL25: 0 | FM25: 0 | FN25: 0 | FO25: 0 | FP25: 0 | FQ25: 0 | FR25: 0 | FS25: 0 | FT25: 0 | FU25: 0 | FV25: 0 | FW25: 0 | FX25: 0 | FY25: 0 | FZ25: 0 | GA25: 0 | GB25: 0 | GC25: 0 | GD25: 0 | GE25: 0 | GF25: 0 | GG25: 0 | GH25: 0 | GI25: 0 | GJ25: 0 | GK25: 0 | GL25: 0 | GM25: 0 | GN25: 0 | GO25: 0 | GP25: 0 | GQ25: 0 | GR25: 0 | GS25: 0 | GT25: 0 | GU25: 0 | GV25: 0 | GW25: 0 | GX25: 0 | GY25: 0 | GZ25: 0 | HA25: 0 | HB25: 0 | HC25: 0 | HD25: 0 | HE25: 0
A26: ='Calcs - PMP'!C96 -> -5.25 | B26: ='Calcs - PMP'!F96 -> - | C26: - | E26: 4 | F26: 9.621867433 | G26: 9.621867433 | L26: 16 | M26: 0 | N26: 0 | O26: 0 | P26: 0 | Q26: 0 | R26: 0 | S26: 0 | T26: 0 | U26: 0 | V26: 0 | W26: 0 | X26: 0 | Y26: 0 | Z26: 0 | AA26: 0 | AB26: 0 | AC26: 0 | AD26: 0 | AE26: 0 | AF26: 0 | AG26: 0 | AH26: 0 | AI26: 0 | AJ26: 0 | AK26: 0 | AL26: 0 | AM26: 0 | AN26: 0 | AO26: 0 | AP26: 0 | AQ26: 0 | AR26: 0 | AS26: 0 | AT26: 0 | AU26: 0 | AV26: 0 | AW26: 0 | AX26: 0 | BV26: 0 | BW26: 0 | BX26: 0 | BY26: 0 | BZ26: 0 | CA26: 0 | CB26: 0 | CC26: 0 | CD26: 0 | CE26: 0 | CF26: 0 | CG26: 0 | CH26: 0 | CI26: 0 | CJ26: 0 | CK26: 0 | CL26: 0 | CM26: 0 | CN26: 0 | CO26: 0 | CP26: 0 | CQ26: 0 | CR26: 0 | CS26: 0 | CT26: 0 | CU26: 0 | CV26: 0 | CW26: 0 | CX26: 0 | CY26: 0 | CZ26: 0 | DA26: 0 | DB26: 0 | DC26: 0 | DD26: 0 | DE26: 0 | DF26: 0 | DG26: 0 | DH26: 0 | DI26: 0 | DJ26: 0 | DK26: 0 | DL26: 0 | DM26: 0 | DN26: 0 | DO26: 0 | DP26: 0 | DQ26: 0 | DR26: 0 | DS26: 0 | DT26: 0 | DU26: 0 | DV26: 0 | DW26: 0 | DX26: 0 | DY26: 0 | DZ26: 0 | EA26: 0 | EB26: 0 | EC26: 0 | ED26: 0 | EE26: 0 | EF26: 0 | EG26: 0 | EH26: 0 | EI26: 0 | EJ26: 0 | EK26: 0 | EL26: 0 | EM26: 0 | EN26: 0 | EO26: 0 | EP26: 0 | EQ26: 0 | ER26: 0 | ES26: 0 | ET26: 0 | EU26: 0 | EV26: 0 | EW26: 0 | EX26: 0 | EY26: 0 | EZ26: 0 | FA26: 0 | FB26: 0 | FC26: 0 | FD26: 0 | FE26: 0 | FF26: 0 | FG26: 0 | FH26: 0 | FI26: 0 | FJ26: 0 | FK26: 0 | FL26: 0 | FM26: 0 | FN26: 0 | FO26: 0 | FP26: 0 | FQ26: 0 | FR26: 0 | FS26: 0 | FT26: =IF(OFFSET($C$10,FT$9,0)="-",0,IF(FT$9>=$L26,0,OFFSET($C$10,FT$9,0)*OFFSET($G$10,$L26-FT$9,0))) -> 0 | FU26: 0 | FV26: 0 | FW26: 0 | FX26: 0 | FY26: 0 | FZ26: 0 | GA26: 0 | GB26: 0 | GC26: 0 | GD26: 0 | GE26: 0 | GF26: 0 | GG26: 0 | GH26: 0 | GI26: 0 | GJ26: 0 | GK26: 0 | GL26: 0 | GM26: 0 | GN26: 0 | GO26: 0 | GP26: 0 | GQ26: 0 | GR26: 0 | GS26: 0 | GT26: 0 | GU26: 0 | GV26: 0 | GW26: 0 | GX26: 0 | GY26: 0 | GZ26: 0 | HA26: 0 | HB26: 0 | HC26: 0 | HD26: 0 | HE26: 0
A27: ='Calcs - PMP'!C97 -> -5 | B27: ='Calcs - PMP'!F97 -> - | C27: - | E27: 4.25 | F27: 8.619090091 | G27: 8.619090091 | L27: 17 | M27: 0 | N27: 0 | O27: 0 | P27: 0 | Q27: 0 | R27: 0 | S27: 0 | T27: 0 | U27: 0 | V27: 0 | W27: 0 | X27: 0 | Y27: 0 | Z27: 0 | AA27: 0 | AB27: 0 | AC27: 0 | AD27: 0 | AE27: 0 | AF27: 0 | AG27: 0 | AH27: 0 | AI27: 0 | AJ27: 0 | AK27: 0 | AL27: 0 | AM27: 0 | AN27: 0 | AO27: 0 | AP27: 0 | AQ27: 0 | AR27: 0 | AS27: 0 | AT27: 0 | AU27: 0 | AV27: 0 | AW27: 0 | AX27: 0 | BV27: 0 | BW27: 0 | BX27: 0 | BY27: 0 | BZ27: 0 | CA27: 0 | CB27: 0 | CC27: 0 | CD27: 0 | CE27: 0 | CF27: 0 | CG27: 0 | CH27: 0 | CI27: 0 | CJ27: 0 | CK27: 0 | CL27: 0 | CM27: 0 | CN27: 0 | CO27: 0 | CP27: 0 | CQ27: 0 | CR27: 0 | CS27: 0 | CT27: 0 | CU27: 0 | CV27: 0 | CW27: 0 | CX27: 0 | CY27: 0 | CZ27: 0 | DA27: 0 | DB27: 0 | DC27: 0 | DD27: 0 | DE27: 0 | DF27: 0 | DG27: 0 | DH27: 0 | DI27: =IF(OFFSET($C$10,DI$9,0)="-",0,IF(DI$9>=$L27,0,OFFSET($C$10,DI$9,0)*OFFSET($G$10,$L27-DI$9,0))) -> 0 | DJ27: 0 | DK27: 0 | DL27: 0 | DM27: 0 | DN27: 0 | DO27: 0 | DP27: 0 | DQ27: 0 | DR27: 0 | DS27: 0 | DT27: 0 | DU27: 0 | DV27: 0 | DW27: 0 | DX27: 0 | DY27: 0 | DZ27: 0 | EA27: 0 | EB27: 0 | EC27: 0 | ED27: 0 | EE27: 0 | EF27: 0 | EG27: 0 | EH27: 0 | EI27: 0 | EJ27: 0 | EK27: 0 | EL27: 0 | EM27: 0 | EN27: 0 | EO27: 0 | EP27: 0 | EQ27: 0 | ER27: 0 | ES27: 0 | ET27: 0 | EU27: 0 | EV27: 0 | EW27: 0 | EX27: 0 | EY27: 0 | EZ27: 0 | FA27: 0 | FB27: 0 | FC27: 0 | FD27: 0 | FE27: 0 | FF27: 0 | FG27: 0 | FH27: 0 | FI27: 0 | FJ27: 0 | FK27: 0 | FL27: 0 | FM27: 0 | FN27: 0 | FO27: 0 | FP27: 0 | FQ27: 0 | FR27: 0 | FS27: 0 | FT27: 0 | FU27: 0 | FV27: 0 | FW27: 0 | FX27: 0 | FY27: 0 | FZ27: 0 | GA27: 0 | GB27: 0 | GC27: 0 | GD27: 0 | GE27: 0 | GF27: 0 | GG27: 0 | GH27: 0 | GI27: 0 | GJ27: 0 | GK27: 0 | GL27: 0 | GM27: 0 | GN27: 0 | GO27: 0 | GP27: 0 | GQ27: 0 | GR27: 0 | GS27: 0 | GT27: 0 | GU27: 0 | GV27: 0 | GW27: 0 | GX27: 0 | GY27: 0 | GZ27: 0 | HA27: 0 | HB27: 0 | HC27: 0 | HD27: 0 | HE27: 0
A28: ='Calcs - PMP'!C98 -> -4.75 | B28: ='Calcs - PMP'!F98 -> - | C28: - | E28: 4.5 | F28: 7.616312749 | G28: 7.616312749 | L28: 18 | M28: 0 | N28: 0 | O28: 0 | P28: 0 | Q28: 0 | R28: 0 | S28: 0 | T28: 0 | U28: 0 | V28: 0 | W28: 0 | X28: 0 | Y28: 0 | Z28: 0 | AA28: 0 | AB28: 0 | AC28: 0 | AD28: 0 | AE28: 0 | AF28: 0 | AG28: 0 | AH28: 0 | AI28: 0 | AJ28: 0 | AK28: 0 | AL28: 0 | AM28: 0 | AN28: 0 | AO28: 0 | AP28: 0 | AQ28: 0 | AR28: 0 | AS28: 0 | AT28: 0 | AU28: 0 | AV28: 0 | AW28: 0 | AX28: 0 | BV28: 0 | BW28: 0 | BX28: 0 | BY28: 0 | BZ28: 0 | CA28: 0 | CB28: 0 | CC28: 0 | CD28: 0 | CE28: 0 | CF28: 0 | CG28: 0 | CH28: 0 | CI28: 0 | CJ28: 0 | CK28: 0 | CL28: 0 | CM28: 0 | CN28: 0 | CO28: 0 | CP28: 0 | CQ28: 0 | CR28: 0 | CS28: 0 | CT28: 0 | CU28: 0 | CV28: 0 | CW28: 0 | CX28: 0 | CY28: 0 | CZ28: 0 | DA28: 0 | DB28: 0 | DC28: 0 | DD28: 0 | DE28: 0 | DF28: 0 | DG28: 0 | DH28: 0 | DI28: 0 | DJ28: 0 | DK28: 0 | DL28: 0 | DM28: 0 | DN28: 0 | DO28: 0 | DP28: 0 | DQ28: 0 | DR28: 0 | DS28: 0 | DT28: 0 | DU28: 0 | DV28: 0 | DW28: 0 | DX28: 0 | DY28: 0 | DZ28: 0 | EA28: 0 | EB28: 0 | EC28: 0 | ED28: 0 | EE28: 0 | EF28: 0 | EG28: 0 | EH28: 0 | EI28: 0 | EJ28: 0 | EK28: 0 | EL28: 0 | EM28: 0 | EN28: 0 | EO28: 0 | EP28: 0 | EQ28: 0 | ER28: 0 | ES28: 0 | ET28: 0 | EU28: 0 | EV28: 0 | EW28: 0 | EX28: 0 | EY28: 0 | EZ28: 0 | FA28: 0 | FB28: 0 | FC28: 0 | FD28: 0 | FE28: 0 | FF28: 0 | FG28: 0 | FH28: 0 | FI28: 0 | FJ28: 0 | FK28: 0 | FL28: 0 | FM28: 0 | FN28: 0 | FO28: 0 | FP28: 0 | FQ28: 0 | FR28: 0 | FS28: 0 | FT28: 0 | FU28: 0 | FV28: 0 | FW28: 0 | FX28: 0 | FY28: 0 | FZ28: 0 | GA28: 0 | GB28: 0 | GC28: 0 | GD28: 0 | GE28: 0 | GF28: 0 | GG28: 0 | GH28: 0 | GI28: 0 | GJ28: 0 | GK28: 0 | GL28: 0 | GM28: 0 | GN28: 0 | GO28: 0 | GP28: 0 | GQ28: 0 | GR28: 0 | GS28: 0 | GT28: 0 | GU28: 0 | GV28: 0 | GW28: 0 | GX28: 0 | GY28: 0 | GZ28: 0 | HA28: 0 | HB28: 0 | HC28: 0 | HD28: 0 | HE28: 0
A29: ='Calcs - PMP'!C99 -> -4.5 | B29: ='Calcs - PMP'!F99 -> - | C29: - | E29: 4.75 | F29: 6.613535408 | G29: 6.613535408 | L29: 19 | M29: 0 | N29: 0 | O29: 0 | P29: 0 | Q29: 0 | R29: 0 | S29: 0 | T29: 0 | U29: 0 | V29: 0 | W29: 0 | X29: 0 | Y29: 0 | Z29: 0 | AA29: 0 | AB29: 0 | AC29: 0 | AD29: 0 | AE29: 0 | AF29: 0 | AG29: 0 | AH29: 0 | AI29: 0 | AJ29: 0 | AK29: 0 | AL29: 0 | AM29: 0 | AN29: 0 | AO29: 0 | AP29: 0 | AQ29: 0 | AR29: 0 | AS29: 0 | AT29: 0 | AU29: 0 | AV29: 0 | AW29: 0 | AX29: 0 | BV29: 0 | BW29: 0 | BX29: 0 | BY29: 0 | BZ29: 0 | CA29: 0 | CB29: 0 | CC29: 0 | CD29: 0 | CE29: 0 | CF29: 0 | CG29: 0 | CH29: 0 | CI29: 0 | CJ29: 0 | CK29: 0 | CL29: 0 | CM29: 0 | CN29: 0 | CO29: 0 | CP29: 0 | CQ29: 0 | CR29: 0 | CS29: 0 | CT29: 0 | CU29: 0 | CV29: 0 | CW29: 0 | CX29: 0 | CY29: 0 | CZ29: 0 | DA29: 0 | DB29: 0 | DC29: 0 | DD29: 0 | DE29: 0 | DF29: 0 | DG29: 0 | DH29: 0 | DI29: 0 | DJ29: 0 | DK29: 0 | DL29: 0 | DM29: 0 | DN29: 0 | DO29: 0 | DP29: 0 | DQ29: 0 | DR29: 0 | DS29: 0 | DT29: 0 | DU29: 0 | DV29: 0 | DW29: 0 | DX29: 0 | DY29: 0 | DZ29: 0 | EA29: 0 | EB29: 0 | EC29: 0 | ED29: 0 | EE29: 0 | EF29: 0 | EG29: 0 | EH29: 0 | EI29: 0 | EJ29: 0 | EK29: 0 | EL29: 0 | EM29: 0 | EN29: 0 | EO29: 0 | EP29: 0 | EQ29: 0 | ER29: 0 | ES29: 0 | ET29: 0 | EU29: 0 | EV29: 0 | EW29: 0 | EX29: 0 | EY29: 0 | EZ29: 0 | FA29: 0 | FB29: 0 | FC29: 0 | FD29: 0 | FE29: 0 | FF29: 0 | FG29: 0 | FH29: 0 | FI29: 0 | FJ29: 0 | FK29: 0 | FL29: 0 | FM29: 0 | FN29: 0 | FO29: 0 | FP29: 0 | FQ29: 0 | FR29: 0 | FS29: 0 | FT29: 0 | FU29: 0 | FV29: 0 | FW29: 0 | FX29: 0 | FY29: 0 | FZ29: 0 | GA29: 0 | GB29: 0 | GC29: 0 | GD29: 0 | GE29: 0 | GF29: 0 | GG29: 0 | GH29: 0 | GI29: 0 | GJ29: 0 | GK29: 0 | GL29: 0 | GM29: 0 | GN29: 0 | GO29: 0 | GP29: 0 | GQ29: 0 | GR29: 0 | GS29: 0 | GT29: 0 | GU29: 0 | GV29: 0 | GW29: 0 | GX29: 0 | GY29: 0 | GZ29: 0 | HA29: 0 | HB29: 0 | HC29: 0 | HD29: 0 | HE29: 0
A30: ='Calcs - PMP'!C100 -> -4.25 | B30: ='Calcs - PMP'!F100 -> - | C30: - | E30: 5 | F30: 5.610758066 | G30: 5.610758066 | L30: 20 | M30: =IF(OFFSET($C$10,M$9,0)="-",0,IF(M$9>=$L30,0,OFFSET($C$10,M$9,0)*OFFSET($G$10,$L30-M$9,0))) -> 0 | N30: 0 | O30: 0 | P30: 0 | Q30: 0 | R30: 0 | S30: 0 | T30: 0 | U30: 0 | V30: 0 | W30: =IF(OFFSET($C$10,W$9,0)="-",0,IF(W$9>=$L30,0,OFFSET($C$10,W$9,0)*OFFSET($G$10,$L30-W$9,0))) -> 0 | X30: 0 | Y30: 0 | Z30: 0 | AA30: 0 | AB30: 0 | AC30: 0 | AD30: 0 | AE30: 0 | AF30: 0 | AG30: =IF(OFFSET($C$10,AG$9,0)="-",0,IF(AG$9>=$L30,0,OFFSET($C$10,AG$9,0)*OFFSET($G$10,$L30-AG$9,0))) -> 0 | AH30: 0 | AI30: 0 | AJ30: 0 | AK30: 0 | AL30: 0 | AM30: 0 | AN30: 0 | AO30: 0 | AP30: 0 | AQ30: =IF(OFFSET($C$10,AQ$9,0)="-",0,IF(AQ$9>=$L30,0,OFFSET($C$10,AQ$9,0)*OFFSET($G$10,$L30-AQ$9,0))) -> 0 | AR30: 0 | AS30: 0 | AT30: 0 | AU30: 0 | AV30: 0 | AW30: 0 | AX30: 0 | BA30: =IF(OFFSET($C$10,BA$9,0)="-",0,IF(BA$9>=$L30,0,OFFSET($C$10,BA$9,0)*OFFSET($G$10,$L30-BA$9,0))) ->  | BK30: =IF(OFFSET($C$10,BK$9,0)="-",0,IF(BK$9>=$L30,0,OFFSET($C$10,BK$9,0)*OFFSET($G$10,$L30-BK$9,0))) ->  | BV30: 0 | BW30: 0 | BX30: 0 | BY30: 0 | BZ30: 0 | CA30: 0 | CB30: 0 | CC30: 0 | CD30: 0 | CE30: 0 | CF30: 0 | CG30: 0 | CH30: 0 | CI30: 0 | CJ30: 0 | CK30: 0 | CL30: 0 | CM30: 0 | CN30: 0 | CO30: 0 | CP30: =IF(OFFSET($C$10,CP$9,0)="-",0,IF(CP$9>=$L30,0,OFFSET($C$10,CP$9,0)*OFFSET($G$10,$L30-CP$9,0))) -> 0 | CQ30: 0 | CR30: 0 | CS30: 0 | CT30: 0 | CU30: 0 | CV30: 0 | CW30: 0 | CX30: 0 | CY30: 0 | CZ30: 0 | DA30: 0 | DB30: 0 | DC30: 0 | DD30: 0 | DE30: 0 | DF30: 0 | DG30: 0 | DH30: 0 | DI30: 0 | DJ30: 0 | DK30: 0 | DL30: 0 | DM30: 0 | DN30: 0 | DO30: 0 | DP30: 0 | DQ30: 0 | DR30: 0 | DS30: 0 | DT30: 0 | DU30: 0 | DV30: 0 | DW30: 0 | DX30: 0 | DY30: 0 | DZ30: 0 | EA30: 0 | EB30: 0 | EC30: 0 | ED30: 0 | EE30: 0 | EF30: 0 | EG30: 0 | EH30: 0 | EI30: 0 | EJ30: 0 | EK30: 0 | EL30: 0 | EM30: 0 | EN30: 0 | EO30: 0 | EP30: 0 | EQ30: 0 | ER30: 0 | ES30: 0 | ET30: 0 | EU30: 0 | EV30: 0 | EW30: 0 | EX30: 0 | EY30: 0 | EZ30: 0 | FA30: 0 | FB30: 0 | FC30: 0 | FD30: 0 | FE30: 0 | FF30: 0 | FG30: 0 | FH30: 0 | FI30: 0 | FJ30: 0 | FK30: 0 | FL30: 0 | FM30: 0 | FN30: 0 | FO30: 0 | FP30: 0 | FQ30: 0 | FR30: 0 | FS30: 0 | FT30: =IF(OFFSET($C$10,FT$9,0)="-",0,IF(FT$9>=$L30,0,OFFSET($C$10,FT$9,0)*OFFSET($G$10,$L30-FT$9,0))) -> 0 | FU30: 0 | FV30: 0 | FW30: 0 | FX30: 0 | FY30: 0 | FZ30: 0 | GA30: 0 | GB30: 0 | GC30: 0 | GD30: 0 | GE30: 0 | GF30: 0 | GG30: 0 | GH30: 0 | GI30: 0 | GJ30: 0 | GK30: 0 | GL30: 0 | GM30: 0 | GN30: 0 | GO30: 0 | GP30: 0 | GQ30: 0 | GR30: 0 | GS30: 0 | GT30: 0 | GU30: 0 | GV30: 0 | GW30: 0 | GX30: 0 | GY30: 0 | GZ30: 0 | HA30: 0 | HB30: 0 | HC30: 0 | HD30: 0 | HE30: 0
A31: ='Calcs - PMP'!C101 -> -4 | B31: ='Calcs - PMP'!F101 -> - | C31: - | E31: 5.25 | F31: 4.607980724 | G31: 4.607980724 | L31: 21 | M31: 0 | N31: 0 | O31: 0 | P31: 0 | Q31: 0 | R31: 0 | S31: 0 | T31: 0 | U31: 0 | V31: 0 | W31: 0 | X31: 0 | Y31: 0 | Z31: 0 | AA31: 0 | AB31: 0 | AC31: 0 | AD31: 0 | AE31: 0 | AF31: 0 | AG31: 0 | AH31: 0 | AI31: 0 | AJ31: 0 | AK31: 0 | AL31: 0 | AM31: 0 | AN31: 0 | AO31: 0 | AP31: 0 | AQ31: 0 | AR31: 0 | AS31: 0 | AT31: 0 | AU31: 0 | AV31: 0 | AW31: 0 | AX31: 0 | BV31: 0 | BW31: 0 | BX31: 0 | BY31: 0 | BZ31: 0 | CA31: 0 | CB31: 0 | CC31: 0 | CD31: 0 | CE31: 0 | CF31: 0 | CG31: 0 | CH31: 0 | CI31: 0 | CJ31: 0 | CK31: 0 | CL31: 0 | CM31: 0 | CN31: 0 | CO31: 0 | CP31: 0 | CQ31: 0 | CR31: 0 | CS31: 0 | CT31: 0 | CU31: 0 | CV31: 0 | CW31: 0 | CX31: 0 | CY31: 0 | CZ31: 0 | DA31: 0 | DB31: 0 | DC31: 0 | DD31: 0 | DE31: 0 | DF31: 0 | DG31: 0 | DH31: 0 | DI31: =IF(OFFSET($C$10,DI$9,0)="-",0,IF(DI$9>=$L31,0,OFFSET($C$10,DI$9,0)*OFFSET($G$10,$L31-DI$9,0))) -> 0 | DJ31: 0 | DK31: 0 | DL31: 0 | DM31: 0 | DN31: 0 | DO31: 0 | DP31: 0 | DQ31: 0 | DR31: 0 | DS31: 0 | DT31: 0 | DU31: 0 | DV31: 0 | DW31: 0 | DX31: 0 | DY31: 0 | DZ31: 0 | EA31: 0 | EB31: 0 | EC31: 0 | ED31: 0 | EE31: 0 | EF31: 0 | EG31: 0 | EH31: 0 | EI31: 0 | EJ31: 0 | EK31: 0 | EL31: 0 | EM31: 0 | EN31: 0 | EO31: 0 | EP31: 0 | EQ31: 0 | ER31: 0 | ES31: 0 | ET31: 0 | EU31: 0 | EV31: 0 | EW31: 0 | EX31: 0 | EY31: 0 | EZ31: 0 | FA31: 0 | FB31: 0 | FC31: 0 | FD31: 0 | FE31: 0 | FF31: 0 | FG31: 0 | FH31: 0 | FI31: 0 | FJ31: 0 | FK31: 0 | FL31: 0 | FM31: 0 | FN31: 0 | FO31: 0 | FP31: 0 | FQ31: 0 | FR31: 0 | FS31: 0 | FT31: 0 | FU31: 0 | FV31: 0 | FW31: 0 | FX31: 0 | FY31: 0 | FZ31: 0 | GA31: 0 | GB31: 0 | GC31: 0 | GD31: 0 | GE31: 0 | GF31: 0 | GG31: 0 | GH31: 0 | GI31: 0 | GJ31: 0 | GK31: 0 | GL31: 0 | GM31: 0 | GN31: 0 | GO31: 0 | GP31: 0 | GQ31: 0 | GR31: 0 | GS31: 0 | GT31: 0 | GU31: 0 | GV31: 0 | GW31: 0 | GX31: 0 | GY31: 0 | GZ31: 0 | HA31: 0 | HB31: 0 | HC31: 0 | HD31: 0 | HE31: 0
A32: ='Calcs - PMP'!C102 -> -3.75 | B32: ='Calcs - PMP'!F102 -> - | C32: - | E32: 5.5 | F32: 3.605203382 | G32: 3.605203382 | L32: 22 | M32: 0 | N32: 0 | O32: 0 | P32: 0 | Q32: 0 | R32: 0 | S32: 0 | T32: 0 | U32: 0 | V32: 0 | W32: 0 | X32: 0 | Y32: 0 | Z32: 0 | AA32: 0 | AB32: 0 | AC32: 0 | AD32: 0 | AE32: 0 | AF32: 0 | AG32: 0 | AH32: 0 | AI32: 0 | AJ32: 0 | AK32: 0 | AL32: 0 | AM32: 0 | AN32: 0 | AO32: 0 | AP32: 0 | AQ32: 0 | AR32: 0 | AS32: 0 | AT32: 0 | AU32: 0 | AV32: 0 | AW32: 0 | AX32: 0 | BV32: 0 | BW32: 0 | BX32: 0 | BY32: 0 | BZ32: 0 | CA32: 0 | CB32: 0 | CC32: 0 | CD32: 0 | CE32: 0 | CF32: 0 | CG32: 0 | CH32: 0 | CI32: 0 | CJ32: 0 | CK32: 0 | CL32: 0 | CM32: 0 | CN32: 0 | CO32: 0 | CP32: 0 | CQ32: 0 | CR32: 0 | CS32: 0 | CT32: 0 | CU32: 0 | CV32: 0 | CW32: 0 | CX32: 0 | CY32: 0 | CZ32: 0 | DA32: 0 | DB32: 0 | DC32: 0 | DD32: 0 | DE32: 0 | DF32: 0 | DG32: 0 | DH32: 0 | DI32: 0 | DJ32: 0 | DK32: 0 | DL32: 0 | DM32: 0 | DN32: 0 | DO32: 0 | DP32: 0 | DQ32: 0 | DR32: 0 | DS32: 0 | DT32: 0 | DU32: 0 | DV32: 0 | DW32: 0 | DX32: 0 | DY32: 0 | DZ32: 0 | EA32: 0 | EB32: 0 | EC32: 0 | ED32: 0 | EE32: 0 | EF32: 0 | EG32: 0 | EH32: 0 | EI32: 0 | EJ32: 0 | EK32: 0 | EL32: 0 | EM32: 0 | EN32: 0 | EO32: 0 | EP32: 0 | EQ32: 0 | ER32: 0 | ES32: 0 | ET32: 0 | EU32: 0 | EV32: 0 | EW32: 0 | EX32: 0 | EY32: 0 | EZ32: 0 | FA32: 0 | FB32: 0 | FC32: 0 | FD32: 0 | FE32: 0 | FF32: 0 | FG32: 0 | FH32: 0 | FI32: 0 | FJ32: 0 | FK32: 0 | FL32: 0 | FM32: 0 | FN32: 0 | FO32: 0 | FP32: 0 | FQ32: 0 | FR32: 0 | FS32: 0 | FT32: 0 | FU32: 0 | FV32: 0 | FW32: 0 | FX32: 0 | FY32: 0 | FZ32: 0 | GA32: 0 | GB32: 0 | GC32: 0 | GD32: 0 | GE32: 0 | GF32: 0 | GG32: 0 | GH32: 0 | GI32: 0 | GJ32: 0 | GK32: 0 | GL32: 0 | GM32: 0 | GN32: 0 | GO32: 0 | GP32: 0 | GQ32: 0 | GR32: 0 | GS32: 0 | GT32: 0 | GU32: 0 | GV32: 0 | GW32: 0 | GX32: 0 | GY32: 0 | GZ32: 0 | HA32: 0 | HB32: 0 | HC32: 0 | HD32: 0 | HE32: 0
A33: ='Calcs - PMP'!C103 -> -3.5 | B33: ='Calcs - PMP'!F103 -> - | C33: - | E33: 5.75 | F33: 2.602426041 | G33: 2.602426041 | L33: 23 | M33: 0 | N33: 0 | O33: 0 | P33: 0 | Q33: 0 | R33: 0 | S33: 0 | T33: 0 | U33: 0 | V33: 0 | W33: 0 | X33: 0 | Y33: 0 | Z33: 0 | AA33: 0 | AB33: 0 | AC33: 0 | AD33: 0 | AE33: 0 | AF33: 0 | AG33: 0 | AH33: 0 | AI33: 0 | AJ33: 0 | AK33: 0 | AL33: 0 | AM33: 0 | AN33: 0 | AO33: 0 | AP33: 0 | AQ33: 0 | AR33: 0 | AS33: 0 | AT33: 0 | AU33: 0 | AV33: 0 | AW33: 0 | AX33: 0 | BV33: 0 | BW33: 0 | BX33: 0 | BY33: 0 | BZ33: 0 | CA33: 0 | CB33: 0 | CC33: 0 | CD33: 0 | CE33: 0 | CF33: 0 | CG33: 0 | CH33: 0 | CI33: 0 | CJ33: 0 | CK33: 0 | CL33: 0 | CM33: 0 | CN33: 0 | CO33: 0 | CP33: 0 | CQ33: 0 | CR33: 0 | CS33: 0 | CT33: 0 | CU33: 0 | CV33: 0 | CW33: 0 | CX33: 0 | CY33: 0 | CZ33: 0 | DA33: 0 | DB33: 0 | DC33: 0 | DD33: 0 | DE33: 0 | DF33: 0 | DG33: 0 | DH33: 0 | DI33: 0 | DJ33: 0 | DK33: 0 | DL33: 0 | DM33: 0 | DN33: 0 | DO33: 0 | DP33: 0 | DQ33: 0 | DR33: 0 | DS33: 0 | DT33: 0 | DU33: 0 | DV33: 0 | DW33: 0 | DX33: 0 | DY33: 0 | DZ33: 0 | EA33: 0 | EB33: 0 | EC33: 0 | ED33: 0 | EE33: 0 | EF33: 0 | EG33: 0 | EH33: 0 | EI33: 0 | EJ33: 0 | EK33: 0 | EL33: 0 | EM33: 0 | EN33: 0 | EO33: 0 | EP33: 0 | EQ33: 0 | ER33: 0 | ES33: 0 | ET33: 0 | EU33: 0 | EV33: 0 | EW33: 0 | EX33: 0 | EY33: 0 | EZ33: 0 | FA33: 0 | FB33: 0 | FC33: 0 | FD33: 0 | FE33: 0 | FF33: 0 | FG33: 0 | FH33: 0 | FI33: 0 | FJ33: 0 | FK33: 0 | FL33: 0 | FM33: 0 | FN33: 0 | FO33: 0 | FP33: 0 | FQ33: 0 | FR33: 0 | FS33: 0 | FT33: 0 | FU33: 0 | FV33: 0 | FW33: 0 | FX33: 0 | FY33: 0 | FZ33: 0 | GA33: 0 | GB33: 0 | GC33: 0 | GD33: 0 | GE33: 0 | GF33: 0 | GG33: 0 | GH33: 0 | GI33: 0 | GJ33: 0 | GK33: 0 | GL33: 0 | GM33: 0 | GN33: 0 | GO33: 0 | GP33: 0 | GQ33: 0 | GR33: 0 | GS33: 0 | GT33: 0 | GU33: 0 | GV33: 0 | GW33: 0 | GX33: 0 | GY33: 0 | GZ33: 0 | HA33: 0 | HB33: 0 | HC33: 0 | HD33: 0 | HE33: 0
A34: ='Calcs - PMP'!C104 -> -3.25 | B34: ='Calcs - PMP'!F104 -> - | C34: - | E34: 6 | F34: 1.599648699 | G34: 1.599648699 | L34: 24 | M34: 0 | N34: 0 | O34: 0 | P34: 0 | Q34: 0 | R34: 0 | S34: 0 | T34: 0 | U34: 0 | V34: 0 | W34: 0 | X34: 0 | Y34: 0 | Z34: 0 | AA34: 0 | AB34: 0 | AC34: 0 | AD34: 0 | AE34: 0 | AF34: 0 | AG34: 0 | AH34: 0 | AI34: 0 | AJ34: 0 | AK34: 0 | AL34: 0 | AM34: 0 | AN34: 0 | AO34: 0 | AP34: 0 | AQ34: 0 | AR34: 0 | AS34: 0 | AT34: 0 | AU34: 0 | AV34: 0 | AW34: 0 | AX34: 0 | BV34: 0 | BW34: 0 | BX34: 0 | BY34: 0 | BZ34: 0 | CA34: 0 | CB34: 0 | CC34: 0 | CD34: 0 | CE34: 0 | CF34: 0 | CG34: 0 | CH34: 0 | CI34: 0 | CJ34: 0 | CK34: 0 | CL34: 0 | CM34: 0 | CN34: 0 | CO34: 0 | CP34: 0 | CQ34: 0 | CR34: 0 | CS34: 0 | CT34: 0 | CU34: 0 | CV34: 0 | CW34: 0 | CX34: 0 | CY34: 0 | CZ34: 0 | DA34: 0 | DB34: 0 | DC34: 0 | DD34: 0 | DE34: 0 | DF34: 0 | DG34: 0 | DH34: 0 | DI34: 0 | DJ34: 0 | DK34: 0 | DL34: 0 | DM34: 0 | DN34: 0 | DO34: 0 | DP34: 0 | DQ34: 0 | DR34: 0 | DS34: 0 | DT34: 0 | DU34: 0 | DV34: 0 | DW34: 0 | DX34: 0 | DY34: 0 | DZ34: 0 | EA34: 0 | EB34: 0 | EC34: 0 | ED34: 0 | EE34: 0 | EF34: 0 | EG34: 0 | EH34: 0 | EI34: 0 | EJ34: 0 | EK34: 0 | EL34: 0 | EM34: 0 | EN34: 0 | EO34: 0 | EP34: 0 | EQ34: 0 | ER34: 0 | ES34: 0 | ET34: 0 | EU34: 0 | EV34: 0 | EW34: 0 | EX34: 0 | EY34: 0 | EZ34: 0 | FA34: 0 | FB34: 0 | FC34: 0 | FD34: 0 | FE34: 0 | FF34: 0 | FG34: 0 | FH34: 0 | FI34: 0 | FJ34: 0 | FK34: 0 | FL34: 0 | FM34: 0 | FN34: 0 | FO34: 0 | FP34: 0 | FQ34: 0 | FR34: 0 | FS34: 0 | FT34: =IF(OFFSET($C$10,FT$9,0)="-",0,IF(FT$9>=$L34,0,OFFSET($C$10,FT$9,0)*OFFSET($G$10,$L34-FT$9,0))) -> 0 | FU34: 0 | FV34: 0 | FW34: 0 | FX34: 0 | FY34: 0 | FZ34: 0 | GA34: 0 | GB34: 0 | GC34: 0 | GD34: 0 | GE34: 0 | GF34: 0 | GG34: 0 | GH34: 0 | GI34: 0 | GJ34: 0 | GK34: 0 | GL34: 0 | GM34: 0 | GN34: 0 | GO34: 0 | GP34: 0 | GQ34: 0 | GR34: 0 | GS34: 0 | GT34: 0 | GU34: 0 | GV34: 0 | GW34: 0 | GX34: 0 | GY34: 0 | GZ34: 0 | HA34: 0 | HB34: 0 | HC34: 0 | HD34: 0 | HE34: 0
A35: ='Calcs - PMP'!C105 -> -3 | B35: ='Calcs - PMP'!F105 -> - | C35: - | E35: 6.25 | F35: 0.5968713573 | G35: 0.5968713573 | L35: 25 | M35: 0 | N35: 0 | O35: 0 | P35: 0 | Q35: 0 | R35: 0 | S35: 0 | T35: 0 | U35: 0 | V35: 0 | W35: 0 | X35: 0 | Y35: 0 | Z35: 0 | AA35: 0 | AB35: 0 | AC35: 0 | AD35: 0 | AE35: 0 | AF35: 0 | AG35: 0 | AH35: 0 | AI35: 0 | AJ35: 0 | AK35: 0 | AL35: 0 | AM35: 0 | AN35: 0 | AO35: 0 | AP35: 0 | AQ35: 0 | AR35: 0 | AS35: 0 | AT35: 0 | AU35: 0 | AV35: 0 | AW35: 0 | AX35: 0 | BV35: 0 | BW35: 0 | BX35: 0 | BY35: 0 | BZ35: 0 | CA35: 0 | CB35: 0 | CC35: 0 | CD35: 0 | CE35: 0 | CF35: 0 | CG35: 0 | CH35: 0 | CI35: 0 | CJ35: 0 | CK35: 0 | CL35: 0 | CM35: 0 | CN35: 0 | CO35: 0 | CP35: 0 | CQ35: 0 | CR35: 0 | CS35: 0 | CT35: 0 | CU35: 0 | CV35: 0 | CW35: 0 | CX35: 0 | CY35: 0 | CZ35: 0 | DA35: 0 | DB35: 0 | DC35: 0 | DD35: 0 | DE35: 0 | DF35: 0 | DG35: 0 | DH35: 0 | DI35: =IF(OFFSET($C$10,DI$9,0)="-",0,IF(DI$9>=$L35,0,OFFSET($C$10,DI$9,0)*OFFSET($G$10,$L35-DI$9,0))) -> 0 | DJ35: 0 | DK35: 0 | DL35: 0 | DM35: 0 | DN35: 0 | DO35: 0 | DP35: 0 | DQ35: 0 | DR35: 0 | DS35: 0 | DT35: 0 | DU35: 0 | DV35: 0 | DW35: 0 | DX35: 0 | DY35: 0 | DZ35: 0 | EA35: 0 | EB35: 0 | EC35: 0 | ED35: 0 | EE35: 0 | EF35: 0 | EG35: 0 | EH35: 0 | EI35: 0 | EJ35: 0 | EK35: 0 | EL35: 0 | EM35: 0 | EN35: 0 | EO35: 0 | EP35: 0 | EQ35: 0 | ER35: 0 | ES35: 0 | ET35: 0 | EU35: 0 | EV35: 0 | EW35: 0 | EX35: 0 | EY35: 0 | EZ35: 0 | FA35: 0 | FB35: 0 | FC35: 0 | FD35: 0 | FE35: 0 | FF35: 0 | FG35: 0 | FH35: 0 | FI35: 0 | FJ35: 0 | FK35: 0 | FL35: 0 | FM35: 0 | FN35: 0 | FO35: 0 | FP35: 0 | FQ35: 0 | FR35: 0 | FS35: 0 | FT35: 0 | FU35: 0 | FV35: 0 | FW35: 0 | FX35: 0 | FY35: 0 | FZ35: 0 | GA35: 0 | GB35: 0 | GC35: 0 | GD35: 0 | GE35: 0 | GF35: 0 | GG35: 0 | GH35: 0 | GI35: 0 | GJ35: 0 | GK35: 0 | GL35: 0 | GM35: 0 | GN35: 0 | GO35: 0 | GP35: 0 | GQ35: 0 | GR35: 0 | GS35: 0 | GT35: 0 | GU35: 0 | GV35: 0 | GW35: 0 | GX35: 0 | GY35: 0 | GZ35: 0 | HA35: 0 | HB35: 0 | HC35: 0 | HD35: 0 | HE35: 0
A36: ='Calcs - PMP'!C106 -> -2.75 | B36: ='Calcs - PMP'!F106 -> - | C36: - | E36: 6.5 | F36: -0.4059059845 | G36: 0 | L36: 26 | M36: 0 | N36: 0 | O36: 0 | P36: 0 | Q36: 0 | R36: 0 | S36: 0 | T36: 0 | U36: 0 | V36: 0 | W36: 0 | X36: 0 | Y36: 0 | Z36: 0 | AA36: 0 | AB36: 0 | AC36: 0 | AD36: 0 | AE36: 0 | AF36: 0 | AG36: 0 | AH36: 0 | AI36: 0 | AJ36: 0 | AK36: 0 | AL36: 0 | AM36: 0 | AN36: 0 | AO36: 0 | AP36: 0 | AQ36: 0 | AR36: 0 | AS36: 0 | AT36: 0 | AU36: 0 | AV36: 0 | AW36: 0 | AX36: 0 | BV36: 0 | BW36: 0 | BX36: 0 | BY36: 0 | BZ36: 0 | CA36: 0 | CB36: 0 | CC36: 0 | CD36: 0 | CE36: 0 | CF36: 0 | CG36: 0 | CH36: 0 | CI36: 0 | CJ36: 0 | CK36: 0 | CL36: 0 | CM36: 0 | CN36: 0 | CO36: 0 | CP36: 0 | CQ36: 0 | CR36: 0 | CS36: 0 | CT36: 0 | CU36: 0 | CV36: 0 | CW36: 0 | CX36: 0 | CY36: 0 | CZ36: 0 | DA36: 0 | DB36: 0 | DC36: 0 | DD36: 0 | DE36: 0 | DF36: 0 | DG36: 0 | DH36: 0 | DI36: 0 | DJ36: 0 | DK36: 0 | DL36: 0 | DM36: 0 | DN36: 0 | DO36: 0 | DP36: 0 | DQ36: 0 | DR36: 0 | DS36: 0 | DT36: 0 | DU36: 0 | DV36: 0 | DW36: 0 | DX36: 0 | DY36: 0 | DZ36: 0 | EA36: 0 | EB36: 0 | EC36: 0 | ED36: 0 | EE36: 0 | EF36: 0 | EG36: 0 | EH36: 0 | EI36: 0 | EJ36: 0 | EK36: 0 | EL36: 0 | EM36: 0 | EN36: 0 | EO36: 0 | EP36: 0 | EQ36: 0 | ER36: 0 | ES36: 0 | ET36: 0 | EU36: 0 | EV36: 0 | EW36: 0 | EX36: 0 | EY36: 0 | EZ36: 0 | FA36: 0 | FB36: 0 | FC36: 0 | FD36: 0 | FE36: 0 | FF36: 0 | FG36: 0 | FH36: 0 | FI36: 0 | FJ36: 0 | FK36: 0 | FL36: 0 | FM36: 0 | FN36: 0 | FO36: 0 | FP36: 0 | FQ36: 0 | FR36: 0 | FS36: 0 | FT36: 0 | FU36: 0 | FV36: 0 | FW36: 0 | FX36: 0 | FY36: 0 | FZ36: 0 | GA36: 0 | GB36: 0 | GC36: 0 | GD36: 0 | GE36: 0 | GF36: 0 | GG36: 0 | GH36: 0 | GI36: 0 | GJ36: 0 | GK36: 0 | GL36: 0 | GM36: 0 | GN36: 0 | GO36: 0 | GP36: 0 | GQ36: 0 | GR36: 0 | GS36: 0 | GT36: 0 | GU36: 0 | GV36: 0 | GW36: 0 | GX36: 0 | GY36: 0 | GZ36: 0 | HA36: 0 | HB36: 0 | HC36: 0 | HD36: 0 | HE36: 0
A37: ='Calcs - PMP'!C107 -> -2.5 | B37: ='Calcs - PMP'!F107 -> - | C37: - | E37: 6.75 | F37: -1.408683326 | G37: 0 | L37: 27 | M37: 0 | N37: 0 | O37: 0 | P37: 0 | Q37: 0 | R37: 0 | S37: 0 | T37: 0 | U37: 0 | V37: 0 | W37: 0 | X37: 0 | Y37: 0 | Z37: 0 | AA37: 0 | AB37: 0 | AC37: 0 | AD37: 0 | AE37: 0 | AF37: 0 | AG37: 0 | AH37: 0 | AI37: 0 | AJ37: 0 | AK37: 0 | AL37: 0 | AM37: 0 | AN37: 0 | AO37: 0 | AP37: 0 | AQ37: 0 | AR37: 0 | AS37: 0 | AT37: 0 | AU37: 0 | AV37: 0 | AW37: 0 | AX37: 0 | BV37: 0 | BW37: 0 | BX37: 0 | BY37: 0 | BZ37: 0 | CA37: 0 | CB37: 0 | CC37: 0 | CD37: 0 | CE37: =IF(OFFSET($C$10,CE$9,0)="-",0,IF(CE$9>=$L37,0,OFFSET($C$10,CE$9,0)*OFFSET($G$10,$L37-CE$9,0))) -> 0 | CF37: 0 | CG37: 0 | CH37: 0 | CI37: 0 | CJ37: 0 | CK37: 0 | CL37: 0 | CM37: 0 | CN37: 0 | CO37: 0 | CP37: 0 | CQ37: 0 | CR37: 0 | CS37: 0 | CT37: 0 | CU37: 0 | CV37: 0 | CW37: 0 | CX37: 0 | CY37: 0 | CZ37: 0 | DA37: 0 | DB37: 0 | DC37: 0 | DD37: 0 | DE37: 0 | DF37: 0 | DG37: 0 | DH37: 0 | DI37: 0 | DJ37: 0 | DK37: 0 | DL37: 0 | DM37: 0 | DN37: 0 | DO37: 0 | DP37: 0 | DQ37: 0 | DR37: 0 | DS37: 0 | DT37: 0 | DU37: 0 | DV37: 0 | DW37: 0 | DX37: 0 | DY37: 0 | DZ37: 0 | EA37: 0 | EB37: 0 | EC37: 0 | ED37: 0 | EE37: 0 | EF37: 0 | EG37: 0 | EH37: 0 | EI37: 0 | EJ37: 0 | EK37: 0 | EL37: 0 | EM37: 0 | EN37: 0 | EO37: 0 | EP37: 0 | EQ37: 0 | ER37: 0 | ES37: 0 | ET37: 0 | EU37: 0 | EV37: 0 | EW37: 0 | EX37: 0 | EY37: 0 | EZ37: 0 | FA37: 0 | FB37: 0 | FC37: 0 | FD37: 0 | FE37: 0 | FF37: 0 | FG37: 0 | FH37: 0 | FI37: 0 | FJ37: 0 | FK37: 0 | FL37: 0 | FM37: 0 | FN37: 0 | FO37: 0 | FP37: 0 | FQ37: 0 | FR37: 0 | FS37: 0 | FT37: 0 | FU37: 0 | FV37: 0 | FW37: 0 | FX37: 0 | FY37: 0 | FZ37: 0 | GA37: 0 | GB37: 0 | GC37: 0 | GD37: 0 | GE37: 0 | GF37: 0 | GG37: 0 | GH37: 0 | GI37: 0 | GJ37: 0 | GK37: 0 | GL37: 0 | GM37: 0 | GN37: 0 | GO37: 0 | GP37: 0 | GQ37: 0 | GR37: 0 | GS37: 0 | GT37: 0 | GU37: 0 | GV37: 0 | GW37: 0 | GX37: 0 | GY37: 0 | GZ37: 0 | HA37: 0 | HB37: 0 | HC37: 0 | HD37: 0 | HE37: 0
A38: ='Calcs - PMP'!C108 -> -2.25 | B38: ='Calcs - PMP'!F108 -> - | C38: - | E38: 7 | F38: -2.411460668 | G38: 0 | L38: 28 | M38: 0 | N38: 0 | O38: 0 | P38: 0 | Q38: 0 | R38: 0 | S38: 0 | T38: 0 | U38: 0 | V38: 0 | W38: 0 | X38: 0 | Y38: 0 | Z38: 0 | AA38: 0 | AB38: 0 | AC38: 0 | AD38: 0 | AE38: 0 | AF38: 0 | AG38: 0 | AH38: 0 | AI38: 0 | AJ38: 0 | AK38: 0 | AL38: 0 | AM38: 0 | AN38: 0 | AO38: 0 | AP38: 0 | AQ38: 0 | AR38: 0 | AS38: 0 | AT38: 0 | AU38: 0 | AV38: 0 | AW38: 0 | AX38: 0 | BV38: 0 | BW38: 0 | BX38: 0 | BY38: 0 | BZ38: 0 | CA38: 0 | CB38: 0 | CC38: 0 | CD38: 0 | CE38: 0 | CF38: 0 | CG38: 0 | CH38: 0 | CI38: 0 | CJ38: 0 | CK38: 0 | CL38: 0 | CM38: 0 | CN38: 0 | CO38: 0 | CP38: 0 | CQ38: 0 | CR38: 0 | CS38: 0 | CT38: 0 | CU38: 0 | CV38: 0 | CW38: 0 | CX38: 0 | CY38: 0 | CZ38: 0 | DA38: 0 | DB38: 0 | DC38: 0 | DD38: 0 | DE38: 0 | DF38: 0 | DG38: 0 | DH38: 0 | DI38: 0 | DJ38: 0 | DK38: 0 | DL38: 0 | DM38: 0 | DN38: 0 | DO38: 0 | DP38: 0 | DQ38: 0 | DR38: 0 | DS38: 0 | DT38: 0 | DU38: 0 | DV38: 0 | DW38: 0 | DX38: 0 | DY38: 0 | DZ38: 0 | EA38: 0 | EB38: 0 | EC38: 0 | ED38: 0 | EE38: 0 | EF38: 0 | EG38: 0 | EH38: 0 | EI38: 0 | EJ38: 0 | EK38: 0 | EL38: 0 | EM38: 0 | EN38: 0 | EO38: 0 | EP38: 0 | EQ38: 0 | ER38: 0 | ES38: 0 | ET38: 0 | EU38: 0 | EV38: 0 | EW38: 0 | EX38: 0 | EY38: 0 | EZ38: 0 | FA38: 0 | FB38: 0 | FC38: 0 | FD38: 0 | FE38: 0 | FF38: 0 | FG38: 0 | FH38: 0 | FI38: 0 | FJ38: 0 | FK38: 0 | FL38: 0 | FM38: 0 | FN38: 0 | FO38: 0 | FP38: 0 | FQ38: 0 | FR38: 0 | FS38: 0 | FT38: =IF(OFFSET($C$10,FT$9,0)="-",0,IF(FT$9>=$L38,0,OFFSET($C$10,FT$9,0)*OFFSET($G$10,$L38-FT$9,0))) -> 0 | FU38: 0 | FV38: 0 | FW38: 0 | FX38: 0 | FY38: 0 | FZ38: 0 | GA38: 0 | GB38: 0 | GC38: 0 | GD38: 0 | GE38: 0 | GF38: 0 | GG38: 0 | GH38: 0 | GI38: 0 | GJ38: 0 | GK38: 0 | GL38: 0 | GM38: 0 | GN38: 0 | GO38: 0 | GP38: 0 | GQ38: 0 | GR38: 0 | GS38: 0 | GT38: 0 | GU38: 0 | GV38: 0 | GW38: 0 | GX38: 0 | GY38: 0 | GZ38: 0 | HA38: 0 | HB38: 0 | HC38: 0 | HD38: 0 | HE38: 0
A39: ='Calcs - PMP'!C109 -> -2 | B39: ='Calcs - PMP'!F109 -> - | C39: - | E39: 7.25 | F39: -3.41423801 | G39: 0 | L39: 29 | M39: 0 | N39: 0 | O39: 0 | P39: 0 | Q39: 0 | R39: 0 | S39: 0 | T39: 0 | U39: 0 | V39: 0 | W39: 0 | X39: 0 | Y39: 0 | Z39: 0 | AA39: 0 | AB39: 0 | AC39: 0 | AD39: 0 | AE39: 0 | AF39: 0 | AG39: 0 | AH39: 0 | AI39: 0 | AJ39: 0 | AK39: 0 | AL39: 0 | AM39: 0 | AN39: 0 | AO39: 0 | AP39: 0 | AQ39: 0 | AR39: 0 | AS39: 0 | AT39: 0 | AU39: 0 | AV39: 0 | AW39: 0 | AX39: 0 | BV39: 0 | BW39: 0 | BX39: 0 | BY39: 0 | BZ39: 0 | CA39: 0 | CB39: 0 | CC39: 0 | CD39: 0 | CE39: 0 | CF39: 0 | CG39: 0 | CH39: 0 | CI39: 0 | CJ39: 0 | CK39: 0 | CL39: 0 | CM39: 0 | CN39: 0 | CO39: 0 | CP39: 0 | CQ39: 0 | CR39: 0 | CS39: 0 | CT39: 0 | CU39: 0 | CV39: 0 | CW39: 0 | CX39: 0 | CY39: 0 | CZ39: 0 | DA39: 0 | DB39: 0 | DC39: 0 | DD39: 0 | DE39: 0 | DF39: 0 | DG39: 0 | DH39: 0 | DI39: =IF(OFFSET($C$10,DI$9,0)="-",0,IF(DI$9>=$L39,0,OFFSET($C$10,DI$9,0)*OFFSET($G$10,$L39-DI$9,0))) -> 0 | DJ39: 0 | DK39: 0 | DL39: 0 | DM39: 0 | DN39: 0 | DO39: 0 | DP39: 0 | DQ39: 0 | DR39: 0 | DS39: 0 | DT39: 0 | DU39: 0 | DV39: 0 | DW39: 0 | DX39: 0 | DY39: 0 | DZ39: 0 | EA39: 0 | EB39: 0 | EC39: 0 | ED39: 0 | EE39: 0 | EF39: 0 | EG39: 0 | EH39: 0 | EI39: 0 | EJ39: 0 | EK39: 0 | EL39: 0 | EM39: 0 | EN39: 0 | EO39: 0 | EP39: 0 | EQ39: 0 | ER39: 0 | ES39: 0 | ET39: 0 | EU39: 0 | EV39: 0 | EW39: 0 | EX39: 0 | EY39: 0 | EZ39: 0 | FA39: 0 | FB39: 0 | FC39: 0 | FD39: 0 | FE39: 0 | FF39: 0 | FG39: 0 | FH39: 0 | FI39: 0 | FJ39: 0 | FK39: 0 | FL39: 0 | FM39: 0 | FN39: 0 | FO39: 0 | FP39: 0 | FQ39: 0 | FR39: 0 | FS39: 0 | FT39: 0 | FU39: 0 | FV39: 0 | FW39: 0 | FX39: 0 | FY39: 0 | FZ39: 0 | GA39: 0 | GB39: 0 | GC39: 0 | GD39: 0 | GE39: 0 | GF39: 0 | GG39: 0 | GH39: 0 | GI39: 0 | GJ39: 0 | GK39: 0 | GL39: 0 | GM39: 0 | GN39: 0 | GO39: 0 | GP39: 0 | GQ39: 0 | GR39: 0 | GS39: 0 | GT39: 0 | GU39: 0 | GV39: 0 | GW39: 0 | GX39: 0 | GY39: 0 | GZ39: 0 | HA39: 0 | HB39: 0 | HC39: 0 | HD39: 0 | HE39: 0
A40: ='Calcs - PMP'!C110 -> -1.75 | B40: ='Calcs - PMP'!F110 -> - | C40: - | E40: 7.5 | F40: -4.417015351 | G40: 0 | L40: 30 | M40: =IF(OFFSET($C$10,M$9,0)="-",0,IF(M$9>=$L40,0,OFFSET($C$10,M$9,0)*OFFSET($G$10,$L40-M$9,0))) -> 0 | N40: 0 | O40: 0 | P40: 0 | Q40: 0 | R40: 0 | S40: 0 | T40: 0 | U40: 0 | V40: 0 | W40: =IF(OFFSET($C$10,W$9,0)="-",0,IF(W$9>=$L40,0,OFFSET($C$10,W$9,0)*OFFSET($G$10,$L40-W$9,0))) -> 0 | X40: 0 | Y40: 0 | Z40: 0 | AA40: 0 | AB40: 0 | AC40: 0 | AD40: 0 | AE40: 0 | AF40: 0 | AG40: =IF(OFFSET($C$10,AG$9,0)="-",0,IF(AG$9>=$L40,0,OFFSET($C$10,AG$9,0)*OFFSET($G$10,$L40-AG$9,0))) -> 0 | AH40: 0 | AI40: 0 | AJ40: 0 | AK40: 0 | AL40: 0 | AM40: 0 | AN40: 0 | AO40: 0 | AP40: 0 | AQ40: =IF(OFFSET($C$10,AQ$9,0)="-",0,IF(AQ$9>=$L40,0,OFFSET($C$10,AQ$9,0)*OFFSET($G$10,$L40-AQ$9,0))) -> 0 | AR40: 0 | AS40: 0 | AT40: 0 | AU40: 0 | AV40: 0 | AW40: 0 | AX40: 0 | BA40: =IF(OFFSET($C$10,BA$9,0)="-",0,IF(BA$9>=$L40,0,OFFSET($C$10,BA$9,0)*OFFSET($G$10,$L40-BA$9,0))) ->  | BK40: =IF(OFFSET($C$10,BK$9,0)="-",0,IF(BK$9>=$L40,0,OFFSET($C$10,BK$9,0)*OFFSET($G$10,$L40-BK$9,0))) ->  | BV40: 0 | BW40: 0 | BX40: 0 | BY40: 0 | BZ40: 0 | CA40: 0 | CB40: 0 | CC40: 0 | CD40: 0 | CE40: 0 | CF40: 0 | CG40: 0 | CH40: 0 | CI40: 0 | CJ40: 0 | CK40: 0 | CL40: 0 | CM40: 0 | CN40: 0 | CO40: 0 | CP40: 0 | CQ40: 0 | CR40: 0 | CS40: 0 | CT40: 0 | CU40: 0 | CV40: 0 | CW40: 0 | CX40: 0 | CY40: 0 | CZ40: 0 | DA40: 0 | DB40: 0 | DC40: 0 | DD40: 0 | DE40: 0 | DF40: 0 | DG40: 0 | DH40: 0 | DI40: 0 | DJ40: 0 | DK40: 0 | DL40: 0 | DM40: 0 | DN40: 0 | DO40: 0 | DP40: 0 | DQ40: 0 | DR40: 0 | DS40: 0 | DT40: 0 | DU40: 0 | DV40: 0 | DW40: 0 | DX40: 0 | DY40: 0 | DZ40: 0 | EA40: 0 | EB40: 0 | EC40: 0 | ED40: 0 | EE40: 0 | EF40: 0 | EG40: 0 | EH40: 0 | EI40: 0 | EJ40: 0 | EK40: 0 | EL40: 0 | EM40: 0 | EN40: 0 | EO40: 0 | EP40: 0 | EQ40: 0 | ER40: 0 | ES40: 0 | ET40: 0 | EU40: 0 | EV40: 0 | EW40: 0 | EX40: 0 | EY40: 0 | EZ40: 0 | FA40: 0 | FB40: 0 | FC40: 0 | FD40: 0 | FE40: 0 | FF40: 0 | FG40: 0 | FH40: 0 | FI40: 0 | FJ40: 0 | FK40: 0 | FL40: 0 | FM40: 0 | FN40: 0 | FO40: 0 | FP40: 0 | FQ40: 0 | FR40: 0 | FS40: 0 | FT40: 0 | FU40: 0 | FV40: 0 | FW40: 0 | FX40: 0 | FY40: 0 | FZ40: 0 | GA40: 0 | GB40: 0 | GC40: 0 | GD40: 0 | GE40: 0 | GF40: 0 | GG40: 0 | GH40: 0 | GI40: 0 | GJ40: 0 | GK40: 0 | GL40: 0 | GM40: 0 | GN40: 0 | GO40: 0 | GP40: 0 | GQ40: 0 | GR40: 0 | GS40: 0 | GT40: 0 | GU40: 0 | GV40: 0 | GW40: 0 | GX40: 0 | GY40: 0 | GZ40: 0 | HA40: 0 | HB40: 0 | HC40: 0 | HD40: 0 | HE40: 0
A41: ='Calcs - PMP'!C111 -> -1.5 | B41: ='Calcs - PMP'!F111 -> - | C41: - | E41: 7.75 | F41: -5.419792693 | G41: 0 | L41: 31 | M41: 0 | N41: 0 | O41: 0 | P41: 0 | Q41: 0 | R41: 0 | S41: 0 | T41: 0 | U41: 0 | V41: 0 | W41: 0 | X41: 0 | Y41: 0 | Z41: 0 | AA41: 0 | AB41: 0 | AC41: 0 | AD41: 0 | AE41: 0 | AF41: 0 | AG41: 0 | AH41: 0 | AI41: 0 | AJ41: 0 | AK41: 0 | AL41: 0 | AM41: 0 | AN41: 0 | AO41: 0 | AP41: 0 | AQ41: 0 | AR41: 0 | AS41: 0 | AT41: 0 | AU41: 0 | AV41: 0 | AW41: 0 | AX41: 0 | BV41: 0 | BW41: 0 | BX41: 0 | BY41: 0 | BZ41: 0 | CA41: 0 | CB41: 0 | CC41: 0 | CD41: 0 | CE41: 0 | CF41: 0 | CG41: 0 | CH41: 0 | CI41: 0 | CJ41: 0 | CK41: 0 | CL41: 0 | CM41: 0 | CN41: 0 | CO41: 0 | CP41: 0 | CQ41: 0 | CR41: 0 | CS41: 0 | CT41: 0 | CU41: 0 | CV41: 0 | CW41: 0 | CX41: 0 | CY41: 0 | CZ41: 0 | DA41: 0 | DB41: 0 | DC41: 0 | DD41: 0 | DE41: 0 | DF41: 0 | DG41: 0 | DH41: 0 | DI41: 0 | DJ41: 0 | DK41: 0 | DL41: 0 | DM41: 0 | DN41: 0 | DO41: 0 | DP41: 0 | DQ41: 0 | DR41: 0 | DS41: 0 | DT41: 0 | DU41: 0 | DV41: 0 | DW41: 0 | DX41: 0 | DY41: 0 | DZ41: 0 | EA41: 0 | EB41: 0 | EC41: 0 | ED41: 0 | EE41: 0 | EF41: 0 | EG41: 0 | EH41: 0 | EI41: 0 | EJ41: 0 | EK41: 0 | EL41: 0 | EM41: 0 | EN41: 0 | EO41: 0 | EP41: 0 | EQ41: 0 | ER41: 0 | ES41: 0 | ET41: 0 | EU41: 0 | EV41: 0 | EW41: 0 | EX41: 0 | EY41: 0 | EZ41: 0 | FA41: 0 | FB41: 0 | FC41: 0 | FD41: 0 | FE41: 0 | FF41: 0 | FG41: 0 | FH41: 0 | FI41: 0 | FJ41: 0 | FK41: 0 | FL41: 0 | FM41: 0 | FN41: 0 | FO41: 0 | FP41: 0 | FQ41: 0 | FR41: 0 | FS41: 0 | FT41: 0 | FU41: 0 | FV41: 0 | FW41: 0 | FX41: 0 | FY41: 0 | FZ41: 0 | GA41: 0 | GB41: 0 | GC41: 0 | GD41: 0 | GE41: 0 | GF41: 0 | GG41: 0 | GH41: 0 | GI41: 0 | GJ41: 0 | GK41: 0 | GL41: 0 | GM41: 0 | GN41: 0 | GO41: 0 | GP41: 0 | GQ41: 0 | GR41: 0 | GS41: 0 | GT41: 0 | GU41: 0 | GV41: 0 | GW41: 0 | GX41: 0 | GY41: 0 | GZ41: 0 | HA41: 0 | HB41: 0 | HC41: 0 | HD41: 0 | HE41: 0
A42: ='Calcs - PMP'!C112 -> -1.25 | B42: ='Calcs - PMP'!F112 -> - | C42: - | E42: 8 | F42: -6.422570035 | G42: 0 | L42: 32 | M42: 0 | N42: 0 | O42: 0 | P42: 0 | Q42: 0 | R42: 0 | S42: 0 | T42: 0 | U42: 0 | V42: 0 | W42: 0 | X42: 0 | Y42: 0 | Z42: 0 | AA42: 0 | AB42: 0 | AC42: 0 | AD42: 0 | AE42: 0 | AF42: 0 | AG42: 0 | AH42: 0 | AI42: 0 | AJ42: 0 | AK42: 0 | AL42: 0 | AM42: 0 | AN42: 0 | AO42: 0 | AP42: 0 | AQ42: 0 | AR42: 0 | AS42: 0 | AT42: 0 | AU42: 0 | AV42: 0 | AW42: 0 | AX42: 0 | BV42: 0 | BW42: 0 | BX42: 0 | BY42: 0 | BZ42: 0 | CA42: 0 | CB42: 0 | CC42: 0 | CD42: 0 | CE42: 0 | CF42: 0 | CG42: 0 | CH42: 0 | CI42: 0 | CJ42: 0 | CK42: 0 | CL42: 0 | CM42: 0 | CN42: 0 | CO42: 0 | CP42: 0 | CQ42: 0 | CR42: 0 | CS42: 0 | CT42: 0 | CU42: 0 | CV42: 0 | CW42: 0 | CX42: 0 | CY42: 0 | CZ42: 0 | DA42: 0 | DB42: 0 | DC42: 0 | DD42: 0 | DE42: 0 | DF42: 0 | DG42: 0 | DH42: 0 | DI42: 0 | DJ42: 0 | DK42: 0 | DL42: 0 | DM42: 0 | DN42: 0 | DO42: 0 | DP42: 0 | DQ42: 0 | DR42: 0 | DS42: 0 | DT42: 0 | DU42: 0 | DV42: 0 | DW42: 0 | DX42: 0 | DY42: 0 | DZ42: 0 | EA42: 0 | EB42: 0 | EC42: 0 | ED42: 0 | EE42: 0 | EF42: 0 | EG42: 0 | EH42: 0 | EI42: 0 | EJ42: 0 | EK42: 0 | EL42: 0 | EM42: 0 | EN42: 0 | EO42: 0 | EP42: 0 | EQ42: 0 | ER42: 0 | ES42: 0 | ET42: 0 | EU42: 0 | EV42: 0 | EW42: 0 | EX42: 0 | EY42: 0 | EZ42: 0 | FA42: 0 | FB42: 0 | FC42: 0 | FD42: 0 | FE42: 0 | FF42: 0 | FG42: 0 | FH42: 0 | FI42: 0 | FJ42: 0 | FK42: 0 | FL42: 0 | FM42: 0 | FN42: 0 | FO42: 0 | FP42: 0 | FQ42: 0 | FR42: 0 | FS42: 0 | FT42: =IF(OFFSET($C$10,FT$9,0)="-",0,IF(FT$9>=$L42,0,OFFSET($C$10,FT$9,0)*OFFSET($G$10,$L42-FT$9,0))) -> 0 | FU42: 0 | FV42: 0 | FW42: 0 | FX42: 0 | FY42: 0 | FZ42: 0 | GA42: 0 | GB42: 0 | GC42: 0 | GD42: 0 | GE42: 0 | GF42: 0 | GG42: 0 | GH42: 0 | GI42: 0 | GJ42: 0 | GK42: 0 | GL42: 0 | GM42: 0 | GN42: 0 | GO42: 0 | GP42: 0 | GQ42: 0 | GR42: 0 | GS42: 0 | GT42: 0 | GU42: 0 | GV42: 0 | GW42: 0 | GX42: 0 | GY42: 0 | GZ42: 0 | HA42: 0 | HB42: 0 | HC42: 0 | HD42: 0 | HE42: 0
A43: ='Calcs - PMP'!C113 -> -1 | B43: ='Calcs - PMP'!F113 -> - | C43: - | E43: 8.25 | F43: -7.425347377 | G43: 0 | L43: 33 | M43: 0 | N43: 0 | O43: 0 | P43: 0 | Q43: 0 | R43: 0 | S43: 0 | T43: 0 | U43: 0 | V43: 0 | W43: 0 | X43: 0 | Y43: 0 | Z43: 0 | AA43: 0 | AB43: 0 | AC43: 0 | AD43: 0 | AE43: 0 | AF43: 0 | AG43: 0 | AH43: 0 | AI43: 0 | AJ43: 0 | AK43: 0 | AL43: 0 | AM43: 0 | AN43: 0 | AO43: 0 | AP43: 0 | AQ43: 0 | AR43: 0 | AS43: 0 | AT43: 0 | AU43: 0 | AV43: 0 | AW43: 0 | AX43: 0 | BV43: 0 | BW43: 0 | BX43: 0 | BY43: 0 | BZ43: 0 | CA43: 0 | CB43: 0 | CC43: 0 | CD43: 0 | CE43: 0 | CF43: 0 | CG43: 0 | CH43: 0 | CI43: 0 | CJ43: 0 | CK43: 0 | CL43: 0 | CM43: 0 | CN43: 0 | CO43: 0 | CP43: 0 | CQ43: 0 | CR43: 0 | CS43: 0 | CT43: 0 | CU43: 0 | CV43: 0 | CW43: 0 | CX43: 0 | CY43: 0 | CZ43: 0 | DA43: 0 | DB43: 0 | DC43: 0 | DD43: 0 | DE43: 0 | DF43: 0 | DG43: 0 | DH43: 0 | DI43: =IF(OFFSET($C$10,DI$9,0)="-",0,IF(DI$9>=$L43,0,OFFSET($C$10,DI$9,0)*OFFSET($G$10,$L43-DI$9,0))) -> 0 | DJ43: 0 | DK43: 0 | DL43: 0 | DM43: 0 | DN43: 0 | DO43: 0 | DP43: 0 | DQ43: 0 | DR43: 0 | DS43: 0 | DT43: 0 | DU43: 0 | DV43: 0 | DW43: 0 | DX43: 0 | DY43: 0 | DZ43: 0 | EA43: 0 | EB43: 0 | EC43: 0 | ED43: 0 | EE43: 0 | EF43: 0 | EG43: 0 | EH43: 0 | EI43: 0 | EJ43: 0 | EK43: 0 | EL43: 0 | EM43: 0 | EN43: 0 | EO43: 0 | EP43: 0 | EQ43: 0 | ER43: 0 | ES43: 0 | ET43: 0 | EU43: 0 | EV43: 0 | EW43: 0 | EX43: 0 | EY43: 0 | EZ43: 0 | FA43: 0 | FB43: 0 | FC43: 0 | FD43: 0 | FE43: 0 | FF43: 0 | FG43: 0 | FH43: 0 | FI43: 0 | FJ43: 0 | FK43: 0 | FL43: 0 | FM43: 0 | FN43: 0 | FO43: 0 | FP43: 0 | FQ43: 0 | FR43: 0 | FS43: 0 | FT43: 0 | FU43: 0 | FV43: 0 | FW43: 0 | FX43: 0 | FY43: 0 | FZ43: 0 | GA43: 0 | GB43: 0 | GC43: 0 | GD43: 0 | GE43: 0 | GF43: 0 | GG43: 0 | GH43: 0 | GI43: 0 | GJ43: 0 | GK43: 0 | GL43: 0 | GM43: 0 | GN43: 0 | GO43: 0 | GP43: 0 | GQ43: 0 | GR43: 0 | GS43: 0 | GT43: 0 | GU43: 0 | GV43: 0 | GW43: 0 | GX43: 0 | GY43: 0 | GZ43: 0 | HA43: 0 | HB43: 0 | HC43: 0 | HD43: 0 | HE43: 0
A44: ='Calcs - PMP'!C114 -> -0.75 | B44: ='Calcs - PMP'!F114 -> - | C44: - | E44: 8.5 | F44: -8.428124718 | G44: 0 | L44: 34 | M44: 0 | N44: 0 | O44: 0 | P44: 0 | Q44: 0 | R44: 0 | S44: 0 | T44: 0 | U44: 0 | V44: 0 | W44: 0 | X44: 0 | Y44: 0 | Z44: 0 | AA44: 0 | AB44: 0 | AC44: 0 | AD44: 0 | AE44: 0 | AF44: 0 | AG44: 0 | AH44: 0 | AI44: 0 | AJ44: 0 | AK44: 0 | AL44: 0 | AM44: 0 | AN44: 0 | AO44: 0 | AP44: 0 | AQ44: 0 | AR44: 0 | AS44: 0 | AT44: 0 | AU44: 0 | AV44: 0 | AW44: 0 | AX44: 0 | BV44: 0 | BW44: 0 | BX44: 0 | BY44: =IF(OFFSET($C$10,BY$9,0)="-",0,IF(BY$9>=$L44,0,OFFSET($C$10,BY$9,0)*OFFSET($G$10,$L44-BY$9,0))) -> 0 | BZ44: 0 | CA44: 0 | CB44: 0 | CC44: 0 | CD44: 0 | CE44: 0 | CF44: 0 | CG44: 0 | CH44: 0 | CI44: 0 | CJ44: 0 | CK44: 0 | CL44: 0 | CM44: 0 | CN44: 0 | CO44: 0 | CP44: 0 | CQ44: 0 | CR44: 0 | CS44: 0 | CT44: 0 | CU44: 0 | CV44: 0 | CW44: 0 | CX44: 0 | CY44: 0 | CZ44: 0 | DA44: 0 | DB44: 0 | DC44: 0 | DD44: 0 | DE44: 0 | DF44: 0 | DG44: 0 | DH44: 0 | DI44: 0 | DJ44: 0 | DK44: 0 | DL44: 0 | DM44: 0 | DN44: 0 | DO44: 0 | DP44: 0 | DQ44: 0 | DR44: 0 | DS44: 0 | DT44: 0 | DU44: 0 | DV44: 0 | DW44: 0 | DX44: 0 | DY44: 0 | DZ44: 0 | EA44: 0 | EB44: 0 | EC44: 0 | ED44: 0 | EE44: 0 | EF44: 0 | EG44: 0 | EH44: 0 | EI44: 0 | EJ44: 0 | EK44: 0 | EL44: 0 | EM44: 0 | EN44: 0 | EO44: 0 | EP44: 0 | EQ44: 0 | ER44: 0 | ES44: 0 | ET44: 0 | EU44: 0 | EV44: 0 | EW44: 0 | EX44: 0 | EY44: 0 | EZ44: 0 | FA44: 0 | FB44: 0 | FC44: 0 | FD44: 0 | FE44: 0 | FF44: 0 | FG44: 0 | FH44: 0 | FI44: 0 | FJ44: 0 | FK44: 0 | FL44: 0 | FM44: 0 | FN44: 0 | FO44: 0 | FP44: 0 | FQ44: 0 | FR44: 0 | FS44: 0 | FT44: 0 | FU44: 0 | FV44: 0 | FW44: 0 | FX44: 0 | FY44: 0 | FZ44: 0 | GA44: 0 | GB44: 0 | GC44: 0 | GD44: 0 | GE44: 0 | GF44: 0 | GG44: 0 | GH44: 0 | GI44: 0 | GJ44: 0 | GK44: 0 | GL44: 0 | GM44: 0 | GN44: 0 | GO44: 0 | GP44: 0 | GQ44: 0 | GR44: 0 | GS44: 0 | GT44: 0 | GU44: 0 | GV44: 0 | GW44: 0 | GX44: 0 | GY44: 0 | GZ44: 0 | HA44: 0 | HB44: 0 | HC44: 0 | HD44: 0 | HE44: 0
A45: ='Calcs - PMP'!C115 -> -0.5 | B45: ='Calcs - PMP'!F115 -> - | C45: - | E45: 8.75 | F45: -9.43090206 | G45: 0 | L45: 35 | M45: 0 | N45: 0 | O45: 0 | P45: 0 | Q45: 0 | R45: 0 | S45: 0 | T45: 0 | U45: 0 | V45: 0 | W45: 0 | X45: 0 | Y45: 0 | Z45: 0 | AA45: 0 | AB45: 0 | AC45: 0 | AD45: 0 | AE45: 0 | AF45: 0 | AG45: 0 | AH45: 0 | AI45: 0 | AJ45: 0 | AK45: 0 | AL45: 0 | AM45: 0 | AN45: 0 | AO45: 0 | AP45: 0 | AQ45: 0 | AR45: 0 | AS45: 0 | AT45: 0 | AU45: 0 | AV45: 0 | AW45: 0 | AX45: 0 | BV45: 0 | BW45: 0 | BX45: 0 | BY45: 0 | BZ45: 0 | CA45: 0 | CB45: 0 | CC45: 0 | CD45: 0 | CE45: 0 | CF45: 0 | CG45: 0 | CH45: 0 | CI45: 0 | CJ45: 0 | CK45: 0 | CL45: 0 | CM45: 0 | CN45: 0 | CO45: 0 | CP45: 0 | CQ45: 0 | CR45: 0 | CS45: 0 | CT45: 0 | CU45: 0 | CV45: 0 | CW45: 0 | CX45: 0 | CY45: 0 | CZ45: 0 | DA45: 0 | DB45: 0 | DC45: 0 | DD45: 0 | DE45: 0 | DF45: 0 | DG45: 0 | DH45: 0 | DI45: 0 | DJ45: 0 | DK45: 0 | DL45: 0 | DM45: 0 | DN45: 0 | DO45: 0 | DP45: 0 | DQ45: 0 | DR45: 0 | DS45: 0 | DT45: 0 | DU45: 0 | DV45: 0 | DW45: 0 | DX45: 0 | DY45: 0 | DZ45: 0 | EA45: 0 | EB45: 0 | EC45: 0 | ED45: 0 | EE45: 0 | EF45: 0 | EG45: 0 | EH45: 0 | EI45: 0 | EJ45: 0 | EK45: 0 | EL45: 0 | EM45: 0 | EN45: 0 | EO45: 0 | EP45: 0 | EQ45: 0 | ER45: 0 | ES45: 0 | ET45: 0 | EU45: 0 | EV45: 0 | EW45: 0 | EX45: 0 | EY45: 0 | EZ45: 0 | FA45: 0 | FB45: 0 | FC45: 0 | FD45: 0 | FE45: 0 | FF45: 0 | FG45: 0 | FH45: 0 | FI45: 0 | FJ45: 0 | FK45: 0 | FL45: 0 | FM45: 0 | FN45: 0 | FO45: 0 | FP45: 0 | FQ45: 0 | FR45: 0 | FS45: 0 | FT45: 0 | FU45: 0 | FV45: 0 | FW45: 0 | FX45: 0 | FY45: 0 | FZ45: 0 | GA45: 0 | GB45: 0 | GC45: 0 | GD45: 0 | GE45: 0 | GF45: 0 | GG45: 0 | GH45: 0 | GI45: 0 | GJ45: 0 | GK45: 0 | GL45: 0 | GM45: 0 | GN45: 0 | GO45: 0 | GP45: 0 | GQ45: 0 | GR45: 0 | GS45: 0 | GT45: 0 | GU45: 0 | GV45: 0 | GW45: 0 | GX45: 0 | GY45: 0 | GZ45: 0 | HA45: 0 | HB45: 0 | HC45: 0 | HD45: 0 | HE45: 0
A46: ='Calcs - PMP'!C116 -> -0.25 | B46: ='Calcs - PMP'!F116 -> - | C46: - | E46: 9 | F46: -10.4336794 | G46: 0 | L46: 36 | M46: 0 | N46: 0 | O46: 0 | P46: 0 | Q46: 0 | R46: 0 | S46: 0 | T46: 0 | U46: 0 | V46: 0 | W46: 0 | X46: 0 | Y46: 0 | Z46: 0 | AA46: 0 | AB46: 0 | AC46: 0 | AD46: 0 | AE46: 0 | AF46: 0 | AG46: 0 | AH46: 0 | AI46: 0 | AJ46: 0 | AK46: 0 | AL46: 0 | AM46: 0 | AN46: 0 | AO46: 0 | AP46: 0 | AQ46: 0 | AR46: 0 | AS46: 0 | AT46: 0 | AU46: 0 | AV46: 0 | AW46: 0 | AX46: 0 | BV46: 0 | BW46: 0 | BX46: 0 | BY46: 0 | BZ46: 0 | CA46: 0 | CB46: 0 | CC46: 0 | CD46: 0 | CE46: 0 | CF46: 0 | CG46: 0 | CH46: 0 | CI46: 0 | CJ46: 0 | CK46: 0 | CL46: 0 | CM46: 0 | CN46: 0 | CO46: 0 | CP46: 0 | CQ46: 0 | CR46: 0 | CS46: 0 | CT46: 0 | CU46: 0 | CV46: 0 | CW46: 0 | CX46: 0 | CY46: 0 | CZ46: 0 | DA46: 0 | DB46: 0 | DC46: 0 | DD46: 0 | DE46: 0 | DF46: 0 | DG46: 0 | DH46: 0 | DI46: 0 | DJ46: 0 | DK46: 0 | DL46: 0 | DM46: 0 | DN46: 0 | DO46: 0 | DP46: 0 | DQ46: 0 | DR46: 0 | DS46: 0 | DT46: 0 | DU46: 0 | DV46: 0 | DW46: 0 | DX46: 0 | DY46: 0 | DZ46: 0 | EA46: 0 | EB46: 0 | EC46: 0 | ED46: 0 | EE46: 0 | EF46: 0 | EG46: 0 | EH46: 0 | EI46: 0 | EJ46: 0 | EK46: 0 | EL46: 0 | EM46: 0 | EN46: 0 | EO46: 0 | EP46: 0 | EQ46: 0 | ER46: 0 | ES46: 0 | ET46: 0 | EU46: 0 | EV46: 0 | EW46: 0 | EX46: 0 | EY46: 0 | EZ46: 0 | FA46: 0 | FB46: 0 | FC46: 0 | FD46: 0 | FE46: 0 | FF46: 0 | FG46: 0 | FH46: 0 | FI46: 0 | FJ46: 0 | FK46: 0 | FL46: 0 | FM46: 0 | FN46: 0 | FO46: 0 | FP46: 0 | FQ46: 0 | FR46: 0 | FS46: 0 | FT46: =IF(OFFSET($C$10,FT$9,0)="-",0,IF(FT$9>=$L46,0,OFFSET($C$10,FT$9,0)*OFFSET($G$10,$L46-FT$9,0))) -> 0 | FU46: 0 | FV46: 0 | FW46: 0 | FX46: 0 | FY46: 0 | FZ46: 0 | GA46: 0 | GB46: 0 | GC46: 0 | GD46: 0 | GE46: 0 | GF46: 0 | GG46: 0 | GH46: 0 | GI46: 0 | GJ46: 0 | GK46: 0 | GL46: 0 | GM46: 0 | GN46: 0 | GO46: 0 | GP46: 0 | GQ46: 0 | GR46: 0 | GS46: 0 | GT46: 0 | GU46: 0 | GV46: 0 | GW46: 0 | GX46: 0 | GY46: 0 | GZ46: 0 | HA46: 0 | HB46: 0 | HC46: 0 | HD46: 0 | HE46: 0
A47: ='Calcs - PMP'!C117 -> 0 | B47: ='Calcs - PMP'!F117 -> - | C47: - | E47: 9.25 | F47: -11.43645674 | G47: 0 | L47: 37 | M47: 0 | N47: 0 | O47: 0 | P47: 0 | Q47: 0 | R47: 0 | S47: 0 | T47: 0 | U47: 0 | V47: 0 | W47: 0 | X47: 0 | Y47: 0 | Z47: 0 | AA47: 0 | AB47: 0 | AC47: 0 | AD47: 0 | AE47: 0 | AF47: 0 | AG47: 0 | AH47: 0 | AI47: 0 | AJ47: 0 | AK47: 0 | AL47: 0 | AM47: 0 | AN47: 0 | AO47: 0 | AP47: 0 | AQ47: 0 | AR47: 0 | AS47: 0 | AT47: 0 | AU47: 0 | AV47: 0 | AW47: 0 | AX47: 0 | BV47: 0 | BW47: 0 | BX47: 0 | BY47: 0 | BZ47: 0 | CA47: 0 | CB47: 0 | CC47: 0 | CD47: 0 | CE47: 0 | CF47: 0 | CG47: 0 | CH47: 0 | CI47: 0 | CJ47: 0 | CK47: 0 | CL47: 0 | CM47: 0 | CN47: 0 | CO47: 0 | CP47: 0 | CQ47: 0 | CR47: 0 | CS47: 0 | CT47: 0 | CU47: 0 | CV47: 0 | CW47: 0 | CX47: 0 | CY47: 0 | CZ47: 0 | DA47: 0 | DB47: 0 | DC47: 0 | DD47: 0 | DE47: 0 | DF47: 0 | DG47: 0 | DH47: 0 | DI47: =IF(OFFSET($C$10,DI$9,0)="-",0,IF(DI$9>=$L47,0,OFFSET($C$10,DI$9,0)*OFFSET($G$10,$L47-DI$9,0))) -> 0 | DJ47: 0 | DK47: 0 | DL47: 0 | DM47: 0 | DN47: 0 | DO47: 0 | DP47: 0 | DQ47: 0 | DR47: 0 | DS47: 0 | DT47: 0 | DU47: 0 | DV47: 0 | DW47: 0 | DX47: 0 | DY47: 0 | DZ47: 0 | EA47: 0 | EB47: 0 | EC47: 0 | ED47: 0 | EE47: 0 | EF47: 0 | EG47: 0 | EH47: 0 | EI47: 0 | EJ47: 0 | EK47: 0 | EL47: 0 | EM47: 0 | EN47: 0 | EO47: 0 | EP47: 0 | EQ47: 0 | ER47: 0 | ES47: 0 | ET47: 0 | EU47: 0 | EV47: 0 | EW47: 0 | EX47: 0 | EY47: 0 | EZ47: 0 | FA47: 0 | FB47: 0 | FC47: 0 | FD47: 0 | FE47: 0 | FF47: 0 | FG47: 0 | FH47: 0 | FI47: 0 | FJ47: 0 | FK47: 0 | FL47: 0 | FM47: 0 | FN47: 0 | FO47: 0 | FP47: 0 | FQ47: 0 | FR47: 0 | FS47: 0 | FT47: 0 | FU47: 0 | FV47: 0 | FW47: 0 | FX47: 0 | FY47: 0 | FZ47: 0 | GA47: 0 | GB47: 0 | GC47: 0 | GD47: 0 | GE47: 0 | GF47: 0 | GG47: 0 | GH47: 0 | GI47: 0 | GJ47: 0 | GK47: 0 | GL47: 0 | GM47: 0 | GN47: 0 | GO47: 0 | GP47: 0 | GQ47: 0 | GR47: 0 | GS47: 0 | GT47: 0 | GU47: 0 | GV47: 0 | GW47: 0 | GX47: 0 | GY47: 0 | GZ47: 0 | HA47: 0 | HB47: 0 | HC47: 0 | HD47: 0 | HE47: 0
A48: ='Calcs - PMP'!C118 -> 0.25 | B48: ='Calcs - PMP'!F118 ->  | E48: 9.5 | F48: -12.43923409 | G48: 0 | L48: 38 | M48: 0 | N48: 0 | O48: 0 | P48: 0 | Q48: 0 | R48: 0 | S48: 0 | T48: 0 | U48: 0 | V48: 0 | W48: 0 | X48: 0 | Y48: 0 | Z48: 0 | AA48: 0 | AB48: 0 | AC48: 0 | AD48: 0 | AE48: 0 | AF48: 0 | AG48: 0 | AH48: 0 | AI48: 0 | AJ48: 0 | AK48: 0 | AL48: 0 | AM48: 0 | AN48: 0 | AO48: 0 | AP48: 0 | AQ48: 0 | AR48: 0 | AS48: 0 | AT48: 0 | AU48: 0 | AV48: 0 | AW48: 0 | AX48: 0 | BV48: 0 | BW48: 0 | BX48: 0 | BY48: 0 | BZ48: 0 | CA48: 0 | CB48: 0 | CC48: 0 | CD48: 0 | CE48: 0 | CF48: 0 | CG48: 0 | CH48: 0 | CI48: 0 | CJ48: 0 | CK48: 0 | CL48: 0 | CM48: 0 | CN48: 0 | CO48: 0 | CP48: 0 | CQ48: 0 | CR48: 0 | CS48: 0 | CT48: 0 | CU48: 0 | CV48: 0 | CW48: 0 | CX48: 0 | CY48: 0 | CZ48: 0 | DA48: 0 | DB48: 0 | DC48: 0 | DD48: 0 | DE48: 0 | DF48: 0 | DG48: 0 | DH48: 0 | DI48: 0 | DJ48: 0 | DK48: 0 | DL48: 0 | DM48: 0 | DN48: 0 | DO48: 0 | DP48: 0 | DQ48: 0 | DR48: 0 | DS48: 0 | DT48: 0 | DU48: 0 | DV48: 0 | DW48: 0 | DX48: 0 | DY48: 0 | DZ48: 0 | EA48: 0 | EB48: 0 | EC48: 0 | ED48: 0 | EE48: 0 | EF48: 0 | EG48: 0 | EH48: 0 | EI48: 0 | EJ48: 0 | EK48: 0 | EL48: 0 | EM48: 0 | EN48: 0 | EO48: 0 | EP48: 0 | EQ48: 0 | ER48: 0 | ES48: 0 | ET48: 0 | EU48: 0 | EV48: 0 | EW48: 0 | EX48: 0 | EY48: 0 | EZ48: 0 | FA48: 0 | FB48: 0 | FC48: 0 | FD48: 0 | FE48: 0 | FF48: 0 | FG48: 0 | FH48: 0 | FI48: 0 | FJ48: 0 | FK48: 0 | FL48: 0 | FM48: 0 | FN48: 0 | FO48: 0 | FP48: 0 | FQ48: 0 | FR48: 0 | FS48: 0 | FT48: 0 | FU48: 0 | FV48: 0 | FW48: 0 | FX48: 0 | FY48: 0 | FZ48: 0 | GA48: 0 | GB48: 0 | GC48: 0 | GD48: 0 | GE48: 0 | GF48: 0 | GG48: 0 | GH48: 0 | GI48: 0 | GJ48: 0 | GK48: 0 | GL48: 0 | GM48: 0 | GN48: 0 | GO48: 0 | GP48: 0 | GQ48: 0 | GR48: 0 | GS48: 0 | GT48: 0 | GU48: 0 | GV48: 0 | GW48: 0 | GX48: 0 | GY48: 0 | GZ48: 0 | HA48: 0 | HB48: 0 | HC48: 0 | HD48: 0 | HE48: 0
A49: ='Calcs - PMP'!C119 -> 0.5 | B49: ='Calcs - PMP'!F119 ->  | E49: 9.75 | F49: -13.44201143 | G49: 0 | L49: 39 | M49: 0 | N49: 0 | O49: 0 | P49: 0 | Q49: 0 | R49: 0 | S49: 0 | T49: 0 | U49: 0 | V49: 0 | W49: 0 | X49: 0 | Y49: 0 | Z49: 0 | AA49: 0 | AB49: 0 | AC49: 0 | AD49: 0 | AE49: 0 | AF49: 0 | AG49: 0 | AH49: 0 | AI49: 0 | AJ49: 0 | AK49: 0 | AL49: 0 | AM49: 0 | AN49: 0 | AO49: 0 | AP49: 0 | AQ49: 0 | AR49: 0 | AS49: 0 | AT49: 0 | AU49: 0 | AV49: 0 | AW49: 0 | AX49: 0 | BV49: 0 | BW49: 0 | BX49: 0 | BY49: 0 | BZ49: 0 | CA49: 0 | CB49: 0 | CC49: 0 | CD49: 0 | CE49: 0 | CF49: 0 | CG49: 0 | CH49: 0 | CI49: 0 | CJ49: 0 | CK49: 0 | CL49: 0 | CM49: 0 | CN49: 0 | CO49: 0 | CP49: 0 | CQ49: 0 | CR49: 0 | CS49: 0 | CT49: 0 | CU49: 0 | CV49: 0 | CW49: 0 | CX49: 0 | CY49: 0 | CZ49: 0 | DA49: 0 | DB49: 0 | DC49: 0 | DD49: 0 | DE49: 0 | DF49: 0 | DG49: 0 | DH49: 0 | DI49: 0 | DJ49: 0 | DK49: 0 | DL49: 0 | DM49: 0 | DN49: 0 | DO49: 0 | DP49: 0 | DQ49: 0 | DR49: 0 | DS49: 0 | DT49: 0 | DU49: 0 | DV49: 0 | DW49: 0 | DX49: 0 | DY49: 0 | DZ49: 0 | EA49: 0 | EB49: 0 | EC49: 0 | ED49: 0 | EE49: 0 | EF49: 0 | EG49: 0 | EH49: 0 | EI49: 0 | EJ49: 0 | EK49: 0 | EL49: 0 | EM49: 0 | EN49: 0 | EO49: 0 | EP49: 0 | EQ49: 0 | ER49: 0 | ES49: 0 | ET49: 0 | EU49: 0 | EV49: 0 | EW49: 0 | EX49: 0 | EY49: 0 | EZ49: 0 | FA49: 0 | FB49: 0 | FC49: 0 | FD49: 0 | FE49: 0 | FF49: 0 | FG49: 0 | FH49: 0 | FI49: 0 | FJ49: 0 | FK49: 0 | FL49: 0 | FM49: 0 | FN49: 0 | FO49: 0 | FP49: 0 | FQ49: 0 | FR49: 0 | FS49: 0 | FT49: 0 | FU49: 0 | FV49: 0 | FW49: 0 | FX49: 0 | FY49: 0 | FZ49: 0 | GA49: 0 | GB49: 0 | GC49: 0 | GD49: 0 | GE49: 0 | GF49: 0 | GG49: 0 | GH49: 0 | GI49: 0 | GJ49: 0 | GK49: 0 | GL49: 0 | GM49: 0 | GN49: 0 | GO49: 0 | GP49: 0 | GQ49: 0 | GR49: 0 | GS49: 0 | GT49: 0 | GU49: 0 | GV49: 0 | GW49: 0 | GX49: 0 | GY49: 0 | GZ49: 0 | HA49: 0 | HB49: 0 | HC49: 0 | HD49: 0 | HE49: 0
A50: ='Calcs - PMP'!C120 -> 0.75 | B50: ='Calcs - PMP'!F120 ->  | E50: 10 | F50: -14.44478877 | G50: 0 | L50: 40 | M50: =IF(OFFSET($C$10,M$9,0)="-",0,IF(M$9>=$L50,0,OFFSET($C$10,M$9,0)*OFFSET($G$10,$L50-M$9,0))) -> 0 | N50: 0 | O50: 0 | P50: 0 | Q50: 0 | R50: 0 | S50: 0 | T50: 0 | U50: 0 | V50: 0 | W50: =IF(OFFSET($C$10,W$9,0)="-",0,IF(W$9>=$L50,0,OFFSET($C$10,W$9,0)*OFFSET($G$10,$L50-W$9,0))) -> 0 | X50: 0 | Y50: 0 | Z50: 0 | AA50: 0 | AB50: 0 | AC50: 0 | AD50: 0 | AE50: 0 | AF50: 0 | AG50: =IF(OFFSET($C$10,AG$9,0)="-",0,IF(AG$9>=$L50,0,OFFSET($C$10,AG$9,0)*OFFSET($G$10,$L50-AG$9,0))) -> 0 | AH50: 0 | AI50: 0 | AJ50: 0 | AK50: 0 | AL50: 0 | AM50: 0 | AN50: 0 | AO50: 0 | AP50: 0 | AQ50: =IF(OFFSET($C$10,AQ$9,0)="-",0,IF(AQ$9>=$L50,0,OFFSET($C$10,AQ$9,0)*OFFSET($G$10,$L50-AQ$9,0))) -> 0 | AR50: 0 | AS50: 0 | AT50: 0 | AU50: 0 | AV50: 0 | AW50: 0 | AX50: 0 | BA50: =IF(OFFSET($C$10,BA$9,0)="-",0,IF(BA$9>=$L50,0,OFFSET($C$10,BA$9,0)*OFFSET($G$10,$L50-BA$9,0))) ->  | BK50: =IF(OFFSET($C$10,BK$9,0)="-",0,IF(BK$9>=$L50,0,OFFSET($C$10,BK$9,0)*OFFSET($G$10,$L50-BK$9,0))) ->  | BV50: 0 | BW50: 0 | BX50: 0 | BY50: 0 | BZ50: 0 | CA50: 0 | CB50: 0 | CC50: 0 | CD50: 0 | CE50: 0 | CF50: 0 | CG50: 0 | CH50: 0 | CI50: 0 | CJ50: 0 | CK50: 0 | CL50: 0 | CM50: 0 | CN50: 0 | CO50: 0 | CP50: 0 | CQ50: 0 | CR50: 0 | CS50: 0 | CT50: 0 | CU50: 0 | CV50: 0 | CW50: 0 | CX50: 0 | CY50: 0 | CZ50: 0 | DA50: 0 | DB50: 0 | DC50: 0 | DD50: 0 | DE50: =IF(OFFSET($C$10,DE$9,0)="-",0,IF(DE$9>=$L50,0,OFFSET($C$10,DE$9,0)*OFFSET($G$10,$L50-DE$9,0))) -> 0 | DF50: 0 | DG50: 0 | DH50: 0 | DI50: 0 | DJ50: 0 | DK50: 0 | DL50: 0 | DM50: 0 | DN50: 0 | DO50: 0 | DP50: 0 | DQ50: 0 | DR50: 0 | DS50: 0 | DT50: 0 | DU50: 0 | DV50: 0 | DW50: 0 | DX50: 0 | DY50: 0 | DZ50: 0 | EA50: 0 | EB50: 0 | EC50: 0 | ED50: 0 | EE50: 0 | EF50: 0 | EG50: 0 | EH50: 0 | EI50: 0 | EJ50: 0 | EK50: 0 | EL50: 0 | EM50: 0 | EN50: 0 | EO50: 0 | EP50: 0 | EQ50: 0 | ER50: 0 | ES50: 0 | ET50: 0 | EU50: 0 | EV50: 0 | EW50: 0 | EX50: 0 | EY50: 0 | EZ50: 0 | FA50: 0 | FB50: 0 | FC50: 0 | FD50: 0 | FE50: 0 | FF50: 0 | FG50: 0 | FH50: 0 | FI50: 0 | FJ50: 0 | FK50: 0 | FL50: 0 | FM50: 0 | FN50: 0 | FO50: 0 | FP50: 0 | FQ50: 0 | FR50: 0 | FS50: 0 | FT50: =IF(OFFSET($C$10,FT$9,0)="-",0,IF(FT$9>=$L50,0,OFFSET($C$10,FT$9,0)*OFFSET($G$10,$L50-FT$9,0))) -> 0 | FU50: 0 | FV50: 0 | FW50: 0 | FX50: 0 | FY50: 0 | FZ50: 0 | GA50: 0 | GB50: 0 | GC50: 0 | GD50: 0 | GE50: 0 | GF50: 0 | GG50: 0 | GH50: 0 | GI50: 0 | GJ50: 0 | GK50: 0 | GL50: 0 | GM50: 0 | GN50: 0 | GO50: 0 | GP50: 0 | GQ50: 0 | GR50: 0 | GS50: 0 | GT50: 0 | GU50: 0 | GV50: 0 | GW50: 0 | GX50: 0 | GY50: 0 | GZ50: 0 | HA50: 0 | HB50: 0 | HC50: 0 | HD50: 0 | HE50: 0
A51: ='Calcs - PMP'!C121 -> 1 | B51: ='Calcs - PMP'!F121 ->  | E51: 10.25 | F51: -15.44756611 | G51: 0 | L51: 41 | M51: 0 | N51: 0 | O51: 0 | P51: 0 | Q51: 0 | R51: 0 | S51: 0 | T51: 0 | U51: 0 | V51: 0 | W51: 0 | X51: 0 | Y51: 0 | Z51: 0 | AA51: 0 | AB51: 0 | AC51: 0 | AD51: 0 | AE51: 0 | AF51: 0 | AG51: 0 | AH51: 0 | AI51: 0 | AJ51: 0 | AK51: 0 | AL51: 0 | AM51: 0 | AN51: 0 | AO51: 0 | AP51: 0 | AQ51: 0 | AR51: 0 | AS51: 0 | AT51: 0 | AU51: 0 | AV51: 0 | AW51: 0 | AX51: 0 | BV51: 0 | BW51: 0 | BX51: 0 | BY51: 0 | BZ51: 0 | CA51: 0 | CB51: 0 | CC51: 0 | CD51: 0 | CE51: 0 | CF51: 0 | CG51: 0 | CH51: 0 | CI51: 0 | CJ51: 0 | CK51: 0 | CL51: 0 | CM51: 0 | CN51: 0 | CO51: 0 | CP51: 0 | CQ51: 0 | CR51: 0 | CS51: 0 | CT51: 0 | CU51: 0 | CV51: 0 | CW51: 0 | CX51: 0 | CY51: 0 | CZ51: 0 | DA51: 0 | DB51: 0 | DC51: 0 | DD51: 0 | DE51: 0 | DF51: 0 | DG51: 0 | DH51: 0 | DI51: =IF(OFFSET($C$10,DI$9,0)="-",0,IF(DI$9>=$L51,0,OFFSET($C$10,DI$9,0)*OFFSET($G$10,$L51-DI$9,0))) -> 0 | DJ51: 0 | DK51: 0 | DL51: 0 | DM51: 0 | DN51: 0 | DO51: 0 | DP51: 0 | DQ51: 0 | DR51: 0 | DS51: 0 | DT51: 0 | DU51: 0 | DV51: 0 | DW51: 0 | DX51: 0 | DY51: 0 | DZ51: 0 | EA51: 0 | EB51: 0 | EC51: 0 | ED51: 0 | EE51: 0 | EF51: 0 | EG51: 0 | EH51: 0 | EI51: 0 | EJ51: 0 | EK51: 0 | EL51: 0 | EM51: 0 | EN51: 0 | EO51: 0 | EP51: 0 | EQ51: 0 | ER51: 0 | ES51: 0 | ET51: 0 | EU51: 0 | EV51: 0 | EW51: 0 | EX51: 0 | EY51: 0 | EZ51: 0 | FA51: 0 | FB51: 0 | FC51: 0 | FD51: 0 | FE51: 0 | FF51: 0 | FG51: 0 | FH51: 0 | FI51: 0 | FJ51: 0 | FK51: 0 | FL51: 0 | FM51: 0 | FN51: 0 | FO51: 0 | FP51: 0 | FQ51: 0 | FR51: 0 | FS51: 0 | FT51: 0 | FU51: 0 | FV51: 0 | FW51: 0 | FX51: 0 | FY51: 0 | FZ51: 0 | GA51: 0 | GB51: 0 | GC51: 0 | GD51: 0 | GE51: 0 | GF51: 0 | GG51: 0 | GH51: 0 | GI51: 0 | GJ51: 0 | GK51: 0 | GL51: 0 | GM51: 0 | GN51: 0 | GO51: 0 | GP51: 0 | GQ51: 0 | GR51: 0 | GS51: 0 | GT51: 0 | GU51: 0 | GV51: 0 | GW51: 0 | GX51: 0 | GY51: 0 | GZ51: 0 | HA51: 0 | HB51: 0 | HC51: 0 | HD51: 0 | HE51: 0
A52: ='Calcs - PMP'!C122 -> 1.25 | B52: ='Calcs - PMP'!F122 ->  | E52: 10.5 | F52: -16.45034345 | G52: 0 | L52: 42 | M52: 0 | N52: 0 | O52: 0 | P52: 0 | Q52: 0 | R52: 0 | S52: 0 | T52: 0 | U52: 0 | V52: 0 | W52: 0 | X52: 0 | Y52: 0 | Z52: 0 | AA52: 0 | AB52: 0 | AC52: 0 | AD52: 0 | AE52: 0 | AF52: 0 | AG52: 0 | AH52: 0 | AI52: 0 | AJ52: 0 | AK52: 0 | AL52: 0 | AM52: 0 | AN52: 0 | AO52: 0 | AP52: 0 | AQ52: 0 | AR52: 0 | AS52: 0 | AT52: 0 | AU52: 0 | AV52: 0 | AW52: 0 | AX52: 0 | BV52: 0 | BW52: 0 | BX52: 0 | BY52: 0 | BZ52: 0 | CA52: 0 | CB52: 0 | CC52: 0 | CD52: 0 | CE52: 0 | CF52: 0 | CG52: 0 | CH52: 0 | CI52: 0 | CJ52: 0 | CK52: 0 | CL52: 0 | CM52: 0 | CN52: 0 | CO52: 0 | CP52: 0 | CQ52: 0 | CR52: 0 | CS52: 0 | CT52: 0 | CU52: 0 | CV52: 0 | CW52: 0 | CX52: 0 | CY52: 0 | CZ52: 0 | DA52: 0 | DB52: 0 | DC52: 0 | DD52: 0 | DE52: 0 | DF52: 0 | DG52: 0 | DH52: 0 | DI52: 0 | DJ52: 0 | DK52: 0 | DL52: 0 | DM52: 0 | DN52: 0 | DO52: 0 | DP52: 0 | DQ52: 0 | DR52: 0 | DS52: 0 | DT52: 0 | DU52: 0 | DV52: 0 | DW52: 0 | DX52: 0 | DY52: 0 | DZ52: 0 | EA52: 0 | EB52: 0 | EC52: 0 | ED52: 0 | EE52: 0 | EF52: 0 | EG52: 0 | EH52: 0 | EI52: 0 | EJ52: 0 | EK52: 0 | EL52: 0 | EM52: 0 | EN52: 0 | EO52: 0 | EP52: 0 | EQ52: 0 | ER52: 0 | ES52: 0 | ET52: 0 | EU52: 0 | EV52: 0 | EW52: 0 | EX52: 0 | EY52: 0 | EZ52: 0 | FA52: 0 | FB52: 0 | FC52: 0 | FD52: 0 | FE52: 0 | FF52: 0 | FG52: 0 | FH52: 0 | FI52: 0 | FJ52: 0 | FK52: 0 | FL52: 0 | FM52: 0 | FN52: 0 | FO52: 0 | FP52: 0 | FQ52: 0 | FR52: 0 | FS52: 0 | FT52: 0 | FU52: 0 | FV52: 0 | FW52: 0 | FX52: 0 | FY52: 0 | FZ52: 0 | GA52: 0 | GB52: 0 | GC52: 0 | GD52: 0 | GE52: 0 | GF52: 0 | GG52: 0 | GH52: 0 | GI52: 0 | GJ52: 0 | GK52: 0 | GL52: 0 | GM52: 0 | GN52: 0 | GO52: 0 | GP52: 0 | GQ52: 0 | GR52: 0 | GS52: 0 | GT52: 0 | GU52: 0 | GV52: 0 | GW52: 0 | GX52: 0 | GY52: 0 | GZ52: 0 | HA52: 0 | HB52: 0 | HC52: 0 | HD52: 0 | HE52: 0
A53: ='Calcs - PMP'!C123 -> 1.5 | B53: ='Calcs - PMP'!F123 ->  | E53: 10.75 | F53: -17.45312079 | G53: 0 | L53: 43 | M53: 0 | N53: 0 | O53: 0 | P53: 0 | Q53: 0 | R53: 0 | S53: 0 | T53: 0 | U53: 0 | V53: 0 | W53: 0 | X53: 0 | Y53: 0 | Z53: 0 | AA53: 0 | AB53: 0 | AC53: 0 | AD53: 0 | AE53: 0 | AF53: 0 | AG53: 0 | AH53: 0 | AI53: 0 | AJ53: 0 | AK53: 0 | AL53: 0 | AM53: 0 | AN53: 0 | AO53: 0 | AP53: 0 | AQ53: 0 | AR53: 0 | AS53: 0 | AT53: 0 | AU53: 0 | AV53: 0 | AW53: 0 | AX53: 0 | BV53: 0 | BW53: 0 | BX53: 0 | BY53: 0 | BZ53: 0 | CA53: 0 | CB53: 0 | CC53: 0 | CD53: 0 | CE53: 0 | CF53: 0 | CG53: 0 | CH53: 0 | CI53: 0 | CJ53: 0 | CK53: 0 | CL53: 0 | CM53: 0 | CN53: 0 | CO53: 0 | CP53: 0 | CQ53: 0 | CR53: 0 | CS53: 0 | CT53: 0 | CU53: 0 | CV53: 0 | CW53: 0 | CX53: 0 | CY53: 0 | CZ53: 0 | DA53: 0 | DB53: 0 | DC53: 0 | DD53: 0 | DE53: 0 | DF53: 0 | DG53: 0 | DH53: 0 | DI53: 0 | DJ53: 0 | DK53: 0 | DL53: 0 | DM53: 0 | DN53: 0 | DO53: 0 | DP53: 0 | DQ53: 0 | DR53: 0 | DS53: 0 | DT53: 0 | DU53: 0 | DV53: 0 | DW53: 0 | DX53: 0 | DY53: 0 | DZ53: 0 | EA53: 0 | EB53: 0 | EC53: 0 | ED53: 0 | EE53: 0 | EF53: 0 | EG53: 0 | EH53: 0 | EI53: 0 | EJ53: 0 | EK53: 0 | EL53: 0 | EM53: 0 | EN53: 0 | EO53: 0 | EP53: 0 | EQ53: 0 | ER53: 0 | ES53: 0 | ET53: 0 | EU53: 0 | EV53: 0 | EW53: 0 | EX53: 0 | EY53: 0 | EZ53: 0 | FA53: 0 | FB53: 0 | FC53: 0 | FD53: 0 | FE53: 0 | FF53: 0 | FG53: 0 | FH53: 0 | FI53: 0 | FJ53: 0 | FK53: 0 | FL53: 0 | FM53: 0 | FN53: 0 | FO53: 0 | FP53: 0 | FQ53: 0 | FR53: 0 | FS53: 0 | FT53: 0 | FU53: 0 | FV53: 0 | FW53: 0 | FX53: 0 | FY53: 0 | FZ53: 0 | GA53: 0 | GB53: 0 | GC53: 0 | GD53: 0 | GE53: 0 | GF53: 0 | GG53: 0 | GH53: 0 | GI53: 0 | GJ53: 0 | GK53: 0 | GL53: 0 | GM53: 0 | GN53: 0 | GO53: 0 | GP53: 0 | GQ53: 0 | GR53: 0 | GS53: 0 | GT53: 0 | GU53: 0 | GV53: 0 | GW53: 0 | GX53: 0 | GY53: 0 | GZ53: 0 | HA53: 0 | HB53: 0 | HC53: 0 | HD53: 0 | HE53: 0
A54: ='Calcs - PMP'!C124 -> 1.75 | B54: ='Calcs - PMP'!F124 ->  | E54: 11 | F54: -18.45589814 | G54: 0 | L54: 44 | M54: 0 | N54: 0 | O54: 0 | P54: 0 | Q54: 0 | R54: 0 | S54: 0 | T54: 0 | U54: 0 | V54: 0 | W54: 0 | X54: 0 | Y54: 0 | Z54: 0 | AA54: 0 | AB54: 0 | AC54: 0 | AD54: 0 | AE54: 0 | AF54: 0 | AG54: 0 | AH54: 0 | AI54: 0 | AJ54: 0 | AK54: 0 | AL54: 0 | AM54: 0 | AN54: 0 | AO54: 0 | AP54: 0 | AQ54: 0 | AR54: 0 | AS54: 0 | AT54: 0 | AU54: 0 | AV54: 0 | AW54: 0 | AX54: 0 | BV54: 0 | BW54: 0 | BX54: 0 | BY54: 0 | BZ54: 0 | CA54: 0 | CB54: 0 | CC54: 0 | CD54: 0 | CE54: 0 | CF54: 0 | CG54: 0 | CH54: 0 | CI54: 0 | CJ54: 0 | CK54: 0 | CL54: 0 | CM54: 0 | CN54: 0 | CO54: 0 | CP54: 0 | CQ54: 0 | CR54: 0 | CS54: 0 | CT54: 0 | CU54: 0 | CV54: 0 | CW54: 0 | CX54: 0 | CY54: 0 | CZ54: 0 | DA54: 0 | DB54: 0 | DC54: 0 | DD54: 0 | DE54: 0 | DF54: 0 | DG54: 0 | DH54: 0 | DI54: 0 | DJ54: 0 | DK54: 0 | DL54: 0 | DM54: 0 | DN54: 0 | DO54: 0 | DP54: 0 | DQ54: 0 | DR54: 0 | DS54: 0 | DT54: 0 | DU54: 0 | DV54: 0 | DW54: 0 | DX54: 0 | DY54: 0 | DZ54: 0 | EA54: 0 | EB54: 0 | EC54: 0 | ED54: 0 | EE54: 0 | EF54: 0 | EG54: 0 | EH54: 0 | EI54: 0 | EJ54: 0 | EK54: 0 | EL54: 0 | EM54: 0 | EN54: 0 | EO54: 0 | EP54: 0 | EQ54: 0 | ER54: 0 | ES54: 0 | ET54: 0 | EU54: 0 | EV54: 0 | EW54: 0 | EX54: 0 | EY54: 0 | EZ54: 0 | FA54: 0 | FB54: 0 | FC54: 0 | FD54: 0 | FE54: 0 | FF54: 0 | FG54: 0 | FH54: 0 | FI54: 0 | FJ54: 0 | FK54: 0 | FL54: 0 | FM54: 0 | FN54: 0 | FO54: 0 | FP54: 0 | FQ54: 0 | FR54: 0 | FS54: 0 | FT54: =IF(OFFSET($C$10,FT$9,0)="-",0,IF(FT$9>=$L54,0,OFFSET($C$10,FT$9,0)*OFFSET($G$10,$L54-FT$9,0))) -> 0 | FU54: 0 | FV54: 0 | FW54: 0 | FX54: 0 | FY54: 0 | FZ54: 0 | GA54: 0 | GB54: 0 | GC54: 0 | GD54: 0 | GE54: 0 | GF54: 0 | GG54: 0 | GH54: 0 | GI54: 0 | GJ54: 0 | GK54: 0 | GL54: 0 | GM54: 0 | GN54: 0 | GO54: 0 | GP54: 0 | GQ54: 0 | GR54: 0 | GS54: 0 | GT54: 0 | GU54: 0 | GV54: 0 | GW54: 0 | GX54: 0 | GY54: 0 | GZ54: 0 | HA54: 0 | HB54: 0 | HC54: 0 | HD54: 0 | HE54: 0
A55: ='Calcs - PMP'!C125 -> 2 | B55: ='Calcs - PMP'!F125 ->  | E55: 11.25 | F55: -19.45867548 | G55: 0 | L55: 45 | M55: 0 | N55: 0 | O55: 0 | P55: 0 | Q55: 0 | R55: 0 | S55: 0 | T55: 0 | U55: 0 | V55: 0 | W55: 0 | X55: 0 | Y55: 0 | Z55: 0 | AA55: 0 | AB55: 0 | AC55: 0 | AD55: 0 | AE55: 0 | AF55: 0 | AG55: 0 | AH55: 0 | AI55: 0 | AJ55: 0 | AK55: 0 | AL55: 0 | AM55: 0 | AN55: 0 | AO55: 0 | AP55: 0 | AQ55: 0 | AR55: 0 | AS55: 0 | AT55: 0 | AU55: 0 | AV55: 0 | AW55: 0 | AX55: 0 | BV55: 0 | BW55: 0 | BX55: 0 | BY55: 0 | BZ55: 0 | CA55: 0 | CB55: 0 | CC55: 0 | CD55: 0 | CE55: 0 | CF55: 0 | CG55: 0 | CH55: 0 | CI55: 0 | CJ55: 0 | CK55: 0 | CL55: 0 | CM55: 0 | CN55: 0 | CO55: 0 | CP55: 0 | CQ55: 0 | CR55: 0 | CS55: 0 | CT55: 0 | CU55: 0 | CV55: 0 | CW55: 0 | CX55: 0 | CY55: 0 | CZ55: 0 | DA55: 0 | DB55: 0 | DC55: 0 | DD55: 0 | DE55: 0 | DF55: 0 | DG55: 0 | DH55: 0 | DI55: =IF(OFFSET($C$10,DI$9,0)="-",0,IF(DI$9>=$L55,0,OFFSET($C$10,DI$9,0)*OFFSET($G$10,$L55-DI$9,0))) -> 0 | DJ55: 0 | DK55: 0 | DL55: 0 | DM55: 0 | DN55: 0 | DO55: 0 | DP55: 0 | DQ55: 0 | DR55: 0 | DS55: 0 | DT55: 0 | DU55: 0 | DV55: 0 | DW55: 0 | DX55: 0 | DY55: 0 | DZ55: 0 | EA55: 0 | EB55: 0 | EC55: 0 | ED55: 0 | EE55: 0 | EF55: 0 | EG55: 0 | EH55: 0 | EI55: 0 | EJ55: 0 | EK55: 0 | EL55: 0 | EM55: 0 | EN55: 0 | EO55: 0 | EP55: 0 | EQ55: 0 | ER55: 0 | ES55: 0 | ET55: 0 | EU55: 0 | EV55: 0 | EW55: 0 | EX55: 0 | EY55: 0 | EZ55: 0 | FA55: 0 | FB55: 0 | FC55: 0 | FD55: 0 | FE55: 0 | FF55: 0 | FG55: 0 | FH55: 0 | FI55: 0 | FJ55: 0 | FK55: 0 | FL55: 0 | FM55: 0 | FN55: 0 | FO55: 0 | FP55: 0 | FQ55: 0 | FR55: 0 | FS55: 0 | FT55: 0 | FU55: 0 | FV55: 0 | FW55: 0 | FX55: 0 | FY55: 0 | FZ55: 0 | GA55: 0 | GB55: 0 | GC55: 0 | GD55: 0 | GE55: 0 | GF55: 0 | GG55: 0 | GH55: 0 | GI55: 0 | GJ55: 0 | GK55: 0 | GL55: 0 | GM55: 0 | GN55: 0 | GO55: 0 | GP55: 0 | GQ55: 0 | GR55: 0 | GS55: 0 | GT55: 0 | GU55: 0 | GV55: 0 | GW55: 0 | GX55: 0 | GY55: 0 | GZ55: 0 | HA55: 0 | HB55: 0 | HC55: 0 | HD55: 0 | HE55: 0
A56: ='Calcs - PMP'!C126 -> 2.25 | B56: ='Calcs - PMP'!F126 ->  | E56: 11.5 | F56: -20.46145282 | G56: 0 | L56: 46 | M56: 0 | N56: 0 | O56: 0 | P56: 0 | Q56: 0 | R56: 0 | S56: 0 | T56: 0 | U56: 0 | V56: 0 | W56: 0 | X56: 0 | Y56: 0 | Z56: 0 | AA56: 0 | AB56: 0 | AC56: 0 | AD56: 0 | AE56: 0 | AF56: 0 | AG56: 0 | AH56: 0 | AI56: 0 | AJ56: 0 | AK56: 0 | AL56: 0 | AM56: 0 | AN56: 0 | AO56: 0 | AP56: 0 | AQ56: 0 | AR56: 0 | AS56: 0 | AT56: 0 | AU56: 0 | AV56: 0 | AW56: 0 | AX56: 0 | BV56: 0 | BW56: 0 | BX56: 0 | BY56: 0 | BZ56: 0 | CA56: 0 | CB56: 0 | CC56: 0 | CD56: 0 | CE56: 0 | CF56: 0 | CG56: 0 | CH56: 0 | CI56: 0 | CJ56: 0 | CK56: 0 | CL56: 0 | CM56: 0 | CN56: 0 | CO56: 0 | CP56: 0 | CQ56: 0 | CR56: 0 | CS56: 0 | CT56: 0 | CU56: 0 | CV56: 0 | CW56: 0 | CX56: 0 | CY56: 0 | CZ56: 0 | DA56: 0 | DB56: 0 | DC56: 0 | DD56: 0 | DE56: 0 | DF56: 0 | DG56: 0 | DH56: 0 | DI56: 0 | DJ56: 0 | DK56: 0 | DL56: 0 | DM56: 0 | DN56: 0 | DO56: 0 | DP56: 0 | DQ56: 0 | DR56: 0 | DS56: 0 | DT56: 0 | DU56: 0 | DV56: 0 | DW56: 0 | DX56: 0 | DY56: 0 | DZ56: 0 | EA56: 0 | EB56: 0 | EC56: 0 | ED56: 0 | EE56: 0 | EF56: 0 | EG56: 0 | EH56: 0 | EI56: 0 | EJ56: 0 | EK56: 0 | EL56: 0 | EM56: 0 | EN56: 0 | EO56: 0 | EP56: 0 | EQ56: 0 | ER56: 0 | ES56: 0 | ET56: 0 | EU56: 0 | EV56: 0 | EW56: 0 | EX56: 0 | EY56: 0 | EZ56: 0 | FA56: 0 | FB56: 0 | FC56: 0 | FD56: 0 | FE56: 0 | FF56: 0 | FG56: 0 | FH56: 0 | FI56: 0 | FJ56: 0 | FK56: 0 | FL56: 0 | FM56: 0 | FN56: 0 | FO56: 0 | FP56: 0 | FQ56: 0 | FR56: 0 | FS56: 0 | FT56: 0 | FU56: 0 | FV56: 0 | FW56: 0 | FX56: 0 | FY56: 0 | FZ56: 0 | GA56: 0 | GB56: 0 | GC56: 0 | GD56: 0 | GE56: 0 | GF56: 0 | GG56: 0 | GH56: 0 | GI56: 0 | GJ56: 0 | GK56: 0 | GL56: 0 | GM56: 0 | GN56: 0 | GO56: 0 | GP56: 0 | GQ56: 0 | GR56: 0 | GS56: 0 | GT56: 0 | GU56: 0 | GV56: 0 | GW56: 0 | GX56: 0 | GY56: 0 | GZ56: 0 | HA56: 0 | HB56: 0 | HC56: 0 | HD56: 0 | HE56: 0
A57: ='Calcs - PMP'!C127 -> 2.5 | B57: ='Calcs - PMP'!F127 ->  | E57: 11.75 | F57: -21.46423016 | G57: 0 | L57: 47 | M57: 0 | N57: 0 | O57: 0 | P57: 0 | Q57: 0 | R57: 0 | S57: 0 | T57: 0 | U57: 0 | V57: 0 | W57: 0 | X57: 0 | Y57: 0 | Z57: 0 | AA57: 0 | AB57: 0 | AC57: 0 | AD57: 0 | AE57: 0 | AF57: 0 | AG57: 0 | AH57: 0 | AI57: 0 | AJ57: 0 | AK57: 0 | AL57: 0 | AM57: 0 | AN57: 0 | AO57: 0 | AP57: 0 | AQ57: 0 | AR57: 0 | AS57: 0 | AT57: 0 | AU57: 0 | AV57: 0 | AW57: 0 | AX57: 0 | BV57: 0 | BW57: 0 | BX57: 0 | BY57: 0 | BZ57: 0 | CA57: 0 | CB57: 0 | CC57: 0 | CD57: 0 | CE57: 0 | CF57: 0 | CG57: 0 | CH57: 0 | CI57: 0 | CJ57: 0 | CK57: 0 | CL57: 0 | CM57: 0 | CN57: 0 | CO57: 0 | CP57: 0 | CQ57: 0 | CR57: 0 | CS57: 0 | CT57: =IF(OFFSET($C$10,CT$9,0)="-",0,IF(CT$9>=$L57,0,OFFSET($C$10,CT$9,0)*OFFSET($G$10,$L57-CT$9,0))) -> 0 | CU57: 0 | CV57: 0 | CW57: 0 | CX57: 0 | CY57: 0 | CZ57: 0 | DA57: 0 | DB57: 0 | DC57: 0 | DD57: 0 | DE57: 0 | DF57: 0 | DG57: 0 | DH57: 0 | DI57: 0 | DJ57: 0 | DK57: 0 | DL57: 0 | DM57: 0 | DN57: 0 | DO57: 0 | DP57: 0 | DQ57: 0 | DR57: 0 | DS57: 0 | DT57: 0 | DU57: 0 | DV57: 0 | DW57: 0 | DX57: 0 | DY57: 0 | DZ57: 0 | EA57: 0 | EB57: 0 | EC57: 0 | ED57: 0 | EE57: 0 | EF57: 0 | EG57: 0 | EH57: 0 | EI57: 0 | EJ57: 0 | EK57: 0 | EL57: 0 | EM57: 0 | EN57: 0 | EO57: 0 | EP57: 0 | EQ57: 0 | ER57: 0 | ES57: 0 | ET57: 0 | EU57: 0 | EV57: 0 | EW57: 0 | EX57: 0 | EY57: 0 | EZ57: 0 | FA57: 0 | FB57: 0 | FC57: 0 | FD57: 0 | FE57: 0 | FF57: 0 | FG57: 0 | FH57: 0 | FI57: 0 | FJ57: 0 | FK57: 0 | FL57: 0 | FM57: 0 | FN57: 0 | FO57: 0 | FP57: 0 | FQ57: 0 | FR57: 0 | FS57: 0 | FT57: 0 | FU57: 0 | FV57: 0 | FW57: 0 | FX57: 0 | FY57: 0 | FZ57: 0 | GA57: 0 | GB57: 0 | GC57: 0 | GD57: 0 | GE57: 0 | GF57: 0 | GG57: 0 | GH57: 0 | GI57: 0 | GJ57: 0 | GK57: 0 | GL57: 0 | GM57: 0 | GN57: 0 | GO57: 0 | GP57: 0 | GQ57: 0 | GR57: 0 | GS57: 0 | GT57: 0 | GU57: 0 | GV57: 0 | GW57: 0 | GX57: 0 | GY57: 0 | GZ57: 0 | HA57: 0 | HB57: 0 | HC57: 0 | HD57: 0 | HE57: 0
A58: ='Calcs - PMP'!C128 -> 2.75 | B58: ='Calcs - PMP'!F128 ->  | E58: 12 | F58: -22.4670075 | G58: 0 | L58: 48 | M58: 0 | N58: 0 | O58: 0 | P58: 0 | Q58: 0 | R58: 0 | S58: 0 | T58: 0 | U58: 0 | V58: 0 | W58: 0 | X58: 0 | Y58: 0 | Z58: 0 | AA58: 0 | AB58: 0 | AC58: 0 | AD58: 0 | AE58: 0 | AF58: 0 | AG58: 0 | AH58: 0 | AI58: 0 | AJ58: 0 | AK58: 0 | AL58: 0 | AM58: 0 | AN58: 0 | AO58: 0 | AP58: 0 | AQ58: 0 | AR58: 0 | AS58: 0 | AT58: 0 | AU58: 0 | AV58: 0 | AW58: 0 | AX58: 0 | BV58: 0 | BW58: 0 | BX58: 0 | BY58: 0 | BZ58: 0 | CA58: 0 | CB58: 0 | CC58: 0 | CD58: 0 | CE58: 0 | CF58: 0 | CG58: 0 | CH58: 0 | CI58: 0 | CJ58: 0 | CK58: 0 | CL58: 0 | CM58: 0 | CN58: 0 | CO58: 0 | CP58: 0 | CQ58: 0 | CR58: 0 | CS58: 0 | CT58: 0 | CU58: 0 | CV58: 0 | CW58: 0 | CX58: 0 | CY58: 0 | CZ58: 0 | DA58: 0 | DB58: 0 | DC58: 0 | DD58: 0 | DE58: 0 | DF58: 0 | DG58: 0 | DH58: 0 | DI58: 0 | DJ58: 0 | DK58: 0 | DL58: 0 | DM58: 0 | DN58: 0 | DO58: 0 | DP58: 0 | DQ58: 0 | DR58: 0 | DS58: 0 | DT58: 0 | DU58: 0 | DV58: 0 | DW58: 0 | DX58: 0 | DY58: 0 | DZ58: 0 | EA58: 0 | EB58: 0 | EC58: 0 | ED58: 0 | EE58: 0 | EF58: 0 | EG58: 0 | EH58: 0 | EI58: 0 | EJ58: 0 | EK58: 0 | EL58: 0 | EM58: 0 | EN58: 0 | EO58: 0 | EP58: 0 | EQ58: 0 | ER58: 0 | ES58: 0 | ET58: 0 | EU58: 0 | EV58: 0 | EW58: 0 | EX58: 0 | EY58: 0 | EZ58: 0 | FA58: 0 | FB58: 0 | FC58: 0 | FD58: 0 | FE58: 0 | FF58: 0 | FG58: 0 | FH58: 0 | FI58: 0 | FJ58: 0 | FK58: 0 | FL58: 0 | FM58: 0 | FN58: 0 | FO58: 0 | FP58: 0 | FQ58: 0 | FR58: 0 | FS58: 0 | FT58: =IF(OFFSET($C$10,FT$9,0)="-",0,IF(FT$9>=$L58,0,OFFSET($C$10,FT$9,0)*OFFSET($G$10,$L58-FT$9,0))) -> 0 | FU58: 0 | FV58: 0 | FW58: 0 | FX58: 0 | FY58: 0 | FZ58: 0 | GA58: 0 | GB58: 0 | GC58: 0 | GD58: 0 | GE58: 0 | GF58: 0 | GG58: 0 | GH58: 0 | GI58: 0 | GJ58: 0 | GK58: 0 | GL58: 0 | GM58: 0 | GN58: 0 | GO58: 0 | GP58: 0 | GQ58: 0 | GR58: 0 | GS58: 0 | GT58: 0 | GU58: 0 | GV58: 0 | GW58: 0 | GX58: 0 | GY58: 0 | GZ58: 0 | HA58: 0 | HB58: 0 | HC58: 0 | HD58: 0 | HE58: 0
A59: ='Calcs - PMP'!C129 -> 3 | B59: ='Calcs - PMP'!F129 ->  | E59: 12.25 | F59: -23.46978484 | G59: 0 | L59: 49 | M59: 0 | N59: 0 | O59: 0 | P59: 0 | Q59: 0 | R59: 0 | S59: 0 | T59: 0 | U59: 0 | V59: 0 | W59: 0 | X59: 0 | Y59: 0 | Z59: 0 | AA59: 0 | AB59: 0 | AC59: 0 | AD59: 0 | AE59: 0 | AF59: 0 | AG59: 0 | AH59: 0 | AI59: 0 | AJ59: 0 | AK59: 0 | AL59: 0 | AM59: 0 | AN59: 0 | AO59: 0 | AP59: 0 | AQ59: 0 | AR59: 0 | AS59: 0 | AT59: 0 | AU59: 0 | AV59: 0 | AW59: 0 | AX59: 0 | BV59: 0 | BW59: 0 | BX59: 0 | BY59: 0 | BZ59: 0 | CA59: 0 | CB59: 0 | CC59: 0 | CD59: 0 | CE59: 0 | CF59: 0 | CG59: 0 | CH59: 0 | CI59: 0 | CJ59: 0 | CK59: 0 | CL59: 0 | CM59: 0 | CN59: 0 | CO59: 0 | CP59: 0 | CQ59: 0 | CR59: 0 | CS59: 0 | CT59: 0 | CU59: 0 | CV59: 0 | CW59: 0 | CX59: 0 | CY59: 0 | CZ59: 0 | DA59: 0 | DB59: 0 | DC59: 0 | DD59: 0 | DE59: 0 | DF59: 0 | DG59: 0 | DH59: 0 | DI59: =IF(OFFSET($C$10,DI$9,0)="-",0,IF(DI$9>=$L59,0,OFFSET($C$10,DI$9,0)*OFFSET($G$10,$L59-DI$9,0))) -> 0 | DJ59: 0 | DK59: 0 | DL59: 0 | DM59: 0 | DN59: 0 | DO59: 0 | DP59: 0 | DQ59: 0 | DR59: 0 | DS59: 0 | DT59: 0 | DU59: 0 | DV59: 0 | DW59: 0 | DX59: 0 | DY59: 0 | DZ59: 0 | EA59: 0 | EB59: 0 | EC59: 0 | ED59: 0 | EE59: 0 | EF59: 0 | EG59: 0 | EH59: 0 | EI59: 0 | EJ59: 0 | EK59: 0 | EL59: 0 | EM59: 0 | EN59: 0 | EO59: 0 | EP59: 0 | EQ59: 0 | ER59: 0 | ES59: 0 | ET59: 0 | EU59: 0 | EV59: 0 | EW59: 0 | EX59: 0 | EY59: 0 | EZ59: 0 | FA59: 0 | FB59: 0 | FC59: 0 | FD59: 0 | FE59: 0 | FF59: 0 | FG59: 0 | FH59: 0 | FI59: 0 | FJ59: 0 | FK59: 0 | FL59: 0 | FM59: 0 | FN59: 0 | FO59: 0 | FP59: 0 | FQ59: 0 | FR59: 0 | FS59: 0 | FT59: 0 | FU59: 0 | FV59: 0 | FW59: 0 | FX59: 0 | FY59: 0 | FZ59: 0 | GA59: 0 | GB59: 0 | GC59: 0 | GD59: 0 | GE59: 0 | GF59: 0 | GG59: 0 | GH59: 0 | GI59: 0 | GJ59: 0 | GK59: 0 | GL59: 0 | GM59: 0 | GN59: 0 | GO59: 0 | GP59: 0 | GQ59: 0 | GR59: 0 | GS59: 0 | GT59: 0 | GU59: 0 | GV59: 0 | GW59: 0 | GX59: 0 | GY59: 0 | GZ59: 0 | HA59: 0 | HB59: 0 | HC59: 0 | HD59: 0 | HE59: 0
A60: ='Calcs - PMP'!C130 -> 3.25 | B60: ='Calcs - PMP'!F130 ->  | E60: 12.5 | F60: -24.47256219 | G60: 0 | L60: 50 | M60: =IF(OFFSET($C$10,M$9,0)="-",0,IF(M$9>=$L60,0,OFFSET($C$10,M$9,0)*OFFSET($G$10,$L60-M$9,0))) -> 0 | N60: 0 | O60: 0 | P60: 0 | Q60: 0 | R60: 0 | S60: 0 | T60: 0 | U60: 0 | V60: 0 | W60: =IF(OFFSET($C$10,W$9,0)="-",0,IF(W$9>=$L60,0,OFFSET($C$10,W$9,0)*OFFSET($G$10,$L60-W$9,0))) -> 0 | X60: 0 | Y60: 0 | Z60: 0 | AA60: 0 | AB60: 0 | AC60: 0 | AD60: 0 | AE60: 0 | AF60: 0 | AG60: =IF(OFFSET($C$10,AG$9,0)="-",0,IF(AG$9>=$L60,0,OFFSET($C$10,AG$9,0)*OFFSET($G$10,$L60-AG$9,0))) -> 0 | AH60: 0 | AI60: 0 | AJ60: 0 | AK60: 0 | AL60: 0 | AM60: 0 | AN60: 0 | AO60: 0 | AP60: 0 | AQ60: =IF(OFFSET($C$10,AQ$9,0)="-",0,IF(AQ$9>=$L60,0,OFFSET($C$10,AQ$9,0)*OFFSET($G$10,$L60-AQ$9,0))) -> 0 | AR60: 0 | AS60: 0 | AT60: 0 | AU60: 0 | AV60: 0 | AW60: 0 | AX60: 0 | BA60: =IF(OFFSET($C$10,BA$9,0)="-",0,IF(BA$9>=$L60,0,OFFSET($C$10,BA$9,0)*OFFSET($G$10,$L60-BA$9,0))) ->  | BK60: =IF(OFFSET($C$10,BK$9,0)="-",0,IF(BK$9>=$L60,0,OFFSET($C$10,BK$9,0)*OFFSET($G$10,$L60-BK$9,0))) ->  | BV60: 0 | BW60: 0 | BX60: 0 | BY60: 0 | BZ60: 0 | CA60: 0 | CB60: 0 | CC60: 0 | CD60: 0 | CE60: 0 | CF60: 0 | CG60: 0 | CH60: 0 | CI60: 0 | CJ60: 0 | CK60: 0 | CL60: 0 | CM60: 0 | CN60: 0 | CO60: 0 | CP60: 0 | CQ60: 0 | CR60: 0 | CS60: 0 | CT60: 0 | CU60: 0 | CV60: 0 | CW60: 0 | CX60: 0 | CY60: 0 | CZ60: 0 | DA60: 0 | DB60: 0 | DC60: 0 | DD60: 0 | DE60: 0 | DF60: 0 | DG60: 0 | DH60: 0 | DI60: 0 | DJ60: 0 | DK60: 0 | DL60: 0 | DM60: 0 | DN60: 0 | DO60: 0 | DP60: 0 | DQ60: 0 | DR60: 0 | DS60: 0 | DT60: 0 | DU60: 0 | DV60: 0 | DW60: 0 | DX60: 0 | DY60: 0 | DZ60: 0 | EA60: 0 | EB60: 0 | EC60: 0 | ED60: 0 | EE60: 0 | EF60: 0 | EG60: 0 | EH60: 0 | EI60: 0 | EJ60: 0 | EK60: 0 | EL60: 0 | EM60: 0 | EN60: 0 | EO60: 0 | EP60: 0 | EQ60: 0 | ER60: 0 | ES60: 0 | ET60: 0 | EU60: 0 | EV60: 0 | EW60: 0 | EX60: 0 | EY60: 0 | EZ60: 0 | FA60: 0 | FB60: 0 | FC60: 0 | FD60: 0 | FE60: 0 | FF60: 0 | FG60: 0 | FH60: 0 | FI60: 0 | FJ60: 0 | FK60: 0 | FL60: 0 | FM60: 0 | FN60: 0 | FO60: 0 | FP60: 0 | FQ60: 0 | FR60: 0 | FS60: 0 | FT60: 0 | FU60: 0 | FV60: 0 | FW60: 0 | FX60: 0 | FY60: 0 | FZ60: 0 | GA60: 0 | GB60: 0 | GC60: 0 | GD60: 0 | GE60: 0 | GF60: 0 | GG60: 0 | GH60: 0 | GI60: 0 | GJ60: 0 | GK60: 0 | GL60: 0 | GM60: 0 | GN60: 0 | GO60: 0 | GP60: 0 | GQ60: 0 | GR60: 0 | GS60: 0 | GT60: 0 | GU60: 0 | GV60: 0 | GW60: 0 | GX60: 0 | GY60: 0 | GZ60: 0 | HA60: 0 | HB60: 0 | HC60: 0 | HD60: 0 | HE60: 0
A61: ='Calcs - PMP'!C131 -> 3.5 | B61: ='Calcs - PMP'!F131 ->  | E61: 12.75 | F61: -25.47533953 | G61: 0 | L61: 51 | M61: 0 | N61: 0 | O61: 0 | P61: 0 | Q61: 0 | R61: 0 | S61: 0 | T61: 0 | U61: 0 | V61: 0 | W61: 0 | X61: 0 | Y61: 0 | Z61: 0 | AA61: 0 | AB61: 0 | AC61: 0 | AD61: 0 | AE61: 0 | AF61: 0 | AG61: 0 | AH61: 0 | AI61: 0 | AJ61: 0 | AK61: 0 | AL61: 0 | AM61: 0 | AN61: 0 | AO61: 0 | AP61: 0 | AQ61: 0 | AR61: 0 | AS61: 0 | AT61: 0 | AU61: 0 | AV61: 0 | AW61: 0 | AX61: 0 | BV61: 0 | BW61: 0 | BX61: 0 | BY61: 0 | BZ61: 0 | CA61: 0 | CB61: 0 | CC61: 0 | CD61: 0 | CE61: 0 | CF61: 0 | CG61: 0 | CH61: 0 | CI61: 0 | CJ61: 0 | CK61: 0 | CL61: 0 | CM61: 0 | CN61: 0 | CO61: 0 | CP61: 0 | CQ61: 0 | CR61: 0 | CS61: 0 | CT61: 0 | CU61: 0 | CV61: 0 | CW61: 0 | CX61: 0 | CY61: 0 | CZ61: 0 | DA61: 0 | DB61: 0 | DC61: 0 | DD61: 0 | DE61: 0 | DF61: 0 | DG61: 0 | DH61: 0 | DI61: 0 | DJ61: 0 | DK61: 0 | DL61: 0 | DM61: 0 | DN61: 0 | DO61: 0 | DP61: 0 | DQ61: 0 | DR61: 0 | DS61: 0 | DT61: 0 | DU61: 0 | DV61: 0 | DW61: 0 | DX61: 0 | DY61: 0 | DZ61: 0 | EA61: 0 | EB61: 0 | EC61: 0 | ED61: 0 | EE61: 0 | EF61: 0 | EG61: 0 | EH61: 0 | EI61: 0 | EJ61: 0 | EK61: 0 | EL61: 0 | EM61: 0 | EN61: 0 | EO61: 0 | EP61: 0 | EQ61: 0 | ER61: 0 | ES61: 0 | ET61: 0 | EU61: 0 | EV61: 0 | EW61: 0 | EX61: 0 | EY61: 0 | EZ61: 0 | FA61: 0 | FB61: 0 | FC61: 0 | FD61: 0 | FE61: 0 | FF61: 0 | FG61: 0 | FH61: 0 | FI61: 0 | FJ61: 0 | FK61: 0 | FL61: 0 | FM61: 0 | FN61: 0 | FO61: 0 | FP61: 0 | FQ61: 0 | FR61: 0 | FS61: 0 | FT61: 0 | FU61: 0 | FV61: 0 | FW61: 0 | FX61: 0 | FY61: 0 | FZ61: 0 | GA61: 0 | GB61: 0 | GC61: 0 | GD61: 0 | GE61: 0 | GF61: 0 | GG61: 0 | GH61: 0 | GI61: 0 | GJ61: 0 | GK61: 0 | GL61: 0 | GM61: 0 | GN61: 0 | GO61: 0 | GP61: 0 | GQ61: 0 | GR61: 0 | GS61: 0 | GT61: 0 | GU61: 0 | GV61: 0 | GW61: 0 | GX61: 0 | GY61: 0 | GZ61: 0 | HA61: 0 | HB61: 0 | HC61: 0 | HD61: 0 | HE61: 0
A62: ='Calcs - PMP'!C132 -> 3.75 | B62: ='Calcs - PMP'!F132 ->  | E62: 13 | F62: -26.47811687 | G62: 0 | L62: 52 | M62: 0 | N62: 0 | O62: 0 | P62: 0 | Q62: 0 | R62: 0 | S62: 0 | T62: 0 | U62: 0 | V62: 0 | W62: 0 | X62: 0 | Y62: 0 | Z62: 0 | AA62: 0 | AB62: 0 | AC62: 0 | AD62: 0 | AE62: 0 | AF62: 0 | AG62: 0 | AH62: 0 | AI62: 0 | AJ62: 0 | AK62: 0 | AL62: 0 | AM62: 0 | AN62: 0 | AO62: 0 | AP62: 0 | AQ62: 0 | AR62: 0 | AS62: 0 | AT62: 0 | AU62: 0 | AV62: 0 | AW62: 0 | AX62: 0 | BV62: 0 | BW62: 0 | BX62: 0 | BY62: 0 | BZ62: 0 | CA62: 0 | CB62: 0 | CC62: 0 | CD62: 0 | CE62: 0 | CF62: 0 | CG62: 0 | CH62: 0 | CI62: 0 | CJ62: 0 | CK62: 0 | CL62: 0 | CM62: 0 | CN62: 0 | CO62: 0 | CP62: 0 | CQ62: 0 | CR62: 0 | CS62: 0 | CT62: 0 | CU62: 0 | CV62: 0 | CW62: 0 | CX62: 0 | CY62: 0 | CZ62: 0 | DA62: 0 | DB62: 0 | DC62: 0 | DD62: 0 | DE62: 0 | DF62: 0 | DG62: 0 | DH62: 0 | DI62: 0 | DJ62: 0 | DK62: 0 | DL62: 0 | DM62: 0 | DN62: 0 | DO62: 0 | DP62: 0 | DQ62: 0 | DR62: 0 | DS62: 0 | DT62: 0 | DU62: 0 | DV62: 0 | DW62: 0 | DX62: 0 | DY62: 0 | DZ62: 0 | EA62: 0 | EB62: 0 | EC62: 0 | ED62: 0 | EE62: 0 | EF62: 0 | EG62: 0 | EH62: 0 | EI62: 0 | EJ62: 0 | EK62: 0 | EL62: 0 | EM62: 0 | EN62: 0 | EO62: 0 | EP62: 0 | EQ62: 0 | ER62: 0 | ES62: 0 | ET62: 0 | EU62: 0 | EV62: 0 | EW62: 0 | EX62: 0 | EY62: 0 | EZ62: 0 | FA62: 0 | FB62: 0 | FC62: 0 | FD62: 0 | FE62: 0 | FF62: 0 | FG62: 0 | FH62: 0 | FI62: 0 | FJ62: 0 | FK62: 0 | FL62: 0 | FM62: 0 | FN62: 0 | FO62: 0 | FP62: 0 | FQ62: 0 | FR62: 0 | FS62: 0 | FT62: =IF(OFFSET($C$10,FT$9,0)="-",0,IF(FT$9>=$L62,0,OFFSET($C$10,FT$9,0)*OFFSET($G$10,$L62-FT$9,0))) -> 0 | FU62: 0 | FV62: 0 | FW62: 0 | FX62: 0 | FY62: 0 | FZ62: 0 | GA62: 0 | GB62: 0 | GC62: 0 | GD62: 0 | GE62: 0 | GF62: 0 | GG62: 0 | GH62: 0 | GI62: 0 | GJ62: 0 | GK62: 0 | GL62: 0 | GM62: 0 | GN62: 0 | GO62: 0 | GP62: 0 | GQ62: 0 | GR62: 0 | GS62: 0 | GT62: 0 | GU62: 0 | GV62: 0 | GW62: 0 | GX62: 0 | GY62: 0 | GZ62: 0 | HA62: 0 | HB62: 0 | HC62: 0 | HD62: 0 | HE62: 0
A63: ='Calcs - PMP'!C133 -> 4 | B63: ='Calcs - PMP'!F133 ->  | E63: 13.25 | F63: -27.48089421 | G63: 0 | L63: 53 | M63: 0 | N63: 0 | O63: 0 | P63: 0 | Q63: 0 | R63: 0 | S63: 0 | T63: 0 | U63: 0 | V63: 0 | W63: 0 | X63: 0 | Y63: 0 | Z63: 0 | AA63: 0 | AB63: 0 | AC63: 0 | AD63: 0 | AE63: 0 | AF63: 0 | AG63: 0 | AH63: 0 | AI63: 0 | AJ63: 0 | AK63: 0 | AL63: 0 | AM63: 0 | AN63: 0 | AO63: 0 | AP63: 0 | AQ63: 0 | AR63: 0 | AS63: 0 | AT63: 0 | AU63: 0 | AV63: 0 | AW63: 0 | AX63: 0 | BV63: 0 | BW63: 0 | BX63: 0 | BY63: 0 | BZ63: 0 | CA63: 0 | CB63: 0 | CC63: 0 | CD63: 0 | CE63: 0 | CF63: 0 | CG63: 0 | CH63: 0 | CI63: 0 | CJ63: 0 | CK63: 0 | CL63: 0 | CM63: 0 | CN63: 0 | CO63: 0 | CP63: 0 | CQ63: 0 | CR63: 0 | CS63: 0 | CT63: 0 | CU63: 0 | CV63: 0 | CW63: 0 | CX63: 0 | CY63: 0 | CZ63: 0 | DA63: 0 | DB63: 0 | DC63: 0 | DD63: 0 | DE63: 0 | DF63: 0 | DG63: 0 | DH63: 0 | DI63: =IF(OFFSET($C$10,DI$9,0)="-",0,IF(DI$9>=$L63,0,OFFSET($C$10,DI$9,0)*OFFSET($G$10,$L63-DI$9,0))) -> 0 | DJ63: 0 | DK63: 0 | DL63: 0 | DM63: 0 | DN63: 0 | DO63: 0 | DP63: 0 | DQ63: 0 | DR63: 0 | DS63: 0 | DT63: 0 | DU63: 0 | DV63: 0 | DW63: 0 | DX63: 0 | DY63: 0 | DZ63: 0 | EA63: 0 | EB63: 0 | EC63: 0 | ED63: 0 | EE63: 0 | EF63: 0 | EG63: 0 | EH63: 0 | EI63: 0 | EJ63: 0 | EK63: 0 | EL63: 0 | EM63: 0 | EN63: 0 | EO63: 0 | EP63: 0 | EQ63: 0 | ER63: 0 | ES63: 0 | ET63: 0 | EU63: 0 | EV63: 0 | EW63: 0 | EX63: 0 | EY63: 0 | EZ63: 0 | FA63: 0 | FB63: 0 | FC63: 0 | FD63: 0 | FE63: 0 | FF63: 0 | FG63: 0 | FH63: 0 | FI63: 0 | FJ63: 0 | FK63: 0 | FL63: 0 | FM63: 0 | FN63: 0 | FO63: 0 | FP63: 0 | FQ63: 0 | FR63: 0 | FS63: 0 | FT63: 0 | FU63: 0 | FV63: 0 | FW63: 0 | FX63: 0 | FY63: 0 | FZ63: 0 | GA63: 0 | GB63: 0 | GC63: 0 | GD63: 0 | GE63: 0 | GF63: 0 | GG63: 0 | GH63: 0 | GI63: 0 | GJ63: 0 | GK63: 0 | GL63: 0 | GM63: 0 | GN63: 0 | GO63: 0 | GP63: 0 | GQ63: 0 | GR63: 0 | GS63: 0 | GT63: 0 | GU63: 0 | GV63: 0 | GW63: 0 | GX63: 0 | GY63: 0 | GZ63: 0 | HA63: 0 | HB63: 0 | HC63: 0 | HD63: 0 | HE63: 0
A64: ='Calcs - PMP'!C134 -> 4.25 | B64: ='Calcs - PMP'!F134 ->  | E64: 13.5 | F64: -28.48367155 | G64: 0 | L64: 54 | M64: 0 | N64: 0 | O64: 0 | P64: 0 | Q64: 0 | R64: 0 | S64: 0 | T64: 0 | U64: 0 | V64: 0 | W64: 0 | X64: 0 | Y64: 0 | Z64: 0 | AA64: 0 | AB64: 0 | AC64: 0 | AD64: 0 | AE64: 0 | AF64: 0 | AG64: 0 | AH64: 0 | AI64: 0 | AJ64: 0 | AK64: 0 | AL64: 0 | AM64: 0 | AN64: 0 | AO64: 0 | AP64: 0 | AQ64: 0 | AR64: 0 | AS64: 0 | AT64: 0 | AU64: 0 | AV64: 0 | AW64: 0 | AX64: 0 | BV64: 0 | BW64: 0 | BX64: 0 | BY64: 0 | BZ64: 0 | CA64: 0 | CB64: 0 | CC64: 0 | CD64: 0 | CE64: 0 | CF64: 0 | CG64: 0 | CH64: 0 | CI64: 0 | CJ64: 0 | CK64: 0 | CL64: 0 | CM64: 0 | CN64: =IF(OFFSET($C$10,CN$9,0)="-",0,IF(CN$9>=$L64,0,OFFSET($C$10,CN$9,0)*OFFSET($G$10,$L64-CN$9,0))) -> 0 | CO64: 0 | CP64: 0 | CQ64: 0 | CR64: 0 | CS64: 0 | CT64: 0 | CU64: 0 | CV64: 0 | CW64: 0 | CX64: 0 | CY64: 0 | CZ64: 0 | DA64: 0 | DB64: 0 | DC64: 0 | DD64: 0 | DE64: 0 | DF64: 0 | DG64: 0 | DH64: 0 | DI64: 0 | DJ64: 0 | DK64: 0 | DL64: 0 | DM64: 0 | DN64: 0 | DO64: 0 | DP64: 0 | DQ64: 0 | DR64: 0 | DS64: 0 | DT64: 0 | DU64: 0 | DV64: 0 | DW64: 0 | DX64: 0 | DY64: 0 | DZ64: 0 | EA64: 0 | EB64: 0 | EC64: 0 | ED64: 0 | EE64: 0 | EF64: 0 | EG64: 0 | EH64: 0 | EI64: 0 | EJ64: 0 | EK64: 0 | EL64: 0 | EM64: 0 | EN64: 0 | EO64: 0 | EP64: 0 | EQ64: 0 | ER64: 0 | ES64: 0 | ET64: 0 | EU64: 0 | EV64: 0 | EW64: 0 | EX64: 0 | EY64: 0 | EZ64: 0 | FA64: 0 | FB64: 0 | FC64: 0 | FD64: 0 | FE64: 0 | FF64: 0 | FG64: 0 | FH64: 0 | FI64: 0 | FJ64: 0 | FK64: 0 | FL64: 0 | FM64: 0 | FN64: 0 | FO64: 0 | FP64: 0 | FQ64: 0 | FR64: 0 | FS64: 0 | FT64: 0 | FU64: 0 | FV64: 0 | FW64: 0 | FX64: 0 | FY64: 0 | FZ64: 0 | GA64: 0 | GB64: 0 | GC64: 0 | GD64: 0 | GE64: 0 | GF64: 0 | GG64: 0 | GH64: 0 | GI64: 0 | GJ64: 0 | GK64: 0 | GL64: 0 | GM64: 0 | GN64: 0 | GO64: 0 | GP64: 0 | GQ64: 0 | GR64: 0 | GS64: 0 | GT64: 0 | GU64: 0 | GV64: 0 | GW64: 0 | GX64: 0 | GY64: 0 | GZ64: 0 | HA64: 0 | HB64: 0 | HC64: 0 | HD64: 0 | HE64: 0
A65: ='Calcs - PMP'!C135 -> 4.5 | B65: ='Calcs - PMP'!F135 ->  | E65: 13.75 | F65: -29.48644889 | G65: 0 | L65: 55 | M65: 0 | N65: 0 | O65: 0 | P65: 0 | Q65: 0 | R65: 0 | S65: 0 | T65: 0 | U65: 0 | V65: 0 | W65: 0 | X65: 0 | Y65: 0 | Z65: 0 | AA65: 0 | AB65: 0 | AC65: 0 | AD65: 0 | AE65: 0 | AF65: 0 | AG65: 0 | AH65: 0 | AI65: 0 | AJ65: 0 | AK65: 0 | AL65: 0 | AM65: 0 | AN65: 0 | AO65: 0 | AP65: 0 | AQ65: 0 | AR65: 0 | AS65: 0 | AT65: 0 | AU65: 0 | AV65: 0 | AW65: 0 | AX65: 0 | BV65: 0 | BW65: 0 | BX65: 0 | BY65: 0 | BZ65: 0 | CA65: 0 | CB65: 0 | CC65: 0 | CD65: 0 | CE65: 0 | CF65: 0 | CG65: 0 | CH65: 0 | CI65: 0 | CJ65: 0 | CK65: 0 | CL65: 0 | CM65: 0 | CN65: 0 | CO65: 0 | CP65: 0 | CQ65: 0 | CR65: 0 | CS65: 0 | CT65: 0 | CU65: 0 | CV65: 0 | CW65: 0 | CX65: 0 | CY65: 0 | CZ65: 0 | DA65: 0 | DB65: 0 | DC65: 0 | DD65: 0 | DE65: 0 | DF65: 0 | DG65: 0 | DH65: 0 | DI65: 0 | DJ65: 0 | DK65: 0 | DL65: 0 | DM65: 0 | DN65: 0 | DO65: 0 | DP65: 0 | DQ65: 0 | DR65: 0 | DS65: 0 | DT65: 0 | DU65: 0 | DV65: 0 | DW65: 0 | DX65: 0 | DY65: 0 | DZ65: 0 | EA65: 0 | EB65: 0 | EC65: 0 | ED65: 0 | EE65: 0 | EF65: 0 | EG65: 0 | EH65: 0 | EI65: 0 | EJ65: 0 | EK65: 0 | EL65: 0 | EM65: 0 | EN65: 0 | EO65: 0 | EP65: 0 | EQ65: 0 | ER65: 0 | ES65: 0 | ET65: 0 | EU65: 0 | EV65: 0 | EW65: 0 | EX65: 0 | EY65: 0 | EZ65: 0 | FA65: 0 | FB65: 0 | FC65: 0 | FD65: 0 | FE65: 0 | FF65: 0 | FG65: 0 | FH65: 0 | FI65: 0 | FJ65: 0 | FK65: 0 | FL65: 0 | FM65: 0 | FN65: 0 | FO65: 0 | FP65: 0 | FQ65: 0 | FR65: 0 | FS65: 0 | FT65: 0 | FU65: 0 | FV65: 0 | FW65: 0 | FX65: 0 | FY65: 0 | FZ65: 0 | GA65: 0 | GB65: 0 | GC65: 0 | GD65: 0 | GE65: 0 | GF65: 0 | GG65: 0 | GH65: 0 | GI65: 0 | GJ65: 0 | GK65: 0 | GL65: 0 | GM65: 0 | GN65: 0 | GO65: 0 | GP65: 0 | GQ65: 0 | GR65: 0 | GS65: 0 | GT65: 0 | GU65: 0 | GV65: 0 | GW65: 0 | GX65: 0 | GY65: 0 | GZ65: 0 | HA65: 0 | HB65: 0 | HC65: 0 | HD65: 0 | HE65: 0
A66: ='Calcs - PMP'!C136 -> 4.75 | B66: ='Calcs - PMP'!F136 ->  | E66: 14 | F66: -30.48922624 | G66: 0 | L66: 56 | M66: 0 | N66: 0 | O66: 0 | P66: 0 | Q66: 0 | R66: 0 | S66: 0 | T66: 0 | U66: 0 | V66: 0 | W66: 0 | X66: 0 | Y66: 0 | Z66: 0 | AA66: 0 | AB66: 0 | AC66: 0 | AD66: 0 | AE66: 0 | AF66: 0 | AG66: 0 | AH66: 0 | AI66: 0 | AJ66: 0 | AK66: 0 | AL66: 0 | AM66: 0 | AN66: 0 | AO66: 0 | AP66: 0 | AQ66: 0 | AR66: 0 | AS66: 0 | AT66: 0 | AU66: 0 | AV66: 0 | AW66: 0 | AX66: 0 | BV66: 0 | BW66: 0 | BX66: 0 | BY66: 0 | BZ66: 0 | CA66: 0 | CB66: 0 | CC66: 0 | CD66: 0 | CE66: 0 | CF66: 0 | CG66: 0 | CH66: 0 | CI66: 0 | CJ66: 0 | CK66: 0 | CL66: 0 | CM66: 0 | CN66: 0 | CO66: 0 | CP66: 0 | CQ66: 0 | CR66: 0 | CS66: 0 | CT66: 0 | CU66: 0 | CV66: 0 | CW66: 0 | CX66: 0 | CY66: 0 | CZ66: 0 | DA66: 0 | DB66: 0 | DC66: 0 | DD66: 0 | DE66: 0 | DF66: 0 | DG66: 0 | DH66: 0 | DI66: 0 | DJ66: 0 | DK66: 0 | DL66: 0 | DM66: 0 | DN66: 0 | DO66: 0 | DP66: 0 | DQ66: 0 | DR66: 0 | DS66: 0 | DT66: 0 | DU66: 0 | DV66: 0 | DW66: 0 | DX66: 0 | DY66: 0 | DZ66: 0 | EA66: 0 | EB66: 0 | EC66: 0 | ED66: 0 | EE66: 0 | EF66: 0 | EG66: 0 | EH66: 0 | EI66: 0 | EJ66: 0 | EK66: 0 | EL66: 0 | EM66: 0 | EN66: 0 | EO66: 0 | EP66: 0 | EQ66: 0 | ER66: 0 | ES66: 0 | ET66: 0 | EU66: 0 | EV66: 0 | EW66: 0 | EX66: 0 | EY66: 0 | EZ66: 0 | FA66: 0 | FB66: 0 | FC66: 0 | FD66: 0 | FE66: 0 | FF66: 0 | FG66: 0 | FH66: 0 | FI66: 0 | FJ66: 0 | FK66: 0 | FL66: 0 | FM66: 0 | FN66: 0 | FO66: 0 | FP66: 0 | FQ66: 0 | FR66: 0 | FS66: 0 | FT66: =IF(OFFSET($C$10,FT$9,0)="-",0,IF(FT$9>=$L66,0,OFFSET($C$10,FT$9,0)*OFFSET($G$10,$L66-FT$9,0))) -> 0 | FU66: 0 | FV66: 0 | FW66: 0 | FX66: 0 | FY66: 0 | FZ66: 0 | GA66: 0 | GB66: 0 | GC66: 0 | GD66: 0 | GE66: 0 | GF66: 0 | GG66: 0 | GH66: 0 | GI66: 0 | GJ66: 0 | GK66: 0 | GL66: 0 | GM66: 0 | GN66: 0 | GO66: 0 | GP66: 0 | GQ66: 0 | GR66: 0 | GS66: 0 | GT66: 0 | GU66: 0 | GV66: 0 | GW66: 0 | GX66: 0 | GY66: 0 | GZ66: 0 | HA66: 0 | HB66: 0 | HC66: 0 | HD66: 0 | HE66: 0
A67: ='Calcs - PMP'!C137 -> 5 | B67: ='Calcs - PMP'!F137 ->  | E67: 14.25 | F67: -31.49200358 | G67: 0 | L67: 57 | M67: 0 | N67: 0 | O67: 0 | P67: 0 | Q67: 0 | R67: 0 | S67: 0 | T67: 0 | U67: 0 | V67: 0 | W67: 0 | X67: 0 | Y67: 0 | Z67: 0 | AA67: 0 | AB67: 0 | AC67: 0 | AD67: 0 | AE67: 0 | AF67: 0 | AG67: 0 | AH67: 0 | AI67: 0 | AJ67: 0 | AK67: 0 | AL67: 0 | AM67: 0 | AN67: 0 | AO67: 0 | AP67: 0 | AQ67: 0 | AR67: 0 | AS67: 0 | AT67: 0 | AU67: 0 | AV67: 0 | AW67: 0 | AX67: 0 | BV67: 0 | BW67: 0 | BX67: 0 | BY67: 0 | BZ67: 0 | CA67: 0 | CB67: 0 | CC67: 0 | CD67: 0 | CE67: 0 | CF67: 0 | CG67: 0 | CH67: 0 | CI67: 0 | CJ67: 0 | CK67: 0 | CL67: 0 | CM67: 0 | CN67: 0 | CO67: 0 | CP67: 0 | CQ67: 0 | CR67: 0 | CS67: 0 | CT67: 0 | CU67: 0 | CV67: 0 | CW67: 0 | CX67: 0 | CY67: 0 | CZ67: 0 | DA67: 0 | DB67: 0 | DC67: 0 | DD67: 0 | DE67: 0 | DF67: 0 | DG67: 0 | DH67: 0 | DI67: =IF(OFFSET($C$10,DI$9,0)="-",0,IF(DI$9>=$L67,0,OFFSET($C$10,DI$9,0)*OFFSET($G$10,$L67-DI$9,0))) -> 0 | DJ67: 0 | DK67: 0 | DL67: 0 | DM67: 0 | DN67: 0 | DO67: 0 | DP67: 0 | DQ67: 0 | DR67: 0 | DS67: 0 | DT67: 0 | DU67: 0 | DV67: 0 | DW67: 0 | DX67: 0 | DY67: 0 | DZ67: 0 | EA67: 0 | EB67: 0 | EC67: 0 | ED67: 0 | EE67: 0 | EF67: 0 | EG67: 0 | EH67: 0 | EI67: 0 | EJ67: 0 | EK67: 0 | EL67: 0 | EM67: 0 | EN67: 0 | EO67: 0 | EP67: 0 | EQ67: 0 | ER67: 0 | ES67: 0 | ET67: 0 | EU67: 0 | EV67: 0 | EW67: 0 | EX67: 0 | EY67: 0 | EZ67: 0 | FA67: 0 | FB67: 0 | FC67: 0 | FD67: 0 | FE67: 0 | FF67: 0 | FG67: 0 | FH67: 0 | FI67: 0 | FJ67: 0 | FK67: 0 | FL67: 0 | FM67: 0 | FN67: 0 | FO67: 0 | FP67: 0 | FQ67: 0 | FR67: 0 | FS67: 0 | FT67: 0 | FU67: 0 | FV67: 0 | FW67: 0 | FX67: 0 | FY67: 0 | FZ67: 0 | GA67: 0 | GB67: 0 | GC67: 0 | GD67: 0 | GE67: 0 | GF67: 0 | GG67: 0 | GH67: 0 | GI67: 0 | GJ67: 0 | GK67: 0 | GL67: 0 | GM67: 0 | GN67: 0 | GO67: 0 | GP67: 0 | GQ67: 0 | GR67: 0 | GS67: 0 | GT67: 0 | GU67: 0 | GV67: 0 | GW67: 0 | GX67: 0 | GY67: 0 | GZ67: 0 | HA67: 0 | HB67: 0 | HC67: 0 | HD67: 0 | HE67: 0
A68: ='Calcs - PMP'!C138 -> 5.25 | B68: ='Calcs - PMP'!F138 ->  | E68: 14.5 | F68: -32.49478092 | G68: 0 | L68: 58 | M68: 0 | N68: 0 | O68: 0 | P68: 0 | Q68: 0 | R68: 0 | S68: 0 | T68: 0 | U68: 0 | V68: 0 | W68: 0 | X68: 0 | Y68: 0 | Z68: 0 | AA68: 0 | AB68: 0 | AC68: 0 | AD68: 0 | AE68: 0 | AF68: 0 | AG68: 0 | AH68: 0 | AI68: 0 | AJ68: 0 | AK68: 0 | AL68: 0 | AM68: 0 | AN68: 0 | AO68: 0 | AP68: 0 | AQ68: 0 | AR68: 0 | AS68: 0 | AT68: 0 | AU68: 0 | AV68: 0 | AW68: 0 | AX68: 0 | BV68: 0 | BW68: 0 | BX68: 0 | BY68: 0 | BZ68: 0 | CA68: 0 | CB68: 0 | CC68: 0 | CD68: 0 | CE68: 0 | CF68: 0 | CG68: 0 | CH68: 0 | CI68: 0 | CJ68: 0 | CK68: 0 | CL68: 0 | CM68: 0 | CN68: 0 | CO68: 0 | CP68: 0 | CQ68: 0 | CR68: 0 | CS68: 0 | CT68: 0 | CU68: 0 | CV68: 0 | CW68: 0 | CX68: 0 | CY68: 0 | CZ68: 0 | DA68: 0 | DB68: 0 | DC68: 0 | DD68: 0 | DE68: 0 | DF68: 0 | DG68: 0 | DH68: 0 | DI68: 0 | DJ68: 0 | DK68: 0 | DL68: 0 | DM68: 0 | DN68: 0 | DO68: 0 | DP68: 0 | DQ68: 0 | DR68: 0 | DS68: 0 | DT68: 0 | DU68: 0 | DV68: 0 | DW68: 0 | DX68: 0 | DY68: 0 | DZ68: 0 | EA68: 0 | EB68: 0 | EC68: 0 | ED68: 0 | EE68: 0 | EF68: 0 | EG68: 0 | EH68: 0 | EI68: 0 | EJ68: 0 | EK68: 0 | EL68: 0 | EM68: 0 | EN68: 0 | EO68: 0 | EP68: 0 | EQ68: 0 | ER68: 0 | ES68: 0 | ET68: 0 | EU68: 0 | EV68: 0 | EW68: 0 | EX68: 0 | EY68: 0 | EZ68: 0 | FA68: 0 | FB68: 0 | FC68: 0 | FD68: 0 | FE68: 0 | FF68: 0 | FG68: 0 | FH68: 0 | FI68: 0 | FJ68: 0 | FK68: 0 | FL68: 0 | FM68: 0 | FN68: 0 | FO68: 0 | FP68: 0 | FQ68: 0 | FR68: 0 | FS68: 0 | FT68: 0 | FU68: 0 | FV68: 0 | FW68: 0 | FX68: 0 | FY68: 0 | FZ68: 0 | GA68: 0 | GB68: 0 | GC68: 0 | GD68: 0 | GE68: 0 | GF68: 0 | GG68: 0 | GH68: 0 | GI68: 0 | GJ68: 0 | GK68: 0 | GL68: 0 | GM68: 0 | GN68: 0 | GO68: 0 | GP68: 0 | GQ68: 0 | GR68: 0 | GS68: 0 | GT68: 0 | GU68: 0 | GV68: 0 | GW68: 0 | GX68: 0 | GY68: 0 | GZ68: 0 | HA68: 0 | HB68: 0 | HC68: 0 | HD68: 0 | HE68: 0
A69: ='Calcs - PMP'!C139 -> 5.5 | B69: ='Calcs - PMP'!F139 ->  | E69: 14.75 | F69: -33.49755826 | G69: 0 | L69: 59 | M69: 0 | N69: 0 | O69: 0 | P69: 0 | Q69: 0 | R69: 0 | S69: 0 | T69: 0 | U69: 0 | V69: 0 | W69: 0 | X69: 0 | Y69: 0 | Z69: 0 | AA69: 0 | AB69: 0 | AC69: 0 | AD69: 0 | AE69: 0 | AF69: 0 | AG69: 0 | AH69: 0 | AI69: 0 | AJ69: 0 | AK69: 0 | AL69: 0 | AM69: 0 | AN69: 0 | AO69: 0 | AP69: 0 | AQ69: 0 | AR69: 0 | AS69: 0 | AT69: 0 | AU69: 0 | AV69: 0 | AW69: 0 | AX69: 0 | BV69: 0 | BW69: 0 | BX69: 0 | BY69: 0 | BZ69: 0 | CA69: 0 | CB69: 0 | CC69: 0 | CD69: 0 | CE69: 0 | CF69: 0 | CG69: 0 | CH69: 0 | CI69: 0 | CJ69: 0 | CK69: 0 | CL69: 0 | CM69: 0 | CN69: 0 | CO69: 0 | CP69: 0 | CQ69: 0 | CR69: 0 | CS69: 0 | CT69: 0 | CU69: 0 | CV69: 0 | CW69: 0 | CX69: 0 | CY69: 0 | CZ69: 0 | DA69: 0 | DB69: 0 | DC69: 0 | DD69: 0 | DE69: 0 | DF69: 0 | DG69: 0 | DH69: 0 | DI69: 0 | DJ69: 0 | DK69: 0 | DL69: 0 | DM69: 0 | DN69: 0 | DO69: 0 | DP69: 0 | DQ69: 0 | DR69: 0 | DS69: 0 | DT69: 0 | DU69: 0 | DV69: 0 | DW69: 0 | DX69: 0 | DY69: 0 | DZ69: 0 | EA69: 0 | EB69: 0 | EC69: 0 | ED69: 0 | EE69: 0 | EF69: 0 | EG69: 0 | EH69: 0 | EI69: 0 | EJ69: 0 | EK69: 0 | EL69: 0 | EM69: 0 | EN69: 0 | EO69: 0 | EP69: 0 | EQ69: 0 | ER69: 0 | ES69: 0 | ET69: 0 | EU69: 0 | EV69: 0 | EW69: 0 | EX69: 0 | EY69: 0 | EZ69: 0 | FA69: 0 | FB69: 0 | FC69: 0 | FD69: 0 | FE69: 0 | FF69: 0 | FG69: 0 | FH69: 0 | FI69: 0 | FJ69: 0 | FK69: 0 | FL69: 0 | FM69: 0 | FN69: 0 | FO69: 0 | FP69: 0 | FQ69: 0 | FR69: 0 | FS69: 0 | FT69: 0 | FU69: 0 | FV69: 0 | FW69: 0 | FX69: 0 | FY69: 0 | FZ69: 0 | GA69: 0 | GB69: 0 | GC69: 0 | GD69: 0 | GE69: 0 | GF69: 0 | GG69: 0 | GH69: 0 | GI69: 0 | GJ69: 0 | GK69: 0 | GL69: 0 | GM69: 0 | GN69: 0 | GO69: 0 | GP69: 0 | GQ69: 0 | GR69: 0 | GS69: 0 | GT69: 0 | GU69: 0 | GV69: 0 | GW69: 0 | GX69: 0 | GY69: 0 | GZ69: 0 | HA69: 0 | HB69: 0 | HC69: 0 | HD69: 0 | HE69: 0
A70: ='Calcs - PMP'!C140 -> 5.75 | B70: ='Calcs - PMP'!F140 ->  | E70: 15 | F70: -34.5003356 | G70: 0 | L70: 60 | M70: 0 | N70: 0 | O70: 0 | P70: 0 | Q70: 0 | R70: 0 | S70: 0 | T70: 0 | U70: 0 | V70: 0 | W70: 0 | X70: 0 | Y70: 0 | Z70: 0 | AA70: 0 | AB70: 0 | AC70: 0 | AD70: 0 | AE70: 0 | AF70: 0 | AG70: 0 | AH70: 0 | AI70: 0 | AJ70: 0 | AK70: 0 | AL70: 0 | AM70: 0 | AN70: 0 | AO70: 0 | AP70: 0 | AQ70: 0 | AR70: 0 | AS70: 0 | AT70: 0 | AU70: 0 | AV70: 0 | AW70: 0 | AX70: 0 | BV70: 0 | BW70: 0 | BX70: 0 | BY70: 0 | BZ70: 0 | CA70: 0 | CB70: 0 | CC70: 0 | CD70: 0 | CE70: 0 | CF70: 0 | CG70: 0 | CH70: 0 | CI70: 0 | CJ70: 0 | CK70: 0 | CL70: 0 | CM70: 0 | CN70: 0 | CO70: 0 | CP70: 0 | CQ70: 0 | CR70: 0 | CS70: 0 | CT70: 0 | CU70: 0 | CV70: 0 | CW70: 0 | CX70: 0 | CY70: 0 | CZ70: 0 | DA70: 0 | DB70: 0 | DC70: 0 | DD70: 0 | DE70: 0 | DF70: 0 | DG70: 0 | DH70: 0 | DI70: 0 | DJ70: 0 | DK70: 0 | DL70: 0 | DM70: 0 | DN70: 0 | DO70: 0 | DP70: 0 | DQ70: 0 | DR70: 0 | DS70: 0 | DT70: 0 | DU70: 0 | DV70: 0 | DW70: 0 | DX70: 0 | DY70: 0 | DZ70: 0 | EA70: 0 | EB70: 0 | EC70: 0 | ED70: 0 | EE70: 0 | EF70: 0 | EG70: 0 | EH70: 0 | EI70: 0 | EJ70: 0 | EK70: 0 | EL70: 0 | EM70: 0 | EN70: 0 | EO70: 0 | EP70: 0 | EQ70: 0 | ER70: 0 | ES70: 0 | ET70: 0 | EU70: 0 | EV70: 0 | EW70: 0 | EX70: 0 | EY70: 0 | EZ70: 0 | FA70: 0 | FB70: 0 | FC70: 0 | FD70: 0 | FE70: 0 | FF70: 0 | FG70: 0 | FH70: 0 | FI70: 0 | FJ70: 0 | FK70: 0 | FL70: 0 | FM70: 0 | FN70: 0 | FO70: 0 | FP70: 0 | FQ70: 0 | FR70: 0 | FS70: 0 | FT70: =IF(OFFSET($C$10,FT$9,0)="-",0,IF(FT$9>=$L70,0,OFFSET($C$10,FT$9,0)*OFFSET($G$10,$L70-FT$9,0))) -> 0 | FU70: 0 | FV70: 0 | FW70: 0 | FX70: 0 | FY70: 0 | FZ70: 0 | GA70: 0 | GB70: 0 | GC70: 0 | GD70: 0 | GE70: 0 | GF70: 0 | GG70: 0 | GH70: 0 | GI70: 0 | GJ70: 0 | GK70: 0 | GL70: 0 | GM70: 0 | GN70: 0 | GO70: 0 | GP70: 0 | GQ70: 0 | GR70: 0 | GS70: 0 | GT70: 0 | GU70: 0 | GV70: 0 | GW70: 0 | GX70: 0 | GY70: 0 | GZ70: 0 | HA70: 0 | HB70: 0 | HC70: 0 | HD70: 0 | HE70: 0
A71: ='Calcs - PMP'!C141 -> 6 | B71: ='Calcs - PMP'!F141 -> - | C71: - | E71: 15.25 | F71: -35.50311294 | G71: 0 | J71: =I71+$C$7 ->  | L71: 61 | M71: 0 | N71: 0 | O71: 0 | P71: 0 | Q71: 0 | R71: 0 | S71: 0 | T71: 0 | U71: 0 | V71: 0 | W71: 0 | X71: 0 | Y71: 0 | Z71: 0 | AA71: 0 | AB71: 0 | AC71: 0 | AD71: 0 | AE71: 0 | AF71: 0 | AG71: 0 | AH71: 0 | AI71: 0 | AJ71: 0 | AK71: 0 | AL71: 0 | AM71: 0 | AN71: 0 | AO71: 0 | AP71: 0 | AQ71: 0 | AR71: 0 | AS71: 0 | AT71: 0 | AU71: 0 | AV71: 0 | AW71: 0 | AX71: 0 | BV71: 0 | BW71: 0 | BX71: 0 | BY71: 0 | BZ71: 0 | CA71: 0 | CB71: 0 | CC71: =IF(OFFSET($C$10,CC$9,0)="-",0,IF(CC$9>=$L71,0,OFFSET($C$10,CC$9,0)*OFFSET($G$10,$L71-CC$9,0))) -> 0 | CD71: 0 | CE71: 0 | CF71: 0 | CG71: 0 | CH71: 0 | CI71: 0 | CJ71: 0 | CK71: 0 | CL71: 0 | CM71: 0 | CN71: 0 | CO71: 0 | CP71: 0 | CQ71: 0 | CR71: 0 | CS71: 0 | CT71: 0 | CU71: 0 | CV71: 0 | CW71: 0 | CX71: 0 | CY71: 0 | CZ71: 0 | DA71: 0 | DB71: 0 | DC71: 0 | DD71: 0 | DE71: 0 | DF71: 0 | DG71: 0 | DH71: 0 | DI71: =IF(OFFSET($C$10,DI$9,0)="-",0,IF(DI$9>=$L71,0,OFFSET($C$10,DI$9,0)*OFFSET($G$10,$L71-DI$9,0))) -> 0 | DJ71: 0 | DK71: 0 | DL71: 0 | DM71: 0 | DN71: 0 | DO71: 0 | DP71: 0 | DQ71: 0 | DR71: 0 | DS71: 0 | DT71: 0 | DU71: 0 | DV71: 0 | DW71: 0 | DX71: 0 | DY71: 0 | DZ71: 0 | EA71: 0 | EB71: 0 | EC71: 0 | ED71: 0 | EE71: 0 | EF71: 0 | EG71: 0 | EH71: 0 | EI71: 0 | EJ71: 0 | EK71: 0 | EL71: 0 | EM71: 0 | EN71: 0 | EO71: 0 | EP71: 0 | EQ71: 0 | ER71: 0 | ES71: 0 | ET71: 0 | EU71: 0 | EV71: 0 | EW71: 0 | EX71: 0 | EY71: 0 | EZ71: 0 | FA71: 0 | FB71: 0 | FC71: 0 | FD71: 0 | FE71: 0 | FF71: 0 | FG71: 0 | FH71: 0 | FI71: 0 | FJ71: 0 | FK71: 0 | FL71: 0 | FM71: 0 | FN71: 0 | FO71: 0 | FP71: 0 | FQ71: 0 | FR71: 0 | FS71: 0 | FT71: 0 | FU71: 0 | FV71: 0 | FW71: 0 | FX71: 0 | FY71: 0 | FZ71: 0 | GA71: 0 | GB71: 0 | GC71: 0 | GD71: 0 | GE71: 0 | GF71: 0 | GG71: 0 | GH71: 0 | GI71: 0 | GJ71: 0 | GK71: 0 | GL71: 0 | GM71: 0 | GN71: 0 | GO71: 0 | GP71: 0 | GQ71: 0 | GR71: 0 | GS71: 0 | GT71: 0 | GU71: 0 | GV71: 0 | GW71: 0 | GX71: 0 | GY71: 0 | GZ71: 0 | HA71: 0 | HB71: 0 | HC71: 0 | HD71: 0 | HE71: 0
A72: ='Calcs - PMP'!C142 -> 6.25 | B72: ='Calcs - PMP'!F142 -> - | C72: - | E72: 15.5 | F72: -36.50589029 | G72: 0 | L72: 62 | M72: 0 | N72: 0 | O72: 0 | P72: 0 | Q72: 0 | R72: 0 | S72: 0 | T72: 0 | U72: 0 | V72: 0 | W72: 0 | X72: 0 | Y72: 0 | Z72: 0 | AA72: 0 | AB72: 0 | AC72: 0 | AD72: 0 | AE72: 0 | AF72: 0 | AG72: 0 | AH72: 0 | AI72: 0 | AJ72: 0 | AK72: 0 | AL72: 0 | AM72: 0 | AN72: 0 | AO72: 0 | AP72: 0 | AQ72: 0 | AR72: 0 | AS72: 0 | AT72: 0 | AU72: 0 | AV72: 0 | AW72: 0 | AX72: 0 | BV72: 0 | BW72: 0 | BX72: 0 | BY72: 0 | BZ72: 0 | CA72: 0 | CB72: 0 | CC72: 0 | CD72: 0 | CE72: 0 | CF72: 0 | CG72: 0 | CH72: 0 | CI72: 0 | CJ72: 0 | CK72: 0 | CL72: 0 | CM72: 0 | CN72: 0 | CO72: 0 | CP72: 0 | CQ72: 0 | CR72: 0 | CS72: 0 | CT72: 0 | CU72: 0 | CV72: 0 | CW72: 0 | CX72: 0 | CY72: 0 | CZ72: 0 | DA72: 0 | DB72: 0 | DC72: 0 | DD72: 0 | DE72: 0 | DF72: 0 | DG72: 0 | DH72: 0 | DI72: 0 | DJ72: 0 | DK72: 0 | DL72: 0 | DM72: 0 | DN72: 0 | DO72: 0 | DP72: 0 | DQ72: 0 | DR72: 0 | DS72: 0 | DT72: 0 | DU72: 0 | DV72: 0 | DW72: 0 | DX72: 0 | DY72: 0 | DZ72: 0 | EA72: 0 | EB72: 0 | EC72: 0 | ED72: 0 | EE72: 0 | EF72: 0 | EG72: 0 | EH72: 0 | EI72: 0 | EJ72: 0 | EK72: 0 | EL72: 0 | EM72: 0 | EN72: 0 | EO72: 0 | EP72: 0 | EQ72: 0 | ER72: 0 | ES72: 0 | ET72: 0 | EU72: 0 | EV72: 0 | EW72: 0 | EX72: 0 | EY72: 0 | EZ72: 0 | FA72: 0 | FB72: 0 | FC72: 0 | FD72: 0 | FE72: 0 | FF72: 0 | FG72: 0 | FH72: 0 | FI72: 0 | FJ72: 0 | FK72: 0 | FL72: 0 | FM72: 0 | FN72: 0 | FO72: 0 | FP72: 0 | FQ72: 0 | FR72: 0 | FS72: 0 | FT72: 0 | FU72: 0 | FV72: 0 | FW72: 0 | FX72: 0 | FY72: 0 | FZ72: 0 | GA72: 0 | GB72: 0 | GC72: 0 | GD72: 0 | GE72: 0 | GF72: 0 | GG72: 0 | GH72: 0 | GI72: 0 | GJ72: 0 | GK72: 0 | GL72: 0 | GM72: 0 | GN72: 0 | GO72: 0 | GP72: 0 | GQ72: 0 | GR72: 0 | GS72: 0 | GT72: 0 | GU72: 0 | GV72: 0 | GW72: 0 | GX72: 0 | GY72: 0 | GZ72: 0 | HA72: 0 | HB72: 0 | HC72: 0 | HD72: 0 | HE72: 0
